Workbook

Sheet Design Converter
A1: LM5177 DC/DC Controller Design Tool
A3: About | C3: xx | F3: = Input Box | J3: http://www.ti.com/product/lm5177 | N3: TERMS OF USE
A4: Version | B4: =Licenses!B5 -> 1.1.0
A5: Step 1: Operating Specifications
D6: Input Voltage - Min, VIN(min) | E6: 9 | F6: V
D7: Input Voltage - Nom, VIN(nom) | E7: 20 | F7: V
D8: Input Voltage - Max, VIN(max) | E8: 60 | F8: V
D9: Output Voltage, VOUT | E9: 20.5 | F9: V
D10: Full Load Output Current, IOUT(max) | E10: 6.2 | F10: A
D11: Switching Frequency | E11: 398 | F11: kHz
D12: Frequency Set Resistor, RT | E12: =IF('Standard Value Calculator'!O4/1000>288, "N/A",'Standard Value Calculator'!O4/1000) -> 75 | F12: kΩ
A14: Step 2: Filter Inductor
D15: Recommended Filter Inductance | E15: =Lopt_Limit*1000000 -> 2.343592965 | F15: µH
D16: Inductance, LF | E16: 10 | F16: µH
D17: Inductor DCR | E17: 1.9 | F17: mΩ
D18: Pk-to-Pk Ripple Current at VIN(min), DIL1 | E18: ='Variable Management'!B87 -> 1.272853295 | F18: Apk-pk
D19: Pk-to-Pk Ripple Current at VIN(nom), DIL2 | E19: ='Variable Management'!B88 -> 0.1257329548 | F19: Apk-pk
D20: Pk-to-Pk Ripple Current at VIN(max), DIL3 | E20: ='Variable Management'!B89 -> 3.393738748 | F20: Apk-pk
D21: DIL as a % at VIN(min) | E21: ='Variable Management'!B99*100 -> 8.562467091 | F21: %
D22: DIL as a % at VIN(nom) | E22: ='Variable Management'!B100*100 -> 1.879564234 | F22: %
D23: DIL as a % at VIN(max) | E23: ='Variable Management'!B101*100 -> 54.73772174 | F23: %
A25: Step 3: OCP, Sense Resistors, Slope Comp
D26: Peak Current Limit Margin | E26: 25 | F26: %
D27: Recommended Sense Resistance | E27: =Rs_ideal*1000 -> 1.987126776 | F27: mΩ
D28: Sense Resistance, RS | E28: 1.3 | F28: mΩ
D29: Peak Inductor Over Current Limit, ILPK,Limit | E29: ='Variable Management'!B159 -> 45 | F29: A
D30: Max Peak Inductor Current, ILPk,Max | E30: =Ipeak_inductor_max -> 15.50192372 | F30: A
D31: Power Loss in Rs at over current limit | E31: ='Variable Management'!B162 -> 0.8994375 | F31: W
D32: =IF(Device<>"LM51772","Recommended SLOPE Resistor","Recommended SLOPE Factor") -> Recommended SLOPE Resistor | E32: =IF(Device<>"LM51772",'Variable Management'!B165/1000,'Variable Management'!B169) -> 383 | F32: =IF(Device<>"LM51772","kΩ","") -> kΩ
D33: SLOPE Resistor, RSLOPE | E33: 160 | F33: kΩ
D34: VIN(min) | E34: ='Variable Management'!B151 -> 16.5339611 | F34: A
C35: IOUT(typ) at OCP Inception: | D35: VIN(nom) | E35: ='Variable Management'!B152 -> 37.43790426 | F35: A
D36: VIN(max) | E36: ='Variable Management'!B153 -> 36.76466909 | F36: A
A38: Step 4: Output Capacitor
D39: Output Voltage Ripple Spec | E39: 150 | F39: mVpk-pk
D40: Minimum Output Capacitance | E40: ='Variable Management'!B197 -> 58.45696614 | F40: µF
D41: Output Capacitance, COUT | E41: 400 | F41: µF
D42: Maximum Permitted ESR | E42: ='Variable Management'!B201 -> 20.65784479 | F42: mΩ
D43: Output Capacitor ESR | E43: 10 | F43: mΩ
D44: Resulting Output Voltage Ripple (max) | E44: =Vripple2*1000 -> 83.9213623 | F44: mVpk-pk
D45: Output Capacitor RMS Current (max) | E45: ='Variable Management'!B192 -> 7.008407649 | F45: A (rms)
A47: Step 5: Input Capacitor
D48: Input Voltage Ripple Spec | E48: 180 | F48: mVpk-pk
D49: Minimum Input Capacitance | E49: ='Variable Management'!B217 -> 21.63595757 | F49: µF
D50: Input Capacitance, CIN | E50: 180 | F50: µF
D51: Maximum Permitted ESR | E51: ='Variable Management'!B222 -> 20.05402837 | F51: mΩ
D52: Input Capacitor ESR | E52: 10 | F52: mΩ
D53: Resulting Input Voltage Ripple (max) | E53: =Vinripple2*1000 -> 100.6046513 | F53: mVpk-pk
D54: Input Capacitor RMS Current (max) | E54: ='Variable Management'!B210 -> 2.941053107 | F54: A (rms)
A56: Step 6: Soft-start, UVLO, CFG
D57: recommended Soft-Start Time, tSS for ISCP(MIN) | E57: =E41*0.000001*E9/(E26-E10)*1000 -> 0.4361702128 | F57: ms | M57: VIN(nom) | N57: =VIN_nom&"V" -> 20V
D58: Soft-Start Time, tSS | E58: 3 | F58: ms
D59: Soft-Start Capacitance, CSS | E59: =IF(Tss>1.28/1000,Css_u*1000000000,"N/A") -> 33 | F59: nF
D61: Configuration Setting | E61: =CFG -> 5
D62: Configuration Resistor on CFG: RCFG | E62: =INDEX('CFG Setting'!B4:B19,CFG,0) -> 2.7 | F62: kΩ
D63: Required Input Voltage UVLO On | E63: 9 | F63: V
D64: Input Voltage UVLO Off | E64: 8.5 | F64: V
D65: Upper UVLO Resistor, RUV1 | E65: =Ruvlo1 -> 100 | F65: kΩ
D66: Lower UVLO Resistor, RUV2 | E66: ='Variable Management'!E242 -> 15.8 | F66: kΩ
D67: Current Monitor/Limiter
D68: =CHOOSE(IMONLIM_select+1,"","Maximum Current to Monitor","Average Current Limit","Average Current Limit") -> Average Current Limit | E68: 6.2 | F68: A
D69: =CHOOSE(IMONLIM_select+1,"","Maximum Voltage at IMONOUT","", "") ->  | E69: =CHOOSE(IMONLIM_select+1,"","1.5","5", "0") -> 5 | F69: V
D70: Current Sense Shunt Resistance, RCS(out/in) | E70: =Rshunt -> 8.064516129 | F70: mΩ
D71: =CHOOSE(IMONLIM_select+1,"","IMONOUT Resistance, RIMON","SYNC pin during startup", "SYNC pin during startup") -> SYNC pin during startup | E71: =CHOOSE(IMONLIM_select+1,"",'Variable Management'!B274/1000,"High", "Low") -> High | F71: kΩ
D72: IMONOUT Filter , CIMON | E72: 3 | F72: nF
D73: IMONOUT Filter , RIMON | E73: 1 | F73: kΩ
A75: Step 7: Compensation Design
D76: Load Pole Frequency | E76: =Fp_dominant -> 240.6733286 | F76: Hz
D77: COUT ESR Zero Frequency | E77: =Fesr/1000 -> 39.78873577 | F77: kHz
D78: Boost RHP Zero Frequency @ VIN(MIN) | E78: =IF(E6<E9,Frhp_Vinmin/1000,"---") -> 10.05485206 | F78: kHz
D79: Boost RHP Zero Frequency @ VIN(NOM) | E79: =IF(E7<E9,Frhp/1000,"---") -> 50.02337077 | F79: kHz
D80: Desired Crossover Frequency | E80: 1 | F80: =" kHz " -> kHz
D81: Error Amp Pole Frequency | E81: =Fp1_u -> 0.07232869021 | F81: Hz
D82: Upper Feedback Resistor, RFBT | E82: 71.5 | F82: kΩ
D83: Lower Feedback Resistor, RFBB | E83: =IF(Vout=Vref,"OPEN",Rfb2_u/1000) -> 3.65 | F83: =IF(Vout=Vref,"","kΩ") -> kΩ
A85: Compensation Components
B86: Calculated / | C86: Std Values | E86: =" Selected" -> Selected | G86: Actual P/Z Frequencies
A87: RCOMP | B87: =Rcea1/1000 -> 1.144731774 | C87: ='Standard Value Calculator'!O27 -> 1.15 | E87: 2 | F87: kΩ | G87: =Fp1_u -> 0.07232869021 | H87: Hz (FPEA)
A88: CCOMP | B88: =Cc1ea*1000000000 -> 385.1209735 | C88: ='Standard Value Calculator'!O28 -> 390 | E88: 220 | F88: nF | G88: =Fz1_u/1000 -> 0.3617157798 | H88: kHz (FZCOMP)
A89: CHF | B89: =IF(Cc2ea*1000000000000<0, 0, Cc2ea*1000000000000) -> 13895.90638 | C89: ='Standard Value Calculator'!O29 -> 15000 | E89: 2200 | F89: pF | G89: =Fp2_u/1000 -> 36.05120607 | H89: kHz (FPCOMP)
A91: Efficiency / Power Loss Analyzer
A93: Step 8: Efficiency | M93: VIN(nom) | N93: =VIN_nom&"V" -> 20V
D94: Buck-Leg Power MOSFETs (Q1, Q2) | E94: SQJ422EP
E95: Hi-side | F95: Low-side
D96: On-State Resistance, RDS(on) | E96: 3.4 | F96: 3.4 | G96: mΩ
D97: Total Gate Charge, QG | E97: 46 | F97: 46 | G97: nC
D98: Gate-Drain Charge, QGD | E98: 19 | F98: 19 | G98: nC
D99: Gate-Source Charge, QGS | E99: 14 | F99: 14 | G99: nC
D100: Gate Resistance, RG | E100: 2 | F100: 2 | G100: Ω
D101: Transconductance, gFS | E101: 120 | F101: 120 | G101: S
D102: Gate-Source Threshold Voltage, VTH | E102: 2.3 | F102: 2.3 | G102: V
D103: Body Diode Forward Voltage, VBD | E103: 1 | F103: 1 | G103: V
D104: Body Diode Rev Recovery Charge, QRR | F104: 75 | G104: nC
D105: Thermal Resistance, θJA | E105: 65 | F105: 65 | G105: °C/W
D107: Boost-Leg Power MOSFETs (Q3, Q4) | E107: SQJ422EP
E108: Hi-side | F108: Low-side
D109: On-State Resistance, RDS(on) | E109: 3.4 | F109: 3.4 | G109: mΩ
D110: Total Gate Charge, QG | E110: 46 | F110: 46 | G110: nC
D111: Gate-Drain Charge, QGD | E111: 19 | F111: 19 | G111: nC
D112: Gate-Source Charge, QGS | E112: 14 | F112: 14 | G112: nC
D113: Gate Resistance, RG | E113: 2 | F113: 2 | G113: Ω
D114: Transconductance, gFS | E114: 120 | F114: 120 | G114: S
D115: Gate-Source Threshold Voltage, VTH | E115: 2.3 | F115: 2.3 | G115: V
D116: Body Diode Forward Voltage, VBD | E116: 1 | F116: 1 | G116: V
D117: Body Diode Rev Recovery Charge, QRR | E117: 75 | G117: nC
D118: Thermal Resistance, θJA | E118: 65 | F118: 65 | G118: °C/W
A120: External Schottky Diode (if applicable) | E120: Buck Leg | F120: Boost Leg
D121: Schottky Fwd Voltage, VFWDsch | E121: 0 | F121: 0 | G121: V
D122: Schottky Rev Recovery Charge, QRRsch | E122: 0 | F122: 0 | G122: nC

Sheet Licenses
A5: Version Number | B5: 1.1.0
A35: Version History
A36: Version | B36: Change List Description
A37: 1.0.0 | B37: Initial Release
A38: 1.0.1 | B38: updated calculation of High Frequency pole in compensation
A39: 1.0.2 | B39: fixed Rshunt issue blocking efficiency calculation
B40: fixed Rgate Boost side was fixed to 1Ohm, fixed A_CS value to 10, updated EA gm to 600 (from 500)
A41: 1.0.3 | B41: Fixed calculation of UVLO
A42: 1.0.4 | B42: Added support for IMONLIM, fixed error in Efficiency calculation graph of Vin
B43: Fixed minor error in RT
B44: updated Inductor limits
A45: 1.0.5 | B45: fixed calculation of R_CFG
A46: 1.0.6 | B46: Fixed limit for L
B47: fixed display of gain and phase margin in bode plot
A48: 1.0.7 | B48: Improved Rsense suggestion
B49: added range check for Slope compensation
A50: 1.0.8 | B50: Aligned steps for Lf and Rs selection with datasheet and added more comments
B51: Updated calculation of Iout at OCP inection point
A52: 1.0.9 | B52: Added display of Peak inductor current
B53: Check peak current limit with considering given margin
A54: 1.1.0 | B54: Fixed resistor value for R(CFG) setting 3
B55: Updated R(CFG) selection description

Sheet BOM & Schematic (hidden)
B45: ** Tie MODE to VCC (or voltage > 2.4V) for No Hiccup **
A46: ="VIN = "&VIN_min&" V to "&VIN_max&" V, VOUT = "& Vout &" V, IOUT = " &Iout & " A, Fsw = " & Fsw/1000 &" kHz, Current Limit = "&ROUNDUP(Ilimit_DC,0)&" A" -> 
A47: High Efficiency Synchronous Buck-Boost Regulator BOM
A48: Count | B48: Ref Des | C48: Value | D48: Description | H48: Size | I48: Part Number | J48: MFR
A49: 2 | B49: CBOOT1, CBOOT2 | C49: 0.1 | D49: =C49 -> 0.1 | H49: 0603 | I49: Std | J49: Std
A50: 1 | B50: CC1 | C50: ='Design Converter'!E88 -> 220 | D50: 220 | H50: 0603 | I50: Std | J50: Std
A51: 1 | B51: CC2 | C51: ='Design Converter'!E89 -> 2200 | D51: 2200 | H51: 0603 | I51: Std | J51: Std
A52: 1 | B52: RSLOPE | C52: =Rslope/1000 -> 160 | H52: 0603 | I52: Std | J52: Std
A53: 1 | B53: CCS | C53: 100 | D53: =C53 -> 100 | H53: 0603 | I53: Std | J53: Std
A54: 1 | B54: CDITH | C54: =Cdither*1000000000 -> 0 | D54: =C54 -> 0 | H54: 0603 | I54: Std | J54: Std
A55: =ROUNDUP('Design Converter'!E50/10,0) -> 18 | B55: CIN | C55: 10 | D55: =C55 -> 10 | H55: 1210 | I55: Std | J55: Std
A56: =ROUNDUP('Design Converter'!E41/22,0) -> 19 | B56: COUT | C56: 22 | D56: =C56 -> 22 | H56: 1210 | I56: Std | J56: Std
A57: 1 | B57: CSS | C57: ='Design Converter'!E59 -> 33 | D57: =C57 -> 33 | H57: 0603 | I57: Std | J57: Std
A58: 1 | B58: CVCC | C58: 1 | D58: 1 | H58: 0603 | I58: Std | J58: Std
A59: 1 | B59: CVIN | C59: 0.1 | D59: 0.1 | H59: 0603 | I59: Std | J59: Std
A60: 3 | B60: DBOOT1, DBOOT2, DVIN | C60: See description | D60: Schottky Diode, 200mA | H60: - | I60: - | J60: Various
A61: 1 | B61: LF | C61: ='Design Converter'!E16 -> 10 | D61: ="Inductor, "&Lf*1000000&"µH, "&Rdcr*1000&"mΩ, >"&ROUNDUP(IL_peak_OCP*1.1,0)&"A" -> Inductor, 10µH, 1.9mΩ, >50A | H61: - | I61: - | J61: Various
A62: 2 | B62: Q1, Q2 | C62: See description | D62: ='Design Converter'!E96 -> 3.4 | H62: Std | I62: ='Design Converter'!E94 -> SQJ422EP | J62: -
A63: 2 | B63: Q3, Q4 | C63: See description | D63: ='Design Converter'!E109 -> 3.4 | H63: Std | I63: ='Design Converter'!E107 -> SQJ422EP | J63: -
A64: 1 | B64: RC1 | C64: ='Design Converter'!E87 -> 2 | D64: =C64 -> 2 | H64: 0603 | I64: Std | J64: Std
A65: 1 | B65: RS | C65: =Rs*1000 -> 1.3 | D65: 1.3 | H65: 2512 | I65: Std | J65: Std
A66: 1 | B66: RCS(out) | C66: ='Standard Value Calculator'!O21 -> 8.06 | D66: =C66 -> 8.06 | H66: 2512 | I66: Std | J66: Std
A67: 1 | B67: RT | C67: ='Design Converter'!E12 -> 75 | D67: 75 | H67: 0603 | I67: Std | J67: Std
A68: 1 | B68: RFB1 | C68: ='Design Converter'!E82 -> 71.5 | D68: 71.5 | H68: 0603 | I68: Std | J68: Std
A69: 1 | B69: RFB2 | C69: ='Design Converter'!E83 -> 3.65 | D69: 3.65 | H69: 0603 | I69: Std | J69: Std
A70: 1 | B70: RPGOOD | C70: 20 | D70: 20 | H70: 0603 | I70: Std | J70: Std
A71: 2 | B71: RCS, RCSG | C71: 100 | D71: 100 | H71: 0603 | I71: Std | J71: Std
A72: 1 | B72: RUV1 | C72: ='Design Converter'!E65 -> 100 | D72: 100 | H72: 0603 | I72: Std | J72: Std
A73: 1 | B73: RUV2 | C73: ='Design Converter'!E66 -> 15.8 | D73: 15.8 | H73: 0603 | I73: Std | J73: Std
A74: 1 | B74: RVIN | C74: 2.2 | D74: 2.2 | H74: 0603 | I74: Std | J74: Std
A75: 1 | B75: U1 | C75: LM5177 | D75: IC, LM5177, Buck-Boost PWM Controller | H75: TSSOP-38 | I75: LM5177HTSSOP | J75: TI
A78: NOTES:
A79: ** For information on TI NexFETTM MOSFETs, see ** | D79: http://www.ti.com/nexfet | E79: **
A80: ** Inductor saturation current should be higher than the peak inductor current at the OCP setpoint for all input voltages and operating temperatures **
A81: ** Effective input and output capacitances should be appropriately derated for applied voltage and temperature, particularly with ceramics **

Sheet EVMs (hidden)
A1: LM5175 Quickstart Design Tool
B6: LM5175EVM-HD PCB Layout | M6: LM5175EVM-HP PCB Layout | W6: LM5175EVM PCB Layout

Sheet Variable Management (hidden)
A1: EXCEL Variables Names/Calculations
B2: Input from user = | F2: to check
B3: Output =
B4: Constant
A5: Variable Name | B5: Value | C5: STD Units | E5: Notes | I5: Iteration
A6: Step 1: Operational Specs
A7: VIN_min | B7: ='Design Converter'!E6 -> 9 | C7: V | D7: Minimum input voltage | I7: 1
B8: ='Design Converter'!E7 -> 20 | C8: V | D8: Nominal input voltage | K8: Efficiency vs IOUT Plot | L8: 1
A9: VIN_max | B9: ='Design Converter'!E8 -> 60 | C9: V | D9: Maximum input voltage | K9: Efficiency vs VIN Plot | L9: 2
A10: VIN_edgebuckboost | B10: =B44 -> 16.65985669 | C10: V | K10: PLOT_TYPE | L10: 1 | M10: CFG | O10: ='CFG Setting'!G28 -> 5 | P10: 1 = Yes, 2 = No
K11: BODEPLOT_TYPE | L11: FALSE
A12: Vout | B12: ='Design Converter'!E9 -> 20.5 | C12: V | D12: Output Voltage | I12: 1
A13: Iout | B13: ='Design Converter'!E10 -> 6.2 | C13: A | D13: Maximum Output Current | I13: 1
A14: Rout | B14: =Vout/Iout -> 3.306451613 | C14: W | D14: Load resistance
A15: Pout | B15: =Vout*Iout -> 127.1 | C15: W | D15: Output power
A16: Efficiency | B16: 0.95 | D16: Edited by Vijay from 96% to 90% to match datasheet calculations.
A17: Pin | B17: =Pout/Efficiency -> 133.7894737 | C17: W | D17: Calculate input power assuming 90% efficiency
A18: Iin_Vinmin | B18: =Pin/VIN_min -> 14.86549708 | C18: A
A19: Iin_Vinnom | B19: =Pin/VIN_nom -> 6.689473684 | C19: A | D19: Input currents at min, nom, max Vin
A20: Iin_Vinmax | B20: =Pin/VIN_max -> 2.229824561 | C20: A
A22: Fsw | B22: ='Design Converter'!E11*1000 -> 398000 | C22: Hz | D22: Nominal Switching Frequency | I22: 1
A23: Ts | B23: =1/Fsw -> 2.512562814e-06 | C23: sec | D23: Period
A24: Vref | B24: 1 | C24: V | D24: Reference Voltage
A25: Vref_eff | B25: =Vref -> 1 | C25: V | D25: effective Vref with Tracking
A26: Rt | B26: =IF(Device<>"LM51772",(1/Fsw -0.00000002)*30300000000,(1/Fsw -0.000000018)*31500000000) -> 75524.65327 | C26: W | D26: Frequency Set Resistor | F26: edited based on LM5177 curve fit.
A27: Ifb | B27: 6e-08 | C27: A
A29: Device | B29: =CHOOSE(C29,L29,L30) -> LM5177 | C29: 1 | K29: Device | L29: LM5177
A30: Mode | B30: 1 | D30: 0: PSM 1: FPWM | L30: LM51772
A32: Toff_min_buck | B32: =MinToffBuck -> 3.022212659e-07 | C32: sec | D32: 200ns | E32: buck min timer
A33: Ton_min_boost | B33: =MinTonBoost -> 2.622212659e-07 | C33: sec | D33: 300ns | E33: boost min timer
A34: T_max_BB | B34: =TonBubo -> 2.041899337e-06 | C34: sec | E34: max timer before transition from BB
A36: D_min_boost | B36: =MinTonBoost*Fsw -> 0.1043640638
A37: D_max_exitBB_to_boost | B37: =TBubo*Fsw -> 0.1873240638 | C37: =MinTonBoost*Fsw -> 0.1043640638
A38: D_max_buck_BB | B38: 1 | C38: =MaxTonBuck*Fsw -> 0.8797159362
A40: D_min_boost_exitBB_to_buck | B40: =TBubo*Fsw -> 0.1873240638
A41: D_max_exitBB_to_buck | B41: =MaxTonBuck*Fsw -> 0.8797159362
A42: D_max_buck_enterBB | B42: =MaxTonBoost*Fsw -> 0.91704
A44: VIN_BB_to_boost | B44: =Vout*(1-B40) -> 16.65985669 | C44: V
A45: VIN_boost_to_BB | B45: =IF(B30=0,Vout,Vout*(1-B36)) -> 18.36053669 | C45: V
A46: VIN_buck_to_BB | B46: =IF(B30=0,Vout,Vout/B42) -> 22.35453197 | C46: V
A47: VIN_BB_to_buck | B47: =IF(B30=0,Vout,Vout/B41) -> 23.30297674 | C47: V
A51: Step 2: Filter Inductor
A52: Don1 | B52: =Vout/VIN_nom -> 1.025 | C52: =(Vout-VIN_nom)/Vout -> 0.0243902439 | E52: Ideal Duty Cycle at VIN(nom) | I52: 1
A53: Doff1 | B53: =1-_Don1 -> -0.025 | E53: Ideal 1- Duty Cycle at VIN(nom) | I53: 1
A55: Don_Vinmin | B55: =IF(VIN_min>Vout, Vout/VIN_min, (Vout-VIN_min)/Vout) -> 0.5609756098 | C55: =IF(VIN_min>Vout, "BUCK", "BOOST") -> BOOST
A56: Don_Vinnom | B56: =IF(VIN_nom>Vout, Vout/VIN_nom, (Vout-VIN_nom)/Vout) -> 0.0243902439 | C56: =IF(VIN_nom>Vout, "BUCK", "BOOST") -> BOOST
A57: Don_Vinmax | B57: =IF(VIN_max>Vout, Vout/VIN_max, (Vout-VIN_max)/Vout) -> 0.3416666667 | C57: =IF(VIN_max>Vout, "BUCK", "BOOST") -> BUCK
A58: Don_buckboost | B58: =B37 -> 0.1873240638 | C58: lower edge of BUCK-BOOST
A59: Rs_Init | B59: =Boost_CS_Threshold/(Iin_Vinmin*1.4) -> 0.002402495223 | C59: W
B60: BUCK | C60: BOOST
A61: Lf_Vinmin | B61: =(VIN_min-Vout)*Don_Vinmin/(Fsw*Iout*0.3) -> -8.714566802e-06 | C61: =VIN_min/(Iin_Vinmin*0.3*Fsw)*(1-VIN_min/Vout) -> 2.844478963e-06 | D61: H | E61: Calculated inductance for 30% ripple at VIN(min)
A62: Lf_Vinnom | B62: =(VIN_nom-Vout)*Don_Vinnom/(Fsw*Iout*0.4) -> -1.235524594e-08 | C62: =VIN_nom/(Iin_Vinnom*0.4*Fsw)*(1-VIN_nom/Vout) -> 4.580481421e-07 | D62: H | E62: Calculated inductance for 40% ripple at VIN(nom) | I62: 1
A63: Lf_Vinmax | B63: =(VIN_max-Vout)*Don_Vinmax/(Fsw*Iout*0.6) -> 9.115357252e-06 | C63: =VIN_max/(Iin_Vinmax*0.6*Fsw)*(1-VIN_max/Vout) -> -0.0002171148194 | D63: H | E63: Calculated inductance for 60% ripple at VIN(max) | K63: Joerg's Calculation | R63: LM5177
K64: Labsmin | L64: =IF(Device<>"LM51772",Rs/8000,Rs*125/Fsw) -> 1.625e-07 | M64: H | N64: Labsmax | O64: =IF(Device<>"LM51772",Rs/100,Rs*5000/Fsw) -> 1.3e-05 | P64: H
A65: L_Vinmin | B65: =MAX(IF(VIN_min>Vout,B61,C61),O65) -> 2.844478963e-06 | C65: H | D65: =IF(VIN_min>Vout, "BUCK", "BOOST") -> BOOST | E65: Calculated inductance for 30% ripple at VIN(min) | K65: Lbuck | L65: =(VIN_max-Vout)*Vout/(0.4*Iout*Fsw*VIN_max) -> 1.367303588e-05 | M65: H | N65: Lmin | O65: =MAX(10*Vout*Rs/Fsw,Labsmin) -> 6.695979899e-07 | P65: H
A66: L_Vinnom | B66: =IF(VIN_nom>Vout, B62,C62) -> 4.580481421e-07 | C66: H | D66: =IF(VIN_nom>Vout, "BUCK", "BOOST") -> BOOST | E66: Calculated inductance for 40% ripple at VIN(nom) | K66: Lboost | L66: =(Vout-VIN_min)*VIN_min^2/(0.3*Iout*Fsw*Vout^2) -> 2.994188382e-06 | M66: H | N66: Lmax | O66: =MIN(Rs*35*Vout/(Fsw*1),Labsmax) -> 2.343592965e-06 | P66: H
A67: L_Vinmax | B67: =MIN(IF(VIN_max>Vout,B63,C63),O66) -> 2.343592965e-06 | C67: H | D67: =IF(VIN_max>Vout, "BUCK", "BOOST") -> BUCK | E67: Calculated inductance for 60% ripple at VIN(max)
K70: L_avg | L70: =(MAX(MIN(AVERAGE(L65:L66),O66),O65)) -> 2.343592965e-06
A71: Lopt | B71: =VIN_min^2*(Vout-VIN_min)/(0.2*Iout*Fsw*Vout^2) -> 4.491282572e-06 | C71: H | D71: calculated based on 20% ripple limit | K71: L_min | L71: =(MAX(MIN(MIN(L65:L66),O66),O65)) -> 2.343592965e-06
A72: Lmin | B72: =O65 -> 6.695979899e-07 | C72: H
A73: Lmax | B73: =O66 -> 2.343592965e-06 | C73: H | K73: L(peak limit, less than) | L73: =VIN_min*(Vout-VIN_min)/(0.15*Fsw*Vout)*Rs/0.05 -> 2.198798872e-06 | M73: H
A74: Lopt_Limit | B74: =MAX(MIN(B71,B73),B72) -> 2.343592965e-06 | C74: H
A75: Lf | B75: ='Design Converter'!E16/1000000 -> 1e-05 | C75: H | E75: Chosen inductance | I75: 2
A76: Rdcr | B76: ='Design Converter'!E17/1000 -> 0.0019 | C76: W | E76: Chosen inductor DCR | I76: 1
A78: Don2 | B78: =(Vout+Iout*(Rdcr+Rs))/(Vin+Iout*Rs) -> 1.025578692 | I78: 2
A79: Doff2 | B79: =1-_Don2 -> -0.02557869179 | I79: 2
A81: Don_Vinmin_2 | B81: =IF(VIN_min>Vout, (Vout+Iout*(Rdcr+Rs))/(VIN_min+Iout*Rs), (Vout-VIN_min+Iin_Vinmin*(Rdcr))/(Vout-Iin_Vinmin*Rs)) -> 0.5628840127 | C81: =IF(VIN_min>Vout, "BUCK", "BOOST") -> BOOST | E81: Duty cycles adjusted for DCR and shunt voltage drops | I81: 2 | J81: Vijay's simplification | L81: =(1-VIN_min*90%/Vout) -> 0.6048780488
A82: Don_Vinnom_2 | B82: =IF(VIN_nom>Vout, (Vout+Iout*(Rdcr+Rs))/(VIN_nom+Iout*Rs), (Vout-VIN_nom+Iin_Vinnom*(Rdcr))/(Vout-Iin_Vinnom*Rs)) -> 0.02502085801 | C82: =IF(VIN_nom>Vout, "BUCK", "BOOST") -> BOOST | E82: need to include RDS(on) later | R82: LM51772
A83: Don_Vinmax_2 | B83: =IF(VIN_max>Vout, (Vout+Iout*(Rdcr+Rs))/(VIN_max+Iout*Rs), (Vout-VIN_max+Iin_Vinmax*(Rdcr))/(Vout-Iin_Vinmax*Rs)) -> 0.3419513979 | C83: =IF(VIN_max>Vout, "BUCK", "BOOST") -> BUCK
A85: Vripple1 | B85: ='Design Converter'!E39/1000 -> 0.15 | C85: V | E85: Output voltage ripple spec(pk-pk) | I85: 1
A87: Iripple_Vinmin | B87: =IF(VIN_min>Vout, (VIN_min-Vout)*Don_Vinmin_2/(Fsw*Lf),VIN_min*Don_Vinmin_2/(Lf*Fsw)) -> 1.272853295 | C87: =(VIN_min-Vout)*Don_Vinmin_2/(Fsw*Lf) -> -1.626423655 | D87: A | E87: =IF(VIN_min>Vout, "BUCK", "BOOST") -> BOOST | H87: =VIN_min*Don_Vinmin_2/(Lopt*Fsw) -> 2.834053023
A88: Iripple_Vinnom | B88: =IF(VIN_nom>Vout, (VIN_nom-Vout)*Don_Vinnom_2/(Fsw*Lf),VIN_nom*Don_Vinnom_2/(Lf*Fsw)) -> 0.1257329548 | C88: =(VIN_nom-Vout)*Don_Vinnom_2/(Fsw*Lf) -> -0.003143323871 | D88: A | E88: =IF(VIN_nom>Vout, "BUCK", "BOOST") -> BOOST
A89: Iripple_Vinmax | B89: =IF(VIN_max>Vout, (VIN_max-Vout)*Don_Vinmax_2/(Fsw*Lf),VIN_max*Don_Vinmax_2/(Lf*Fsw)) -> 3.393738748 | C89: =(VIN_max-Vout)*Don_Vinmax_2/(Fsw*Lf) -> 3.393738748 | D89: A | E89: =IF(VIN_max>Vout, "BUCK", "BOOST") -> BUCK
A90: Iripple_edgebuckboost | B90: =VIN_edgebuckboost*Don_buckboost/(Lf*Fsw) -> 0.7841186076 | D90: A | E90: BUCK-BOOST
A92: Ishunt_rms_Vinmin | B92: =IF(VIN_min>Vout, SQRT(1-Don_Vinmin_2)*SQRT(Iout^2+(Iripple_Vinmin^2)/12), SQRT(Don_Vinmin_2)*SQRT(Iin_Vinmin^2+(Iripple_Vinmin^2)/12)) -> 11.15633436 | C92: A | E92: =SQRT(1-Don_Vinmin_2)*SQRT(Iout^2+(Iripple_Vinmin^2)/12) -> 4.10630672 | F92: =SQRT(Don_Vinmin_2)*SQRT(Iout^2+(Iripple_Vinmin^2)/12) -> 4.659748715
A93: Ishunt_rms_Vinnom | B93: =IF(VIN_nom>Vout, SQRT(1-Don_Vinnom_2)*SQRT(Iout^2+(Iripple_Vinnom^2)/12), SQRT(Don_Vinnom_2)*SQRT(Iin_Vinnom^2+(Iripple_Vinnom^2)/12)) -> 1.058155373 | C93: A | E93: =SQRT(1-Don_Vinnom_2)*SQRT(Iout^2+(Iripple_Vinnom^2)/12) -> 6.122048893 | F93: =SQRT(Don_Vinnom_2)*SQRT(Iout^2+(Iripple_Vinnom^2)/12) -> 0.9807317393
A94: Ishunt_rms_Vinmax | B94: =IF(VIN_max>Vout, SQRT(1-Don_Vinmax_2)*SQRT(Iout^2+(Iripple_Vinmax^2)/12), SQRT(Don_Vinmax_2)*SQRT(Iin_Vinmax^2+(Iripple_Vinmax^2)/12)) -> 5.091853865 | C94: A | E94: =SQRT(1-Don_Vinmax_2)*SQRT(Iout^2+(Iripple_Vinmax^2)/12) -> 5.091853865 | F94: =SQRT(Don_Vinmax_2)*SQRT(Iout^2+(Iripple_Vinmax^2)/12) -> 3.670533037
A95: Max shunt power loss at full load | B95: =MAX(B92,B94)^2*Rs -> 0.1618029352 | C95: W | D95: =IF(B94>B92, "BUCK", "BOOST") -> BOOST
B96: =(Buck_CS_threshold_max/Rs)^2*Rs*Don_Vinmin -> 1.476768293 | C96: W
A97: Max inductor ripple current | B97: =MAX(B87:B89) -> 3.393738748 | C97: A
F98: Ripple I | G98: Iin
A99: % Ripple Current | B99: =IF(VIN_min>Vout, B87/Iout, B87/Iin_Vinmin) -> 0.08562467091 | C99: =IF(VIN_min>Vout, "BUCK", "BOOST") -> BOOST | F99: =B87 -> 1.272853295 | G99: =Iin_Vinmin -> 14.86549708
B100: =IF(VIN_nom>Vout, B88/Iout, B88/Iin_Vinnom) -> 0.01879564234 | C100: =IF(VIN_nom>Vout, "BUCK", "BOOST") -> BOOST | F100: =B88 -> 0.1257329548 | G100: =Iin_Vinnom -> 6.689473684
B101: =IF(VIN_max>Vout, B89/Iout, B89/Iin_Vinmax) -> 0.5473772174 | C101: =IF(VIN_max>Vout, "BUCK", "BOOST") -> BUCK | F101: =B89 -> 3.393738748 | G101: =Iin_Vinmax -> 2.229824561
A103: Temp | B103: 100
A104: DCR at hot | B104: =Rdcr*(1+0.0039*(B103-25)) -> 0.00245575 | C104: W
A107: Step 3: Sense Resistors, Slope Comp, Current Limit
A109: Ilimit_Margin | B109: ='Design Converter'!E26 -> 25 | C109: % | E109: Chosen OCP level - based on output current
A111: Ipeak_inductor_Vinmin | B111: =IF(VIN_min>Vout, Iout/Efficiency+Iripple_Vinmin/2, Iin_Vinmin+Iripple_Vinmin/2) -> 15.50192372 | C111: A | D111: =IF(VIN_min>Vout, "BUCK", "BOOST") -> BOOST
A112: Ipeak_inductor_Vinnom | B112: =IF(VIN_nom>Vout, Iout/Efficiency+Iripple_Vinnom/2,Iin_Vinnom+Iripple_Vinnom/2) -> 6.752340162 | C112: A | D112: =IF(VIN_nom>Vout, "BUCK", "BOOST") -> BOOST
A113: Ipeak_inductor_Vinmax | B113: =IF(VIN_max>Vout, Iout/Efficiency+Iripple_Vinmax/2,Iin_Vinmin+Iripple_Vinmax/2) -> 8.223185163 | C113: A | D113: =IF(VIN_max>Vout, "BUCK", "BOOST") -> BUCK
A114: Ipeak_inductor_buckboost | B114: =Iout/Efficiency+Iripple_edgebuckboost/2 -> 6.918375093 | C114: A | D114: edge of buck-boost
A115: Ipeak_inductor_max | B115: =MAX(B111:B113) -> 15.50192372 | C115: A
A116: Ipeak_inductor_max_margin | B116: =Ipeak_inductor_max*(1+Ilimit_Margin/100) -> 19.37740465 | C116: A
A118: Buck CS threshold_min | B118: 0.0385 | C118: V
A119: Buck CS threshold | B119: 0.05 | C119: V | E119: Pos and neg. is identical - otherwise take lower value
A120: Buck CS threshold_max | B120: 0.0585 | C120: V | E120: Identical for Buck and Boost
A122: Boost CS Threshold_min | B122: 0.0385 | C122: V
A123: Boost CS Threshold | B123: 0.05 | C123: V | E123: Pos and neg. is identical - otherwise take lower value
A124: Boost CS Threshold_max | B124: 0.0585 | C124: V | E124: Identical for Buck and Boost
A126: Assume we'd like to achieve current limit particularly at VIN(min) and boost side of buck-boost region; accept inevitable variation over line thereafter
A127: Shunt required to get OCP at VIN(min) | B127: =IF(VIN_min>Vout,Buck_CS_threshold/Ipeak_inductor_Vinmin, Boost_CS_Threshold/Ipeak_inductor_Vinmin)/(1+Ilimit_Margin/100) -> 0.002580324914 | C127: W | D127: =IF(VIN_min>Vout, "BUCK", "BOOST") -> BOOST
A128: Shunt required to get OCP at VIN(nom) | B128: =IF(VIN_nom>Vout,Buck_CS_threshold/Ipeak_inductor_Vinnom, Boost_CS_Threshold/Ipeak_inductor_Vinnom)/(1+Ilimit_Margin/100) -> 0.005923872175 | C128: W | D128: =IF(VIN_nom>Vout, "BUCK", "BOOST") -> BOOST
A129: Shunt required to get OCP at VIN(max) | B129: =IF(VIN_max>Vout,Buck_CS_threshold/Ipeak_inductor_Vinmax, Boost_CS_Threshold/Ipeak_inductor_Vinmax)/(1+Ilimit_Margin/100) -> 0.004864295186 | C129: W | D129: =IF(VIN_max>Vout, "BUCK", "BOOST") -> BUCK
A130: Shunt required to get OCP at VIN(edge-bb) | B130: =IF(VIN_min<VIN_edgebuckboost,Buck_CS_threshold/Ipeak_inductor_buckboost, 10)/(1+Ilimit_Margin/100) -> 0.005781704441 | C130: W | D130: Edge of B-B
A133: Ipeak_peak_inductor | B133: =Don_Vinmin*VIN_min/(Lf*Fsw) -> 1.268537811 | C133: A
A134: IIN_avg_max | B134: =Vout*Iout/(Efficiency*VIN_min) -> 14.86549708
A145: Rs_ideal | B145: =Boost_CS_Threshold_min/((B134+0.5*B133)*(1+Ilimit_Margin/100)) -> 0.001987126776 | C145: W | E145: Ideal Rs for the required OCP -- based on 80mV or 160mV CL threshold
A146: Rs | B146: ='Design Converter'!E28/1000 -> 0.0013 | C146: W | E146: Selected (starndard value) current limit sense resistor
A147: Rs_in_range | B147: =IF(AND(100<Rs/Lf,Rs/Lf<8000,Rs/Lf<(1*Fsw/(Vout*10))),1,0) -> 1
A148: BOOST current limit - peak | B148: =Boost_CS_Threshold_max/Rs -> 45 | C148: A | E148: Peak inductor current limit in BOOST
A149: BUCK current limit - peak | B149: =Buck_CS_threshold_max/Rs -> 45 | C149: A | E149: Peak inductor current limit in BUCK
A151: Iout_OCP_Vinmin | B151: =IF(VIN_min>Vout,Buck_CS_threshold/Rs-Iripple_Vinmin/2, (Boost_CS_Threshold/Rs-Iripple_Vinmin/2)*(1-Don_Vinmin_2)) -> 16.5339611 | C151: A | D151: =IF(VIN_min>Vout, "BUCK", "BOOST") -> BOOST | E151: Current limit setpoints (i.e. IOUT) after standard components are selected
A152: Iout_OCP_Vinnom | B152: =IF(VIN_nom>Vout,Buck_CS_threshold/Rs-Iripple_Vinnom/2, (Boost_CS_Threshold/Rs-Iripple_Vinnom/2)*(1-Don_Vinnom_2)) -> 37.43790426 | C152: A | D152: =IF(VIN_nom>Vout,"BUCK",IF(VIN_nom<VIN_edgebuckboost,"BOOST","BUCK-BOOST")) -> BUCK-BOOST
A153: Iout_OCP_Vinmax | B153: =IF(VIN_max>Vout,Buck_CS_threshold/Rs-Iripple_Vinmax/2, (Boost_CS_Threshold/Rs-Iripple_Vinmax/2)*(1-Don_Vinmax_2)) -> 36.76466909 | C153: A | D153: =IF(VIN_max>Vout, "BUCK", "BOOST") -> BUCK
A154: Iout_edgebuckboost | B154: =(Buck_CS_threshold/Rs-Iripple_edgebuckboost/2)*(1-Don_buckboost) -> 30.93814961 | C154: A | D154: lower edge of buck-boost window | K154: RMS current in Rs | M154: Power diss in Rs
A156: ILpeak_OCP_Vinmin | B156: =IF(VIN_min>Vout, Buck_CS_threshold_max/Rs, Boost_CS_Threshold_max/Rs) -> 45 | C156: A | D156: =IF(VIN_min>Vout, "BUCK", "BOOST") -> BOOST | E156: Peak inductor currents in OCP | H156: =SQRT(Don_Vinmin_2)*SQRT(Iin_Vinmin^2+(Iripple_Vinmin^2)/12) -> 11.15633436 | K156: =IF(VIN_min>Vout, SQRT(1-Don_Vinmin_2)*SQRT(Iout_OCP_Vinmin^2+(Iripple_Vinmin^2)/12), SQRT(Don_Vinmin_2)*SQRT(Iin_Vinmin^2+(Iripple_Vinmin^2)/12)) -> 11.15633436 | L156: A | M156: =K156^2*Rs -> 0.1618029352 | N156: W
A157: ILpeak_OCP_Vinnom | B157: =IF(VIN_nom>Vout, Buck_CS_threshold_max/Rs, IF(VIN_nom<VIN_edgebuckboost, Boost_CS_Threshold_max/Rs, Buck_CS_threshold_max/Rs)) -> 45 | C157: A | D157: =IF(VIN_nom>Vout,"BUCK",IF(VIN_nom<VIN_edgebuckboost,"BOOST","BUCK-BOOST")) -> BUCK-BOOST | H157: =SQRT(1-Don_Vinnom_2)*SQRT(Iout_OCP_Vinnom^2+(Iripple_Vinnom^2)/12) -> 36.96659044 | K157: =IF(VIN_nom>Vout, SQRT(1-Don_Vinnom_2)*SQRT(Iout_OCP_Vinnom^2+(Iripple_Vinnom^2)/12), SQRT(Don_Vinnom_2)*SQRT(Iin_Vinnom^2+(Iripple_Vinnom^2)/12)) -> 1.058155373 | L157: A | M157: =K157^2*Rs -> 0.001455600631 | N157: W
A158: ILpeak_OCP_Vinmax | B158: =IF(VIN_max>Vout, Buck_CS_threshold_max/Rs, Boost_CS_Threshold_max/Rs) -> 45 | C158: A | D158: =IF(VIN_max>Vout, "BUCK", "BOOST") -> BUCK | H158: =SQRT(1-Don_Vinmax_2)*SQRT(Iout_OCP_Vinmax^2+(Iripple_Vinmax^2)/12) -> 29.83415807 | K158: =IF(VIN_max>Vout, SQRT(1-Don_Vinmax_2)*SQRT(Iout_OCP_Vinmax^2+(Iripple_Vinmax^2)/12), SQRT(Don_Vinmax_2)*SQRT(Iin_Vinmax^2+(Iripple_Vinmax^2)/12)) -> 29.83415807 | L158: A | M158: =K158^2*Rs -> 1.157100084 | N158: W
A159: Worst case peak inductor current | B159: =MAX(B156:B158) -> 45 | C159: A | K159: Vijay verified that this calculation (Vinmax) are correct for OCP.
A161: IL_peak_OCP | B161: =MAX(B156:B158) -> 45 | C161: A | E161: Peak inductor current over the full input range
A162: Max shunt power loss at OC | B162: =(Boost_CS_Threshold_max/Rs)^2*Rs*(Vout/VIN_max) -> 0.8994375 | C162: W
A164: Rslope_ideal | B164: =Lf/Rs*50*10^6 -> 384615.3846 | C164: W | E164: using 50MV/As from Datasheet
A165: Rslope_recommended | B165: ='Standard Value Calculator'!O15 -> 383000 | C165: W | E165: Standard size based on Rsideal slope Resistor
A166: Rslope_selected | B166: ='Design Converter'!E33*1000 -> 160000 | C166: W | E166: Selected SLOPE Resistor
A168: Rslope calc LM51772 | B168: =Rs/Lf/Fsw*625 -> 0.2041457286
A169: Rslope select LM51772 | B169: =INDEX(P174:P189,MATCH(B168,P174:P189,1)+1) -> 0.25
A170: Rslope setting for CFG1 in LM51772 | B170: =INDEX(O174:O189,MATCH(B168,P174:P189)+1)+1 -> 2
A171: Rslope_equ_772 | B171: =625*50000000/(Fsw*B169) -> 314070.3518 | C171: W
A172: Islope_fixed | B172: =Isc_const -> 0 | C172: A | K172: BUCK | L172: BOOST | O172: LM51772 Slope table
A173: Rslope | B173: =IF(Device="LM51772",B171,B166) -> 160000 | C173: W | K173: =B174*(1-Don_Vinmin_2)/Fsw -> 0.05920423038 | L173: =B174*Don_Vinmin_2/Fsw -> 0.07623860882 | M173: =IF(VIN_min>Vout, "BUCK", "BOOST") -> BOOST | O173: SEL_SLOPE | P173: Factor
A174: SLOPE comp dv/dt = I_slope_total/Cslope | B174: =(ABS((VIN_min-Vout))*gm_slopecomp/Cslope + Islope_fixed)/(Rslope) -> 53906.25 | C174: V/s | E174: at VIN_min | K174: =B175*(1-Don_Vinnom_2)/Fsw -> 0.005741475789 | L174: =B175*Don_Vinnom_2/Fsw -> 0.0001473433065 | M174: =IF(VIN_nom>Vout, "BUCK", "BOOST") -> BOOST | O174: 0 | P174: =0.125 + 0.125 *O174 -> 0.125
A175: SLOPE comp dv/dt = I_slope_total/Cslope | B175: =(ABS((VIN_nom-Vout))*gm_slopecomp/Cslope + Islope_fixed)/(Rslope) -> 2343.75 | C175: V/s | E175: at VIN_nom | K175: =B176*(1-Don_Vinmax_2)/Fsw -> 0.3061352047 | L175: =B176*Don_Vinmax_2/Fsw -> 0.1590815038 | M175: =IF(VIN_max>Vout, "BUCK", "BOOST") -> BUCK | O175: 1 | P175: =0.125 + 0.125 *O175 -> 0.25
A176: SLOPE comp dv/dt = I_slope_total/Cslope | B176: =(ABS((VIN_max-Vout))*gm_slopecomp/Cslope + Islope_fixed)/(Rslope) -> 185156.25 | C176: V/s | E176: at VIN_max | O176: 2 | P176: =0.125 + 0.125 *O176 -> 0.375
O177: 3 | P177: 0.5
A178: DV_SLOPEcomp at Vinmin | B178: =IF(D178="BUCK", K173,L173) -> 0.07623860882 | C178: V | D178: =IF(VIN_min>Vout, "BUCK", "BOOST") -> BOOST | E178: at VIN_min | O178: 4 | P178: 0.625
A179: DV_SLOPEcomp at Vinnom | B179: =IF(D179="BUCK", K174,L174) -> 0.0001473433065 | C179: V | D179: =IF(VIN_nom>Vout,"BUCK",IF(VIN_nom<VIN_edgebuckboost,"BOOST","BUCK-BOOST")) -> BUCK-BOOST | E179: at VIN_nom | O179: 5 | P179: 0.75
A180: DV_SLOPEcomp at Vinmax | B180: =IF(D180="BUCK", K175,L175) -> 0.3061352047 | C180: V | D180: =IF(VIN_max>Vout, "BUCK", "BOOST") -> BUCK | E180: at VIN_max | O180: 6 | P180: 0.875
O181: 7 | P181: 1
O182: 8 | P182: =1 + 4 *P174 -> 1.5
O183: 9 | P183: =1 + 4 *P175 -> 2
O184: 10 | P184: 2.5
O185: 11 | P185: 3
O186: 12 | P186: 3.5
O187: 13 | P187: 4
A188: Step 4: Output Capacitor | O188: 14 | P188: 4.5
A189: Icoutrms_VINmin | B189: =IF(D189="BUCK", Iripple_Vinmin/SQRT(12), Iout*SQRT((Vout-VIN_min)/VIN_min)) -> 7.008407649 | C189: A | D189: =IF(VIN_min>Vout, "BUCK", "BOOST") -> BOOST | E189: Output Cap RMS current | O189: 15 | P189: 5
A190: Icoutrms_VINnom | B190: =IF(D190="BUCK", Iripple_Vinnom/SQRT(12), Iout*SQRT((Vout-VIN_nom)/VIN_nom)) -> 0.9803060747 | C190: A | D190: =IF(VIN_nom>Vout,"BUCK",IF(VIN_nom<VIN_edgebuckboost,"BOOST","BUCK-BOOST")) -> BUCK-BOOST
A191: Icoutrms_VINmax | B191: =IF(D191="BUCK", Iripple_Vinmax/SQRT(12), Iout*SQRT((Vout-VIN_max)/VIN_max)) -> 0.9796879898 | C191: A | D191: =IF(VIN_max>Vout, "BUCK", "BOOST") -> BUCK
A192: Max Cout rms current | B192: =MAX(B189:B191) -> 7.008407649 | C192: A
A194: Output Ripple Spec (pk-pk) | B194: =Vripple1*1000 -> 150 | C194: mV | E194: Vout ripple spec at Vin(nom)
A196: Coutmin | B196: =IF(VIN_min>Vout, Iripple_Vinmin/(Fsw*8*Vripple1), Iout*Don_Vinmin_2/(Vripple1*Fsw)) -> 5.845696614e-05 | C196: F | E196: Minimum Output Capacitnace | H196: =Vripple2 -> 0.0839213623 | I196: 1 | K196: =Coutmin -> 5.845696614e-05
A197: Reported Coutmin | B197: =IF(Coutmin*1000000<H197, H197,Coutmin*1000000) -> 58.45696614 | C197: uF | E197: Limit Min. output Cap | H197: 0.1 | K197: =Coutmin*1000000 -> 58.45696614
A198: Cout | B198: ='Design Converter'!E41/1000000 -> 0.0004 | C198: F | E198: Chosen Output Capacitance | I198: 1
A199: Resrmax | B199: =IF(VIN_min>Vout, SQRT((Vripple1/Iripple_Vinmin)^2-(1/(Fsw*Cout*8))^2), (Vripple1-Iout*Don_Vinmin_2/(Fsw*Cout))/Iout) -> 0.02065784479 | C199: W | E199: Max ESR before ripple exceeds Vripple1 | I199: 1
A201: Reported Cout ESR max | B201: =IF(OR(CoutEsrMax>0.3, CoutEsrMax<0, (ISERROR(CoutEsrMax))), "N/A", CoutEsrMax*1000) -> 20.65784479 | C201: mΩ
A202: CoutEsr | B202: ='Design Converter'!E43/1000 -> 0.01 | C202: W | E202: Chosen ESR | I202: 1 | K202: =ISERROR(CoutEsrMax) -> FALSE | L202: =ISERROR(B201) -> FALSE
A203: Vripple | B203: =IF(VIN_min>Vout, Iripple_Vinmax*SQRT(CoutEsr^2+(1/(8*Fsw*Cout))^2), CoutEsr*Iout+Iout*Don_Vinmin_2/(Fsw*Cout)) -> 0.0839213623 | C203: Vp-p | L203: =OR(CoutEsrMax>0.3,CoutEsrMax<0) -> FALSE
K204: =OR(TRUE, FALSE, TRUE) -> TRUE
A205: Step 5: Input Capacitor
A207: Icinrms_VINmin | B207: =IF(D207="BUCK", Iout*SQRT(Don_Vinmin_2*(1-Don_Vinmax_2)), Iripple_Vinmin/SQRT(12)) -> 0.3674410963 | C207: A | D207: =IF(VIN_min>Vout, "BUCK", "BOOST") -> BOOST | F207: =Iripple_Vinmin/SQRT(12) -> 0.3674410963 | G207: =Iout*SQRT(Don_Vinmax_2*(1-Don_Vinmax_2)) -> 2.941053107 | H207: =Iout*0.25 -> 1.55
A208: Icinrms_VINnom | B208: =IF(D208="BUCK", Iout*SQRT(Don_Vinnom_2*(1-Don_Vinnom_2)), Iripple_Vinnom/SQRT(12)) -> 0.03629597766 | C208: A | D208: =IF(VIN_nom>Vout,"BUCK",IF(VIN_nom<VIN_edgebuckboost,"BOOST","BUCK-BOOST")) -> BUCK-BOOST
A209: Icinrms_VINmiax | B209: =IF(D209="BUCK", Iout*SQRT(Don_Vinmax_2*(1-Don_Vinmax_2)), Iripple_Vinmax/SQRT(12)) -> 2.941053107 | C209: A | D209: =IF(VIN_max>Vout, "BUCK", "BOOST") -> BUCK
A210: Max Cin rms current | B210: =MAX(B207:B209) -> 2.941053107 | C210: A | D210: …report this
A212: Vinripple1 | B212: ='Design Converter'!E48/1000 -> 0.18 | C212: Vp-p | D212: Input voltage ripple spec (pk-pk)
A214: Cinmin_Vinmax | B214: =IF(VIN_max>Vout, Iout*Don_Vinmax_2*(1-Don_Vinmax_2)/(Vinripple1*Fsw), Iripple_Vinmax/(Fsw*8*Vinripple1)) -> 1.947414802e-05 | C214: F | D214: Calculate cap at Vinmax and 50% duty cycle (Vin = 2*Vout) | K214: =Iripple_Vinnom/(Fsw*8*Vinripple1) -> 2.193832964e-07
A215: Cinmin_50%D | B215: =IF(VIN_max>Vout, Iout*0.5*(1-0.5)/(Vinripple1*Fsw), Iripple_Vinmax/(Fsw*8*Vinripple1)) -> 2.163595757e-05 | D215: Buck 50% typically worst case
A216: Cinmin | B216: =IF(VIN_max<2*Vout, B214,B215) -> 2.163595757e-05
A217: Reported Cinmin | B217: =IF(Cinmin*1000000<10, 10,Cinmin*1000000) -> 21.63595757 | C217: uF | D217: …report this
A218: Cin | B218: ='Design Converter'!E50/1000000 -> 0.00018 | C218: F | D218: Input capacitance
A219: CinEsrMax_Vinmax | B219: =IF(VIN_max>Vout, -(Iout*Don_Vinmax_2*(1-Don_Vinmax_2)/(Cin*Fsw)-Vinripple1)/(Iout+Iripple_Vinmax/2), SQRT((Vinripple1/Iripple_Vinmax)^2-(1/(Fsw*Cin*8))^2)) -> 0.02032778363 | C219: W
A220: CinEsrMax_50%D | B220: =IF(VIN_max>Vout, -(Iout*0.5*(1-0.5)/(Cin*Fsw)-Vinripple1)/(Iout+Iripple_Vinmax/2), SQRT((Vinripple1/Iripple_Vinmax)^2-(1/(Fsw*Cin*8))^2)) -> 0.02005402837 | C220: W | D220: Calculate ESR at Vinmax and 50% duty cycle (Vin = 2*Vout)
A221: CinEsrMax | B221: =IF(VIN_max<2*Vout, B219,B220) -> 0.02005402837 | C221: W
A222: Reported Cin ESR max | B222: =IF(OR(CinEsrMax>0.3, CinEsrMax<0), "N/A",CinEsrMax*1000) -> 20.05402837 | C222: mΩ | D222: …report this
A223: RCinEsr | B223: ='Design Converter'!E52/1000 -> 0.01 | C223: W | D223: Input capacitance series resistance (ESR)
K224: =CinEsrMax -> 0.02005402837
A225: Vinripple2_Vinmax | B225: =IF(VIN_max>Vout, Iout*Don_Vinmax_2*(1-Don_Vinmax_2)/(Cin*Fsw)+(Iout +Iripple_Vinmax/2)*RCinEsr, Iripple_Vinmax*SQRT(RCinEsr^2+(1/(8*Fsw*Cin))^2)) -> 0.09844284176 | C225: Vp-p
A226: Vinripple2_50%D | B226: =IF(VIN_max>Vout, Iout*0.5*(1-0.5)/(Cin*Fsw)+(Iout +Iripple_Vinmax/2)*RCinEsr, Iripple_Vinmax*SQRT(RCinEsr^2+(1/(8*Fsw*Cin))^2)) -> 0.1006046513 | C226: Vp-p | D226: Calculate ripple at Vinmax and 50% duty cycle (Vin = 2*Vout)
A227: Vinripple2 | B227: =IF(VIN_max<2*Vout, B225,B226) -> 0.1006046513 | C227: Vp-p | D227: …report highest of these
B229: =Iout*Don_Vinmax_2*(1-Don_Vinmax_2)/(Cin*Fsw) -> 0.01947414802 | C229: Vp-p
A231: Step 6a: Soft Start
A232: Tss | B232: ='Design Converter'!E58/1000 -> 0.003 | C232: s | D232: Soft-start time
A233: Iss | B233: 1e-05 | C233: A | D233: Load cap current during soft start
A234: Css | B234: =Iss*Tss/Vref -> 3e-08 | C234: F
A235: Css_u | B235: ='Standard Value Calculator'!B4 -> 3.3e-08 | C235: F
A237: Step 6b: Other Components - UVLO, Dither, MODE
A239: VINUVLO_ON | B239: ='Design Converter'!E63 -> 9 | C239: V
A240: VINUVLO_OFF | B240: ='Design Converter'!E64 -> 8.5 | C240: V
A241: RUV1 | B241: =(VINuvlo_on-VINuvlo_off)/Iuvlo1 -> 100 | C241: kΩ | E241: ='Standard Value Calculator'!O16 -> 100 | F241: kΩ | G241: =IF(Ruvlo1<0,"N/A",E241) -> 100 | H241: =IF(Ruvlo1<0,"N/A",E241&"kΩ") -> 100kΩ
A242: RUV2 | B242: =Ruvlo1/(('Design Converter'!E63-Vuvlo_hys)/Vuvlo_off-1) -> 15.93264249 | C242: kΩ | E242: ='Standard Value Calculator'!O17 -> 15.8 | F242: kΩ | G242: =IF(G241="N/A","N/A",E242) -> 15.8 | H242: =IF(H241="N/A","N/A",E242&"kΩ") -> 15.8kΩ
A244: VINUVLO_ON_ACTUAL | B244: =(E241+E242)/E242*Vuvlo_on+Iuvlo1*E241 -> 9.881265823
A245: VINUVLO_OFF_ACTUAL | B245: =(E241+E242)/E242*Vuvlo_off -> 9.014810127
A247: Rising UVLO/EN Threshold | B247: 1.28 | C247: V
A248: Falling UVLO/EN Threshold | B248: 1.23 | C248: V
A249: Voltage Hysteresis | B249: =B247-B248 -> 0.05 | C249: V
A250: Rising UVLO/EN Current | B250: 0.005 | C250: mA
A251: Falling UVLO/EN Current | C251: mA
A252: UVLO/EN Current Hysteresis | C252: mA
A254: RPG | B254: 20 | C254: kΩ
A255: RSB | C255: W
... 241 more rows

Sheet DeviceParameter (hidden)
A1: EXCEL Device Parameter
B2: Input from user = | F2: to check
B3: Output =
B4: Constant
A5: Variable Name | B5: Selected Value | C5: STD Units | D5: Device
D6: LM5177 | E6: LM51771 | F6: LM51772
A7: MaxVin | B7: =IF(Device=DeviceParameter!$D$6,DeviceParameter!D7,IF(Device=DeviceParameter!$E$6,DeviceParameter!E7,IF(Device=DeviceParameter!$F$6,DeviceParameter!F7,""))) -> 60 | C7: V | D7: 60 | F7: 50
A8: MinVin | B8: =IF(Device=DeviceParameter!$D$6,DeviceParameter!D8,IF(Device=DeviceParameter!$E$6,DeviceParameter!E8,IF(Device=DeviceParameter!$F$6,DeviceParameter!F8,""))) -> 2.8 | C8: V | D8: 2.8 | F8: 3.3
A9: MaxfSW | B9: =IF(Device=DeviceParameter!$D$6,DeviceParameter!D9,IF(Device=DeviceParameter!$E$6,DeviceParameter!E9,IF(Device=DeviceParameter!$F$6,DeviceParameter!F9,""))) -> 600 | C9: kHz | D9: 600 | F9: 2200
A11: g_m | B11: =IF(Device=DeviceParameter!$D$6,DeviceParameter!D11,IF(Device=DeviceParameter!$E$6,DeviceParameter!E11,IF(Device=DeviceParameter!$F$6,DeviceParameter!F11,""))) -> 0.001 | C11: S | D11: 0.001 | F11: 0.001
A12: gm_IL | B12: =IF(Device=DeviceParameter!$D$6,DeviceParameter!D12,IF(Device=DeviceParameter!$E$6,DeviceParameter!E12,IF(Device=DeviceParameter!$F$6,DeviceParameter!F12,""))) -> 0.0002 | C12: S | D12: 0.0002 | F12: 0.0005
A13: gm_CDC | B13: 0.0005 | C13: S | F13: 0.0005 | J13: CDC Transconductance

Sheet Timings (hidden)
A1: DeadTime | B1: 2e-08 | D1: fsw | E1: =Fsw -> 398000
A2: GdrvDelay | B2: 2e-08 | D2: Tsw | E2: =1/E1 -> 2.512562814e-06
A3: IL | B3: 1
A4: IlPos | B4: =IF(B3>0,1,0) -> 1
A5: IlNeg | B5: =IF(B3<0,1,0) -> 0
A6: IlDir | B6: =B4-B5 -> 1
A8: Ifsw_2M | B8: 1e-06
A9: Iconst | B9: 1e-06
A10: T12_min | B10: 7.5e-08
A11: T23_min | B11: 7.5e-08
A12: I_T12_max | B12: =0.75/T12_min*Ifsw_2M/2000000*0.2 -> 1e-06
A13: I_T23_max | B13: =0.75/T23_min*Ifsw_2M/2000000*0.2 -> 1e-06
A14: Kgain_12 | B14: =1+4*0.25 -> 2
A15: Kratio_23 | B15: =1-2*0.041666 -> 0.916668
A17: I_T12(FSW) | B17: =MIN(Ifsw_2M/2000000*Fsw*Kgain_12,I_T12_max) -> 3.98e-07
A18: I_T23(FSW) | B18: =MIN(Ifsw_2M/2000000*Fsw*Kratio_23+Iconst*(1-Kratio_23),I_T23_max) -> 2.65748932e-07 | E18: D
A20: T1_to_T2(Fsw) | B20: =0.000000075/I_T12_FSW*0.000001 -> 1.884422111e-07 | E20: =T1_to_T2_Fsw*Fsw -> 0.075
A21: T2_to_T3(Fsw) | B21: =0.000000075/I_T23_FSW*0.000001 -> 2.822212659e-07 | E21: =T2_to_T3_Fsw*Fsw -> 0.1123240638
A22: T3_to_T4(Fsw) | B22: =T2_to_T3_Fsw -> 2.822212659e-07 | E22: =T3_to_T4_Fsw*Fsw -> 0.1123240638
A23: T1_to_T3(Fsw) | B23: =T1_to_T2_Fsw+T2_to_T3_Fsw -> 4.70663477e-07 | E23: =B23*Fsw -> 0.1873240638
A25: MinT1FallCtrl(Fsw) | B25: =0.2*T1_to_T2_Fsw -> 3.768844221e-08
A26: MinT1RiseCtrl(Fsw) | B26: =0.2*T1_to_T2_Fsw -> 3.768844221e-08 | G26: Vin
A28: MinTonBuck(Fsw) | B28: =T3_to_T4_Fsw-IlDir*DeadTime -> 2.622212659e-07 | E28: =MinTonBuck*Fsw -> 0.1043640638 | G28: =Vout/E28 -> 196.4277669
A29: MinToffBuck(Fsw) | B29: =T2_to_T3_Fsw+IlDir*DeadTime -> 3.022212659e-07 | E29: =(E2-MinToffBuck)*Fsw -> 0.8797159362 | G29: =Vout/E29 -> 23.30297674
A30: MaxTonBuck(Fsw) | B30: =1/Fsw-MinToffBuck -> 2.210341548e-06 | E30: =MaxTonBuck*Fsw -> 0.8797159362 | G30: =Vout/E30 -> 23.30297674
A32: MinTonBoost(Fsw) | B32: =T2_to_T3_Fsw-IlDir*DeadTime -> 2.622212659e-07 | E32: =MinTonBoost*Fsw -> 0.1043640638 | G32: =Vout*(1-E32) -> 18.36053669
A33: MinToffBoost(Fsw) | B33: =T1_to_T2_Fsw+IlDir*DeadTime -> 2.084422111e-07 | E33: =(E2-MinToffBoost)*Fsw -> 0.91704 | G33: =Vout*(1-E33) -> 1.70068
A34: MaxTonBoost(Fsw) | B34: =1/Fsw-MinToffBoost -> 2.304120603e-06 | E34: =MaxTonBoost*Fsw -> 0.91704 | G34: =Vout*(1-E34) -> 1.70068
A35: MaxToffBoost(Fsw) | B35: =1/Fsw-MaxTonBoost -> 2.084422111e-07 | E35: =MaxToffBoost*Fsw -> 0.08296
A36: MinTlRise(Fsw) | B36: =MAX(MAX(MinT1RiseCtrl,IlNeg*GdrvDelay)-IlDir*DeadTime,0) -> 1.768844221e-08 | E36: =MinTlRise*Fsw -> 0.00704
A37: MinTlFall(Fsw) | B37: =MAX(MinT1FallCtrl,IlPos*GdrvDelay) -> 3.768844221e-08 | E37: =MinTlFall*Fsw -> 0.015
A39: TBubo(Fsw) | B39: =T1_to_T2_Fsw+T2_to_T3_Fsw -> 4.70663477e-07 | E39: =TBubo*Fsw -> 0.1873240638 | G39: =Vout*(1-E39) -> 16.65985669
A40: TonBubo(Fsw) | B40: =1/Fsw-TBubo+0*DeadTime -> 2.041899337e-06 | E40: =TonBubo*Fsw -> 0.8126759362 | G40: =Vout*(1-E40) -> 3.840143308
A41: MaxTlRise(Fsw) | B41: =MAX(TBubo-MinTlFall-IlDir*DeadTime,0) -> 4.129750347e-07 | E41: =MaxTlRise*Fsw -> 0.1643640638
B43: =DeadTime+GdrvDelay -> 4e-08 | E43: =B43*Fsw -> 0.01592

Sheet CFG Setting (hidden)
A1: LM5177
A2: CFG
A3: Setting | B3: R_CFG [ | C3: DRSS | D3: SCP - HICCUP | E3: PSM Entry | F3: Current LIMIT | G3: =C3 -> DRSS | H3: =D3 -> SCP - HICCUP | I3: =E3 -> PSM Entry | J3: =F3 -> Current LIMIT
A4: 1 | B4: 0 | C4: 0 | D4: 0 | E4: 0 | F4: 0 | G4: =IF(C4=1,"Enable","Disable") -> Disable | H4: =IF(D4=1,"Enable","Disable") -> Disable | I4: 10% | J4: =IF(F4=1,"Enable","Disable") -> Disable | L4: =CONCATENATE(G$3,": ",C4) -> DRSS: 0 | M4: =CONCATENATE(H$3,": ",D4) -> SCP - HICCUP: 0 | N4: =CONCATENATE(I$3,": ",E4) -> PSM Entry: 0 | O4: =CONCATENATE(J$3,": ",F4) -> Current LIMIT: 0 | P4: =CONCATENATE(K$3,": ",G4) -> : Disable | R4: =CONCATENATE(L4," / ",M4," / ",N4," / ",O4) -> DRSS: 0 / SCP - HICCUP: 0 / PSM Entry: 0 / Current LIMIT: 0
A5: 2 | B5: 0.511 | C5: 1 | D5: 0 | E5: 0 | F5: 0 | G5: =IF(C5=1,"Enable","Disable") -> Enable | H5: Disable | I5: 10% | J5: Disable | L5: =CONCATENATE(G$3,": ",C5) -> DRSS: 1 | M5: SCP - HICCUP: 0 | N5: PSM Entry: 0 | O5: Current LIMIT: 0 | P5: : Enable | R5: =CONCATENATE(L5," / ",M5," / ",N5," / ",O5) -> DRSS: 1 / SCP - HICCUP: 0 / PSM Entry: 0 / Current LIMIT: 0
A6: 3 | B6: 1.15 | C6: 0 | D6: 1 | E6: 0 | F6: 0 | G6: Disable | H6: Enable | I6: 10% | J6: Disable | L6: DRSS: 0 | M6: SCP - HICCUP: 1 | N6: PSM Entry: 0 | O6: Current LIMIT: 0 | P6: : Disable | R6: DRSS: 0 / SCP - HICCUP: 1 / PSM Entry: 0 / Current LIMIT: 0
A7: 4 | B7: 1.9 | C7: 1 | D7: 1 | E7: 0 | F7: 0 | G7: Enable | H7: Enable | I7: 10% | J7: Disable | L7: DRSS: 1 | M7: SCP - HICCUP: 1 | N7: PSM Entry: 0 | O7: Current LIMIT: 0 | P7: : Enable | R7: DRSS: 1 / SCP - HICCUP: 1 / PSM Entry: 0 / Current LIMIT: 0
A8: 5 | B8: 2.7 | C8: 0 | D8: 0 | E8: 0 | F8: 1 | G8: Disable | H8: Disable | I8: 10% | J8: Enable | L8: DRSS: 0 | M8: SCP - HICCUP: 0 | N8: PSM Entry: 0 | O8: Current LIMIT: 1 | P8: : Disable | R8: DRSS: 0 / SCP - HICCUP: 0 / PSM Entry: 0 / Current LIMIT: 1
A9: 6 | B9: 3.8 | C9: 1 | D9: 0 | E9: 0 | F9: 1 | G9: Enable | H9: Disable | I9: 10% | J9: Enable | L9: DRSS: 1 | M9: SCP - HICCUP: 0 | N9: PSM Entry: 0 | O9: Current LIMIT: 1 | P9: : Enable | R9: DRSS: 1 / SCP - HICCUP: 0 / PSM Entry: 0 / Current LIMIT: 1
A10: 7 | B10: 5.1 | C10: 0 | D10: 1 | E10: 0 | F10: 1 | G10: Disable | H10: Enable | I10: 10% | J10: Enable | L10: DRSS: 0 | M10: SCP - HICCUP: 1 | N10: PSM Entry: 0 | O10: Current LIMIT: 1 | P10: : Disable | R10: DRSS: 0 / SCP - HICCUP: 1 / PSM Entry: 0 / Current LIMIT: 1
A11: 8 | B11: 6.5 | C11: 1 | D11: 1 | E11: 0 | F11: 1 | G11: Enable | H11: Enable | I11: 10% | J11: Enable | L11: DRSS: 1 | M11: SCP - HICCUP: 1 | N11: PSM Entry: 0 | O11: Current LIMIT: 1 | P11: : Enable | R11: DRSS: 1 / SCP - HICCUP: 1 / PSM Entry: 0 / Current LIMIT: 1
A12: 9 | B12: 8.3 | C12: 0 | D12: 0 | E12: 1 | F12: 0 | G12: Disable | H12: Disable | I12: 15% | J12: Disable | L12: DRSS: 0 | M12: SCP - HICCUP: 0 | N12: PSM Entry: 1 | O12: Current LIMIT: 0 | P12: : Disable | R12: DRSS: 0 / SCP - HICCUP: 0 / PSM Entry: 1 / Current LIMIT: 0
A13: 10 | B13: 10.5 | C13: 1 | D13: 0 | E13: 1 | F13: 0 | G13: Enable | H13: Disable | I13: 15% | J13: Disable | L13: DRSS: 1 | M13: SCP - HICCUP: 0 | N13: PSM Entry: 1 | O13: Current LIMIT: 0 | P13: : Enable | R13: DRSS: 1 / SCP - HICCUP: 0 / PSM Entry: 1 / Current LIMIT: 0
A14: 11 | B14: 13.3 | C14: 0 | D14: 1 | E14: 1 | F14: 0 | G14: Disable | H14: Enable | I14: 15% | J14: Disable | L14: DRSS: 0 | M14: SCP - HICCUP: 1 | N14: PSM Entry: 1 | O14: Current LIMIT: 0 | P14: : Disable | R14: DRSS: 0 / SCP - HICCUP: 1 / PSM Entry: 1 / Current LIMIT: 0
A15: 12 | B15: 16.2 | C15: 1 | D15: 1 | E15: 1 | F15: 0 | G15: Enable | H15: Enable | I15: 15% | J15: Disable | L15: DRSS: 1 | M15: SCP - HICCUP: 1 | N15: PSM Entry: 1 | O15: Current LIMIT: 0 | P15: : Enable | R15: DRSS: 1 / SCP - HICCUP: 1 / PSM Entry: 1 / Current LIMIT: 0
A16: 13 | B16: 20.5 | C16: 0 | D16: 0 | E16: 1 | F16: 1 | G16: Disable | H16: Disable | I16: 15% | J16: Enable | L16: DRSS: 0 | M16: SCP - HICCUP: 0 | N16: PSM Entry: 1 | O16: Current LIMIT: 1 | P16: : Disable | R16: DRSS: 0 / SCP - HICCUP: 0 / PSM Entry: 1 / Current LIMIT: 1
A17: 14 | B17: 24.9 | C17: 1 | D17: 0 | E17: 1 | F17: 1 | G17: Enable | H17: Disable | I17: 15% | J17: Enable | L17: DRSS: 1 | M17: SCP - HICCUP: 0 | N17: PSM Entry: 1 | O17: Current LIMIT: 1 | P17: : Enable | R17: DRSS: 1 / SCP - HICCUP: 0 / PSM Entry: 1 / Current LIMIT: 1
A18: 15 | B18: 30.1 | C18: 0 | D18: 1 | E18: 1 | F18: 1 | G18: Disable | H18: Enable | I18: 15% | J18: Enable | L18: DRSS: 0 | M18: SCP - HICCUP: 1 | N18: PSM Entry: 1 | O18: Current LIMIT: 1 | P18: : Disable | R18: DRSS: 0 / SCP - HICCUP: 1 / PSM Entry: 1 / Current LIMIT: 1
A19: 16 | B19: 36.5 | C19: 1 | D19: 1 | E19: 1 | F19: 1 | G19: Enable | H19: Enable | I19: 15% | J19: Enable | L19: DRSS: 1 | M19: SCP - HICCUP: 1 | N19: PSM Entry: 1 | O19: Current LIMIT: 1 | P19: : Enable | R19: DRSS: 1 / SCP - HICCUP: 1 / PSM Entry: 1 / Current LIMIT: 1
C21: 0 | D21: 1 | E21: 3 | F21: 2
C22: DRSS: off | D22: HICCUP: off | E22: PSM Entry: 10% | F22: IMON_LIMIT: off
C23: DRSS: on | D23: HICCUP: on | E23: PSM Entry: 15% | F23: IMON: on
F24: ILIMIT: positive
F25: ILIMIT: negative
B27: CFG Setting | C27: 1 | D27: 1 | E27: 1 | F27: 3 | G27: Calc Setting | H27: =CONCATENATE("R_",A2) -> R_CFG | J27: This cell give 1 for disable and 2 for enable
C28: =(C27-1)*2^C21 -> 0 | D28: =(D27-1)*2^D21 -> 0 | E28: =(E27-1)*2^E21 -> 0 | F28: =(IF(F27>2,1,0)*2^F21) -> 4 | G28: =SUM(C28:F28)+1 -> 5 | H28: =INDEX(B4:B19,G28) -> 2.7

Sheet Stability Calculations (hidden)
B2: Divider Network & EA Poles/Zeros | E2: Modulator | J2: Power Stage Poles/Zeros | M2: Complex Pole Pair | P2: Total System
B3: Afb1 | C3: =Afb -> 0.0487804878 | D3: V/V | E3: Acs | F3: =Acs -> 76.92307692 | G3: A/V | H3: gm | I3: =gm -> 0.0006 | J3: z_ESR | K3: =Fesr -> 39788.73577 | L3: Hz | M3: p3 | N3: =Fsw/2 -> 199000 | O3: Hz | P3: Adc | Q3: =Am*Afb*AEA -> 36289.54623 | R3: V/V | S3: =20*LOG(Adc) -> 91.19563075 | T3: dB
B4: EA zero, z1 | C4: =Fz1_u -> 361.7157798 | D4: Hz | E4: Am | F4: =Am -> 123.9892829 | G4: V/V | J4: p_dom | K4: =Fp_dominant -> 240.6733286 | L4: Hz | M4: pterm1 | N4: =Q*PS_Pole2 -> 112537.3624 | P4: Crossover | Q4: =AM8/1000 -> 1.7378 | R4: kHz | U4: IL zero, z1 | V4: =1/(2*Pi*RcIL*Cc1IL) -> 53051.6477
B5: EA pole, p1 | C5: =Fp1_u -> 0.07232869021 | D5: Hz | E5: Q | F5: =Q -> 0.5655143839 | J5: z_RHP | K5: =IF(VIN_nom>Vout, 10000000,Frhp) -> 50023.37077 | L5: Hz | M5: pterm2 | N5: =PS_Pole2^2+0.01 -> 3.9601e+10 | P5: Phase Margin | Q5: =AM9 -> 82.99602153 | R5: ° | U5: IL pole, p1 | V5: =1/(2*Pi*(RoEA_IL+RcIL)*Cc1IL) -> 5.304634306
B6: Aea | C6: =AEA -> 6000 | D6: V/V | E6: mc | F6: =mc -> 1.090144231 | P6: radconv | Q6: =180/Pi -> 57.29577951 | U6: AIL | V6: =gm_IL*RoEA_IL -> 2000 | AL6: XOVER SEARCH
B7: EA pole, p2 | C7: =Fp2_u -> 36051.20607 | D7: Hz | E7: k | F7: =k -> 1.062867887 | U7: IL pole, p2 | V7: =1/(2*Pi*RcIL*(Cc2IL+Cbw_IL)) -> 9937560.466 | AL7: System | AN7: Error Amp | AP7: IL Error Amp
AL8: xover | AM8: =SUM(AL12:AL613) -> 1737.8 | AN8: xover | AO8: =SUM(AN12:AN613) -> 23851.5 | AP8: xover | AQ8: =SUM(AP12:AP613) -> 10777.5 | AR8: 0
AL9: phase margin | AM9: =SUM(AM13:AM613) -> 82.99602153 | AN9: phase margin | AO9: =SUM(AO13:AO613) -> -34.35731455 | AP9: phase margin | AQ9: =SUM(AQ13:AQ613) -> 0.0389771988
B10: Freq (Hz) | C10: Power Stage | I10: Error Amplifier | O10: ILimit Amplifier | U10: Sampling Double Pole | W10: System Response | AB10: ERROR AMP Response | AE10: ILimit AMP Response | AG10: EA*5 | AI10: PLANT Response
C11: p_dom | E11: z_ESR | G11: z_RHP | I11: p1 | K11: z1 | M11: p2 | O11: p1 | Q11: z1 | S11: p2 | U11: p3
C12: Gain(V/V) | D12: Phase(rad) | E12: Gain(V/V) | F12: Phase(rad) | G12: Gain(V/V) | H12: Phase(rad) | I12: Gain(V/V) | J12: Phase(rad) | K12: Gain(V/V) | L12: Phase(rad) | M12: Gain(V/V) | N12: Phase(rad) | O12: Gain(V/V) | P12: Phase(rad) | Q12: Gain(V/V) | R12: Phase(rad) | S12: Gain(V/V) | T12: Phase(rad) | U12: Gain(V/V) | V12: Phase(rad) | W12: Loop Gain (dB) | X12: :Loop Phase Margin (°) | Y12: Phase (°) | AB12: Gain(dB) | AC12: Phase(Deg) | AE12: ILimit Gain(dB) | AF12: ILimit Phase(Deg) | AG12: Gain(dB) | AI12: Gain(dB) | AJ12: Phase(Deg)
B13: 1 | C13: =SQRT(1+(B13/PS_Pole1)^2) -> 1.000008632 | D13: =ATAN(B13/PS_Pole1) -> 0.004154985728 | E13: =SQRT(1+(B13/PS_Zero1)^2) -> 1 | F13: =ATAN(B13/PS_Zero1) -> 2.513274122e-05 | G13: =IF(VIN_nom>Vout, 1, SQRT(1+(B13/PS_RHPZ)^2)) -> 1 | H13: =IF(VIN_nom>Vout, 0, -ATAN(B13/PS_RHPZ)) -> -1.999065606e-05 | I13: =SQRT(1+(B13/EA_Pole1)^2) -> 13.86188945 | J13: =ATAN(B13/EA_Pole1) -> 1.49859337 | K13: =SQRT(1+(B13/EA_Zero1)^2) -> 1.000003822 | L13: =ATAN(B13/EA_Zero1) -> 0.002764594492 | M13: =SQRT(1+(B13/EA_Pole2)^2) -> 1 | N13: =ATAN(B13/EA_Pole2) -> 2.773832304e-05 | O13: =SQRT(1+(B13/$V$5)^2) -> 1.01761372 | P13: =ATAN(B13/$V$5) -> 0.1863277268 | Q13: =SQRT(1+(B13/$V$4)^2) -> 1 | R13: =ATAN(B13/$V$4) -> 1.884955592e-05 | S13: =SQRT(1+(B13/$V$7)^2) -> 1 | T13: =ATAN(B13/$V$7) -> 1.006283185e-07 | U13: =SQRT((1-(B13^2/pterm2))^2+(B13/pterm1)^2) -> 1 | V13: =IF((ATAN((B13/pterm1)/(1-B13^2/pterm2))>0),ATAN((B13/pterm1)/(1-B13^2/pterm2)),PI()+ATAN((B13/pterm1)/(1-B13^2/pterm2))) -> 8.885937779e-06 | W13: =20*LOG10(((E13*K13*G13)/(C13*I13*U13*M13))*Adc) -> 68.35914035 | X13: =IF(((F13+L13+H13)-(D13+J13+V13+N13))*radconv<-180,((F13+L13+H13)-(D13+J13+V13+N13))*radconv+180,((F13+L13+H13)-(D13+J13+V13+N13))*radconv) -> -85.94454265 | Y13: =IF(X13>0,X13-180,X13+180) -> 94.05545735 | AB13: =20*LOG10((K13/(I13*M13))*AEA) -> 52.72660958 | AC13: =(L13-(J13+N13))*radconv -> -85.70626499 | AE13: =20*LOG10((Q13/(O13*S13))*AIL) -> 65.86894084 | AF13: =(R13-(P13+T13))*radconv -> -10.67471812 | AI13: =20*LOG10((E13*G13/(C13*U13))*Acs*Am) -> 79.58874095 | AJ13: =(F13+H13-(D13+V13))*radconv -> -0.2382776531 | AL13: =SUM((W14<0)*(W13>0))*B13 -> 0 | AM13: =IF(AL13>0,Y11,0) -> 0 | AN13: =SUM((AB14<0)*(AB13>0))*B13 -> 0 | AO13: =IF(AN13>0,AC13,0) -> 0 | AP13: =SUM((AE14<0)*(AE13>0))*B13 -> 0 | AQ13: =IF(AP13>0,AE13,0) -> 0
B14: 1.0965 | C14: 1.000010378 | D14: 0.004555936547 | E14: 1 | F14: 2.755805075e-05 | G14: 1 | H14: -2.191975437e-05 | I14: 15.19290512 | J14: 1.504928512 | K14: 1.000004595 | L14: 0.003031376298 | M14: 1 | N14: 3.041507121e-05 | O14: 1.021140241 | P14: 0.2038352901 | Q14: 1 | R14: 2.066853807e-05 | S14: 1 | T14: 1.103389513e-07 | U14: 1 | V14: 9.743430774e-06 | W14: 67.562764 | X14: =IF(((F14+L14+H14)-(D14+J14+V14+N14))*radconv<-180,((F14+L14+H14)-(D14+J14+V14+N14))*radconv+180,((F14+L14+H14)-(D14+J14+V14+N14))*radconv) -> -86.31538094 | Y14: =IF(X14>0,X14-180,X14+180) -> 93.68461906 | AB14: 51.9302484 | AC14: -86.05410979 | AE14: 65.8388921 | AF14: -11.67772394 | AI14: 79.58872578 | AJ14: -0.2612711427 | AL14: 0 | AM14: 0 | AN14: 0 | AO14: =IF(AN14>0,AC14,0) -> 0 | AP14: =SUM((AE15<0)*(AE14>0))*B14 -> 0 | AQ14: =IF(AP14>0,AE14,0) -> 0
B15: 1.2023 | C15: 1.000012478 | D15: 0.004995526533 | E15: 1 | F15: 3.021709477e-05 | G15: 1 | H15: -2.403476578e-05 | I15: 16.65277815 | J15: 1.510710138 | K15: 1.000005524 | L15: 0.003323868185 | M15: 1.000000001 | N15: 3.334978578e-05 | O15: 1.025363652 | P15: 0.222885211 | Q15: 1 | R15: 2.266282108e-05 | S15: 1 | T15: 1.209854274e-07 | U15: 1 | V15: 1.068356299e-05 | W15: 66.76583643 | X15: =IF(((F15+L15+H15)-(D15+J15+V15+N15))*radconv<-180,((F15+L15+H15)-(D15+J15+V15+N15))*radconv+360,((F15+L15+H15)-(D15+J15+V15+N15))*radconv) -> -86.65526262 | Y15: 93.34473738 | AB15: 51.13333906 | AC15: -86.36878213 | AE15: 65.80304155 | AF15: -12.76909036 | AI15: 79.58870755 | AJ15: -0.2864804885 | AL15: 0 | AM15: 0 | AN15: 0 | AO15: 0 | AP15: 0 | AQ15: 0
B16: 1.3183 | C16: 1.000015002 | D16: 0.005477494426 | E16: 1.000000001 | F16: 3.313249275e-05 | G16: 1 | H16: -2.635368188e-05 | I16: 18.25392754 | J16: 1.515986157 | K16: 1.000006641 | L16: 0.003644558067 | M16: 1.000000001 | N16: 3.656743125e-05 | O16: 1.030418103 | P16: 0.2435838673 | Q16: 1 | R16: 2.484936957e-05 | S16: 1 | T16: 1.326583123e-07 | U16: 1 | V16: 1.171433177e-05 | W16: 65.9684317 | X16: -86.96700606 | Y16: 93.03299394 | AB16: 50.33595624 | AC16: -86.65288596 | AE16: 65.76033031 | AF16: -13.95491139 | AI16: 79.58868563 | AJ16: -0.3141200974 | AL16: 0 | AM16: 0 | AN16: 0 | AO16: 0 | AP16: 0 | AQ16: 0
B17: 1.4454 | C17: 1.000018034 | D17: 0.00600557873 | E17: 1.000000001 | F17: 3.632686416e-05 | G17: 1 | H17: -2.889449426e-05 | I17: 20.00877591 | J17: 1.520797428 | K17: 1.000007984 | L17: 0.00399593379 | M17: 1.000000001 | N17: 4.009297211e-05 | O17: 1.036457745 | P17: 0.2660206953 | Q17: 1 | R17: 2.724514812e-05 | S17: 1 | T17: 1.454481716e-07 | U17: 1 | V17: 1.284373447e-05 | W17: 65.17113306 | X17: -87.25302548 | Y17: 92.74697452 | AB17: 49.53868394 | AC17: -86.90862111 | AE17: 65.7095679 | AF17: -15.24031041 | AI17: 79.58865929 | AJ17: -0.3444043631 | AL17: 0 | AM17: 0 | AN17: 0 | AO17: 0 | AP17: 0 | AQ17: 0
B18: 1.5849 | C18: 1.000021683 | D18: 0.006585179587 | E18: 1.000000001 | F18: 3.983288155e-05 | G18: 1.000000001 | H18: -3.168319078e-05 | I18: 21.93527268 | J18: 1.525191846 | K18: 1.000009599 | L18: 0.004381588933 | M18: 1.000000001 | N18: 4.396246816e-05 | O18: 1.043679735 | P18: 0.2903339273 | Q18: 1 | R18: 2.987466117e-05 | S18: 1 | T18: 1.59485822e-07 | U18: 1 | V18: 1.408332279e-05 | W18: 64.37266505 | X18: -87.51617103 | Y18: 92.48382897 | AB18: 48.74024763 | AC18: -87.13852806 | AE18: 65.6492549 | AF18: -16.63320613 | AI18: 79.5886276 | AJ18: -0.3776429697 | AL18: 0 | AM18: 0 | AN18: 0 | AO18: 0 | AP18: 0 | AQ18: 0
B19: 1.7378 | C19: 1.000026068 | D19: 0.007220450268 | E19: 1.000000001 | F19: 4.367567768e-05 | G19: 1.000000001 | H19: -3.473976209e-05 | I19: 24.04722848 | J19: 1.529199498 | K19: 1.000011541 | L19: 0.004804287585 | M19: 1.000000001 | N19: 4.820365775e-05 | O19: 1.052293677 | P19: 0.3165820166 | Q19: 1.000000001 | R19: 3.275675827e-05 | S19: 1 | T19: 1.748718919e-07 | U19: 1 | V19: 1.544198267e-05 | W19: 63.57420398 | X19: -87.75824784 | Y19: 92.24175216 | AB19: 47.94182464 | AC19: -87.34417374 | AE19: 65.5778607 | AF19: -18.13694662 | AI19: 79.58858951 | AJ19: -0.4140740967 | AL19: 0 | AM19: 0 | AN19: 0 | AO19: 0 | AP19: 0 | AQ19: 0
B20: 1.9055 | C20: 1.000031342 | D20: 0.00791720544 | E20: 1.000000001 | F20: 4.789043837e-05 | G20: 1.000000001 | H20: -3.80921951e-05 | I20: 26.36398117 | J20: 1.532856687 | K20: 1.000013876 | L20: 0.005267899495 | M20: 1.000000001 | N20: 5.285537451e-05 | O20: 1.062560514 | P20: 0.3448597672 | Q20: 1.000000001 | R20: 3.591782879e-05 | S20: 1 | T20: 1.91747261e-07 | U20: 1 | V20: 1.693215444e-05 | W20: 62.7752592 | X20: -87.98144996 | Y20: 92.01855004 | AB20: 47.14292566 | AC20: -87.52741876 | AE20: 65.49352646 | AF20: -19.75696223 | AI20: 79.58854371 | AJ20: -0.4540312002 | AL20: 0 | AM20: 0 | AN20: 0 | AO20: 0 | AP20: 0 | AQ20: 0
B21: 2.0893 | C21: 1.00003768 | D21: 0.008680843577 | E21: 1.000000001 | F21: 5.25098362e-05 | G21: 1.000000001 | H21: -4.176647768e-05 | I21: 28.90349015 | J21: 1.536191523 | K21: 1.000016681 | L21: 0.005776017753 | M21: 1.000000002 | N21: 5.795367827e-05 | O21: 1.074768898 | P21: 0.3752048235 | Q21: 1.000000001 | R21: 3.938237717e-05 | S21: 1 | T21: 2.102427459e-07 | U21: 1 | V21: 1.85653898e-05 | W21: 61.97644262 | X21: -88.18749371 | Y21: 91.81250629 | AB21: 46.34416413 | AC21: -87.68966984 | AE21: 65.39429812 | AF21: -21.49540844 | AI21: 79.58848867 | AJ21: -0.497823869 | AL21: 0 | AM21: 0 | AN21: 0 | AO21: 0 | AP21: 0 | AQ21: 0
B22: 2.2909 | C22: 1.000045302 | D22: 0.009518424113 | E22: 1.000000002 | F22: 5.757659682e-05 | G22: 1.000000001 | H22: -4.579659394e-05 | I22: 31.68924386 | J22: 1.539234638 | K22: 1.000020056 | L22: 0.006333340976 | M22: 1.000000002 | N22: 6.354572418e-05 | O22: 1.089270249 | P22: 0.407673206 | Q22: 1.000000001 | R22: 4.318244763e-05 | S22: 1 | T22: 2.305294149e-07 | U22: 1 | V22: 2.035679486e-05 | W22: 61.17717395 | X22: -88.37827259 | Y22: 91.62172741 | AB22: 45.54496166 | AC22: -87.83241565 | AE22: 65.27788708 | AF22: -23.35549316 | AI22: 79.58842247 | AJ22: -0.5458569433 | AL22: 0 | AM22: 0 | AN22: 0 | AO22: 0 | AP22: 0 | AQ22: 0
B23: 2.5119 | C23: 1.000054464 | D23: 0.01043658977 | E23: 1.000000002 | F23: 6.313093261e-05 | G23: 1.000000001 | H23: -5.021452892e-05 | I23: 34.74335161 | J23: 1.542009866 | K23: 1.000024112 | L23: 0.006944290969 | M23: 1.000000002 | N23: 6.967589354e-05 | O23: 1.106449293 | P23: 0.4422477289 | Q23: 1.000000001 | R23: 4.734819948e-05 | S23: 1 | T23: 2.527682733e-07 | U23: 1 | V23: 2.232058711e-05 | W23: 60.37793291 | X23: -88.55528224 | Y23: 91.44471776 | AB23: 44.74580019 | AC23: -87.95677087 | AE23: 65.14196961 | AF23: -25.33623 | AI23: 79.5883429 | AJ23: -0.5985113663 | AL23: 0 | AM23: 0 | AN23: 0 | AO23: 0 | AP23: 0 | AQ23: 0
B24: 2.7542 | C24: 1.000065477 | D24: 0.01144322803 | E24: 1.000000002 | F24: 6.922059578e-05 | G24: 1.000000002 | H24: -5.505826487e-05 | I24: 38.09207036 | J24: 1.544541128 | K24: 1.000028988 | L24: 0.007614118402 | M24: 1.000000003 | N24: 7.639688918e-05 | O24: 1.126754308 | P24: 0.4788943918 | Q24: 1.000000001 | R24: 5.191544687e-05 | S24: 1 | T24: 2.771505149e-07 | U24: 1 | V24: 2.447364983e-05 | W24: 59.57862228 | X24: -88.72004773 | Y24: 91.27995227 | AB24: 43.94658521 | AC24: -88.06380826 | AE24: 64.98401538 | AF24: -27.43566883 | AI24: 79.58824724 | AJ24: -0.6562394654 | AL24: 0 | AM24: 0 | AN24: 0 | AO24: 0 | AP24: 0 | AQ24: 0
B25: 3.02 | C25: 1.000078725 | D25: 0.01254747058 | E25: 1.000000003 | F25: 7.590087836e-05 | G25: 1.000000002 | H25: -6.037178123e-05 | I25: 41.76580551 | J25: 1.546851007 | K25: 1.000034853 | L25: 0.008348902646 | M25: 1.000000004 | N25: 8.37697354e-05 | O25: 1.15070321 | P25: 0.5175502341 | Q25: 1.000000002 | R25: 5.692565882e-05 | S25: 1 | T25: 3.03897522e-07 | U25: 1 | V25: 2.683553209e-05 | W25: 58.77883249 | X25: -88.87404192 | Y25: 91.12595808 | AB25: 43.14691047 | AC25: -88.154477 | AE25: 64.80133343 | AF25: -29.65019991 | AI25: 79.58813219 | AJ25: -0.7195649188 | AL25: 0 | AM25: 0 | AN25: 0 | AO25: 0 | AP25: 0 | AQ25: 0
B26: 3.3113 | C26: 1.000094643 | D26: 0.01375761537 | E26: 1.000000003 | F26: 8.322204584e-05 | G26: 1.000000002 | H26: -6.619505932e-05 | I26: 45.79219993 | J26: 1.54895681 | K26: 1.000041901 | L26: 0.009154169352 | M26: 1.000000004 | N26: 9.184990884e-05 | O26: 1.178838538 | P26: 0.5580438052 | Q26: 1.000000002 | R26: 6.241653444e-05 | S26: 1 | T26: 3.332105512e-07 | U26: 1 | V26: 2.942400577e-05 | W26: 57.97934252 | X26: -89.01841882 | Y26: 90.98158118 | AB26: 42.34755874 | AC26: -88.22945523 | AE26: 64.59151343 | AF26: -31.96999771 | AI26: 79.58799395 | AJ26: -0.788963594 | AL26: 0 | AM26: 0 | AN26: 0 | AO26: 0 | AP26: 0 | AQ26: 0
B27: 3.6308 | C27: 1.000113787 | D27: 0.01508486469 | E27: 1.000000004 | F27: 9.12519566e-05 | G27: 1.000000003 | H27: -7.25820739e-05 | I27: 50.20857343 | J27: 1.550878093 | K27: 1.000050377 | L27: 0.01003737816 | M27: 1.000000005 | N27: 0.000100712303 | O27: 1.211809767 | P27: 0.6002188348 | Q27: 1.000000002 | R27: 6.843896753e-05 | S27: 1 | T27: 3.653612989e-07 | U27: 1 | V27: 3.226306289e-05 | W27: 57.17952239 | X27: -89.15451814 | Y27: 90.84548186 | AB27: 41.54790488 | AC27: -88.28944023 | AE27: 64.35191096 | AF27: -34.38610569 | AI27: 79.58782769 | AJ27: -0.8650779131 | AL27: 0 | AM27: 0 | AN27: 0 | AO27: 0 | AP27: 0 | AQ27: 0
B28: 3.9811 | C28: 1.000136801 | D28: 0.01654000042 | E28: 1.000000005 | F28: 0.0001000559558 | G28: 1.000000003 | H28: -7.958480067e-05 | I28: 55.05086527 | J28: 1.552630309 | K28: 1.000060566 | L28: 0.01100571079 | M28: 1.000000006 | N28: 0.0001104290374 | O28: 1.25029689 | P28: 0.6438176498 | Q28: 1.000000003 | R28: 7.504196694e-05 | S28: 1 | T28: 4.006113989e-07 | U28: 1 | V28: 3.537580689e-05 | W28: 56.37968567 | X28: -89.28343637 | Y28: 90.71656363 | AB28: 40.74826802 | AC28: -88.33491018 | AE28: 64.08033692 | AF28: -36.88375747 | AI28: 79.58762783 | AJ28: -0.9485261906 | AL28: 0 | AM28: 0 | AN28: 0 | AO28: 0 | AP28: 0 | AQ28: 0
B29: 4.3652 | C29: 1.00016447 | D29: 0.01813545959 | E29: 1.000000006 | F29: 0.0001097094416 | G29: 1.000000004 | H29: -8.726321161e-05 | I29: 60.36054527 | J29: 1.554228455 | K29: 1.000072816 | L29: 0.01206745282 | M29: 1.000000007 | N29: 0.0001210833272 | O29: 1.295055793 | P29: 0.6885510675 | Q29: 1.000000003 | R29: 8.228208132e-05 | S29: 1 | T29: 4.392627361e-07 | U29: 1 | V29: 3.878889559e-05 | W29: 55.57977169 | X29: -89.406276 | Y29: 90.593724 | AB29: 39.94859431 | AC29: -88.36625434 | AE29: 63.77483036 | AF29: -39.4463809 | AI29: 79.58738755 | AJ29: -1.04002166 | AL29: 0 | AM29: 0 | AN29: 0 | AO29: 0 | AP29: 0 | AQ29: 0
B30: 4.7863 | C30: 1.000197729 | D30: 0.01988450149 | E30: 1.000000007 | F30: 0.0001202928388 | G30: 1.000000005 | H30: -9.568127681e-05 | I30: 66.18184922 | J30: 1.555685869 | K30: 1.000087542 | L30: 0.01323144013 | M30: 1.000000009 | N30: 0.0001327639348 | O30: 1.346893075 | P30: 0.7340769343 | Q30: 1.000000004 | R30: 9.021962926e-05 | S30: 1 | T30: 4.81637321e-07 | U30: 1 | V30: 4.253076399e-05 | W30: 54.77989588 | X30: -89.52406037 | Y30: 90.47593963 | AB30: 39.14900732 | AC30: -88.38373567 | AE30: 63.43393755 | AF30: -42.05436856 | AI30: 79.58709874 | AJ30: -1.140324707 | AL30: 0 | AM30: 0 | AN30: 0 | AO30: 0 | AP30: 0 | AQ30: 0
B31: 5.2481 | C31: 1.000237721 | D31: 0.02180245085 | E31: 1.000000009 | F31: 0.0001318991385 | G31: 1.000000006 | H31: -0.0001049129617 | I31: 72.5659261 | J31: 1.557015318 | K31: 1.000105249 | L31: 0.01450788736 | M31: 1.000000011 | N31: 0.0001455734921 | O31: 1.406697736 | P31: 0.7800409011 | Q31: 1.000000005 | R31: 9.892435411e-05 | S31: 1 | T31: 5.281074785e-07 | U31: 1 | V31: 4.663429006e-05 | W31: 53.9798255 | X31: -89.63782057 | Y31: 90.36217943 | AB31: 38.3492842 | AC31: -88.3875064 | AE31: 63.05658419 | AF31: -44.68741379 | AI31: 79.58675147 | AJ31: -1.250314171 | AL31: 0 | AM31: 0 | AN31: 0 | AO31: 0 | AP31: 0 | AQ31: 0
B32: 5.7544 | C32: 1.000285793 | D32: 0.02390503291 | E32: 1.00000001 | F32: 0.0001446238451 | G32: 1.000000007 | H32: -0.0001150342307 | I32: 79.56530839 | J32: 1.558227704 | K32: 1.000126534 | L32: 0.0159072812 | M32: 1.000000013 | N32: 0.0001596174048 | O32: 1.475385887 | P32: 0.82604529 | Q32: 1.000000006 | R32: 0.0001084678842 | S32: 1 | T32: 5.790555962e-07 | U32: 1 | V32: 5.113324035e-05 | W32: 53.17977276 | X32: -89.74848815 | Y32: 90.25151185 | AB32: 37.54964888 | AC32: -88.3775963 | AE32: 62.64248747 | AF32: -47.32272723 | AI32: 79.58633405 | AJ32: -1.370891854 | AL32: 0 | AM32: 0 | AN32: 0 | AO32: 0 | AP32: 0 | AQ32: 0
B33: 6.3096 | C33: 1.000343592 | D33: 0.02621044508 | E33: 1.000000013 | F33: 0.0001585775427 | G33: 1.000000008 | H33: -0.0001261330428 | I33: 87.24082421 | J33: 1.559333552 | K33: 1.000152127 | L33: 0.01744176095 | M33: 1.000000015 | N33: 0.0001750177213 | O33: 1.553960271 | P33: 0.8717119692 | Q33: 1.000000007 | R33: 0.0001189331575 | S33: 1 | T33: 6.349244386e-07 | U33: 1.000000001 | V33: 5.606671301e-05 | W33: 52.37957296 | X33: -89.85702122 | Y33: 90.14297878 | AB33: 36.74995093 | AC33: -88.35391988 | AE33: 62.19180175 | AF33: -49.93863879 | AI33: 79.5858322 | AJ33: -1.503101336 | AL33: 0 | AM33: 0 | AN33: 0 | AO33: 0 | AP33: 0 | AQ33: 0
B34: 6.9183 | C34: 1.00041307 | D34: 0.02873768952 | E34: 1.000000015 | F34: 0.0001738758419 | G34: 1.00000001 | H34: -0.0001383013549 | I34: 95.65606755 | J34: 1.560342016 | K34: 1.000182892 | L34: 0.01912401107 | M34: 1.000000018 | N34: 0.000191902038 | O34: 1.643452355 | P34: 0.9166585914 | Q34: 1.000000009 | R34: 0.000130406882 | S34: 1 | T34: 6.961768961e-07 | U34: 1.000000001 | V34: 6.147558333e-05 | W34: 51.57938164 | X34: -89.96431454 | Y34: 90.03568546 | AB34: 35.95036282 | AC34: -88.3162822 | AE34: 61.70545763 | AF34: -52.51323666 | AI34: 79.58522899 | AJ34: -1.648032346 | AL34: 0 | AM34: 0 | AN34: 0 | AO34: 0 | AP34: 0 | AQ34: 0
B35: 7.5858 | C35: 1.000496603 | D35: 0.03150864077 | E35: 1.000000018 | F35: 0.0001906519461 | G35: 1.000000011 | H35: -0.0001516451176 | I35: 104.8843106 | J35: 1.561261868 | K35: 1.000219882 | L35: 0.02096864059 | M35: 1.000000022 | N35: 0.0002104173678 | O35: 1.744990901 | P35: 0.9605505529 | Q35: 1.00000001 | R35: 0.0001429889603 | S35: 1 | T35: 7.633462987e-07 | U35: 1.000000001 | V35: 6.74069468e-05 | W35: 50.77901755 | X35: -90.0712965 | Y35: 89.9287035 | AB35: 35.15072392 | AC35: -88.26435716 | AE35: 61.18473667 | AF35: -55.02734376 | AI35: 79.58450381 | AJ35: -1.806939341 | AL35: 0 | AM35: 0 | AN35: 0 | AO35: 0 | AP35: 0 | AQ35: 0
B36: 8.3176 | C36: 1.000597009 | D36: 0.03454595896 | E36: 1.000000022 | F36: 0.0002090440854 | G36: 1.000000014 | H36: -0.0001662742793 | I36: 115.0015913 | J36: 1.562100685 | K36: 1.000264347 | L36: 0.02299079807 | M36: 1.000000027 | N36: 0.0002307162717 | O36: 1.859727032 | P36: 1.003073708 | Q36: 1.000000012 | R36: 0.000156783065 | S36: 1 | T36: 8.369861022e-07 | U36: 1.000000001 | V36: 7.390967606e-05 | W36: 49.9786656 | X36: -90.17884165 | Y36: 89.82115835 | AB36: 34.35124356 | AC36: -88.19771982 | AE36: 60.63161595 | AF36: -57.46295493 | AI36: 79.58363222 | AJ36: -1.981121831 | AL36: 0 | AM36: 0 | AN36: 0 | AO36: 0 | AP36: 0 | AQ36: 0
B37: 9.1201 | C37: 1.000717724 | D37: 0.03787598084 | E37: 1.000000026 | F37: 0.0002292131093 | G37: 1.000000017 | H37: -0.0001823167803 | I37: 126.096391 | J37: 1.562865803 | K37: 1.000317808 | L37: 0.02520810162 | M37: 1.000000032 | N37: 0.0002529762746 | O37: 1.988941986 | P37: 1.043984644 | Q37: 1.000000015 | R37: 0.0001719098333 | S37: 1 | T37: 9.177403278e-07 | U37: 1.000000001 | V37: 8.104064113e-05 | W37: 49.17810587 | X37: -90.28788125 | Y37: 89.71211875 | AB37: 33.5517316 | AC37: -88.11579107 | AE37: 60.04815773 | AF37: -59.80611688 | AI37: 79.58258445 | AJ37: -2.172090172 | AL37: 0 | AM37: 0 | AN37: 0 | AO37: 0 | AP37: 0 | AQ37: 0
B38: 10 | C38: 1.000862833 | D38: 0.04152621028 | E38: 1.000000032 | F38: 0.000251327407 | G38: 1.00000002 | H38: -0.0001999065579 | I38: 138.2613392 | J38: 1.563563584 | K38: 1.000382078 | L38: 0.02763897528 | M38: 1.000000038 | N38: 0.0002773832233 | O38: 2.133956005 | P38: 1.083076016 | Q38: 1.000000018 | R38: 0.000188495557 | S38: 1 | T38: 1.006283185e-06 | U38: 1.000000001 | V38: 8.885937778e-05 | W38: 48.37744249 | X38: -90.39931227 | Y38: 89.60068773 | AB38: 32.75232755 | AC38: -88.01789061 | AE38: 59.43689084 | AF38: -62.04494226 | AI38: 79.58132512 | AJ38: -2.381421658 | AL38: 0 | AM38: 0 | AN38: 0 | AO38: 0 | AP38: 0 | AQ38: 0
B39: 10.965 | C39: 1.001037304 | D39: 0.04552819738 | E39: 1.000000038 | F39: 0.0002755805006 | G39: 1.000000024 | H39: -0.0002191975402 | I39: 151.6028911 | J39: 1.564200099 | K39: 1.000459359 | L39: 0.03030457551 | M39: 1.000000046 | N39: 0.0003041507028 | O39: 2.29624456 | P39: 1.120209703 | Q39: 1.000000021 | R39: 0.0002066853777 | S39: 1 | T39: 1.103389513e-06 | U39: 1.000000002 | V39: 9.743430773e-05 | W39: 47.57646499 | X39: -90.51409187 | Y39: 89.48590813 | AB39: 31.95286396 | AC39: -87.90316624 | AE39: 58.80023729 | AF39: -64.17150918 | AI39: 79.5798112 | AJ39: -2.610925628 | AL39: 0 | AM39: 0 | AN39: 0 | AO39: 0 | AP39: 0 | AQ39: 0
B40: 12.023 | C40: 1.001247008 | D40: 0.04991418703 | E40: 1.000000046 | F40: 0.0003021709386 | G40: 1.000000029 | H40: -0.0002403476532 | I40: 166.230268 | J40: 1.564780539 | K40: 1.000552257 | L40: 0.03322657142 | M40: 1.000000056 | N40: 0.0003334978456 | O40: 2.477309398 | P40: 1.155278499 | Q40: 1.000000026 | R40: 0.000226628207 | S40: 1 | T40: 1.209854274e-06 | U40: 1.000000002 | V40: 0.0001068356299 | W40: 46.77539969 | X40: -90.63313772 | Y40: 89.36686228 | AB40: 31.15361794 | AC40: -87.77068645 | AE40: 58.14099513 | AF40: -66.17966661 | AI40: 79.57799193 | AJ40: -2.862451272 | AL40: 0 | AM40: 0 | AN40: 0 | AO40: 0 | AP40: 0 | AQ40: 0
B41: 13.183 | C41: 1.001499054 | D41: 0.05472080851 | E41: 1.000000055 | F41: 0.0003313249155 | G41: 1.000000035 | H41: -0.0002635368127 | I41: 182.2678992 | J41: 1.56530987 | K41: 1.000663926 | L41: 0.03642961802 | M41: 1.000000067 | N41: 0.0003656742964 | O41: 2.67883309 | P41: 1.188236074 | Q41: 1.000000031 | R41: 0.0002484936906 | S41: 1 | T41: 1.326583123e-06 | U41: 1.000000002 | V41: 0.0001171433177 | W41: 45.97418118 | X41: -90.75743662 | Y41: 89.24256338 | AB41: 30.35458554 | AC41: -87.61933739 | AE41: 57.46168708 | AF41: -68.06675049 | AI41: 79.57580581 | AJ41: -3.138099225 | AL41: 0 | AM41: 0 | AN41: 0 | AO41: 0 | AP41: 0 | AQ41: 0
B42: 14.454 | C42: 1.001801769 | D42: 0.05998446154 | E42: 1.000000066 | F42: 0.0003632686257 | G42: 1.000000042 | H42: -0.0002889449347 | I42: 199.8402145 | J42: 1.565792308 | K42: 1.000798064 | L42: 0.03993830226 | M42: 1.00000008 | N42: 0.0004009296998 | O42: 2.902493004 | P42: 1.219056741 | Q42: 1.000000037 | R42: 0.0002724514745 | S42: 1 | T42: 1.454481716e-06 | U42: 1.000000003 | V42: 0.0001284373446 | W42: 45.17326647 | X42: -90.88792323 | Y42: 89.11207677 | AB42: 29.5562957 | AC42: -87.44796627 | AE42: 56.7651766 | AF42: -69.83127924 | AI42: 79.57318095 | AJ42: -3.439956967 | AL42: 0 | AM42: 0 | AN42: 0 | AO42: 0 | AP42: 0 | AQ42: 0
B43: 15.849 | C43: 1.002165947 | D43: 0.06575780268 | E43: 1.000000079 | F43: 0.0003983287947 | G43: 1.00000005 | H43: -0.0003168318973 | I43: 219.1269466 | J43: 1.566232746 | K43: 1.000959468 | L43: 0.04378816173 | M43: 1.000000097 | N43: 0.0004396246536 | O43: 3.150672767 | P43: 1.247817752 | Q43: 1.000000045 | R43: 0.0002987466029 | S43: 1 | T43: 1.59485822e-06 | U43: 1.000000004 | V43: 0.0001408332278 | W43: 44.37125228 | X43: -91.02588216 | Y43: 88.97411784 | AB43: 28.75743826 | AC43: -87.25483787 | AE43: 56.05253432 | AF43: -71.47766525 | AI43: 79.57002419 | AJ43: -3.771044285 | AL43: 0 | AM43: 0 | AN43: 0 | AO43: 0 | AP43: 0 | AQ43: 0
B44: 17.378 | C44: 1.002603447 | D44: 0.07208066289 | E44: 1.000000095 | F44: 0.0004367567493 | G44: 1.00000006 | H44: -0.000347397607 | I44: 240.2663517 | J44: 1.566634267 | K44: 1.001153412 | L44: 0.04800633286 | M44: 1.000000116 | N44: 0.0004820365405 | O44: 3.425229664 | P44: 1.274530015 | Q44: 1.000000054 | R44: 0.0003275675711 | S44: 1 | T44: 1.748718919e-06 | U44: 1.000000004 | V44: 0.0001544198267 | W44: 43.56920075 | X44: -91.17223542 | Y44: 88.82776458 | AB44: 27.95917755 | AC44: -87.03858994 | AE44: 55.32680645 | AF44: -73.0065227 | AI44: 79.56623337 | AJ44: -4.133645471 | AL44: 0 | AM44: 0 | AN44: 0 | AO44: 0 | AP44: 0 | AQ44: 0
B45: 19.055 | C45: 1.003129342 | D45: 0.07900889526 | E45: 1.000000115 | F45: 0.0004789043475 | G45: 1.000000073 | H45: -0.0003809219328 | I45: 263.4519886 | J45: 1.56700056 | K45: 1.001386603 | L45: 0.05263083247 | M45: 1.00000014 | N45: 0.0005285536964 | O45: 3.728737665 | P45: 1.299285444 | Q45: 1.000000065 | R45: 0.0003591782726 | S45: 1 | T45: 1.91747261e-06 | U45: 1.000000005 | V45: 0.0001693215443 | W45: 42.76649836 | X45: -91.32824156 | Y45: 88.67175844 | AB45: 27.16102971 | AC45: -86.79727789 | AE45: 54.58936388 | AF45: -74.42310278 | AI45: 79.56167883 | AJ45: -4.530963674 | AL45: 0 | AM45: =IF(AL45>0,Y43,0) -> 0 | AN45: 0 | AO45: 0 | AP45: 0 | AQ45: 0
B46: 20.893 | C46: 1.003760969 | D46: 0.08659352647 | E46: 1.000000138 | F46: 0.0005250983142 | G46: 1.000000087 | H46: -0.0004176647528 | I46: 288.8635911 | J46: 1.567334478 | K46: 1.001666767 | L46: 0.05769671211 | M46: 1.000000168 | N46: 0.0005795367185 | O46: 4.063596735 | P46: 1.322154881 | Q46: 1.000000078 | R46: 0.0003938237515 | S46: 1 | T46: 2.102427459e-06 | U46: 1.000000006 | V46: 0.0001856538979 | W46: 41.96363429 | X46: -91.4950029 | Y46: 88.5049971 | AB46: 26.36363273 | AC46: -86.5290776 | AE46: 53.84238853 | AF46: -75.73145058 | AI46: 79.55621174 | AJ46: -4.965925295 | AL46: 0 | AM46: 0 | AN46: 0 | AO46: 0 | AP46: 0 | AQ46: 0
B47: 22.909 | C47: 1.004520078 | D47: 0.09490118491 | E47: 1.000000166 | F47: 0.0005757659052 | G47: 1.000000105 | H47: -0.0004579659077 | I47: 316.7361957 | J47: 1.56763912 | K47: 1.002003607 | L47: 0.06324977708 | M47: 1.000000202 | N47: 0.0006354571571 | O47: 4.432941179 | P47: 1.34325402 | Q47: 1.000000093 | R47: 0.0004318244498 | S47: 1 | T47: 2.305294149e-06 | U47: 1.000000007 | V47: 0.0002035679485 | W47: 41.15989063 | X47: -91.67392062 | Y47: 88.32607938 | AB47: 25.56645503 | AC47: -86.23156911 | AE47: 53.08676135 | AF47: -76.93817653 | AI47: 79.54964577 | AJ47: -5.442351508 | AL47: 0 | AM47: 0 | AN47: 0 | AO47: 0 | AP47: 0 | AQ47: 0
B48: 25.119 | C48: 1.005431764 | D48: 0.1039931774 | E48: 1.000000199 | F48: 0.0006313092431 | G48: 1.000000126 | H48: -0.0005021452474 | I48: 347.2910136 | J48: 1.567916893 | K48: 1.002408336 | L48: 0.06933271721 | M48: 1.000000243 | N48: 0.0006967588238 | O48: 4.839731801 | P48: 1.362674093 | Q48: 1.000000112 | R48: 0.0004734819598 | S48: 1 | T48: 2.527682733e-06 | U48: 1.000000009 | V48: 0.0002232058709 | W48: 40.35560185 | X48: -91.86622824 | Y48: 88.13377176 | AB48: 24.77004538 | AC48: -85.90246987 | AE48: 52.32417498 | AF48: -78.0484907 | AI48: 79.54176664 | AJ48: -5.963758368 | AL48: 0 | AM48: 0 | AN48: 0 | AO48: 0 | AP48: 0 | AQ48: 0
B49: 27.542 | C49: 1.006526646 | D49: 0.1139416117 | E49: 1.00000024 | F49: 0.0006922058484 | G49: 1.000000152 | H49: -0.0005505825936 | I49: 380.7907331 | J49: 1.568170209 | K49: 1.002894662 | L49: 0.07599601439 | M49: 1.000000292 | N49: 0.0007639687446 | O49: 5.287487776 | P49: 1.380524592 | Q49: 1.000000135 | R49: 0.0005191544225 | S49: 1 | T49: 2.771505149e-06 | U49: 1.000000011 | V49: 0.0002447364981 | W49: 39.55050497 | X49: -92.07333728 | Y49: 87.92666272 | AB49: 23.97440145 | AC49: -85.53905586 | AE49: 51.55561356 | AF49: -79.06864607 | AI49: 79.53231369 | AJ49: -6.534281416 | AL49: 0 | AM49: 0 | AN49: 0 | AO49: 0 | AP49: 0 | AQ49: 0
B50: 30.2 | C50: 1.007842029 | D50: 0.124828853 | E50: 1.000000288 | F50: 0.0007590086394 | G50: 1.000000182 | H50: -0.0006037177397 | I50: 417.5395203 | J50: 1.568401342 | K50: 1.003479318 | L50: 0.08329777575 | M50: 1.000000351 | N50: 0.00083769716 | O50: 5.780293053 | P50: 1.396919906 | Q50: 1.000000162 | R50: 0.0005692565273 | S50: 1 | T50: 3.03897522e-06 | U50: 1.000000013 | V50: 0.0002683553207 | W50: 38.74399914 | X50: -92.29680753 | Y50: 87.70319247 | AB50: 23.17923872 | AC50: -85.13816298 | AE50: 50.78160418 | AF50: -80.00517308 | AI50: 79.52097059 | AJ50: -7.158644555 | AL50: 0 | AM50: 0 | AN50: 0 | AO50: 0 | AP50: 0 | AQ50: 0
B51: 33.113 | C51: 1.009420421 | D51: 0.1367264216 | E51: 1.000000346 | F51: 0.0008322202682 | G51: 1.000000219 | H51: -0.0006619504974 | I51: 457.8138896 | J51: 1.568612031 | K51: 1.004181433 | L51: 0.09128980454 | M51: 1.000000422 | N51: 0.0009184988327 | O51: 6.321869174 | P51: 1.411948074 | Q51: 1.000000195 | R51: 0.0006241652642 | S51: 1 | T51: 3.332105511e-06 | U51: 1.000000016 | V51: 0.0002942400573 | W51: 37.93665459 | X51: -92.53790456 | Y51: 87.46209544 | AB51: 22.38548579 | AC51: -84.69695468 | AE51: 50.00369152 | AF51: -80.8630944 | AI51: 79.50737897 | AJ51: -7.840949878 | AL51: 0 | AM51: 0 | AN51: 0 | AO51: 0 | AP51: 0 | AQ51: 0
B52: 36.308 | C52: 1.011315365 | D52: 0.1497310051 | E52: 1.000000416 | F52: 0.0009125193152 | G52: 1.000000263 | H52: -0.0007258206128 | I52: 501.9871359 | J52: 1.568804243 | K52: 1.00502516 | L52: 0.1000420569 | M52: 1.000000507 | N52: 0.001007122693 | O52: 6.917245924 | P52: 1.425721768 | Q52: 1.000000234 | R52: 0.0006843895695 | S52: 1 | T52: 3.653612989e-06 | U52: 1.000000019 | V52: 0.0003226306284 | W52: 37.12758691 | X52: -92.79832121 | Y52: 87.20167879 | AB52: 21.59270753 | AC52: -84.21157823 | AE52: 49.22193763 | AF52: -81.64883674 | AI52: 79.49108956 | AJ52: -8.586742978 | AL52: 0 | AM52: 0 | AN52: 0 | AO52: 0 | AP52: 0 | AQ52: 0
B53: 39.811 | C53: 1.013588749 | D53: 0.1639306793 | E53: 1.000000501 | F53: 0.001000559227 | G53: 1.000000317 | H53: -0.0007958478404 | I53: 550.4187285 | J53: 1.568979527 | K53: 1.006038541 | L53: 0.1096203422 | M53: 1.00000061 | N53: 0.00110428993 | O53: 7.571276734 | P53: 1.438331151 | Q53: 1.000000282 | R53: 0.0007504195299 | S53: 1 | T53: 4.006113989e-06 | U53: 1.000000023 | V53: 0.0003537580683 | W53: 36.31682506 | X53: -93.07946905 | Y53: 86.92053095 | AB53: 20.80144803 | AC53: -83.67839324 | AE53: 48.43721996 | AF53: -82.36753817 | AI53: 79.4715872 | AJ53: -9.401075802 | AL53: 0 | AM53: 0 | AN53: 0 | AO53: 0 | AP53: 0 | AQ53: 0
B54: 43.652 | C54: 1.016315257 | D54: 0.1794239636 | E54: 1.000000602 | F54: 0.00109709398 | G54: 1.000000381 | H54: -0.0008726318969 | I54: 603.5234399 | J54: 1.56913939 | K54: 1.007255556 | L54: 0.1200995997 | M54: 1.000000733 | N54: 0.001210832686 | O54: 8.289568791 | P54: 1.449868272 | Q54: 1.000000339 | R54: 0.0008228206294 | S54: 1 | T54: 4.39262736e-06 | U54: 1.000000027 | V54: 0.0003878889551 | W54: 35.50397437 | X54: -93.38283944 | Y54: 86.61716056 | AB54: 20.01192923 | AC54: -83.09323991 | AE54: 47.64996406 | AF54: -83.02444036 | AI54: 79.44825531 | AJ54: -10.28959953 | AL54: 0 | AM54: 0 | AN54: 0 | AO54: 0 | AP54: 0 | AQ54: 0
B55: 47.863 | C55: 1.019583133 | D55: 0.1963099653 | E55: 1.000000724 | F55: 0.001202927813 | G55: 1.000000458 | H55: -0.000956812479 | I55: 661.7436941 | J55: 1.569285167 | K55: 1.008716583 | L55: 0.131557854 | M55: 1.000000881 | N55: 0.001327638576 | O55: 9.078110787 | P55: 1.460417251 | Q55: 1.000000407 | R55: 0.0009021960503 | S55: 1 | T55: 4.81637321e-06 | U55: 1.000000033 | V55: 0.0004253076389 | W55: 34.68876721 | X55: -93.70977467 | Y55: 86.29022533 | AB55: 19.22460433 | AC55: -82.45177522 | AE55: 46.86069388 | AF55: -83.62432873 | AI55: 79.42037305 | AJ55: -11.25799945 | AL55: 0 | AM55: 0 | AN55: 0 | AO55: 0 | AP55: 0 | AQ55: 0
B56: 52.481 | C56: 1.023498781 | D56: 0.2146982182 | E56: 1.00000087 | F56: 0.001318990628 | G56: 1.00000055 | H56: -0.001049129236 | I56: 725.591044 | J56: 1.56941814 | K56: 1.0104706 | L56: 0.14408364 | M56: 1.00000106 | N56: 0.001455733903 | O56: 9.943834876 | P56: 1.47006122 | Q56: 1.000000489 | R56: 0.0009892432216 | S56: 1 | T56: 5.281074785e-06 | U56: 1.000000039 | V56: 0.0004663428992 | W56: 33.87052232 | X56: -94.06161796 | Y56: 85.93838204 | AB56: 18.43965117 | AC56: -81.74905863 | AE56: 46.06952608 | AF56: -84.17192667 | AI56: 79.38708133 | AJ56: -12.31255933 | AL56: 0 | AM56: 0 | AN56: 0 | AO56: 0 | AP56: 0 | AQ56: 0
B57: 57.544 | C57: 1.028186188 | D57: 0.2346899215 | E57: 1.000001046 | F57: 0.001446237453 | G57: 1.000000662 | H57: -0.001150341805 | I57: 795.5908684 | J57: 1.569539399 | K57: 1.012575147 | L57: 0.1577641747 | M57: 1.000001274 | N57: 0.001596172706 | O57: 10.89386762 | P57: 1.478872157 | Q57: 1.000000588 | R57: 0.001084678421 | S57: 1 | T57: 5.790555961e-06 | U57: 1.000000047 | V57: 0.0005113324017 | W57: 33.04894828 | X57: -94.43930154 | Y57: 85.56069846 | AB57: 17.65776342 | AC57: -80.98021593 | AE57: 45.27696316 | AF57: -84.67131734 | AI57: 79.34739503 | AJ57: -13.45908561 | AL57: 0 | AM57: 0 | AN57: 0 | AO57: 0 | AP57: 0 | AQ57: 0
B58: 63.096 | C58: 1.033794089 | D58: 0.2563944213 | E58: 1.000001257 | F58: 0.001585774111 | G58: 1.000000795 | H58: -0.001261329766 | I58: 872.3515008 | J58: 1.56965 | K58: 1.015099834 | L58: 0.1726976925 | M58: 1.000001532 | N58: 0.001750175444 | O58: 11.93646733 | P58: 1.486921136 | Q58: 1.000000707 | R58: 0.00118933102 | S58: 1 | T58: 6.349244386e-06 | U58: 1.000000057 | V58: 0.0005606671277 | W58: 32.22329878 | X58: -94.84360184 | Y58: 85.15639816 | AB58: 16.87935659 | AC58: -80.13974905 | AE58: 44.48308978 | AF58: -85.12652572 | AI58: 79.30015237 | AJ58: -14.7038528 | AL58: 0 | AM58: 0 | AN58: 0 | AO58: 0 | AP58: 0 | AQ58: 0
B59: 69.183 | C59: 1.040495541 | D59: 0.2799092107 | E59: 1.000001512 | F59: 0.001738756684 | G59: 1.000000956 | H59: -0.001383012676 | I59: 956.5089262 | J59: 1.569750858 | K59: 1.018126563 | L59: 0.1889810709 | M59: 1.000001841 | N59: 0.001919018047 | O59: 13.08027386 | P59: 1.494270659 | Q59: 1.00000085 | R59: 0.001304068088 | S59: 1 | T59: 6.961768961e-06 | U59: 1.000000068 | V59: 0.0006147558302 | W59: 31.39308597 | X59: -95.27468962 | Y59: 84.72531038 | AB59: 16.10526384 | AC59: -79.22223292 | AE59: 43.68827056 | AF59: -85.54108347 | AI59: 79.2440323 | AJ59: -16.0524567 | AL59: 0 | AM59: 0 | AN59: 0 | AO59: 0 | AP59: 0 | AQ59: 0
B60: 75.858 | C60: 1.048496634 | D60: 0.3053343203 | E60: 1.000001817 | F60: 0.001906517174 | G60: 1.00000115 | H60: -0.001516450025 | I60: 1048.79591 | J60: 1.569842852 | K60: 1.021754021 | L60: 0.2067212692 | M60: 1.000002214 | N60: 0.002104170604 | O60: 14.33524762 | P60: 1.500981501 | Q60: 1.000001022 | R60: 0.001429888639 | S60: 1 | T60: 7.633462987e-06 | U60: 1.000000082 | V60: 0.0006740694639 | W60: 30.55740319 | X60: -95.7323138 | Y60: 84.2676862 | AB60: 15.33611319 | AC60: -78.22167377 | AE60: 42.89250481 | AF60: -85.91841592 | AI60: 79.17750018 | AJ60: -17.51064002 | AL60: 0 | AM60: 0 | AN60: 0 | AO60: 0 | AP60: 0 | AQ60: 0
B61: 83.176 | C61: 1.058034661 | D61: 0.3327470256 | E61: 1.000002185 | F61: 0.002090437839 | G61: 1.000001382 | H61: -0.001662741276 | I61: 1149.97287 | J61: 1.569926741 | K61: 1.026097613 | L61: 0.2260194723 | M61: 1.000002661 | N61: 0.002307158664 | O61: 15.71173011 | P61: 1.507106563 | Q61: 1.000001229 | R61: 0.001567829379 | S61: 1 | T61: 8.369861022e-06 | U61: 1.000000098 | V61: 0.0007390967552 | W61: 29.71566152 | X61: -96.21524713 | Y61: 83.78475287 | AB61: 14.57302355 | AC61: -77.132405 | AE61: 42.09613038 | AF61: -86.26149487 | AI61: 79.09884815 | AJ61: -19.08284213 | AL61: 0 | AM61: 0 | AN61: 0 | AO61: 0 | AP61: 0 | AQ61: 0
B62: 91.201 | C62: 1.069390624 | D62: 0.3622213387 | E62: 1.000002627 | F62: 0.002292127119 | G62: 1.000001662 | H62: -0.001823165803 | I62: 1260.924654 | J62: 1.570003258 | K62: 1.031296159 | L62: 0.2469865223 | M62: 1.0000032 | N62: 0.002529757403 | O62: 17.22176015 | P62: 1.512697573 | Q62: 1.000001478 | R62: 0.001719096656 | S62: 1 | T62: 9.177403278e-06 | U62: 1.000000118 | V62: 0.0008104064042 | W62: 28.86679702 | X62: -96.72153692 | Y62: 83.27846308 | AB62: 13.8168825 | AC62: -75.9482196 | AE62: 41.29906202 | AF62: -86.57321547 | AI62: 79.0061247 | AJ62: -20.77331732 | AL62: 0 | AM62: 0 | AN62: 0 | AO62: 0 | AP62: 0 | AQ62: 0
B63: 100 | C63: 1.082885521 | D63: 0.3937974472 | E63: 1.000003158 | F63: 0.002513268831 | G63: 1.000001998 | H63: -0.001999062943 | I63: 1382.577589 | J63: 1.57007304 | K63: 1.03751155 | L63: 0.2697231966 | M63: 1.000003847 | N63: 0.00277382519 | O63: 18.87794542 | P63: 1.517799656 | Q63: 1.000001777 | R63: 0.00188495336 | S63: 1 | T63: 1.006283185e-05 | U63: 1.000000142 | V63: 0.0008885937684 | W63: 28.0100585 | X63: -97.24786895 | Y63: 82.75213105 | AB63: 13.06906014 | AC63: -74.6634864 | AE63: 40.50152082 | AF63: -86.85609111 | AI63: 78.89720854 | AJ63: -22.58438255 | AL63: 0 | AM63: 0 | AN63: 0 | AO63: 0 | AP63: 0 | AQ63: 0
B64: 109.65 | C64: 1.098894194 | D64: 0.4274984742 | E64: 1.000003797 | F64: 0.002755798099 | G64: 1.000002402 | H64: -0.002191971926 | I64: 1515.99626 | J64: 1.570136695 | K64: 1.044936833 | L64: 0.2943337127 | M64: 1.000004625 | N64: 0.003041497743 | O64: 20.69477972 | P64: 1.522456138 | Q64: 1.000002136 | R64: 0.002066850864 | S64: 1 | T64: 1.103389513e-05 | U64: 1.000000171 | V64: 0.0009743430649 | W64: 27.14436353 | X64: -97.78977054 | Y64: 82.21022946 | AB64: 12.33082299 | AC64: -73.27239133 | AE64: 39.7034023 | AF64: -87.11252154 | AI64: 78.76975071 | AJ64: -24.5173792 | AL64: 0 | AM64: 0 | AN64: 0 | AO64: 0 | AP64: 0 | AQ64: 0
B65: 120.23 | C65: 1.117835858 | D65: 0.4632929932 | E65: 1.000004565 | F65: 0.003021700281 | G65: 1.000002888 | H65: -0.00240347195 | I65: 1662.272902 | J65: 1.570194741 | K65: 1.053794008 | L65: 0.3208995516 | M65: 1.000005561 | N65: 0.003334966216 | O65: 22.687137 | P65: 1.526704201 | Q65: 1.000002568 | R65: 0.002266278229 | S65: 1 | T65: 1.209854274e-05 | U65: 1.000000206 | V65: 0.001068356283 | W65: 26.26915266 | X65: -98.34094482 | Y65: 81.65905518 | AB65: 11.6040447 | AC65: -71.7704212 | AE65: 38.90502835 | AF65: -87.34455231 | AI65: 78.62131814 | AJ65: -26.57052362 | AL65: 0 | AM65: 0 | AN65: 0 | AO65: 0 | AP65: 0 | AQ65: 0
B66: 131.83 | C66: 1.140190972 | D66: 0.5011179077 | E66: 1.000005489 | F66: 0.003313237152 | G66: 1.000003473 | H66: -0.002635362087 | I66: 1822.651834 | J66: 1.570247676 | K66: 1.064344498 | L66: 0.3494959792 | M66: 1.000006686 | N66: 0.003656726828 | O66: 24.87196559 | P66: 1.530579577 | Q66: 1.000003087 | R66: 0.002484931842 | S66: 1 | T66: 1.326583123e-05 | U66: 1.000000247 | V66: 0.001171433156 | W66: 25.38366647 | X66: -98.893655 | Y66: 81.106345 | AB66: 10.89053699 | AC66: -70.15343505 | AE66: 38.10642456 | AF66: -87.55413394 | AI66: 78.44933965 | AJ66: -28.74021994 | AL66: 0 | AM66: 0 | AN66: 0 | AO66: 0 | AP66: 0 | AQ66: 0
B67: 144.54 | C67: 1.166481218 | D67: 0.5408349064 | E67: 1.000006598 | F67: 0.003632670438 | G67: 1.000004174 | H67: -0.002889441386 | I67: 1998.377375 | J67: 1.570295921 | K67: 1.076882802 | L67: 0.3801576267 | M67: 1.000008037 | N67: 0.004009275731 | O67: 27.26621653 | P67: 1.534112678 | Q67: 1.000003711 | R67: 0.002724508072 | S67: 1 | T67: 1.454481716e-05 | U67: 1.000000297 | V67: 0.001284373418 | W67: 24.48791567 | X67: -99.4381787 | Y67: 80.5618213 | AB67: 10.19277394 | AC67: -68.41961587 | AE67: 37.30813457 | AF67: -87.74291228 | AI67: 78.2513519 | AJ67: -31.01856284 | AL67: 0 | AM67: 0 | AN67: 0 | AO67: 0 | AP67: 0 | AQ67: 0
B68: 158.49 | C68: 1.197354767 | D68: 0.5823465934 | E68: 1.000007933 | F68: 0.00398326709 | G68: 1.000005019 | H68: -0.003168308478 | I68: 2191.246876 | J68: 1.570339966 | K68: 1.091780964 | L68: 0.4129656985 | M68: 1.000009663 | N68: 0.004396218497 | O68: 29.89437888 | P68: 1.53733898 | Q68: 1.000004462 | R68: 0.00298745723 | S68: 1 | T68: 1.59485822e-05 | U68: 1.000000357 | V68: 0.001408332241 | W68: 23.58008342 | X68: -99.96454541 | Y68: 80.03545459 | AB68: 9.511825227 | AC68: -66.56454559 | AE68: 36.50884798 | AF68: -87.91278035 | AI68: 78.02446837 | AJ68: -33.39999982 | AL68: 0 | AM68: 0 | AN68: 0 | AO68: 0 | AP68: 0 | AQ68: 0
B69: 173.78 | C69: 1.233437125 | D69: 0.6253768255 | E69: 1.000009538 | F69: 0.00436754 | G69: 1.000006034 | H69: -0.003473962235 | I69: 2402.642914 | J69: 1.570380118 | K69: 1.109421175 | L69: 0.4478713908 | M69: 1.000011618 | N69: 0.004820328444 | O69: 32.7752929 | P69: 1.540280803 | Q69: 1.000005365 | R69: 0.003275664112 | S69: 1 | T69: 1.748718919e-05 | U69: 1.00000043 | V69: 0.001544198217 | W69: 22.66146546 | X69: -100.4599275 | Y69: 79.54007245 | AB69: 8.851068515 | AC69: -64.59119704 | AE69: 35.70971488 | AF69: -88.06490951 | AI69: 77.76660712 | AJ69: -35.86873051 | AL69: 0 | AM69: 0 | AN69: 0 | AO69: 0 | AP69: 0 | AQ69: 0
B70: 190.55 | C70: 1.275479366 | D70: 0.6696822333 | E70: 1.000011467 | F70: 0.004789007229 | G70: 1.000007255 | H70: -0.003809201088 | I70: 2634.501097 | J70: 1.570416748 | K70: 1.130271111 | L70: 0.4848529763 | M70: 1.000013968 | N70: 0.005285488236 | O70: 35.93533717 | P70: 1.542964972 | Q70: 1.00000645 | R70: 0.003591767435 | S70: 1 | T70: 1.917472609e-05 | U70: 1.000000517 | V70: 0.001693215378 | W70: 21.73188369 | X70: -100.9118996 | Y70: 79.08810038 | AB70: 8.212588557 | AC70: -62.5010587 | AE70: 34.91022146 | AF70: -88.20068636 | AI70: 77.47550531 | AJ70: -38.41084092 | AL70: 0 | AM70: 0 | AN70: 0 | AO70: 0 | AP70: 0 | AQ70: 0
B71: 208.93 | C71: 1.324238767 | D71: 0.714912161 | E71: 1.000013786 | F71: 0.005250935364 | G71: 1.000008722 | H71: -0.004176623485 | I71: 2888.618775 | J71: 1.570450141 | K71: 1.154829525 | L71: 0.5237922012 | M71: 1.000016793 | N71: 0.005795302953 | O71: 39.39900814 | P71: 1.545412251 | Q71: 1.000007755 | R71: 0.003938217359 | S71: 1 | T71: 2.102427459e-05 | U71: 1.000000621 | V71: 0.001856538894 | W71: 20.79290203 | X71: -101.3073968 | Y71: 78.69260322 | AB71: 7.599432126 | AC71: -60.30112892 | AE71: 34.11096149 | AF71: -88.32116097 | AI71: 77.14968008 | AJ71: -41.00626786 | AL71: 0 | AM71: 0 | AN71: 0 | AO71: 0 | AP71: 0 | AQ71: 0
B72: 229.09 | C72: 1.380600848 | D72: 0.7607453624 | E72: 1.000016575 | F72: 0.005757596066 | G72: 1.000010487 | H72: -0.00457962738 | I72: 3167.346329 | J72: 1.570480605 | K72: 1.183690333 | L72: 0.564575983 | M72: 1.00002019 | N72: 0.006354486894 | O72: 43.19834197 | P72: 1.547645222 | Q72: 1.000009324 | R72: 0.004318217925 | S72: 1 | T72: 2.305294149e-05 | U72: 1.000000747 | V72: 0.002035679372 | W72: 19.84517219 | X72: -101.6348165 | Y72: 78.36518353 | AB72: 7.013700595 | AC72: -57.99817472 | AE72: 33.31133933 | AF72: -88.42744459 | AI72: 76.78768177 | AJ72: -43.63664175 | AL72: 0 | AM72: 0 | AN72: 0 | AO72: 0 | AP72: 0 | AQ72: 0
B73: 251.19 | C73: 1.445442202 | D73: 0.8067761939 | E73: 1.000019927 | F73: 0.006313009401 | G73: 1.000012607 | H73: -0.005021410691 | I73: 3472.895882 | J73: 1.570508383 | K73: 1.21747578 | L73: 0.6069848408 | M73: 1.000024273 | N73: 0.006967476616 | O73: 47.36349217 | P73: 1.54968145 | Q73: 1.000011209 | R73: 0.00473478457 | S73: 1 | T73: 2.527682733e-05 | U73: 1.000000898 | V73: 0.00223205856 | W73: 18.89105144 | X73: -101.8837947 | Y73: 78.11620528 | AB73: 6.458185512 | AC73: -55.60503942 | AE73: 32.51182295 | AF73: -88.52037175 | AI73: 76.38907611 | AJ73: -46.2787553 | AL73: 0 | AM73: 0 | AN73: 0 | AO73: 0 | AP73: 0 | AQ73: 0
B74: 275.42 | C74: 1.519733201 | D74: 0.852623046 | E74: 1.000023957 | F74: 0.006921949036 | G74: 1.000015157 | H74: -0.005505770858 | I74: 3807.894332 | J74: 1.570533714 | K74: 1.256889175 | L74: 0.6507740845 | M74: 1.000029182 | N74: 0.007639540308 | O74: 51.93026765 | P74: 1.551538544 | Q74: 1.000013476 | R74: 0.005191498052 | S74: 1 | T74: 2.771505148e-05 | U74: 1.000001079 | V74: 0.002447364785 | W74: 17.93260257 | X74: -102.0468431 | Y74: 77.95315693 | AB74: 5.935013491 | AC74: -53.13605838 | AE74: 31.71230574 | AF74: -88.60074735 | AI74: 75.95379926 | AJ74: -48.91078469 | AL74: 0 | AM74: 0 | AN74: 0 | AO74: 0 | AP74: 0 | AQ74: 0
B75: 302 | C75: 1.604542128 | D75: 0.8979291922 | E75: 1.000028804 | F75: 0.007589942103 | G75: 1.000018224 | H75: -0.006037104785 | I75: 4175.383348 | J75: 1.570556828 | K75: 1.302717984 | L75: 0.6956678486 | M75: 1.000035086 | N75: 0.00837677762 | O75: 56.94013328 | P75: 1.553233119 | Q75: 1.000016203 | R75: 0.0056925044 | S75: 1 | T75: 3.038975219e-05 | U75: 1.000001298 | V75: 0.002683552948 | W75: 16.9717818 | X75: -102.1197383 | Y75: 77.88026169 | AB75: 5.445801336 | AC75: -50.60740006 | AE75: 30.91237105 | AF75: -88.66928703 | AI75: 75.48219064 | AJ75: -51.51233825 | AL75: 0 | AM75: 0 | AN75: 0 | AO75: 0 | AP75: 0 | AQ75: 0
B76: 331.13 | C76: 1.700869971 | D76: 0.9422934023 | E76: 1.000034629 | F76: 0.008322012482 | G76: 1.000021909 | H76: -0.00661940926 | I76: 4578.128083 | J76: 1.570577897 | K76: 1.355741488 | L76: 0.7412816581 | M76: 1.000042181 | N76: 0.009184732628 | O76: 62.43078556 | P76: 1.554777903 | Q76: 1.000019479 | R76: 0.0062415724 | S76: 1.000000001 | T76: 3.33210551e-05 | U76: 1.00000156 | V76: 0.002942400232 | W76: 16.01209858 | X76: -102.101891 | Y76: 77.89810898 | AB76: 4.992437586 | AC76: -48.04142086 | AE76: 30.11279311 | AF76: -88.72650534 | AI76: 74.97587117 | AJ76: -54.06047015 | AL76: 0 | AM76: 0 | AN76: 0 | AO76: 0 | AP76: 0 | AQ76: 0
B77: 363.08 | C77: =SQRT(1+(B77/PS_Pole1)^2) -> 1.809938307 | D77: =ATAN(B77/PS_Pole1) -> 0.9854296839 | E77: =SQRT(1+(B77/PS_Zero1)^2) -> 1.000041634 | F77: =ATAN(B77/PS_Zero1) -> 0.009124942415 | G77: =IF(VIN_nom>Vout, 1, SQRT(1+(B77/PS_RHPZ)^2)) -> 1.00002634 | H77: =IF(VIN_nom>Vout, 0, -ATAN(B77/PS_RHPZ)) -> -0.007258079949 | I77: =SQRT(1+(B77/EA_Pole1)^2) -> 5019.861498 | J77: =ATAN(B77/EA_Pole1) -> 1.570597118 | K77: =SQRT(1+(B77/EA_Zero1)^2) -> 1.416882943 | L77: =ATAN(B77/EA_Zero1) -> 0.7872803745 | M77: =SQRT(1+(B77/EA_Pole2)^2) -> 1.000050714 | N77: =ATAN(B77/EA_Pole2) -> 0.01007088984 | O77: =SQRT(1+(B77/$V$5)^2) -> 68.4531162 | P77: =ATAN(B77/$V$5) -> 1.556187268 | Q77: =SQRT(1+(B77/$V$4)^2) -> 1.000023419 | R77: =ATAN(B77/$V$4) -> 0.006843789913 | S77: =SQRT(1+(B77/$V$7)^2) -> 1.000000001 | T77: =ATAN(B77/$V$7) -> 3.653612988e-05 | U77: =SQRT((1-(B77^2/pterm2))^2+(B77/pterm1)^2) -> 1.000001876 | V77: =IF((ATAN((B77/pterm1)/(1-B77^2/pterm2))>0),ATAN((B77/pterm1)/(1-B77^2/pterm2)),PI()+ATAN((B77/pterm1)/(1-B77^2/pterm2))) -> 0.003226305834 | W77: =20*LOG10(((E77*K77*G77)/(C77*I77*U77*M77))*Adc) -> 15.0553337 | X77: -101.9966152 | Y77: 78.00338482 | AB77: =20*LOG10((K77/(I77*M77))*AEA) -> 4.575429275 | AC77: =(L77-(J77+N77))*radconv -> -45.45776292 | AE77: =20*LOG10((Q77/(O77*S77))*AIL) -> 29.31293885 | AF77: =(R77-(P77+T77))*radconv -> -88.7729357 | AI77: =20*LOG10((E77*G77/(C77*U77))*Acs*Am) -> 74.4361146 | AJ77: =(F77+H77-(D77+V77))*radconv -> -56.53885226 | AL77: =SUM((W78<0)*(W77>0))*B77 -> 0 | AM77: =IF(AL77>0,Y75,0) -> 0 | AN77: =SUM((AB78<0)*(AB77>0))*B77 -> 0 | AO77: 0 | AP77: 0 | AQ77: 0
B78: 398.11 | C78: 1.932929165 | D78: 1.027045444 | E78: 1.000050055 | F78: 0.01000526174 | G78: 1.000031668 | H78: -0.007958312067 | I78: 5504.178292 | J78: 1.570614647 | K78: 1.487062378 | L78: 0.8332596959 | M78: 1.000060971 | N78: 0.01104245494 | O78: 75.05613325 | P78: 1.557472571 | Q78: 1.000028156 | R78: 0.007504055851 | S78: 1.000000001 | T78: 4.006113987e-05 | U78: 1.000002255 | V78: 0.00353758009 | W78: 14.1042065 | X78: -101.8107889 | Y78: =IF(X78>0,X78-180,X78+180) -> 78.18921114 | AB78: 4.1952293 | AC78: -42.88001274 | AE78: 28.51312073 | AF78: -88.80894963 | AI78: 73.86518738 | AJ78: -58.93077612 | AL78: 0 | AM78: 0 | AN78: 0 | AO78: =IF(AN78>0,AC78,0) -> 0 | AP78: =SUM((AE79<0)*(AE78>0))*B78 -> 0 | AQ78: =IF(AP78>0,AE78,0) -> 0
B79: 436.52 | C79: 2.071151908 | D79: 1.066920705 | E79: 1.000060179 | F79: 0.01097050407 | G79: 1.000038074 | H79: -0.008726099694 | I79: 6035.226197 | J79: 1.570630633 | K79: 1.567282859 | L79: 0.878837212 | M79: 1.000073303 | N79: 0.01210774109 | O79: 82.29638554 | P79: 1.558644826 | Q79: 1.000033851 | R79: 0.008228022466 | S79: 1.000000001 | T79: 4.392627358e-05 | U79: 1.000002711 | V79: 0.00387888877 | W79: 13.16066149 | X79: =IF(((F79+L79+H79)-(D79+J79+V79+N79))*radconv<-180,((F79+L79+H79)-(D79+J79+V79+N79))*radconv+360,((F79+L79+H79)-(D79+J79+V79+N79))*radconv) -> -101.5542683 | Y79: 78.44573167 | AB79: 3.85146497 | AC79: -40.33056578 | AE79: 27.7132787 | AF79: -88.83485611 | AI79: 73.2654067 | AJ79: -61.22370255 | AL79: 0 | AM79: 0 | AN79: 0 | AO79: 0 | AP79: 0 | AQ79: 0
B80: 478.63 | C80: 2.225977643 | D80: 1.104880935 | E80: 1.000072349 | F80: 0.01202870376 | G80: 1.000045773 | H80: -0.009567835742 | I80: 6617.429461 | J80: 1.570645211 | K80: 1.658588084 | L80: 0.9236371223 | M80: 1.000088127 | N80: 0.0132756136 | O80: 90.23419278 | P80: 1.559713826 | Q80: 1.000040697 | R80: 0.009021718179 | S80: 1.000000001 | T80: 4.816373206e-05 | U80: 1.000003259 | V80: 0.004253075358 | W80: 12.22643142 | X80: -101.2391698 | Y80: 78.76083023 | AB80: 3.54324398 | AC80: -37.8314694 | AE80: 26.91353064 | AF80: -88.85087271 | AI80: 72.63939762 | AJ80: -63.40770036 | AL80: 0 | AM80: 0 | AN80: 0 | AO80: 0 | AP80: 0 | AQ80: 0
B81: 524.81 | C81: 2.39895298 | D81: 1.14082084 | E81: 1.000086983 | F81: 0.0131891491 | G81: 1.000055032 | H81: -0.01049091132 | I81: 7255.903618 | J81: 1.570658508 | K81: 1.762124665 | L81: 0.9673339108 | M81: 1.000105953 | N81: 0.01455632113 | O81: 98.9393006 | P81: 1.560688948 | Q81: 1.000048929 | R81: 0.00989211277 | S81: 1.000000001 | T81: 5.28107478e-05 | U81: 1.000003919 | V81: 0.004663427634 | W81: 11.30237774 | X81: -100.8787853 | Y81: 79.12121472 | AB81: 3.269007263 | AC81: -35.40196886 | AE81: 26.11364816 | AF81: -88.85713935 | AI81: 71.98958065 | AJ81: -65.47681642 | AL81: 0 | AM81: 0 | AN81: 0 | AO81: 0 | AP81: 0 | AQ81: 0
B82: 575.44 | C82: 2.59165656 | D82: 1.174663437 | E82: 1.000104575 | F82: 0.01446137642 | G82: 1.000066162 | H82: -0.01150291575 | I82: 7955.902462 | J82: 1.570670634 | K82: 1.87905372 | L82: 1.009619665 | M82: 1.00012738 | N82: 0.01596038526 | O82: 108.4833405 | P82: 1.561578191 | Q82: 1.000058825 | R82: 0.0108463631 | S82: 1.000000002 | T82: 5.790555955e-05 | U82: 1.000004711 | V82: 0.005113322227 | W82: 10.38941236 | X82: -100.4870371 | Y82: 79.51296288 | AB82: 3.026913586 | AC82: -33.06031534 | AE82: 25.31384983 | AF82: -88.85370664 | AI82: 71.31870895 | AJ82: -67.42672178 | AL82: 0 | AM82: 0 | AN82: 0 | AO82: 0 | AP82: 0 | AQ82: 0
B83: 630.96 | C83: 2.805890569 | D83: 1.206391692 | E83: 1.000125726 | F83: 0.01585642536 | G83: 1.000079545 | H83: -0.01261263551 | I83: 8723.509333 | J83: 1.570681694 | K83: 2.010663407 | L83: 1.050256789 | M83: 1.000153144 | N83: 0.01749998563 | O83: 118.9492549 | P83: 1.562389281 | Q83: 1.000070723 | R83: 0.01189275508 | S83: 1.000000002 | T83: 6.349244377e-05 | U83: 1.000005664 | V83: 0.005606668917 | W83: 9.487582618 | X83: -100.0773613 | Y83: 79.9226387 | AB83: 2.814657794 | AC83: -30.82082591 | AE83: 24.51397965 | AF83: -88.84054496 | AI83: 70.629135 | AJ83: -69.25653539 | AL83: 0 | AM83: 0 | AN83: 0 | AO83: 0 | AP83: 0 | AQ83: 0
B84: 691.83 | C84: 3.043533641 | D84: 1.23601203 | E84: 1.000151153 | F84: 0.01738583243 | G84: 1.000095632 | H84: -0.01382925391 | I84: 9565.084087 | J84: 1.57069178 | K84: 2.158279382 | L84: 1.089044819 | M84: 1.000184115 | N84: 0.01918784887 | O84: 130.4237571 | P84: 1.563128937 | Q84: 1.000085026 | R84: 0.01303994912 | S84: 1.000000002 | T84: 6.96176895e-05 | U84: 1.00000681 | V84: 0.006147555191 | W84: 8.596931214 | X84: -99.66244562 | Y84: 80.33755438 | AB84: 2.629803344 | AC84: -28.69572085 | AE84: 23.71420425 | AF84: -88.81754567 | AI84: 69.92333804 | AJ84: -70.96672477 | AL84: 0 | AM84: 0 | AN84: 0 | AO84: 0 | AP84: 0 | AQ84: 0
B85: 758.58 | C85: 3.306738434 | D85: 1.263573371 | E85: 1.000181724 | F85: 0.0190628854 | G85: 1.000114975 | H85: -0.01516334961 | I85: 10487.95438 | J85: 1.570700979 | K85: 2.323387186 | L85: 1.125853702 | M85: 1.000221353 | N85: 0.02103863248 | O85: 143.0067566 | P85: 1.563803593 | Q85: 1.000102224 | R85: 0.01429792174 | S85: 1.000000003 | T85: 7.633462972e-05 | U85: 1.000008188 | V85: 0.006740690537 | W85: 7.716833238 | X85: -99.25350381 | Y85: 80.74649619 | AB85: 2.469718577 | AC85: -26.69329638 | AE85: 22.91435661 | AF85: -88.78450896 | AI85: 69.20332484 | AJ85: -72.56020743 | AL85: 0 | AM85: 0 | AN85: 0 | AO85: 0 | AP85: 0 | AQ85: 0
B86: 831.76 | C86: 3.597740164 | D86: 1.289134621 | E86: 1.000218473 | F86: 0.02090136461 | G86: 1.000138226 | H86: -0.016625896 | I86: 11499.72439 | J86: 1.570709368 | K86: 2.507514933 | L86: 1.160587091 | M86: 1.000266115 | N86: 0.02306753521 | O86: 156.8019334 | P86: 1.564418811 | Q86: 1.000122897 | R86: 0.0156770222 | S86: 1.000000004 | T86: 8.369861003e-05 | U86: 1.000009843 | V86: 0.007390962145 | W86: 6.846858114 | X86: -98.86042566 | Y86: 81.13957434 | AB86: 2.331835795 | AC86: -24.81994801 | AE86: 22.11463902 | AF86: -88.74116364 | AI86: 68.47123249 | AJ86: -74.04047766 | AL86: 0 | AM86: 0 | AN86: 0 | AO86: 0 | AP86: 0 | AQ86: 0
B87: 912.01 | C87: 3.919136477 | D87: 1.312784961 | E87: 1.000262659 | F87: 0.02291729841 | G87: 1.000166183 | H87: -0.0182296586 | I87: 12609.24261 | J87: 1.57071702 | K87: 2.712411622 | L87: 1.193212465 | M87: 1.000319934 | N87: 0.0252922335 | O87: 171.9299341 | P87: 1.564979971 | Q87: 1.000147754 | R87: 0.01718929031 | S87: 1.000000004 | T87: 9.177403253e-05 | U87: 1.000011835 | V87: 0.008104056913 | W87: 5.985998115 | X87: -98.49133991 | Y87: 81.50866009 | AB87: 2.213578452 | AC87: -23.07855596 | AE87: 21.31485322 | AF87: -88.68713185 | AI87: 67.72862984 | AJ87: -75.41278395 | AL87: 0 | AM87: 0 | AN87: 0 | AO87: 0 | AP87: 0 | AQ87: 0
B88: 1000 | C88: 4.273652431 | D88: 1.334614786 | E88: 1.000315777 | F88: 0.0251274515 | G88: 1.000199793 | H88: -0.01998799377 | I88: 13825.77231 | J88: 1.570723998 | K88: 2.939901639 | L88: 1.223722651 | M88: 1.000384633 | N88: 0.02773121224 | O88: 188.5170611 | P88: 1.565491742 | Q88: 1.000177637 | R88: 0.01884732395 | S88: 1.000000005 | T88: 0.0001006283182 | U88: 1.000014228 | V88: 0.008885928287 | W88: 5.133528536 | X88: -98.1530456 | Y88: 81.8469544 | AB88: 2.112552765 | AC88: -21.47059412 | AE88: 20.51512946 | AF88: -88.62196315 | AI88: 66.97718595 | AJ88: -76.68245148 | AL88: 0 | AM88: 0 | AN88: 0 | AO88: 0 | AP88: 0 | AQ88: 0
B89: 1096.5 | C89: 4.664423335 | D89: 1.354730316 | E89: 1.000379651 | F89: 0.02755107765 | G89: 1.000240209 | H89: -0.02191624475 | I89: 15159.95934 | J89: 1.570730364 | K89: 3.192068069 | L89: 1.252155045 | M89: 1.000462431 | N89: 0.03040569766 | O89: 206.7084681 | P89: 1.565958577 | Q89: 1.000213571 | R89: 0.0206655957 | S89: 1.000000006 | T89: 0.0001103389508 | U89: 1.000017107 | V89: 0.009743418261 | W89: 4.28837259 | X89: -97.85087348 | Y89: 82.14912652 | AB89: 2.026491457 | AC89: -19.99513938 | AE89: 19.71528935 | AF89: -88.54508788 | AI89: 66.21809131 | AJ89: -77.8557341 | AL89: 0 | AM89: 0 | AN89: 0 | AO89: 0 | AP89: 0 | AQ89: 0
B90: 1202.3 | C90: 5.094673741 | D90: 1.373230163 | E90: 1.000456432 | F90: 0.03020790301 | G90: 1.000288793 | H90: -0.02403013933 | I90: 16622.72604 | J90: 1.570736168 | K90: 3.471048989 | L90: 1.278556981 | M90: 1.00055595 | N90: 0.03333743007 | O90: 226.6530797 | P90: 1.566384283 | Q90: 1.000256769 | R90: 0.02265894238 | S90: 1.000000007 | T90: 0.0001209854268 | U90: 1.000020567 | V90: 0.01068354649 | W90: 3.449938586 | X90: -97.58918332 | Y90: 82.41081668 | AB90: 1.953367351 | AC90: -18.65072832 | AE90: 18.91559734 | AF90: -88.45587872 | AI90: 65.45278141 | AJ90: -78.938455 | AL90: 0 | AM90: =IF(AL90>0,Y90,0) -> 0 | AN90: 0 | AO90: 0 | AP90: 0 | AQ90: 0
B91: 1318.3 | C91: 5.568082732 | D91: 1.390221552 | E91: 1.00054873 | F91: 0.03312037688 | G91: 1.000347198 | H91: -0.0263475834 | I91: 18226.51562 | J91: 1.570741462 | K91: 3.779275212 | L91: 1.303006175 | M91: 1.000668365 | N91: 0.03655114529 | O91: 248.520557 | P91: 1.566772504 | Q91: 1.000308698 | R91: 0.02484425671 | S91: 1.000000009 | T91: 0.0001326583115 | U91: 1.000024728 | V91: 0.01171431003 | W91: 2.617376419 | X91: -97.37128387 | Y91: 82.62871613 | AB91: 1.891318938 | AC91: -17.43432832 | AE91: 18.11603437 | AF91: -88.35358164 | AI91: 64.68226766 | AJ91: -79.93695555 | AL91: 0 | AM91: 0 | AN91: 0 | AO91: 0 | AP91: 0 | AQ91: 0
B92: 1445.4 | C92: 6.088336646 | D92: 1.405800237 | E92: 1.000659603 | F92: 0.03631089734 | G92: 1.000417359 | H92: -0.02888645704 | I92: 19983.77127 | J92: 1.570746286 | K92: 4.119181573 | L92: 1.325579499 | M92: 1.0008034 | N92: 0.04007151039 | O92: 272.4805614 | P92: 1.567126332 | Q92: 1.00037108 | R92: 0.02723840979 | S92: 1.000000011 | T92: 0.0001454481706 | U92: 1.000029726 | V92: 0.0128437058 | W92: 1.790445394 | X92: -97.19987207 | Y92: 82.80012793 | AB92: 1.838719276 | AC92: -16.34295059 | AE92: 17.31711188 | AF92: -88.23741243 | AI92: 63.90793629 | AJ92: -80.85692148 | AL92: 0 | AM92: 0 | AN92: 0 | AO92: 0 | AP92: 0 | AQ92: 0
B93: 1584.9 | C93: 6.660769016 | D93: 1.420093718 | E93: 1.000793015 | F93: 0.03981183455 | G93: 1.000501786 | H93: -0.03167259572 | I93: 21912.46651 | J93: 1.570750691 | K93: 4.494281622 | L93: 1.346413225 | M93: 1.000965883 | N93: 0.04393417892 | O93: 298.7781599 | P93: 1.567449356 | Q93: 1.000446148 | R93: 0.02986577827 | S93: 1.000000013 | T93: 0.0001594858207 | U93: 1.000035741 | V93: 0.01408328499 | W93: 0.9670703783 | X93: -97.07677829 | Y93: 82.92322171 | AB93: 1.794019857 | AC93: -15.37083297 | AE93: 16.51749717 | AF93: -88.1061875 | AI93: 63.1292607 | AJ93: -81.70594532 | AL93: 0 | AM93: 0 | AN93: 0 | AO93: 0 | AP93: 0 | AQ93: 0
B94: 1737.8 | C94: 7.289493409 | D94: 1.433178612 | E94: 1.000953328 | F94: 0.04364793805 | G94: 1.000603244 | H94: -0.03472579697 | I94: 24026.42708 | J94: 1.570754706 | K94: 4.907293996 | L94: 1.365580672 | M94: 1.001161122 | N94: 0.04816637453 | O94: 327.6018658 | P94: 1.567743836 | Q94: 1.000536359 | R94: 0.03274504976 | S94: 1.000000015 | T94: 0.0001748718902 | U94: 1.00004297 | V94: 0.01544193285 | W94: 0.1478034267 | X94: -97.00397847 | Y94: 82.99602153 | AB94: 1.756003172 | AC94: -14.51533618 | AE94: 15.71832995 | AF94: -87.95897145 | AI94: 62.34801043 | AJ94: -82.48864229 | AL94: 1737.8 | AM94: 82.99602153 | AN94: 0 | AO94: 0 | AP94: 0 | AQ94: 0
B95: 1905.5 | C95: 7.980273268 | D95: 1.445157055 | E95: 1.00114609 | F95: 0.04785387656 | G95: 1.000725245 | H95: -0.03807378703 | I95: 26345.00909 | J95: 1.570758369 | K95: 5.362021867 | L95: 1.383201139 | M95: 1.001395871 | N95: 0.05280623638 | O95: 359.2155978 | P95: 1.56801248 | Q95: 1.000644837 | R95: 0.035902395 | S95: 1.000000018 | T95: 0.0001917472586 | U95: 1.000051664 | V95: 0.01693208875 | W95: -0.6684383874 | X95: -96.98299148 | Y95: 83.01700852 | AB95: 1.723513639 | AC95: -13.77181214 | AE95: 14.91909521 | AF95: -87.79442791 | AI95: 61.56425815 | AJ95: -83.21117934 | AL95: 0 | AM95: 0 | AN95: 0 | AO95: 0 | AP95: 0 | AQ95: 0
B96: 2089.3 | C96: 8.738468468 | D96: 1.456108543 | E96: 1.001377692 | F96: 0.05246165444 | G96: 1.000871839 | H96: -0.04174221674 | I96: 28886.18604 | J96: 1.570761708 | K96: 5.862006749 | L96: 1.399367865 | M96: 1.001677907 | N96: 0.05788892714 | O96: 393.8644237 | P96: 1.568257379 | Q96: 1.000775185 | R96: 0.0393620358 | S96: 1.000000022 | T96: 0.0002102427428 | U96: 1.000062112 | V96: 0.0185653032 | W96: -1.481527243 | X96: -97.01534403 | Y96: 82.98465597 | AB96: 1.695585312 | AC96: -13.13693503 | AE96: 14.1203952 | AF96: -87.61129652 | AI96: 60.77909762 | AJ96: -83.878409 | AL96: 0 | AM96: 0 | AN96: 0 | AO96: 0 | AP96: 0 | AQ96: 0
B97: 2290.9 | C97: 9.571095557 | D97: 1.466124048 | E97: 1.001656161 | F97: 0.05751309975 | G97: 1.001048115 | H97: -0.04576461737 | I97: 31673.46173 | J97: 1.570764755 | K97: 6.411885881 | L97: 1.414196695 | M97: 1.002016995 | N97: 0.0634603971 | O97: 431.8688168 | P97: 1.568480807 | Q97: 1.000931928 | R97: 0.04315563654 | S97: 1.000000027 | T97: 0.0002305294108 | U97: 1.000074678 | V97: 0.02035668069 | W97: -2.292475247 | X97: -97.10263553 | Y97: 82.89736447 | AB97: 1.671328299 | AC97: -12.60670192 | AE97: 13.3216536 | AF97: -87.407903 | AI97: 59.99240663 | AJ97: -84.49593361 | AL97: 0 | AM97: 0 | AN97: 0 | AO97: 0 | AP97: 0 | AQ97: 0
B98: 2511.9 | C98: 10.4847659 | D98: 1.475274656 | E98: 1.001990776 | F98: 0.06304726293 | G98: 1.001259956 | H98: -0.0501723874 | I98: 34728.9574 | J98: 1.570767532 | K98: 7.016033596 | L98: 1.427778602 | M98: 1.002424426 | N98: 0.0695634684 | O98: 473.5303993 | P98: 1.568684528 | Q98: 1.001120298 | R98: 0.04731286448 | S98: 1.000000032 | T98: 0.0002527682679 | U98: 1.000089783 | V98: 0.02232043659 | W98: -3.101146917 | X98: -97.24655761 | Y98: 82.75344239 | AB98: 1.649990485 | AC98: -12.17835539 | AE98: 12.52336768 | AF98: -87.18265797 | AI98: 59.20507277 | AJ98: -85.06820222 | AL98: 0 | AM98: 0 | AN98: 0 | AO98: 0 | AP98: 0 | AQ98: 0
B99: 2754.2 | C99: 11.48733651 | D99: 1.48363362 | E99: 1.002392883 | F99: 0.06911035603 | G99: 1.001514559 | H99: -0.05500273112 | I99: 38078.94202 | J99: 1.570770066 | K99: 7.679651023 | L99: 1.44021126 | M99: 1.002913997 | N99: 0.07624877789 | O99: 519.2073476 | P99: 1.568870313 | Q99: 1.0013467 | R99: 0.05186888113 | S99: 1.000000038 | T99: 0.0002771505078 | U99: 1.000107941 | V99: 0.02447345139 | W99: -3.907930412 | X99: -97.44906457 | Y99: 82.55093543 | AB99: 1.630883398 | AC99: -11.8492017 | AE99: 11.7254724 | AF99: -86.9336591 | AI99: 58.41739636 | AJ99: -85.59986287 | AL99: 0 | AM99: 0 | AN99: 0 | AO99: 0 | AP99: 0 | AQ99: 0
B100: 3020 | C100: 12.58791262 | D100: 1.491271242 | E100: 1.002876335 | F100: 0.0757556267 | G100: 1.001820718 | H100: -0.06029859456 | I100: 41753.83229 | J100: 1.570772377 | K100: 8.408770103 | L100: 1.451590754 | M100: 1.00350255 | N100: 0.0835746088 | O100: 569.3143927 | P100: 1.569039827 | Q100: 1.001618955 | R100: 0.05686428838 | S100: 1.000000046 | T100: 0.0003038975126 | U100: 1.000129784 | V100: 0.02683527044 | W100: -4.713469885 | X100: -97.71254968 | Y100: 82.28745032 | AB100: 1.613378126 | AC100: -11.61707637 | AE100: 10.92760694 | AF100: -86.6586883 | AI100: 57.62936216 | AJ100: -86.09547331 | AL100: 0 | AM100: 0 | AN100: 0 | AO100: 0 | AP100: 0 | AQ100: 0
B101: 3311.3 | C101: 13.79477676 | D101: 1.498241481 | E101: 1.003456979 | F101: 0.08303071107 | G101: 1.002188498 | H101: -0.06609862862 | I101: 45781.27975 | J101: 1.570774484 | K101: 9.208881487 | L101: 1.461990949 | M101: 1.004209344 | N101: 0.09159291434 | O101: 624.2285628 | P101: 1.569194349 | Q101: 1.001946018 | R101: 0.06233566886 | S101: 1.000000056 | T101: 0.0003332105388 | U101: 1.000156033 | V101: 0.02942366079 | W101: -5.51716057 | X101: -98.0393531 | Y101: 81.9606469 | AB101: 1.596918955 | AC101: -11.48072486 | AE101: 10.13061317 | AF101: -86.35573424 | AI101: 56.84213065 | AJ101: -86.55862825 | AL101: 0 | AM101: 0 | AN101: 0 | AO101: 0 | AP101: 0 | AQ101: 0
B102: 3630.8 | C102: 15.11911596 | D102: 1.504606574 | E102: 1.004154829 | F102: 0.09099993224 | G102: 1.002630619 | H102: -0.07245501746 | I102: 50198.61399 | J102: 1.570776406 | K102: 10.0874044 | L102: 1.471499703 | M102: 1.005058689 | N102: 0.1003738534 | O102: 684.4588459 | P102: 1.569335318 | Q102: 1.00233921 | R102: 0.06833241335 | S102: 1.000000067 | T102: 0.0003653612827 | U102: 1.000187602 | V102: 0.03226260801 | W102: -6.319768001 | X102: -98.43270665 | Y102: 81.56729335 | AB102: 1.58095067 | AC102: -11.43913423 | AE102: 9.333946915 | AF102: -86.02206514 | AI102: 56.0554915 | AJ102: -86.99357242 | AL102: 0 | AM102: 0 | AN102: 0 | AO102: 0 | AP102: 0 | AQ102: 0
B103: 3981.1 | C103: 16.57170829 | D103: 1.510415835 | E103: 1.004993131 | F103: 0.09972405427 | G103: 1.003161872 | H103: -0.07941741334 | I103: 55041.78202 | J103: 1.570778159 | K103: 11.05149092 | L103: 1.480186864 | M103: 1.00607881 | N103: 0.1099834156 | O103: 750.495379 | P103: 1.569463873 | Q103: 1.002811696 | R103: 0.07490157991 | S103: 1.00000008 | T103: 0.0004006113775 | U103: 1.000225557 | V103: 0.03537520707 | W103: -7.121063913 | X103: -98.8959023 | Y103: 81.1040977 | AB103: 1.564952672 | AC103: -11.49208439 | AE103: 8.538026574 | AF103: -85.65506496 | AI103: 55.27019359 | AJ103: -87.40381791 | AL103: 0 | AM103: 0 | AN103: 0 | AO103: 0 | AP103: 0 | AQ103: 0
B104: 4365.2 | C104: 18.16499443 | D104: 1.515717544 | E104: 1.00600008 | F104: 0.1092724334 | G104: 1.003800213 | H104: -0.08704271909 | I104: 60352.26115 | J104: 1.570779757 | K104: 12.1093995 | L104: 1.488121699 | M104: 1.007303913 | N104: 0.120496738 | O104: 822.9037048 | P104: 1.569581117 | Q104: 1.00337946 | R104: 0.08209713962 | S104: 1.000000096 | T104: 0.0004392627078 | U104: 1.000271194 | V104: 0.03878810462 | W104: -7.921153085 | X104: -99.43285646 | Y104: 80.56714354 | AB104: 1.548395813 | AC104: -11.6399124 | AE104: 7.742922853 | AF104: -85.25172192 | AI104: 54.48666128 | AJ104: -87.79294406 | AL104: 0 | AM104: 0 | AN104: 0 | AO104: 0 | AP104: 0 | AQ104: 0
B105: 4786.3 | C105: 19.91224866 | D105: 1.520554848 | E105: 1.007209197 | F105: 0.1197175983 | G105: 1.004567025 | H105: -0.09539088615 | I105: 66174.29386 | J105: 1.570781215 | K105: 13.2699451 | L105: 1.495366557 | M105: 1.008774634 | N105: 0.1319920387 | O105: 902.2870688 | P105: 1.569688032 | Q105: 1.004061543 | R105: 0.08997603472 | S105: 1.000000116 | T105: 0.0004816372837 | U105: 1.00032606 | V105: 0.0425297209 | W105: -8.719921879 | X105: -100.0478592 | Y105: 79.95214076 | AB105: 1.530738154 | AC105: -11.88352838 | AE105: 6.948910903 | AF105: -84.80884811 | AI105: 53.70555014 | AJ105: -88.16433086 | AL105: 0 | AM105: 0 | AN105: 0 | AO105: 0 | AP105: 0 | AQ105: 0
B106: 5248.1 | C106: 21.82882361 | D106: 1.524969299 | E106: 1.008661183 | F106: 0.1311421258 | G106: 1.005488304 | H106: -0.1045305681 | I106: 72559.0355 | J106: 1.570782545 | K106: 14.54332608 | L106: 1.501981967 | M106: 1.010540272 | N106: 0.1445580597 | O106: 989.3429741 | P106: 1.569785555 | Q106: 1.004881101 | R106: 0.09860354385 | S106: 1.000000139 | T106: 0.0005281074294 | U106: 1.000392042 | V106: 0.04663291433 | W106: -9.517561522 | X106: -100.7459934 | Y106: 79.25400659 | AB106: 1.511397302 | AC106: -12.22454945 | AE106: 6.155954796 | AF106: -84.32277845 | AI106: 52.92725135 | AJ106: -88.52144396 | AL106: 0 | AM106: 0 | AN106: 0 | AO106: 0 | AP106: 0 | AQ106: 0
B107: 5370.3 | C107: 22.33604483 | D107: 1.526010673 | E107: 1.00906739 | F107: 0.1341596186 | G107: 1.005746127 | H107: -0.106946214 | I107: 74248.54487 | J107: 1.570782859 | K107: 14.88037894 | L107: 1.503543051 | M107: 1.011034129 | N107: 0.1478757264 | O107: 1012.379423 | P107: 1.569808555 | Q107: 1.005110472 | R107: 0.1008841182 | S107: 1.000000146 | T107: 0.0005404042064 | U107: 1.00041052 | V107: 0.04771867737 | W107: -9.716684326 | X107: -100.9340489 | Y107: 79.06595114 | AB107: 1.506229572 | AC107: -12.32521221 | AE107: 5.958008413 | AF107: -84.19413352 | AI107: 52.73329628 | AJ107: -88.60883665 | AL107: 0 | AM107: 0 | AN107: 0 | AO107: 0 | AP107: 0 | AQ107: 0
B108: 5432.85 | C108: 22.59568308 | D108: 1.526525626 | E108: 1.009278867 | F108: 0.1357032229 | G108: 1.005880368 | H108: -0.1081822177 | I108: 75113.34692 | J108: 1.570783014 | K108: 15.05291833 | L108: 1.504315065 | M108: 1.01129122 | N108: 0.1495726633 | O108: 1024.170994 | P108: 1.569819927 | Q108: 1.005229901 | R108: 0.1020510603 | S108: 1.000000149 | T108: 0.0005466985059 | U108: 1.000420143 | V108: 0.04827444056 | W108: -9.816829965 | X108: -101.0307752 | Y108: 78.96922478 | AB108: 1.503572102 | AC108: -12.37821527 | AE108: 5.858457151 | AF108: -84.12828489 | AI108: 52.63580811 | AJ108: -88.65255995 | AL108: 0 | AM108: 0 | AN108: 0 | AO108: 0 | AP108: 0 | AQ108: 0
B109: 5495.4 | C109: 22.85532719 | D109: 1.527028879 | E109: 1.009492747 | F109: 0.1372461769 | G109: 1.006016145 | H109: -0.1094178897 | I109: 75978.14898 | J109: 1.570783165 | K109: 15.22546649 | L109: 1.505069581 | M109: 1.011551222 | N109: 0.1512687326 | O109: 1035.962565 | P109: 1.569831041 | Q109: 1.005350699 | R109: 0.1032177237 | S109: 1.000000153 | T109: 0.0005529928053 | U109: 1.000429877 | V109: 0.04883020252 | W109: -9.915807705 | X109: -101.1278021 | Y109: 78.87219795 | AB109: 1.500905403 | AC109: -12.43217097 | AE109: 5.760069029 | AF109: -84.0624374 | AI109: 52.53949707 | AJ109: -88.69563108 | AL109: 0 | AM109: 0 | AN109: 0 | AO109: 0 | AP109: 0 | AQ109: 0
B110: 5559.4 | C110: 23.12099607 | D110: 1.527532099 | E110: 1.009714071 | F110: 0.1388242183 | G110: 1.006156659 | H110: -0.1106818591 | I110: 76862.99841 | J110: 1.570783317 | K110: 15.40202333 | L110: 1.50582409 | M110: 1.011820261 | N110: 0.153003212 | O110: 1048.027481 | P110: 1.569842153 | Q110: 1.005475713 | R110: 0.1044111402 | S110: 1.000000156 | T110: 0.0005594330157 | U110: 1.000439953 | V110: 0.04939884658 | W110: -10.01589864 | X110: -101.2273772 | Y110: 78.77262278 | AB110: 1.498166667 | AC110: -12.48832785 | AE110: 5.660576835 | AF110: -83.99506536 | AI110: 52.44214487 | AJ110: -88.73904938 | AL110: 0 | AM110: 0 | AN110: 0 | AO110: 0 | AP110: 0 | AQ110: 0
B111: 5623.4 | C111: 23.38667068 | D111: 1.528023886 | E111: 1.009937909 | F111: 0.1404015642 | G111: 1.00629878 | H111: -0.1119454736 | I111: 77747.84783 | J111: 1.570783465 | K111: 15.57858874 | L111: 1.506561496 | M111: 1.012092343 | N111: 0.154736764 | O111: 1060.092398 | P111: 1.569853013 | Q111: 1.005602159 | R111: 0.1056042582 | S111: 1.00000016 | T111: 0.000565873226 | U111: 1.000450146 | V111: 0.04996748932 | W111: -10.11482193 | X111: -101.3272433 | Y111: 78.67275667 | AB111: 1.495416954 | AC111: -12.54541129 | AE111: 5.56224806 | AF111: -83.92769593 | AI111: 52.34597129 | AJ111: -88.78183204 | AL111: 0 | AM111: 0 | AN111: 0 | AO111: 0 | AP111: 0 | AQ111: 0
B112: 5688.9 | C112: 23.65857776 | D112: 1.528515763 | E112: 1.010169594 | F112: 0.1420151512 | G112: 1.006445895 | H112: -0.1132383324 | I112: 78653.43591 | J112: 1.570783613 | K112: 15.75930097 | L112: 1.507299075 | M112: 1.012373949 | N112: 0.1565099759 | O112: 1072.440086 | P112: 1.569863874 | Q112: 1.00573305 | R112: 0.1068250276 | S112: 1.000000164 | T112: 0.0005724643788 | U112: 1.000460699 | V112: 0.05054945826 | W112: -10.21488228 | X112: -101.4297396 | Y112: 78.57026036 | AB112: 1.492590798 | AC112: -12.60475714 | AE112: 5.462792149 | AF112: -83.85875094 | AI112: 52.2487371 | AJ112: -88.8249825 | AL112: 0 | AM112: 0 | AN112: 0 | AO112: 0 | AP112: 0 | AQ112: 0
B113: 5754.4 | C113: 23.93049044 | D113: 1.528996462 | E113: 1.010403908 | F113: 0.143627994 | G113: 1.006594692 | H113: -0.1145308111 | I113: 79559.024 | J113: 1.570783758 | K113: 15.94002158 | L113: 1.50801993 | M113: 1.012658736 | N113: 0.158282196 | O113: 1084.787775 | P113: 1.569874487 | Q113: 1.005865439 | R113: 0.1080454774 | S113: 1.000000168 | T113: 0.0005790555314 | U113: 1.000471374 | V113: 0.05113142579 | W113: -10.31377461 | X113: -101.5325175 | Y113: 78.46748251 | AB113: 1.4897519 | AC113: -12.66500421 | AE113: 5.364500542 | AF113: -83.78981008 | AI113: 52.15268366 | AJ113: -88.86751329 | AL113: 0 | AM113: 0 | AN113: 0 | AO113: 0 | AP113: 0 | AQ113: 0
B114: 5821.4 | C114: 24.20863572 | D114: 1.529476997 | E114: 1.010646305 | F114: 0.1452769939 | G114: 1.006748636 | H114: -0.115852491 | I114: 80485.35074 | J114: 1.570783902 | K114: 16.12488921 | L114: 1.508740576 | M114: 1.012953334 | N114: 0.1600939644 | O114: 1097.418235 | P114: 1.569885097 | Q114: 1.00600241 | R114: 0.1092935422 | S114: 1.000000172 | T114: 0.0005857976265 | U114: 1.00048242 | V114: 0.05172671934 | W114: -10.41375074 | X114: -101.6379289 | Y114: 78.36207111 | AB114: 1.48683421 | AC114: -12.72752923 | AE114: 5.265135404 | AF114: -83.71929542 | AI114: 52.05562523 | AJ114: -88.91039966 | AL114: 0 | AM114: 0 | AN114: 0 | AO114: 0 | AP114: 0 | AQ114: 0
B115: 5888.4 | C115: 24.48678645 | D115: 1.529946615 | E115: 1.01089145 | F115: 0.1469251986 | G115: 1.006904338 | H115: -0.1171737645 | I115: 81411.67748 | J115: 1.570784044 | K115: 16.30976503 | L115: 1.509444884 | M115: 1.013251256 | N115: 0.1619046734 | O115: 1110.048695 | P115: 1.569895465 | Q115: 1.006140948 | R115: 0.1105412652 | S115: 1.000000176 | T115: 0.0005925397215 | U115: 1.000493595 | V115: 0.0523220114 | W115: -10.51255967 | X115: -101.7436121 | Y115: 78.25638786 | AB115: 1.483902011 | AC115: -12.7909294 | AE115: 5.166934261 | AF115: -83.64878651 | AI115: 51.9597485 | AJ115: -88.95268273 | AL115: 0 | AM115: 0 | AN115: 0 | AO115: 0 | AP115: 0 | AQ115: 0
B116: 5957 | C116: 24.77158506 | D116: 1.530416521 | E116: 1.011145293 | F116: 0.1486119306 | G116: 1.007065579 | H116: -0.118526165 | I116: 82360.12546 | J116: 1.570784185 | K116: 16.49906398 | L116: 1.510149658 | M116: 1.013559731 | N116: 0.163757514 | O116: 1122.980778 | P116: 1.569905839 | Q116: 1.006284416 | R116: 0.1118184266 | S116: 1.00000018 | T116: 0.0005994428217 | U116: 1.000505169 | V116: 0.0529315178 | W116: -10.6125464 | X116: -101.8520896 | Y116: 78.1479104 | AB116: 1.480884194 | AC116: -12.8567169 | AE116: 5.067566842 | AF116: -83.57660046 | AI116: 51.86277958 | AJ116: -88.9953727 | AL116: 0 | AM116: 0 | AN116: 0 | AO116: 0 | AP116: 0 | AQ116: 0
B117: 6025.6 | C117: 25.05638902 | D117: 1.530875744 | E117: 1.01140201 | F117: 0.1502978112 | G117: 1.007228661 | H117: -0.11987813 | I117: 83308.57344 | J117: 1.570784323 | K117: 16.68837094 | L117: 1.510838443 | M117: 1.013871685 | N117: 0.1656092208 | O117: 1135.912862 | P117: 1.569915977 | Q117: 1.006429526 | R117: 0.1130952218 | S117: 1.000000184 | T117: 0.0006063459218 | U117: 1.000516877 | V117: 0.05354102259 | W117: -10.71136448 | X117: -101.9608297 | Y117: 78.03917029 | AB117: 1.477850055 | AC117: -12.92335535 | AE117: 4.969365361 | AF117: -83.50442187 | AI117: 51.76699564 | AJ117: -89.03747436 | AL117: 0 | AM117: 0 | AN117: 0 | AO117: 0 | AP117: 0 | AQ117: 0
B118: 6095.8 | C118: 25.34784098 | D118: 1.531334994 | E118: 1.01166769 | F118: 0.1520221218 | G118: 1.007397452 | H118: -0.1212611721 | I118: 84279.14265 | J118: 1.570784461 | K118: 16.88210123 | L118: 1.5115273 | M118: 1.01419451 | N118: 0.1675029302 | O118: 1149.146568 | P118: 1.569926116 | Q118: 1.006579717 | R118: 0.1144014132 | S118: 1.000000188 | T118: 0.0006134100272 | U118: 1.000528998 | V118: 0.05416474155 | W118: -10.81130505 | X118: -102.0723669 | Y118: 77.9276331 | AB118: 1.47472772 | AC118: -12.99239621 | AE118: 4.870053294 | AF118: -83.43056824 | AI118: 51.67017741 | AJ118: -89.07997069 | AL118: 0 | AM118: 0 | AN118: 0 | AO118: 0 | AP118: 0 | AQ118: 0
B119: 6166 | C119: 25.63929817 | D119: 1.531783804 | E119: 1.011936377 | F119: 0.1537455218 | G119: 1.007568169 | H119: -0.1226437481 | I119: 85249.71187 | J119: 1.570784597 | K119: 17.07583935 | L119: 1.512200526 | M119: 1.014520971 | N119: 0.1693954276 | O119: 1162.380275 | P119: 1.569936023 | Q119: 1.006731626 | R119: 0.1157072126 | S119: 1.000000192 | T119: 0.0006204741324 | U119: 1.000541259 | V119: 0.05478845877 | W119: -10.91007677 | X119: -102.1841572 | Y119: 77.8158428 | AB119: 1.471587246 | AC119: -13.06226303 | AE119: 4.771907853 | AF119: -83.35672383 | AI119: 51.57454616 | AJ119: -89.12189417 | AL119: 0 | AM119: 0 | AN119: 0 | AO119: 0 | AP119: 0 | AQ119: 0
B120: 6237.8 | C120: 25.93740347 | D120: 1.532232409 | E120: 1.012214294 | F120: 0.1555072498 | G120: 1.007744769 | H120: -0.1240573484 | I120: 86242.40232 | J120: 1.570784732 | K120: 17.27400098 | L120: 1.512873475 | M120: 1.014858628 | N120: 0.1713297922 | O120: 1175.915604 | P120: 1.569945926 | Q120: 1.006888772 | R120: 0.1170423639 | S120: 1.000000197 | T120: 0.0006276992429 | U120: 1.000553945 | V120: 0.05542638995 | W120: -11.00991808 | X120: -102.2987464 | Y120: 77.70125358 | AB120: 1.468355929 | AC120: -13.13454457 | AE120: 4.672705097 | AF120: -83.28120664 | AI120: 51.47793616 | AJ120: -89.16420185 | AL120: 0 | AM120: 0 | AN120: 0 | AO120: 0 | AP120: 0 | AQ120: 0
B121: 6309.6 | C121: 26.23551388 | D121: 1.532670819 | E121: 1.012495352 | F121: 0.1572680052 | G121: 1.007923382 | H121: -0.1254704506 | I121: 87235.09277 | J121: 1.570784864 | K121: 17.47217026 | L121: 1.513531159 | M121: 1.01520008 | N121: 0.1732628628 | O121: 1189.450934 | P121: 1.569955603 | Q121: 1.007047713 | R121: 0.1183770961 | S121: 1.000000202 | T121: 0.0006349243533 | U121: 1.000566779 | V121: 0.05606431928 | W121: -11.10859152 | X121: -102.4135789 | Y121: 77.58642111 | AB121: 1.465104653 | AC121: -13.20762641 | AE121: 4.574668479 | AF121: -83.20570054 | AI121: 51.382514 | AJ121: -89.20595248 | AL121: 0 | AM121: 0 | AN121: 0 | AO121: 0 | AP121: 0 | AQ121: 0
B122: 6383.05 | C122: 26.54048011 | D122: 1.533109113 | E122: 1.012786114 | F122: 0.1590682067 | G122: 1.008108182 | H122: -0.1269155054 | I122: 88250.59574 | J122: 1.570784995 | K122: 17.6749012 | L122: 1.514188697 | M122: 1.015553302 | N122: 0.1752390038 | O122: 1203.297312 | P122: 1.569965277 | Q122: 1.007212162 | R122: 0.1197420628 | S122: 1.000000206 | T122: 0.0006423155003 | U122: 1.000580059 | V122: 0.0567169066 | W122: -11.20835153 | X122: -102.5312914 | Y122: 77.46870864 | AB122: 1.461757538 | AC122: -13.28318438 | AE122: 4.475558409 | AF122: -83.12847149 | AI122: 51.28610111 | AJ122: -89.24810698 | AL122: 0 | AM122: 0 | AN122: 0 | AO122: 0 | AP122: 0 | AQ122: 0
B123: 6456.5 | C123: 26.84545133 | D123: 1.533537448 | E123: 1.013080157 | F123: 0.160867369 | G123: 1.008295086 | H123: -0.1283600276 | I123: 89266.09871 | J123: 1.570785124 | K123: 17.87763962 | L123: 1.514831321 | M123: 1.015910487 | N123: 0.1772137629 | O123: 1217.143691 | P123: 1.569974731 | Q123: 1.007378487 | R123: 0.1211065813 | S123: 1.000000211 | T123: 0.0006497066472 | U123: 1.000593494 | V123: 0.05736949194 | W123: -11.30694414 | X123: -102.6492373 | Y123: 77.35076273 | AB123: 1.458388613 | AC123: -13.35951746 | AE123: 4.377614472 | AF123: -83.0512555 | AI123: 51.19087742 | AJ123: -89.28971981 | AL123: 0 | AM123: 0 | AN123: 0 | AO123: 0 | AP123: 0 | AQ123: 0
B124: 6531.7 | C124: 27.15769369 | D124: 1.533966023 | E124: 1.013384601 | F124: 0.1627083099 | G124: 1.008488622 | H124: -0.1298384087 | I124: 90305.79679 | J124: 1.570785253 | K124: 18.0852159 | L124: 1.515474329 | M124: 1.016280283 | N124: 0.1792341258 | O124: 1231.31997 | P124: 1.56998419 | Q124: 1.007550717 | R124: 0.1225031411 | S124: 1.000000216 | T124: 0.0006572738935 | U124: 1.000607409 | V124: 0.05803762351 | W124: -11.4067038 | X124: -102.7702248 | Y124: 77.22977525 | AB124: 1.454916386 | AC124: -13.43844146 | AE124: 4.278517903 | AF124: -82.97221406 | AI124: 51.09458999 | AJ124: -89.33178329 | AL124: 0 | AM124: 0 | AN124: 0 | AO124: 0 | AP124: 0 | AQ124: 0
B125: 6606.9 | C125: 27.46994093 | D125: 1.534384854 | E125: 1.013692478 | F125: 0.1645481387 | G125: 1.008684361 | H125: -0.1313162192 | I125: 91345.49486 | J125: 1.570785379 | K125: 18.29279949 | L125: 1.516102744 | M125: 1.016654225 | N125: 0.1812530107 | O125: 1245.496249 | P125: 1.569993434 | Q125: 1.007724911 | R125: 0.1238992207 | S125: 1.000000221 | T125: 0.0006648411397 | U125: 1.000621485 | V125: 0.05870575295 | W125: -11.50529458 | X125: -102.8914362 | Y125: 77.10856382 | AB125: 1.451420434 | AC125: -13.51811674 | AE125: 4.180589409 | AF125: -82.89318779 | AI125: 50.99949516 | AJ125: -89.37331944 | AL125: 0 | AM125: 0 | AN125: 0 | AO125: 0 | AP125: 0 | AQ125: 0
B126: 6683.85 | C126: 27.78945943 | D126: 1.534803689 | E126: 1.014011068 | F126: 0.1664296196 | G126: 1.008886935 | H126: -0.1328278233 | I126: 92409.38804 | J126: 1.570785505 | K126: 18.50522113 | L126: 1.516731189 | M126: 1.017041155 | N126: 0.1833173322 | O126: 1260.002428 | P126: 1.570002677 | Q126: 1.007905192 | R126: 0.1253272865 | S126: 1.000000226 | T126: 0.0006725844854 | U126: 1.000636056 | V126: 0.05938942837 | W126: -11.60499716 | X126: -103.0156899 | Y126: 76.98431008 | AB126: 1.447818157 | AC126: -13.60039367 | AE126: 4.081563959 | AF126: -82.81233892 | AI126: 50.90339486 | AJ126: -89.41529625 | AL126: 0 | AM126: 0 | AN126: 0 | AO126: 0 | AP126: 0 | AQ126: 0
B127: 6760.8 | C127: 28.1089827 | D127: 1.535213002 | E127: 1.014333247 | F127: 0.168309912 | G127: 1.009091813 | H127: -0.134338817 | I127: 93473.28122 | J127: 1.570785629 | K127: 18.7176499 | L127: 1.517345368 | M127: 1.017432416 | N127: 0.1853800748 | O127: 1274.508607 | P127: 1.570011711 | Q127: 1.008087528 | R127: 0.1267548386 | S127: 1.000000231 | T127: 0.000680327831 | U127: 1.000650796 | V127: 0.06007310152 | W127: -11.70353063 | X127: -103.1401577 | Y127: 76.85984226 | AB127: 1.444190234 | AC127: -13.68339726 | AE127: 3.983707281 | AF127: -82.73150743 | AI127: 50.80848931 | AJ127: -89.45676048 | AL127: 0 | AM127: 0 | AN127: 0 | AO127: 0 | AP127: 0 | AQ127: 0
B128: 6839.55 | C128: 28.43598497 | D128: 1.535622366 | E128: 1.014666672 | F128: 0.1702329445 | G128: 1.009303868 | H128: -0.1358845168 | I128: 94562.06078 | J128: 1.570785752 | K128: 18.93505492 | L128: 1.517959647 | M128: 1.017837308 | N128: 0.1874894176 | O128: 1289.354112 | P128: 1.570020745 | Q128: 1.008276255 | R128: 0.1282152461 | S128: 1.000000237 | T128: 0.0006882523073 | U128: 1.000666057 | V128: 0.06077276461 | W128: -11.80318596 | X128: -103.2677486 | Y128: 76.73225135 | AB128: 1.440450513 | AC128: -13.76906519 | AE128: 3.884744452 | AF128: -82.64880389 | AI128: 50.7125737 | AJ128: -89.49868346 | AL128: 0 | AM128: 0 | AN128: 0 | AO128: 0 | AP128: 0 | AQ128: 0
B129: 6918.3 | C129: 28.76299189 | D129: 1.536022421 | E129: 1.015003847 | F129: 0.1721547066 | G129: 1.009518333 | H129: -0.1374295636 | I129: 95650.84035 | J129: 1.570785872 | K129: 19.15246691 | L129: 1.518559979 | M129: 1.018246725 | N129: 0.1895970734 | O129: 1304.199618 | P129: 1.570029573 | Q129: 1.008467131 | R129: 0.1296751039 | S129: 1.000000242 | T129: 0.0006961767836 | U129: 1.000681494 | V129: 0.06147242526 | W129: -11.90167164 | X129: -103.3955437 | Y129: 76.60445629 | AB129: 1.436683186 | AC129: -13.85543535 | AE129: 3.786951397 | AF129: -82.56612007 | AI129: 50.61785535 | AJ129: -89.54010836 | AL129: 0 | AM129: 0 | AN129: 0 | AO129: 0 | AP129: 0 | AQ129: 0
B130: 6998.9 | C130: 29.09768553 | D130: 1.536422564 | E130: 1.015352822 | F130: 0.1741202856 | G130: 1.009740331 | H130: -0.1390102232 | I130: 96765.1976 | J130: 1.570785993 | K130: 19.37499335 | L130: 1.519160463 | M130: 1.01867044 | N130: 0.1917524783 | O130: 1319.393875 | P130: 1.570038403 | Q130: 1.008664717 | R130: 0.1311686814 | S130: 1.000000248 | T130: 0.0007042874221 | U130: 1.000697478 | V130: 0.0621885198 | W130: -12.00128719 | X130: -103.5265424 | Y130: 76.47345757 | AB130: 1.432798417 | AC130: -13.94453266 | AE130: 3.688045078 | AF130: -82.48151501 | AI130: 50.52212457 | AJ130: -89.58200977 | AL130: 0 | AM130: 0 | AN130: 0 | AO130: 0 | AP130: 0 | AQ130: 0
B131: 7079.5 | C131: 29.43238373 | D131: 1.536813605 | E131: 1.015705717 | F131: 0.1760845064 | G131: 1.009964851 | H131: -0.140590184 | I131: 97879.55484 | J131: 1.57078611 | K131: 19.59752662 | L131: 1.51974731 | M131: 1.019098884 | N131: 0.1939060808 | O131: 1334.588132 | P131: 1.570047032 | Q131: 1.008864551 | R131: 0.1326616705 | S131: 1.000000254 | T131: 0.0007123980605 | U131: 1.000713647 | V131: 0.06290461171 | W131: -12.09973227 | X131: -103.6577353 | Y131: 76.34226473 | AB131: 1.42888404 | AC131: -14.03430789 | AE131: 3.590309791 | AF131: -82.39693215 | AI131: 50.42759386 | AJ131: -89.62342738 | AL131: 0 | AM131: 0 | AN131: 0 | AO131: 0 | AP131: 0 | AQ131: 0
B132: 7161.95 | C132: 29.77476876 | D132: 1.537204526 | E132: 1.016070764 | F132: 0.178092392 | G132: 1.010197131 | H132: -0.1422056786 | I132: 99019.48977 | J132: 1.570786228 | K132: 19.82517449 | L132: 1.520333995 | M132: 1.019542048 | N132: 0.1961072313 | O132: 1350.13114 | P132: 1.570055658 | Q132: 1.009071299 | R132: 0.1341883126 | S132: 1.00000026 | T132: 0.0007206948611 | U132: 1.000730379 | V132: 0.06363713722 | W132: -12.1992533 | X132: -103.7921305 | Y132: 76.20786954 | AB132: 1.424848859 | AC132: -14.12681669 | AE132: 3.491515645 | AF132: -82.3104316 | AI132: 50.33210802 | AJ132: -89.66531377 | AL132: 0 | AM132: 0 | AN132: 0 | AO132: 0 | AP132: 0 | AQ132: 0
B133: 7244.4 | C133: 30.11715824 | D133: 1.537586559 | E133: 1.016439904 | F133: 0.1800988272 | G133: 1.010432047 | H133: -0.1438204262 | I133: 100159.4247 | J133: 1.570786343 | K133: 20.05282902 | L133: 1.520907359 | M133: 1.019990147 | N133: 0.1983064585 | O133: 1365.674149 | P133: 1.570064088 | Q133: 1.009280397 | R133: 0.1357143256 | S133: 1.000000266 | T133: 0.0007289916616 | U133: 1.000747306 | V133: 0.06436965991 | W133: -12.29760423 | X133: -103.9267094 | Y133: 76.0732906 | AB133: 1.420782064 | AC133: -14.21997837 | AE133: 3.393892592 | AF133: -82.22395585 | AI133: 50.23782388 | AJ133: -89.70673103 | AL133: 0 | AM133: 0 | AN133: 0 | AO133: 0 | AP133: 0 | AQ133: 0
B134: 7328.75 | C134: 30.46744227 | D134: 1.537968509 | E134: 1.016821782 | F134: 0.1821499833 | G134: 1.010675101 | H134: -0.1454716033 | I134: 101325.6286 | J134: 1.570786458 | K134: 20.28573635 | L134: 1.521480619 | M134: 1.020453674 | N134: 0.2005543554 | O134: 1381.575335 | P134: 1.570072515 | Q134: 1.009496744 | R134: 0.1372748467 | S134: 1.000000272 | T134: 0.0007374796557 | U134: 1.000764824 | V134: 0.06511906009 | W134: -12.39703813 | X134: -104.0645702 | Y134: 75.93542985 | AB134: 1.416588543 | AC134: -14.31593461 | AE134: 3.29520458 | AF134: -82.13551378 | AI134: 50.1425835 | AJ134: -89.74863554 | AL134: 0 | AM134: 0 | AN134: 0 | AO134: 0 | AP134: 0 | AQ134: 0
B135: 7413.1 | C135: 30.81773065 | D135: 1.538341777 | E135: 1.017207935 | F135: 0.1841995906 | G135: 1.01092091 | H135: -0.1471219819 | I135: 102491.8325 | J135: 1.57078657 | K135: 20.5186502 | L135: 1.522040864 | M135: 1.020922351 | N135: 0.2028001997 | O135: 1397.476521 | P135: 1.570080751 | Q135: 1.00971555 | R135: 0.1388346952 | S135: 1.000000278 | T135: 0.0007459676497 | U135: 1.000782546 | V135: 0.06586845725 | W135: -12.49530206 | X135: -104.2026041 | Y135: 75.79739585 | AB135: 1.41236136 | AC135: -14.41251876 | AE135: 3.197687981 | AF135: -82.04709925 | AI135: 50.04854675 | AJ135: -89.79008538 | AL135: 0 | AM135: 0 | AN135: 0 | AO135: 0 | AP135: 0 | AQ135: 0
B136: 7499.45 | C136: 31.17632897 | D136: 1.538715207 | E136: 1.017607667 | F136: 0.1862961753 | G136: 1.011175397 | H136: -0.1488106563 | I136: 103685.6879 | J136: 1.570786682 | K136: 20.75709313 | L136: 1.522601369 | M136: 1.021407471 | N136: 0.2050971478 | O136: 1413.754737 | P136: 1.57008899 | Q136: 1.009942086 | R136: 0.1404308247 | S136: 1.000000285 | T136: 0.0007546569001 | U136: 1.000800899 | V136: 0.06663561999 | W136: -12.59471138 | X136: -104.344081 | Y136: 75.65591897 | AB136: 1.407998813 | AC136: -14.51201605 | AE136: 3.099045391 | AF136: -81.9566177 | AI136: 49.95349998 | AJ136: -89.83206497 | AL136: 0 | AM136: 0 | AN136: 0 | AO136: 0 | AP136: 0 | AQ136: 0
B137: 7585.8 | C137: 31.53493154 | D137: 1.539080143 | E137: 1.018011869 | F137: 0.1883911043 | G137: 1.011432767 | H137: -0.1504984761 | I137: 104879.5433 | J137: 1.570786792 | K137: 20.99554243 | L137: 1.523149143 | M137: 1.021897974 | N137: 0.207391903 | O137: 1430.032952 | P137: 1.570097042 | Q137: 1.010171195 | R137: 0.1420262343 | S137: 1.000000291 | T137: 0.0007633461504 | U137: 1.000819464 | V137: 0.06740277949 | W137: -12.69294928 | X137: -104.4857207 | Y137: 75.51427933 | AB137: 1.403600472 | AC137: -14.612117 | AE137: 3.001576094 | AF137: -81.86616665 | AI137: 49.85966042 | AJ137: -89.87360367 | AL137: 0 | AM137: 0 | AN137: 0 | AO137: 0 | AP137: 0 | AQ137: 0
B138: 7674.15 | C138: 31.90184415 | D138: 1.539445041 | E138: 1.018430053 | F138: 0.1905328243 | G138: 1.011699078 | H138: -0.1522244946 | I138: 106101.0503 | J138: 1.570786902 | K138: 21.23952095 | L138: 1.523696874 | M138: 1.022405403 | N138: 0.2097375166 | O138: 1446.688196 | P138: 1.570105093 | Q138: 1.01040827 | R138: 0.1436578429 | S138: 1.000000298 | T138: 0.0007722366571 | U138: 1.000838681 | V138: 0.06818770419 | W138: -12.79227748 | X138: -104.6308001 | Y138: 75.36919993 | AB138: 1.399062974 | AC138: -14.71513438 | AE138: 2.903036411 | AF138: -81.77365302 | AI138: 49.76486972 | AJ138: -89.91566569 | AL138: 0 | AM138: 0 | AN138: 0 | AO138: 0 | AP138: 0 | AQ138: 0
B139: 7762.5 | C139: 32.2687609 | D139: 1.53980164 | E139: 1.018852905 | F139: 0.1926727764 | G139: 1.011968402 | H139: -0.1539495995 | I139: 107322.5573 | J139: 1.570787009 | K139: 21.48350571 | L139: 1.524232164 | M139: 1.022918451 | N139: 0.2120807902 | O139: 1463.34344 | P139: 1.57011296 | Q139: 1.010648034 | R139: 0.1452886818 | S139: 1.000000305 | T139: 0.0007811271637 | U139: 1.000858121 | V139: 0.06897262542 | W139: -12.89043404 | X139: -104.7760314 | Y139: 75.22396865 | AB139: 1.394487543 | AC139: -14.81873035 | AE139: 2.805670672 | AF139: -81.68117299 | AI139: 49.67128859 | AJ139: -89.957301 | AL139: 0 | AM139: 0 | AN139: 0 | AO139: 0 | AP139: 0 | AQ139: 0
B140: 7852.9 | C140: 32.64419544 | D140: 1.540158216 | E140: 1.019290393 | F140: 0.1948605341 | G140: 1.01224709 | H140: -0.1557137767 | I140: 108572.4071 | J140: 1.570787116 | K140: 21.73315791 | L140: 1.524767434 | M140: 1.023449211 | N140: 0.21447599 | O140: 1480.385138 | P140: 1.570120827 | Q140: 1.010896142 | R140: 0.1469565559 | S140: 1.000000312 | T140: 0.0007902239581 | U140: 1.000878243 | V140: 0.06977575566 | W140: -12.98968278 | X140: -104.9247805 | Y140: 75.07521948 | AB140: 1.389766478 | AC140: -14.92530261 | AE140: 2.707233649 | AF140: -81.58658278 | AI140: 49.57676092 | AJ140: -89.99947791 | AL140: 0 | AM140: 0 | AN140: 0 | AO140: 0 | AP140: 0 | AQ140: 0
B141: 7943.3 | C141: =SQRT(1+(B141/PS_Pole1)^2) -> 33.01963404 | D141: =ATAN(B141/PS_Pole1) -> 1.540506684 | E141: =SQRT(1+(B141/PS_Zero1)^2) -> 1.019732756 | F141: =ATAN(B141/PS_Zero1) -> 0.1970464041 | G141: =IF(VIN_nom>Vout, 1, SQRT(1+(B141/PS_RHPZ)^2)) -> 1.012528927 | H141: =IF(VIN_nom>Vout, 0, -ATAN(B141/PS_RHPZ)) -> -0.1574769773 | I141: =SQRT(1+(B141/EA_Pole1)^2) -> 109822.2569 | J141: =ATAN(B141/EA_Pole1) -> 1.570787221 | K141: =SQRT(1+(B141/EA_Zero1)^2) -> 21.98281619 | L141: =ATAN(B141/EA_Zero1) -> 1.525290546 | M141: =SQRT(1+(B141/EA_Pole2)^2) -> 1.023985836 | N141: =ATAN(B141/EA_Pole2) -> 0.216868693 | O141: =SQRT(1+(B141/$V$5)^2) -> 1497.426837 | P141: =ATAN(B141/$V$5) -> 1.570128514 | Q141: =SQRT(1+(B141/$V$4)^2) -> 1.01114706 | R141: =ATAN(B141/$V$4) -> 0.148623607 | S141: =SQRT(1+(B141/$V$7)^2) -> 1.000000319 | T141: =ATAN(B141/$V$7) -> 0.0007993207524 | U141: =SQRT((1-(B141^2/pterm2))^2+(B141/pterm1)^2) -> 1.000898599 | V141: =IF((ATAN((B141/pterm1)/(1-B141^2/pterm2))>0),ATAN((B141/pterm1)/(1-B141^2/pterm2)),PI()+ATAN((B141/pterm1)/(1-B141^2/pterm2))) -> 0.07057888216 | W141: =20*LOG10(((E141*K141*G141)/(C141*I141*U141*M141))*Adc) -> -13.08775951 | X141: -105.0736705 | Y141: 74.92632951 | AB141: =20*LOG10((K141/(I141*M141))*AEA) -> 1.385005297 | AC141: =(L141-(J141+N141))*radconv -> -15.03242828 | AE141: =20*LOG10((Q141/(O141*S141))*AIL) -> 2.609971362 | AF141: =(R141-(P141+T141))*radconv -> -81.49202946 | AI141: =20*LOG10((E141*G141/(C141*U141))*Acs*Am) -> 49.48344537 | AJ141: =(F141+H141-(D141+V141))*radconv -> -90.04124221 | AL141: =SUM((W142<0)*(W141>0))*B141 -> 0 | AM141: 0 | AN141: =SUM((AB142<0)*(AB141>0))*B141 -> 0 | AO141: 0 | AP141: 0 | AQ141: 0
B142: 8035.8 | C142: 33.40379817 | D142: 1.540855138 | E142: 1.020190434 | F142: 0.199281079 | G142: 1.012820568 | H142: -0.1592801157 | I142: 111101.1409 | J142: 1.570787326 | K142: 22.23828015 | L142: 1.525813652 | M142: 1.024540989 | N142: 0.2193143699 | O142: 1514.864416 | P142: 1.570136202 | Q142: 1.011406715 | R142: 0.1503285227 | S142: 1.000000327 | T142: 0.0008086288658 | U142: 1.00091967 | V142: 0.07140066146 | W142: -13.18692876 | X142: -105.2261559 | Y142: =IF(X142>0,X142-180,X142+180) -> 74.77384408 | AB142: 1.380091811 | AC142: -15.14258948 | AE142: 2.511638443 | AF142: -81.39531875 | AI142: 49.3891896 | AJ142: -90.08356643 | AL142: 0 | AM142: 0 | AN142: 0 | AO142: =IF(AN142>0,AC142,0) -> 0 | AP142: =SUM((AE143<0)*(AE142>0))*B142 -> 0 | AQ142: =IF(AP142>0,AE142,0) -> 0
B143: 8128.3 | C143: 33.78796626 | D143: 1.541195668 | E143: 1.020653202 | F143: 0.2015137385 | G143: 1.0131155 | H143: -0.1610822102 | I143: 112380.0248 | J143: 1.570787428 | K143: 22.49375005 | L143: 1.526324876 | M143: 1.025102264 | N143: 0.2217573832 | O143: 1532.301995 | P143: 1.570143714 | Q143: 1.011669308 | R143: 0.1520325582 | S143: 1.000000335 | T143: 0.0008179369791 | U143: 1.000940986 | V143: 0.07222243676 | W143: -13.28492553 | X143: =IF(((F143+L143+H143)-(D143+J143+V143+N143))*radconv<-180,((F143+L143+H143)-(D143+J143+V143+N143))*radconv+360,((F143+L143+H143)-(D143+J143+V143+N143))*radconv) -> -105.3787708 | Y143: 74.62122919 | AB143: 1.37513598 | AC143: -15.25327873 | AE143: 2.414481159 | AF143: -81.29864844 | AI143: 49.29614867 | AJ143: -90.12549208 | AL143: 0 | AM143: 0 | AN143: 0 | AO143: 0 | AP143: 0 | AQ143: 0
B144: 8222.95 | C144: 34.18106762 | D144: 1.54153619 | E144: 1.021131987 | F144: 0.2037961859 | G144: 1.013420691 | H144: -0.1629250992 | I144: 113688.6342 | J144: 1.570787531 | K144: 22.75516385 | L144: 1.5268361 | M144: 1.02568291 | N144: 0.2242543971 | O144: 1550.14488 | P144: 1.570151226 | Q144: 1.011941044 | R144: 0.1537752805 | S144: 1.000000342 | T144: 0.000827461443 | U144: 1.000963051 | V144: 0.07306330859 | W144: -13.38401372 | X144: -105.5350581 | Y144: 74.46494192 | AB144: 1.370020978 | AC144: -15.36706197 | AE144: 2.316255356 | AF144: -81.19977392 | AI144: 49.20217548 | AJ144: -90.16799611 | AL144: 0 | AM144: 0 | AN144: 0 | AO144: 0 | AP144: 0 | AQ144: 0
B145: 8270.275 | C145: 34.37761976 | D145: 1.541703531 | E145: 1.021373374 | F145: 0.2049366042 | G145: 1.013574576 | H145: -0.163846126 | I145: 114342.9388 | J145: 1.570787581 | K145: 22.88587294 | L145: 1.527087333 | M145: 1.02597563 | N145: 0.2255018403 | O145: 1559.066323 | P145: 1.570154917 | Q145: 1.012078064 | R145: 0.1546462894 | S145: 1.000000346 | T145: 0.0008322236749 | U145: 1.00097418 | V145: 0.0734837429 | W145: -13.43311627 | X145: -105.6132464 | Y145: 74.38675355 | AB145: 1.367446751 | AC145: -15.42414352 | AE145: 2.267585334 | AF145: -81.15035315 | AI145: 49.15564716 | AJ145: -90.18910293 | AL145: 0 | AM145: 0 | AN145: 0 | AO145: 0 | AP145: 0 | AQ145: 0
B146: 8317.6 | C146: 34.57417286 | D146: 1.541868969 | E146: 1.021616088 | F146: 0.206076482 | G146: 1.013729321 | H146: -0.1647668723 | I146: 114997.2435 | J146: 1.570787631 | K146: 23.01658346 | L146: 1.527335712 | M146: 1.026269945 | N146: 0.22674857 | O146: 1567.987765 | P146: 1.570158567 | Q146: 1.012215851 | R146: 0.1555170617 | S146: 1.00000035 | T146: 0.0008369859068 | U146: 1.000985373 | V146: 0.07390417612 | W146: -13.48192887 | X146: -105.6914632 | Y146: 74.30853679 | AB146: 1.364861354 | AC146: -15.48134765 | AE146: 2.219206161 | AF146: -81.10094352 | AI146: 49.10941995 | AJ146: -90.21011556 | AL146: 0 | AM146: 0 | AN146: 0 | AO146: 0 | AP146: 0 | AQ146: 0
B147: 8366.05 | C147: 34.77539934 | D147: 1.542036402 | E147: 1.021865946 | F147: 0.2072428943 | G147: 1.013888635 | H147: -0.1657092145 | I147: 115667.1022 | J147: 1.570787681 | K147: 23.15040265 | L147: 1.52758709 | M147: 1.026572908 | N147: 0.228024194 | O147: 1577.121287 | P147: 1.57016226 | Q147: 1.012357709 | R147: 0.1564082877 | S147: 1.000000354 | T147: 0.0008418613454 | U147: 1.000996898 | V147: 0.07433460268 | W147: -13.53160487 | X147: -105.7715677 | Y147: 74.22843234 | AB147: 1.362202911 | AC147: -15.54003552 | AE147: 2.169974855 | AF147: -81.05037099 | AI147: 49.0624024 | AJ147: -90.23153214 | AL147: 0 | AM147: 0 | AN147: 0 | AO147: 0 | AP147: 0 | AQ147: 0
B148: 8414.5 | C148: 34.97662679 | D148: 1.542201909 | E148: 1.022117194 | F148: 0.2084087348 | G148: 1.014048848 | H148: -0.1666512598 | I148: 116336.9608 | J148: 1.570787731 | K148: 23.2842233 | L148: 1.527835578 | M148: 1.02687754 | N148: 0.2292990632 | O148: 1586.254808 | P148: 1.570165911 | Q148: 1.012500371 | R148: 0.1572992632 | S148: 1.000000358 | T148: 0.0008467367839 | U148: 1.001008491 | V148: 0.07476502809 | W148: -13.5809838 | X148: -105.8516997 | Y148: 74.14830032 | AB148: 1.359532732 | AC148: -15.59884567 | AE148: 2.121041593 | AF148: -80.99981038 | AI148: 49.01569364 | AJ148: -90.25285402 | AL148: 0 | AM148: 0 | AN148: 0 | AO148: 0 | AP148: 0 | AQ148: 0
B149: 8462.95 | C149: 35.17785518 | D149: 1.542365522 | E149: 1.02236983 | F149: 0.2095740006 | G149: 1.014209962 | H149: -0.1675930065 | I149: 117006.8195 | J149: 1.57078778 | K149: 23.41804536 | L149: 1.528081226 | M149: 1.027183841 | N149: 0.2305731742 | O149: 1595.388329 | P149: 1.57016952 | Q149: 1.012643836 | R149: 0.158189987 | S149: 1.000000363 | T149: 0.0008516122224 | U149: 1.00102015 | V149: 0.07519545235 | W149: -13.63006904 | X149: -105.9318582 | Y149: 74.06814179 | AB149: 1.356850804 | AC149: -15.65777505 | AE149: 2.072403023 | AF149: -80.94926179 | AI149: 48.96929033 | AJ149: -90.27408316 | AL149: 0 | AM149: 0 | AN149: 0 | AO149: 0 | AP149: 0 | AQ149: 0
B150: 8511.4 | C150: 35.37908451 | D150: 1.542527274 | E150: 1.022623854 | F150: 0.2107386891 | G150: 1.014371974 | H150: -0.1685344533 | I150: 117676.6782 | J150: 1.570787829 | K150: 23.55186882 | L150: 1.528324083 | M150: 1.027491808 | N150: 0.2318465235 | O150: 1604.52185 | P150: 1.570173088 | Q150: 1.012788105 | R150: 0.1590804578 | S150: 1.000000367 | T150: 0.0008564876609 | U150: 1.001031877 | V150: 0.07562587545 | W150: -13.67886388 | X150: -106.0120422 | Y150: 73.9879578 | AB150: 1.354157116 | AC150: -15.71682071 | AE150: 2.024055853 | AF150: -80.89872535 | AI150: 48.92318917 | AJ150: -90.29522149 | AL150: 0 | AM150: 0 | AN150: 0 | AO150: 0 | AP150: 0 | AQ150: 0
B151: 8560.95 | C151: 35.58488345 | D151: 1.542690806 | E151: 1.02288508 | F151: 0.2119292205 | G151: 1.014538594 | H151: -0.1694969627 | I151: 118361.7452 | J151: 1.570787878 | K151: 23.68873201 | L151: 1.528569616 | M151: 1.027808489 | N151: 0.2331479913 | O151: 1613.862738 | P151: 1.570176695 | Q151: 1.012936479 | R151: 0.1599908825 | S151: 1.000000371 | T151: 0.0008614737904 | U151: 1.00104394 | V151: 0.07606606959 | W151: -13.72846959 | X151: -106.0940719 | Y151: 73.90592807 | AB151: 1.351390098 | AC151: -15.77732416 | AE151: 1.974909041 | AF151: -80.84705422 | AI151: 48.87635048 | AJ151: -90.31674776 | AL151: 0 | AM151: 0 | AN151: 0 | AO151: 0 | AP151: 0 | AQ151: 0
B152: 8610.5 | C152: 35.79068334 | D152: 1.542852458 | E152: 1.023147754 | F152: 0.2131191424 | G152: 1.014706154 | H152: -0.1704591551 | I152: 119046.8122 | J152: 1.570787927 | K152: 23.8255966 | L152: 1.528812327 | M152: 1.02812691 | N152: 0.2344486551 | O152: 1623.203625 | P152: 1.570180261 | Q152: 1.013085693 | R152: 0.1609010397 | S152: 1.000000375 | T152: 0.0008664599199 | U152: 1.001056073 | V152: 0.0765062625 | W152: -13.7777784 | X152: -106.1761261 | Y152: 73.82387387 | AB152: 1.348610759 | AC152: -15.83794314 | AE152: 1.92606022 | AF152: -80.79539604 | AI152: 48.82982102 | AJ152: -90.33818298 | AL152: 0 | AM152: 0 | AN152: 0 | AO152: 0 | AP152: 0 | AQ152: 0
B153: 8660.05 | C153: 35.99648415 | D153: 1.543012261 | E153: 1.023411876 | F153: 0.2143084516 | G153: 1.014874654 | H153: -0.1714210288 | I153: 119731.8792 | J153: 1.570787975 | K153: 23.96246259 | L153: 1.529052266 | M153: 1.028447069 | N153: 0.2357485113 | O153: 1632.544512 | P153: 1.570183786 | Q153: 1.013235746 | R153: 0.1618109282 | S153: 1.00000038 | T153: 0.0008714460493 | U153: 1.001068277 | V153: 0.07694645418 | W153: -13.82679366 | X153: -106.2582037 | Y153: 73.74179626 | AB153: 1.345819092 | AC153: -15.89867467 | AE153: 1.877506044 | AF153: -80.74375091 | AI153: 48.78359743 | AJ153: -90.35952906 | AL153: 0 | AM153: 0 | AN153: 0 | AO153: 0 | AP153: 0 | AQ153: 0
B154: 8709.6 | C154: 36.20228587 | D154: 1.543170248 | E154: 1.023677446 | F154: 0.2154971455 | G154: 1.015044091 | H154: -0.1723825823 | I154: 120416.9462 | J154: 1.570788022 | K154: 24.09932993 | L154: 1.52928948 | M154: 1.028768965 | N154: 0.2370475563 | O154: 1641.885399 | P154: 1.570187271 | Q154: 1.013386637 | R154: 0.1627205465 | S154: 1.000000384 | T154: 0.0008764321787 | U154: 1.00108055 | V154: 0.07738664462 | W154: -13.87551867 | X154: -106.3403037 | Y154: 73.65969627 | AB154: 1.343015087 | AC154: -15.95951585 | AE154: 1.829243224 | AF154: -80.69211898 | AI154: 48.73767642 | AJ154: -90.38078788 | AL154: 0 | AM154: =IF(AL154>0,Y154,0) -> 0 | AN154: 0 | AO154: 0 | AP154: 0 | AQ154: 0
B155: 8760.325 | C155: 36.41296877 | D155: 1.543330131 | E155: 1.02395081 | F155: 0.216713387 | G155: 1.015218519 | H155: -0.1733666041 | I155: 121118.2585 | J155: 1.57078807 | K155: 24.23944426 | L155: 1.529529544 | M155: 1.029100291 | N155: 0.2383765619 | O155: 1651.447791 | P155: 1.570190797 | Q155: 1.013541975 | R155: 0.1636514535 | S155: 1.000000389 | T155: 0.0008815365462 | U155: 1.001093188 | V155: 0.07783727219 | W155: -13.92510185 | X155: -106.4243727 | Y155: 73.57562728 | AB155: 1.340131805 | AC155: -16.02191036 | AE155: 1.780134355 | AF155: -80.63927645 | AI155: 48.69097652 | AJ155: -90.40246235 | AL155: 0 | AM155: 0 | AN155: 0 | AO155: 0 | AP155: 0 | AQ155: 0
B156: 8811.05 | C156: 36.6236526 | D156: 1.543488174 | E156: 1.024225688 | F156: 0.2179289774 | G156: 1.015393929 | H156: -0.174350287 | I156: 121819.5708 | J156: 1.570788118 | K156: 24.37955997 | L156: 1.529766849 | M156: 1.029433433 | N156: 0.2397047098 | O156: 1661.010182 | P156: 1.570194283 | Q156: 1.01369819 | R156: 0.1645820745 | S156: 1.000000393 | T156: 0.0008866409137 | U156: 1.0011059 | V156: 0.07828789844 | W156: -13.97438767 | X156: -106.508463 | Y156: 73.49153697 | AB156: 1.337235583 | AC156: -16.0844138 | AE156: 1.731324027 | AF156: -80.58644799 | AI156: 48.64458692 | AJ156: -90.42404923 | AL156: 0 | AM156: 0 | AN156: 0 | AO156: 0 | AP156: 0 | AQ156: 0
B157: 8861.775 | C157: 36.83433733 | D157: 1.543644409 | E157: 1.024502079 | F157: 0.2191439137 | G157: 1.015570321 | H157: -0.175333629 | I157: 122520.8831 | J157: 1.570788165 | K157: 24.51967704 | L157: 1.530001441 | M157: 1.029768391 | N157: 0.2410319959 | O157: 1670.572574 | P157: 1.57019773 | Q157: 1.013855284 | R157: 0.1655124079 | S157: 1.000000398 | T157: 0.0008917452811 | U157: 1.001118685 | V157: 0.07873852336 | W157: -14.02337951 | X157: -106.5925736 | Y157: 73.40742637 | AB157: 1.334326414 | AC157: -16.14702323 | AE157: 1.682808891 | AF157: -80.53363372 | AI157: 48.59850425 | AJ157: -90.44555039 | AL157: 0 | AM157: 0 | AN157: 0 | AO157: 0 | AP157: 0 | AQ157: 0
B158: 8912.5 | C158: 37.04502295 | D158: 1.543798868 | E158: 1.024779981 | F158: 0.2203581929 | G158: 1.015747695 | H158: -0.1763166286 | I158: 123222.1954 | J158: 1.570788211 | K158: 24.65979544 | L158: 1.530233368 | M158: 1.030105161 | N158: 0.2423584165 | O158: 1680.134966 | P158: 1.570201136 | Q158: 1.014013254 | R158: 0.1664424522 | S158: 1.000000402 | T158: 0.0008968496484 | U158: 1.001131544 | V158: 0.07918914695 | W158: -14.07208066 | X158: -106.6767035 | Y158: 73.32329652 | AB158: 1.331404296 | AC158: -16.20973579 | AE158: 1.634585654 | AF158: -80.48083376 | AI158: 48.55272522 | AJ158: -90.46696769 | AL158: 0 | AM158: 0 | AN158: 0 | AO158: 0 | AP158: 0 | AQ158: 0
B159: 8964.4 | C159: 37.26058983 | D159: 1.543955096 | E159: 1.025065883 | F159: 0.2215999164 | G159: 1.015930194 | H159: -0.1773220422 | I159: 123939.753 | J159: 1.570788258 | K159: 24.80316092 | L159: 1.530467954 | M159: 1.030451607 | N159: 0.2437146627 | O159: 1689.918862 | P159: 1.570204582 | Q159: 1.014175792 | R159: 0.1673937394 | S159: 1.000000407 | T159: 0.000902072254 | U159: 1.001144777 | V159: 0.07965020745 | W159: -14.12161245 | X159: -106.762801 | Y159: 73.23719899 | AB159: 1.328401084 | AC159: -16.27400483 | AE159: 1.58554411 | AF159: -80.42682569 | AI159: 48.50619664 | AJ159: -90.48879617 | AL159: 0 | AM159: 0 | AN159: 0 | AO159: 0 | AP159: 0 | AQ159: 0
B160: 9016.3 | C160: 37.4761576 | D160: 1.544109527 | E160: 1.025353366 | F160: 0.2228409456 | G160: 1.016113719 | H160: -0.1783270936 | I160: 124657.3106 | J160: 1.570788305 | K160: 24.94652775 | L160: 1.530699845 | M160: 1.030799947 | N160: 0.2450699947 | O160: 1699.702758 | P160: 1.570207989 | Q160: 1.014339247 | R160: 0.1683447209 | S160: 1.000000412 | T160: 0.0009072948594 | U160: 1.001158087 | V160: 0.08011126654 | W160: -14.17084675 | X160: -106.8489166 | Y160: 73.15108341 | AB160: 1.325384312 | AC160: -16.33837596 | AE160: 1.536801346 | AF160: -80.37283286 | AI160: 48.45997911 | AJ160: -90.51054063 | AL160: 0 | AM160: 0 | AN160: 0 | AO160: 0 | AP160: 0 | AQ160: 0
B161: 9068.2 | C161: 37.69172625 | D161: 1.544262192 | E161: 1.025642426 | F161: 0.2240812771 | G161: 1.01629827 | H161: -0.1793317811 | I161: 125374.8682 | J161: 1.570788351 | K161: 25.0898959 | L161: 1.530929085 | M161: 1.031150179 | N161: 0.2464244086 | O161: 1709.486654 | P161: 1.570211356 | Q161: 1.014503619 | R161: 0.1692953952 | S161: 1.000000416 | T161: 0.0009125174648 | U161: 1.001171475 | V161: 0.08057232421 | W161: -14.21978692 | X161: -106.9350492 | Y161: 73.0649508 | AB161: 1.322353978 | AC161: -16.40284629 | AE161: 1.488354014 | AF161: -80.3188554 | AI161: 48.41406928 | AJ161: -90.53220291 | AL161: 0 | AM161: 0 | AN161: 0 | AO161: 0 | AP161: 0 | AQ161: 0
B162: 9120.1 | C162: 37.90729577 | D162: 1.54441312 | E162: 1.025933064 | F162: 0.2253209078 | G162: 1.016483846 | H162: -0.1803361027 | I162: 126092.4258 | J162: 1.570788396 | K162: 25.23326536 | L162: 1.53115572 | M162: 1.031502302 | N162: 0.2477779002 | O162: 1719.27055 | P162: 1.570214685 | Q162: 1.014668907 | R162: 0.1702457605 | S162: 1.000000421 | T162: 0.0009177400702 | U162: 1.00118494 | V162: 0.08103338045 | W162: -14.26843626 | X162: -107.0211978 | Y162: 72.97880218 | AB162: 1.319310084 | AC162: -16.467413 | AE162: 1.440198821 | AF162: -80.26489344 | AI162: 48.36846383 | AJ162: -90.55378483 | AL162: 0 | AM162: 0 | AN162: 0 | AO162: 0 | AP162: 0 | AQ162: 0
B163: 9173.2 | C163: 38.12785045 | D163: 1.544565772 | E163: 1.026232052 | F163: 0.2265884718 | G163: 1.016674774 | H163: -0.1813632651 | I163: 126826.5743 | J163: 1.570788442 | K163: 25.37995104 | L163: 1.531384946 | M163: 1.03186452 | N163: 0.2491617278 | O163: 1729.280664 | P163: 1.570218052 | Q163: 1.014838966 | R163: 0.1712177783 | S163: 1.000000426 | T163: 0.0009230834294 | U163: 1.001198796 | V163: 0.08150509545 | W163: -14.31791283 | X163: -107.1093539 | Y163: 72.89064614 | AB163: 1.316181777 | AC163: -16.53356946 | AE163: 1.391229186 | AF163: -80.20969998 | AI163: 48.32211557 | AJ163: -90.5757844 | AL163: 0 | AM163: 0 | AN163: 0 | AO163: 0 | AP163: 0 | AQ163: 0
B164: 9226.3 | C164: 38.348406 | D164: 1.544716667 | E164: 1.026532688 | F164: 0.2278552954 | G164: 1.016866774 | H164: -0.1823900407 | I164: 127560.7228 | J164: 1.570788487 | K164: 25.52663805 | L164: 1.531611537 | M164: 1.032228713 | N164: 0.2505445815 | O164: 1739.290777 | P164: 1.57022138 | Q164: 1.015009983 | R164: 0.1721894695 | S164: 1.000000431 | T164: 0.0009284267885 | U164: 1.001212733 | V164: 0.08197680895 | W164: -14.36709178 | X164: -107.1975246 | Y164: 72.80247542 | AB164: 1.313039279 | AC164: -16.59982103 | AE164: 1.34255856 | AF164: -80.15452302 | AI164: 48.27607911 | AJ164: -90.59770355 | AL164: 0 | AM164: 0 | AN164: 0 | AO164: 0 | AP164: 0 | AQ164: 0
B165: 9279.4 | C165: 38.56896241 | D165: 1.544865837 | E165: 1.026834971 | F165: 0.2291213752 | G165: 1.017059846 | H165: -0.1834164276 | I165: 128294.8713 | J165: 1.570788532 | K165: 25.67332634 | L165: 1.531835538 | M165: 1.032594879 | N165: 0.2519264571 | O165: 1749.300891 | P165: 1.57022467 | Q165: 1.015181958 | R165: 0.1731608324 | S165: 1.000000436 | T165: 0.0009337701476 | U165: 1.001226751 | V165: 0.08244852092 | W165: -14.41597648 | X165: -107.285709 | Y165: 72.71429104 | AB165: 1.309882593 | AC165: -16.66616489 | AE165: 1.294183593 | AF165: -80.09936268 | AI165: 48.23035111 | AJ165: -90.61954407 | AL165: 0 | AM165: 0 | AN165: 0 | AO165: 0 | AP165: 0 | AQ165: 0
B166: 9332.5 | C166: 38.78951967 | D166: 1.545013311 | E166: 1.027138898 | F166: 0.2303867077 | G166: 1.017253989 | H166: -0.1844424237 | I166: 129029.0198 | J166: 1.570788577 | K166: 25.82001592 | L166: 1.532056995 | M166: 1.032963015 | N166: 0.2533073504 | O166: 1759.311004 | P166: 1.570227922 | Q166: 1.01535489 | R166: 0.1741318653 | S166: 1.000000441 | T166: 0.0009391135066 | U166: 1.001240849 | V166: 0.08292023135 | W166: -14.46457021 | X166: -107.373906 | Y166: 72.626094 | AB166: 1.306711724 | AC166: -16.73259827 | AE166: 1.246100996 | AF166: -80.04421911 | AI166: 48.18492824 | AJ166: -90.64130773 | AL166: 0 | AM166: 0 | AN166: 0 | AO166: 0 | AP166: 0 | AQ166: 0
B167: 9386.85 | C167: 39.01526983 | D167: 1.545162529 | E167: 1.027451682 | F167: 0.2316810494 | G167: 1.01745381 | H167: -0.1854921657 | I167: 129780.4505 | J167: 1.570788621 | K167: 25.97015993 | L167: 1.532281074 | M167: 1.033341855 | N167: 0.254719729 | O167: 1769.556761 | P167: 1.570231213 | Q167: 1.015532885 | R167: 0.1751254134 | S167: 1.000000446 | T167: 0.0009445826509 | U167: 1.001255364 | V167: 0.08340304449 | W167: -14.51400993 | X167: -107.4641913 | Y167: 72.53580866 | AB167: 1.303451529 | AC167: -16.80068539 | AE167: 1.197185907 | AF167: -79.98779492 | AI167: 48.13874872 | AJ167: -90.66350595 | AL167: 0 | AM167: 0 | AN167: 0 | AO167: 0 | AP167: 0 | AQ167: 0
B168: 9441.2 | C168: 39.24102084 | D168: 1.545310031 | E168: 1.027766187 | F168: 0.2329746011 | G168: 1.017654753 | H168: -0.1865414943 | I168: 130531.8812 | J168: 1.570788666 | K168: 26.12030523 | L168: 1.532502577 | M168: 1.033722755 | N168: 0.2561310694 | O168: 1779.802517 | P168: 1.570234467 | Q168: 1.015711881 | R168: 0.1761186123 | S168: 1.000000451 | T168: 0.0009500517951 | U168: 1.001269963 | V168: 0.08388585599 | W168: -14.56315165 | X168: -107.5544879 | Y168: 72.44551212 | AB168: 1.300176487 | AC168: -16.86886061 | AE168: 1.148570313 | AF168: -79.93138857 | AI168: 48.09288204 | AJ168: -90.68562727 | AL168: 0 | AM168: 0 | AN168: 0 | AO168: 0 | AP168: 0 | AQ168: 0
B169: 9495.55 | C169: 39.46677269 | D169: 1.545455845 | E169: 1.02808241 | F169: 0.2342673592 | G169: 1.017856815 | H169: -0.1875904074 | I169: 131283.312 | J169: 1.57078871 | K169: 26.2704518 | L169: 1.532721547 | M169: 1.034105713 | N169: 0.2575413674 | O169: 1790.048274 | P169: 1.570237683 | Q169: 1.015891879 | R169: 0.1771114602 | S169: 1.000000457 | T169: 0.0009555209392 | U169: 1.001284646 | V169: 0.08436866586 | W169: -14.61199872 | X169: -107.6447946 | Y169: 72.35520538 | AB169: 1.296886608 | AC169: -16.93712114 | AE169: 1.100250862 | AF169: -79.87500019 | AI169: 48.04732484 | AJ169: -90.70767349 | AL169: 0 | AM169: 0 | AN169: 0 | AO169: 0 | AP169: 0 | AQ169: 0
B170: 9549.9 | C170: 39.69252538 | D170: 1.545600001 | E170: 1.02840035 | F170: 0.2355593202 | G170: 1.018059997 | H170: -0.188638903 | I170: 132034.7427 | J170: 1.570788753 | K170: 26.42059961 | L170: 1.532938029 | M170: 1.034490726 | N170: 0.2589506184 | O170: 1800.29403 | P170: 1.570240862 | Q170: 1.016072879 | R170: 0.1781039553 | S170: 1.000000462 | T170: 0.0009609900833 | U170: 1.001299415 | V170: 0.08485147409 | W170: -14.66055445 | X170: -107.7351106 | Y170: 72.26488943 | AB170: 1.293581899 | AC170: -17.00546425 | AE170: 1.05222426 | AF170: -79.81862993 | AI170: 48.00207382 | AJ170: -90.72964633 | AL170: 0 | AM170: 0 | AN170: 0 | AO170: 0 | AP170: 0 | AQ170: 0
B171: 9605.525 | C171: 39.92357485 | D171: 1.54574585 | E171: 1.028727525 | F171: 0.2368807601 | G171: 1.018269103 | H171: -0.1897115609 | I171: 132803.8013 | J171: 1.570788797 | K171: 26.57427102 | L171: 1.533157057 | M171: 1.034886897 | N171: 0.2603918404 | O171: 1810.780142 | P171: 1.570244079 | Q171: 1.01625916 | R171: 0.1791193664 | S171: 1.000000467 | T171: 0.0009665875283 | U171: 1.001314618 | V171: 0.08534560683 | W171: -14.70995097 | X171: -107.8275538 | Y171: 72.17244623 | AB171: 1.290184319 | AC171: -17.07549335 | AE171: 1.003370853 | AF171: -79.76095617 | AI171: 47.95607489 | AJ171: -90.75206042 | AL171: 0 | AM171: 0 | AN171: 0 | AO171: 0 | AP171: 0 | AQ171: 0
B172: 9661.15 | C172: 40.15462517 | D172: 1.54589002 | E172: 1.029056495 | F172: 0.2382013575 | G172: 1.018479381 | H172: -0.190783777 | I172: 133572.8598 | J172: 1.57078884 | K172: 26.72794369 | L172: 1.533373566 | M172: 1.035285216 | N172: 0.2618319564 | O172: 1821.266255 | P172: 1.570247258 | Q172: 1.016446489 | R172: 0.1801344042 | S172: 1.000000473 | T172: 0.0009721849733 | U172: 1.001329909 | V172: 0.08583973782 | W172: -14.75904913 | X172: -107.9200046 | Y172: 72.07999542 | AB172: 1.286771228 | AC172: -17.14560336 | AE172: 0.954817391 | AF172: -79.70330168 | AI172: 47.91038982 | AJ172: -90.77440122 | AL172: 0 | AM172: 0 | AN172: 0 | AO172: 0 | AP172: 0 | AQ172: 0
B173: 9716.775 | C173: 40.38567631 | D173: 1.546032542 | E173: 1.029387259 | F173: 0.2395211085 | G173: 1.01869083 | H173: -0.1918555493 | I173: 134341.9184 | J173: 1.570788883 | K173: 26.88161759 | L173: 1.533587599 | M173: 1.03568568 | N173: 0.2632709617 | O173: 1831.752367 | P173: 1.570250401 | Q173: 1.016634865 | R173: 0.181149067 | S173: 1.000000478 | T173: 0.0009777824182 | U173: 1.001345289 | V173: 0.08633386705 | W173: -14.8078523 | X173: -108.012462 | Y173: 71.98753801 | AB173: 1.283342637 | AC173: -17.21579153 | AE173: 0.9065605184 | AF173: -79.64566659 | AI173: 47.86501524 | AJ173: -90.79667046 | AL173: 0 | AM173: 0 | AN173: 0 | AO173: 0 | AP173: 0 | AQ173: 0
B174: 9772.4 | C174: 40.61672826 | D174: 1.546173441 | E174: 1.029719815 | F174: 0.2408400094 | G174: 1.018903447 | H174: -0.1929268755 | I174: 135110.977 | J174: 1.570788925 | K174: 27.03529272 | L174: 1.533799199 | M174: 1.036088287 | N174: 0.2647088516 | O174: 1842.23848 | P174: 1.570253509 | Q174: 1.016824286 | R174: 0.1821633527 | S174: 1.000000484 | T174: 0.000983379863 | U174: 1.001360759 | V174: 0.08682799452 | W174: -14.85636377 | X174: -108.104925 | Y174: 71.89507497 | AB174: 1.279898561 | AC174: -17.28605519 | AE174: 0.8585969384 | AF174: -79.58805105 | AI174: 47.81994784 | AJ174: -90.81886985 | AL174: 0 | AM174: 0 | AN174: 0 | AO174: 0 | AP174: 0 | AQ174: 0
B175: 9829.3 | C175: 40.85307705 | D175: 1.546315921 | E175: 1.030061845 | F175: 0.2421882577 | G175: 1.019122148 | H175: -0.1940222942 | I175: 135897.6634 | J175: 1.570788968 | K175: 27.19249152 | L175: 1.534013175 | M175: 1.036502337 | N175: 0.2661785411 | O175: 1852.964948 | P175: 1.570256651 | Q175: 1.017019132 | R175: 0.1832004952 | S175: 1.000000489 | T175: 0.0009891056088 | U175: 1.001376674 | V175: 0.08733344622 | W175: -14.90568879 | X175: -108.1995123 | Y175: 71.80048773 | AB175: 1.276359534 | AC175: -17.35800473 | AE175: 0.8098340435 | AF175: -79.52913526 | AI175: 47.77416185 | AJ175: -90.84150754 | AL175: 0 | AM175: 0 | AN175: 0 | AO175: 0 | AP175: 0 | AQ175: 0
B176: 9886.2 | C176: 41.08942667 | D176: 1.546456762 | E176: 1.030405746 | F176: 0.2435356085 | G176: 1.019342072 | H176: -0.1951172414 | I176: 136684.3499 | J176: 1.570789011 | K176: 27.34969155 | L176: 1.534224691 | M176: 1.036918624 | N176: 0.2676470536 | O176: 1863.691416 | P176: 1.570259757 | Q176: 1.017215071 | R176: 0.1842372392 | S176: 1.000000495 | T176: 0.0009948313545 | U176: 1.001392683 | V176: 0.08783889605 | W176: -14.9547154 | X176: -108.2941034 | Y176: 71.70589662 | AB176: 1.272804334 | AC176: -17.43002775 | AE176: 0.7613712393 | AF176: -79.47024023 | AI176: 47.72869044 | AJ176: -90.86407563 | AL176: 0 | AM176: 0 | AN176: 0 | AO176: 0 | AP176: 0 | AQ176: 0
B177: 9943.1 | C177: 41.3257771 | D177: 1.546595993 | E177: 1.030751517 | F177: 0.2448820578 | G177: 1.019563216 | H177: -0.1962117151 | I177: 137471.0363 | J177: 1.570789053 | K177: 27.5068928 | L177: 1.53443379 | M177: 1.037337146 | N177: 0.2691143844 | O177: 1874.417885 | P177: 1.570262828 | Q177: 1.017412103 | R177: 0.1852735829 | S177: 1.000000501 | T177: 0.0010005571 | U177: 1.001408784 | V177: 0.08834434399 | W177: -15.00344696 | X177: -108.3886974 | Y177: 71.61130264 | AB177: 1.269232978 | AC177: -17.50212155 | AE177: 0.7132051741 | AF177: -79.4113661 | AI177: 47.68353024 | AJ177: -90.88657582 | AL177: 0 | AM177: 0 | AN177: 0 | AO177: 0 | AP177: 0 | AQ177: 0
B178: 10000 | C178: 41.56212831 | D178: 1.546733639 | E178: 1.031099155 | F178: 0.2462276016 | G178: 1.019785582 | H178: -0.1973057127 | I178: 138257.7228 | J178: 1.570789094 | K178: 27.66409523 | L178: 1.534640512 | M178: 1.037757899 | N178: 0.2705805284 | O178: 1885.144353 | P178: 1.570265863 | Q178: 1.017610228 | R178: 0.1863095241 | S178: 1.000000506 | T178: 0.001006282846 | U178: 1.001424979 | V178: 0.08884979004 | W178: -15.05188677 | X178: -108.4832933 | Y178: 71.51670674 | AB178: 1.265645485 | AC178: -17.57428349 | AE178: 0.6653325536 | AF178: -79.35251303 | AI178: 47.63867792 | AJ178: -90.90900978 | AL178: 0 | AM178: 0 | AN178: 0 | AO178: 0 | AP178: 0 | AQ178: 0
B179: 10058.25 | C179: 41.80408796 | D179: 1.546872939 | E179: 1.031456974 | F179: 0.2476041275 | G179: 1.020014487 | H179: -0.1984251708 | I179: 139063.074 | J179: 1.570789136 | K179: 27.82502863 | L179: 1.534849719 | M179: 1.038190944 | N179: 0.2720802237 | O179: 1896.125316 | P179: 1.570268935 | Q179: 1.017814184 | R179: 0.1873696249 | S179: 1.000000512 | T179: 0.001012144439 | U179: 1.001441654 | V179: 0.08936722624 | W179: -15.10117703 | X179: -108.5801345 | Y179: 71.41986549 | AB179: 1.261956178 | AC179: -17.64822541 | AE179: 0.6166247048 | AF179: -79.29228559 | AI179: 47.59307697 | AJ179: -90.9319091 | AL179: 0 | AM179: 0 | AN179: 0 | AO179: 0 | AP179: 0 | AQ179: 0
B180: 10116.5 | C180: 42.04604842 | D180: 1.547010636 | E180: 1.031816746 | F180: 0.248979696 | G180: 1.02024467 | H180: -0.1995441252 | I180: 139868.4252 | J180: 1.570789177 | K180: 27.98596324 | L180: 1.53505652 | M180: 1.038626321 | N180: 0.273578665 | O180: 1907.106279 | P180: 1.570271972 | Q180: 1.018019283 | R180: 0.1884292998 | S180: 1.000000518 | T180: 0.001018006033 | U180: 1.001458426 | V180: 0.08988466043 | W180: -15.15016835 | X180: -108.6769758 | Y180: 71.32302424 | AB180: 1.258249999 | AC180: -17.72223332 | AE180: 0.568217581 | AF180: -79.23208053 | AI180: 47.54779183 | AJ180: -90.95474244 | AL180: 0 | AM180: 0 | AN180: 0 | AO180: 0 | AP180: 0 | AQ180: 0
B181: 10174.75 | C181: 42.28800966 | D181: 1.547146757 | E181: 1.032178468 | F181: 0.2503543031 | G181: 1.020476129 | H181: -0.2006625734 | I181: 140673.7765 | J181: 1.570789218 | K181: 28.14689903 | L181: 1.535260956 | M181: 1.039064029 | N181: 0.2750758472 | O181: 1918.087241 | P181: 1.570274974 | Q181: 1.018225525 | R181: 0.1894885465 | S181: 1.000000524 | T181: 0.001023867626 | U181: 1.001475296 | V181: 0.0904020926 | W181: -15.19886409 | X181: -108.773816 | Y181: 71.22618398 | AB181: 1.254526971 | AC181: -17.79630456 | AE181: 0.5201078254 | AF181: -79.171898 | AI181: 47.50281912 | AJ181: -90.97751146 | AL181: 0 | AM181: 0 | AN181: 0 | AO181: 0 | AP181: 0 | AQ181: 0
B182: 10233 | C182: 42.52997167 | D182: 1.54728133 | E182: 1.03254214 | F182: 0.2517279444 | G182: 1.020708865 | H182: -0.201780513 | I182: 141479.1277 | J182: 1.570789259 | K182: 28.30783598 | L182: 1.535463068 | M182: 1.039504064 | N182: 0.2765717652 | O182: 1929.068204 | P182: 1.570277942 | Q182: 1.018432909 | R182: 0.1905473631 | S182: 1.00000053 | T182: 0.00102972922 | U182: 1.001492263 | V182: 0.09091952274 | W182: -15.24726755 | X182: -108.8706543 | Y182: 71.12934566 | AB182: 1.250787116 | AC182: -17.87043653 | AE182: 0.4722921383 | AF182: -79.11173816 | AI182: 47.45815551 | AJ182: -91.00021782 | AL182: 0 | AM182: 0 | AN182: 0 | AO182: 0 | AP182: 0 | AQ182: 0
B183: 10292.5 | C183: 42.77712679 | D183: 1.547417218 | E183: 1.032915626 | F183: 0.2531300616 | G183: 1.020947911 | H183: -0.202921915 | I183: 142301.7612 | J183: 1.570789299 | K183: 28.47222769 | L183: 1.535667158 | M183: 1.039955941 | N183: 0.278098474 | O183: 1940.28481 | P183: 1.570280939 | Q183: 1.018645921 | R183: 0.1916284547 | S183: 1.000000536 | T183: 0.001035716598 | U183: 1.001509696 | V183: 0.09144805441 | W183: -15.29641133 | X183: -108.9695677 | Y183: 71.03043225 | AB183: 1.246949659 | AC183: -17.94621935 | AE183: 0.4237505931 | AF183: -79.05031093 | AI183: 47.41284919 | AJ183: -91.0233484 | AL183: 0 | AM183: 0 | AN183: 0 | AO183: 0 | AP183: 0 | AQ183: 0
B184: 10352 | C184: 43.02428269 | D184: 1.547551545 | E184: 1.033291141 | F184: 0.2545311625 | G184: 1.021188287 | H184: -0.2040627812 | I184: 143124.3946 | J184: 1.57078934 | K184: 28.63662058 | L184: 1.535868904 | M184: 1.040410241 | N184: 0.279623853 | O184: 1951.501416 | P184: 1.570283901 | Q184: 1.018860124 | R184: 0.192709093 | S184: 1.000000543 | T184: 0.001041703977 | U184: 1.001527229 | V184: 0.09197658393 | W184: -15.34525694 | X184: -109.0684772 | Y184: 70.93152285 | AB184: 1.243094696 | AC184: -18.02206021 | AE184: 0.3755090906 | AF184: -78.98890769 | AI184: 47.36785854 | AJ184: -91.04641694 | AL184: 0 | AM184: 0 | AN184: 0 | AO184: 0 | AP184: 0 | AQ184: 0
B185: 10411.5 | C185: 43.27143936 | D185: 1.547684338 | E185: 1.033668683 | F185: 0.2559312427 | G185: 1.021429991 | H185: -0.2052031089 | I185: 143947.0281 | J185: 1.57078938 | K185: 28.80101462 | L185: 1.536068348 | M185: 1.040866958 | N185: 0.281147897 | O185: 1962.718022 | P185: 1.570286829 | Q185: 1.019075516 | R185: 0.1937892758 | S185: 1.000000549 | T185: 0.001047691355 | U185: 1.001544865 | V185: 0.09250511129 | W185: -15.39380772 | X185: -109.1673816 | Y185: 70.83261842 | AB185: 1.239222255 | AC185: -18.09795652 | AE185: 0.3275642909 | AF185: -78.92752862 | AI185: 47.3231802 | AJ185: -91.06942506 | AL185: 0 | AM185: 0 | AN185: 0 | AO185: 0 | AP185: 0 | AQ185: 0
B186: 10471 | C186: 43.51859678 | D186: 1.547815622 | E186: 1.034048249 | F186: 0.2573302978 | G186: 1.021673023 | H186: -0.2063428956 | I186: 144769.6615 | J186: 1.570789419 | K186: 28.96540979 | L186: 1.536265527 | M186: 1.041326092 | N186: 0.2826706006 | O186: 1973.934628 | P186: 1.570289724 | Q186: 1.019292096 | R186: 0.1948690008 | S186: 1.000000555 | T186: 0.001053678733 | U186: 1.001562602 | V186: 0.09303363647 | W186: -15.44206696 | X186: -109.2662801 | Y186: 70.73371992 | AB186: 1.235332363 | AC186: -18.1739057 | AE186: 0.2799129108 | AF186: -78.86617386 | AI186: 47.27881085 | AJ186: -91.09237438 | AL186: 0 | AM186: 0 | AN186: 0 | AO186: 0 | AP186: 0 | AQ186: 0
B187: 10532 | C187: 43.77198584 | D187: 1.547948677 | E187: 1.034439485 | F187: 0.2587635544 | G187: 1.021923559 | H187: -0.207510852 | I187: 145613.0336 | J187: 1.570789459 | K187: 29.13395053 | L187: 1.536465368 | M187: 1.041799304 | N187: 0.2842302945 | O187: 1985.434005 | P187: 1.570292659 | Q187: 1.01951537 | R187: 0.1959754681 | S187: 1.000000562 | T187: 0.001059817054 | U187: 1.001580892 | V187: 0.09357548355 | W187: -15.49124353 | X187: -109.3676647 | Y187: 70.6323353 | AB187: 1.23132632 | AC187: -18.25182187 | AE187: 0.2313614656 | AF187: -78.80329777 | AI187: 47.23364032 | AJ187: -91.11584283 | AL187: 0 | AM187: 0 | AN187: 0 | AO187: 0 | AP187: 0 | AQ187: 0
B188: 10593 | C188: 44.02537565 | D188: 1.5480802 | E188: 1.034832843 | F188: 0.2601957243 | G188: 1.022175489 | H188: -0.2086782343 | I188: 146456.4057 | J188: 1.570789499 | K188: 29.30249243 | L188: 1.536662909 | M188: 1.042275049 | N188: 0.2857885685 | O188: 1996.933382 | P188: 1.570295559 | Q188: 1.019739891 | R188: 0.1970814496 | S188: 1.000000568 | T188: 0.001065955374 | U188: 1.001599289 | V188: 0.0941173283 | W188: -15.54012049 | X188: -109.4690411 | Y188: 70.53095888 | AB188: 1.227301998 | AC188: -18.32978836 | AE188: 0.18311161 | AF188: -78.74044758 | AI188: 47.18878769 | AJ188: -91.13925276 | AL188: 0 | AM188: 0 | AN188: 0 | AO188: 0 | AP188: 0 | AQ188: 0
B189: 10654 | C189: 44.27876622 | D189: 1.548210218 | E189: 1.035228323 | F189: 0.2616268029 | G189: 1.02242881 | H189: -0.2098450397 | I189: 147299.7778 | J189: 1.570789538 | K189: 29.47103545 | L189: 1.536858191 | M189: 1.042753322 | N189: 0.2873454168 | O189: 2008.43276 | P189: 1.570298426 | Q189: 1.019965659 | R189: 0.1981869429 | S189: 1.000000575 | T189: 0.001072093695 | U189: 1.001617793 | V189: 0.09465917073 | W189: -15.58870119 | X189: -109.5704084 | Y189: 70.42959162 | AB189: 1.223259428 | AC189: -18.40780259 | AE189: 0.135159984 | AF189: -78.67762346 | AI189: 47.14424955 | AJ189: -91.16260579 | AL189: 0 | AM189: 0 | AN189: 0 | AO189: 0 | AP189: 0 | AQ189: 0
B190: 10715 | C190: 44.53215753 | D190: 1.548338756 | E190: 1.035625921 | F190: 0.2630567856 | G190: 1.022683523 | H190: -0.2110112655 | I190: 148143.15 | J190: 1.570789577 | K190: 29.63957959 | L190: 1.537051253 | M190: 1.04323412 | N190: 0.2889008338 | O190: 2019.932138 | P190: 1.570301261 | Q190: 1.020192673 | R190: 0.1992919454 | S190: 1.000000581 | T190: 0.001078232015 | U190: 1.001636404 | V190: 0.09520101082 | W190: -15.63698894 | X190: -109.6717655 | Y190: 70.32823447 | AB190: 1.219198646 | AC190: -18.48586205 | AE190: 0.08750328466 | AF190: -78.61482558 | AI190: 47.10002259 | AJ190: -91.18590348 | AL190: 0 | AM190: 0 | AN190: 0 | AO190: 0 | AP190: 0 | AQ190: 0
B191: 10777.5 | C191: 44.79178053 | D191: 1.548468947 | E191: 1.036035491 | F191: 0.2645207904 | G191: 1.022945941 | H191: -0.212205565 | I191: 149007.2607 | J191: 1.570789616 | K191: 29.81226938 | L191: 1.537246797 | M191: 1.043729356 | N191: 0.2904930085 | O191: 2031.714287 | P191: 1.570304132 | Q191: 1.02042656 | R191: 0.2004236089 | S191: 1.000000588 | T191: 0.001084521278 | U191: 1.001655584 | V191: 0.09575617239 | W191: -15.68616363 | X191: -109.7756036 | Y191: 70.22439639 | AB191: 1.215019152 | AC191: -18.56588531 | AE191: 0.0389771988 | AF191: -78.55051088 | AI191: 47.05502739 | AJ191: -91.2097183 | AL191: 0 | AM191: 0 | AN191: 0 | AO191: 0 | AP191: 10777.5 | AQ191: 0.0389771988
B192: 10840 | C192: 45.05140428 | D192: 1.548597637 | E192: 1.036447279 | F192: 0.2659836349 | G192: 1.023209818 | H192: -0.2133992501 | I192: 149871.3715 | J192: 1.570789654 | K192: 29.98496031 | L192: 1.537440089 | M192: 1.044227236 | N192: 0.292083669 | O192: 2043.496436 | P192: 1.570306969 | Q192: 1.020661754 | R192: 0.2015547522 | S192: 1.000000595 | T192: 0.00109081054 | U192: 1.001674876 | V192: 0.09631133147 | W192: -15.73503763 | X192: -109.8794291 | Y192: 70.12057089 | AB192: 1.210820612 | AC192: -18.64595084 | AE192: -0.009246118475 | AF192: -78.48622409 | AI192: 47.01035194 | AJ192: -91.23347827 | AL192: 0 | AM192: 0 | AN192: 0 | AO192: 0 | AP192: 0 | AQ192: 0
B193: 10902.5 | C193: 45.31102877 | D193: 1.548724853 | E193: 1.036861284 | F193: 0.2674453144 | G193: 1.023475152 | H193: -0.214592318 | I193: 150735.4823 | J193: 1.570789693 | K193: 30.15765234 | L193: 1.537631167 | M193: 1.044727755 | N193: 0.2936728093 | O193: 2055.278585 | P193: 1.570309775 | Q193: 1.020898253 | R193: 0.2026853729 | S193: 1.000000602 | T193: 0.001097099803 | U193: 1.00169428 | V193: 0.09686648805 | W193: -15.78361429 | X193: -109.9832411 | Y193: 70.01675892 | AB193: 1.206603064 | AC193: -18.72605608 | AE193: -0.05717004108 | AF193: -78.42196537 | AI193: 46.96599282 | AJ193: -91.257185 | AL193: 0 | AM193: 0 | AN193: 0 | AO193: 0 | AP193: 0 | AQ193: 0
B194: 10965 | C194: 45.57065398 | D194: 1.548850619 | E194: 1.037277502 | F194: 0.268905824 | G194: 1.023741942 | H194: -0.2157847658 | I194: 151599.593 | J194: 1.57078973 | K194: 30.33034546 | L194: 1.53782007 | M194: 1.04523091 | N194: 0.2952604237 | O194: 2067.060734 | P194: 1.570312548 | Q194: 1.021136057 | R194: 0.2038154684 | S194: 1.000000609 | T194: 0.001103389065 | U194: 1.001713797 | V194: 0.0974216421 | W194: -15.83189695 | X194: -110.0870386 | Y194: 69.91296144 | AB194: 1.202366547 | AC194: -18.80619853 | AE194: -0.1047978854 | AF194: -78.35773492 | AI194: 46.92194668 | AJ194: -91.28084003 | AL194: 0 | AM194: 0 | AN194: 0 | AO194: 0 | AP194: 0 | AQ194: 0
B195: 11028.75 | C195: 45.83547243 | D195: 1.548977432 | E195: 1.037704322 | F195: 0.2703943336 | G195: 1.024015566 | H195: -0.2170004206 | I195: 152480.986 | J195: 1.570789769 | K195: 30.50649354 | L195: 1.538010547 | M195: 1.04574684 | N195: 0.2968782123 | O195: 2079.078526 | P195: 1.570315344 | Q195: 1.021379959 | R195: 0.2049676223 | S195: 1.000000616 | T195: 0.001109804112 | U195: 1.00173382 | V195: 0.09798789662 | W195: -15.88084574 | X195: -110.1928961 | Y195: 69.80710389 | AB195: 1.198025799 | AC195: -18.88797964 | AE195: -0.1530766474 | AF195: -78.29224914 | AI195: 46.87733864 | AJ195: -91.30491647 | AL195: 0 | AM195: 0 | AN195: 0 | AO195: 0 | AP195: 0 | AQ195: 0
B196: 11092.5 | C196: 46.10029161 | D196: 1.549102789 | E196: 1.03813344 | F196: 0.2718816159 | G196: 1.024290703 | H196: -0.2182154242 | I196: 153362.379 | J196: 1.570789806 | K196: 30.68264272 | L196: 1.538198837 | M196: 1.046265504 | N196: 0.2984944012 | O196: 2091.096318 | P196: 1.570318109 | Q196: 1.021625217 | R196: 0.2061192244 | S196: 1.000000623 | T196: 0.00111621916 | U196: 1.00175396 | V196: 0.09855414848 | W196: -15.92949543 | X196: -110.2987367 | Y196: 69.70126334 | AB196: 1.193665401 | AC196: -18.96979436 | AE196: -0.2010541621 | AF196: -78.22679313 | AI196: 46.83304934 | AJ196: -91.32894229 | AL196: 0 | AM196: 0 | AN196: 0 | AO196: 0 | AP196: 0 | AQ196: 0
B197: 11156.25 | C197: 46.36511151 | D197: 1.549226713 | E197: 1.038564851 | F197: 0.2733676658 | G197: 1.024567352 | H197: -0.2194297734 | I197: 154243.772 | J197: 1.570789844 | K197: 30.85879297 | L197: 1.538384978 | M197: 1.046786898 | N197: 0.3001089842 | O197: 2103.114111 | P197: 1.570320841 | Q197: 1.021871829 | R197: 0.2072702723 | S197: 1.00000063 | T197: 0.001122634207 | U197: 1.001774216 | V197: 0.09912039766 | W197: -15.97784935 | X197: -110.4045593 | Y197: 69.59544075 | AB197: 1.189285397 | AC197: -19.05164023 | AE197: -0.2487337721 | AF197: -78.16136708 | AI197: 46.78907542 | AJ197: -91.35291903 | AL197: 0 | AM197: 0 | AN197: 0 | AO197: 0 | AP197: 0 | AQ197: 0
B198: 11220 | C198: 46.6299321 | D198: 1.54934923 | E198: 1.038998555 | F198: 0.2748524784 | G198: 1.02484551 | H198: -0.2206434653 | I198: 155125.165 | J198: 1.57078988 | K198: 31.03494428 | L198: 1.538569005 | M198: 1.047311018 | N198: 0.3017219555 | O198: 2115.131903 | P198: 1.570323543 | Q198: 1.022119794 | R198: 0.2084207632 | S198: 1.000000637 | T198: 0.001129049254 | U198: 1.00179459 | V198: 0.09968664416 | W198: -16.0259108 | X198: -110.510363 | Y198: 69.48963703 | AB198: 1.184885831 | AC198: -19.13351478 | AE198: -0.2961187634 | AF198: -78.09597115 | AI198: 46.74541355 | AJ198: -91.37684819 | AL198: 0 | AM198: 0 | AN198: 0 | AO198: 0 | AP198: 0 | AQ198: 0
B199: 11285.5 | C199: 46.90202301 | D199: 1.549473669 | E199: 1.039446548 | F199: 0.2763767566 | G199: 1.025132876 | H199: -0.2218897862 | I199: 156030.753 | J199: 1.570789918 | K199: 31.2159322 | L199: 1.538755922 | M199: 1.047852361 | N199: 0.3033775193 | O199: 2127.479595 | P199: 1.570326287 | Q199: 1.022375975 | R199: 0.2096022533 | S199: 1.000000645 | T199: 0.001135640401 | U199: 1.001815645 | V199: 0.1002684319 | W199: -16.07499033 | X199: -110.6190505 | Y199: 69.38094952 | AB199: 1.180345167 | AC199: -19.21766424 | AE199: -0.3445010529 | AF199: -78.02881162 | AI199: 46.70087468 | AJ199: -91.40138623 | AL199: 0 | AM199: 0 | AN199: 0 | AO199: 0 | AP199: 0 | AQ199: 0
B200: 11351 | C200: 47.17411463 | D200: 1.549596673 | E200: 1.039896954 | F200: 0.2778997178 | G200: 1.025421833 | H200: -0.2231354067 | I200: 156936.3411 | J200: 1.570789955 | K200: 31.39692119 | L200: 1.538940683 | M200: 1.048396573 | N200: 0.3050313689 | O200: 2139.827288 | P200: 1.570328999 | Q200: 1.022633581 | R200: 0.2107831498 | S200: 1.000000652 | T200: 0.001142231547 | U200: 1.001836823 | V200: 0.1008502167 | W200: -16.12376795 | X200: -110.7277161 | Y200: 69.27228388 | AB200: 1.175783951 | AC200: -19.30183894 | AE200: -0.3925791807 | AF200: -77.96168428 | AI200: 46.65665827 | AJ200: -91.42587718 | AL200: 0 | AM200: 0 | AN200: 0 | AO200: 0 | AP200: 0 | AQ200: 0
B201: 11416.5 | C201: 47.44620696 | D201: 1.549718266 | E201: 1.040349769 | F201: 0.2794213569 | G201: 1.02571238 | H201: -0.2243803234 | I201: 157841.9292 | J201: 1.570789991 | K201: 31.57791125 | L201: 1.539123326 | M201: 1.04894365 | N201: 0.3066834979 | O201: 2152.17498 | P201: 1.570331681 | Q201: 1.022892614 | R201: 0.2119634498 | S201: 1.00000066 | T201: 0.001148822693 | U201: 1.001858125 | V201: 0.1014319986 | W201: -16.17224704 | X201: -110.8363589 | Y201: 69.16364107 | AB201: 1.171202235 | AC201: -19.38603637 | AE201: -0.4403565317 | AF201: -77.89458934 | AI201: 46.6127609 | AJ201: -91.45032257 | AL201: 0 | AM201: 0 | AN201: 0 | AO201: 0 | AP201: 0 | AQ201: 0
... 435 more rows

Sheet Schematic Management (hidden)
A2: =IF(Device="LM5177",CHOOSE(With_RCS, "SCH_NO_RCS", "SCH_RCS_MON","SCH_RCS_LIM","SCH_RCS_LIM_NEG"),CHOOSE(With_RCS, "SCH772_NO_RCS", "SCH772_RCS_MON","SCH772_RCS_LIM","SCH772_RCS_LIM_NEG")) -> SCH_RCS_LIM

Sheet Efficiency Plot Management (hidden)
A2: =IF(PLOT_TYPE=1, "EFF_IOUT", "EFF_VIN") -> EFF_IOUT
A9: =IF(BODEPLOT_TYPE=FALSE, "BodePlot", "BodePlot_ILim") -> BodePlot

Sheet Efficiency vs VIN Calculations (hidden)
A1: BUCK-BOOST CONTROLLER POWER TOOL
H2: =BH9 -> 0.9183596122 | I2: Low VIN
H3: =BH109 -> 0.9582690189 | I3: Nom VIN
H4: =BH209 -> 0.9393112514 | I4: High VIN
A6: Enter the values of your design and MOSFET datasheet specifications below. Note that thermal resistance (θJA) will change when components are placed on the PCB | BY6: 80 | BZ6: 100 | CA6: 120 | CB6: 140 | CC6: 160 | CD6: 180 | CE6: 20 | CF6: 30 | CG6: 40 | CH6: 50
G7: Operating Point Condtions | U7: Filter Inductor | Y7: Cout | AB7: Cin | AE7: High-side BUCK "Control" MOSFET Losses | AJ7: Low-side BUCK "Sync" MOSFET Losses | AN7: Low-side BOOST "Control" MOSFET Losses | AS7: High-side BOOST "Sync" MOSFET Losses | AW7: Pass FET | AX7: External Diode | AY7: Diode/FET | AZ7: Sense Rs | BA7: Output Rs | BB7: Controller IC Losses | BF7: RESULTS | BL7: Consolidated Buck/Boost Efficiency & Losses
A8: Input Parameters | G8: Step | H8: Vin | I8: Mode | J8: Mode Digit | K8: Iout | L8: Iin | M8: Avg IL | N8: Duty Cycle BUCK Leg | O8: Duty Cycle BOOST Leg | P8: BOE/BUD BUBO ratio | Q8: T BOE | R8: T BOD/BUE | S8: T BUD | T8: Ripple Current pk-pk | U8: Irms Lf | V8: DCR Loss | W8: Core Loss | X8: Total Inductor Loss | Y8: Irms Cout | Z8: Cout ESR Loss | AA8: Total Cout Loss | AB8: Irms Cin | AC8: Cin ESR Loss | AD8: Total Cin Loss | AE8: Irms1 | AF8: RDS(on) Loss | AG8: Transition Loss | AH8: Dead Time Loss | AI8: Total Control MOSFET Loss | AJ8: Irms2 | AK8: RDS(on) Loss3 | AL8: Deadtime Loss | AM8: Total Sync MOSFET Loss | AN8: Irms4 | AO8: RDS(on) Loss5 | AP8: Transition Loss6 | AQ8: Dead Time Loss 7 | AR8: Total Control MOSFET Loss8 | AS8: Irms9 | AT8: RDS(on) Loss10 | AU8: Deadtime Loss11 | AV8: Total Sync MOSFET Loss12 | AW8: Q1/Q3 RDS(on) Loss @ D = 100% | AX8: Deadtime Loss13 | AY8: Reverse Recovery Loss | AZ8: Isense Shunt Loss | BA8: Iout Shunt Loss | BB8: IQ Loss | BC8: Switching Current Loss | BD8: Switching Current Diss | BE8: Total IC Loss | BF8: Total Loss | BG8: Pout | BH8: EFF, h | BI8: Control FET Temp Rise | BJ8: Sync FET Temp Rise | BK8: Column1 | BL8: h | BM8: Inductor Cu & Core Loss | BN8: Total MOSFET Loss | BO8: Total Sync MOSFET Loss15 | BP8: Shunt Loss | BW8: Qg | BY8: θJA=80 | BZ8: θJA=100 | CA8: θJA=120 | CB8: θJA=140 | CC8: θJA=160 | CD8: θJA=180 | CE8: θJA=20 | CF8: θJA=30 | CG8: θJA=40 | CH8: θJA=50
A9: Design | B9: Input Value | C9: Units | D9: Description | G9: 0 | H9: =VIN_min+(VIN_max-VIN_min)*(Table1[[#This Row],[Step]]/200) -> 9 | I9: =IF(Table1[[#This Row],[Vin]]>VIN_BB_to_buck, "BUCK", IF(Table1[[#This Row],[Vin]]<=VIN_boost_to_BB,"BOOST","BUCK-BST")) -> BOOST | J9: =IF(Table1[[#This Row],[Mode]]="BOOST",2, IF(Table1[[#This Row],[Mode]]="BUCK", 1,3)) -> 2 | K9: =Iout -> 6.2 | L9: =Vout*Table1[[#This Row],[Iout]]/(Table1[[#This Row],[Vin]]*Efficiency) -> 14.86549708 | M9: =Iout/(1-Table1[[#This Row],[Duty Cycle BOOST Leg]]) -> 14.26441089 | N9: =CHOOSE(Table1[[#This Row],[Mode Digit]],(Vout+(Rdson2+Rs+Rdcr)*Table1[[#This Row],[Iout]])/(Table1[[#This Row],[Vin]]+(Rs+Rdson2-Rdson1)*Table1[[#This Row],[Iout]]),1,IF(Table1[[#This Row],[Vin]]<Vout,D_max_buck_BB,Vout/Table1[[#This Row],[Vin]]*(1-D_min_boost_exitBB_to_buck))) -> 1 | O9: =CHOOSE(Table1[[#This Row],[Mode Digit]],0,(Vout+(Rdson3+Rdcr)*Table1[[#This Row],[Iin]]-Table1[[#This Row],[Vin]])/(Vout+(Rdson3-Rdson4-Rs)*Table1[[#This Row],[Iin]]),IF(Table1[[#This Row],[Vin]]>Vout, (Vout-Table1[[#This Row],[Vin]]*D_max_exitBB_to_buck)/Vout, (Vout-Table1[[#This Row],[Vin]]*D_max_buck_BB)/Vout)) -> 0.5653518362 | P9: =CHOOSE(Table1[[#This Row],[Mode Digit]],0,0,1-((Table1[[#This Row],[Vin]]-Vout)+((VIN_BB_to_buck-VIN_BB_to_boost)/2))/((VIN_BB_to_buck-VIN_BB_to_boost))) -> 0 | Q9: =CHOOSE(Table1[[#This Row],[Mode Digit]],0,Table1[[#This Row],[Duty Cycle BOOST Leg]]/Fsw,(1/Fsw-Table1[[#This Row],[T BOD/BUE]])*Table1[[#This Row],[BOE/BUD BUBO ratio]]) -> 1.420482e-06 | R9: =CHOOSE(Table1[[#This Row],[Mode Digit]],Table1[[#This Row],[Duty Cycle BUCK Leg]]/Fsw,(1-Table1[[#This Row],[Duty Cycle BOOST Leg]])/Fsw,TonBubo) -> 1.092080814e-06 | S9: =CHOOSE(Table1[[#This Row],[Mode Digit]],(1-Table1[[#This Row],[Duty Cycle BUCK Leg]])/Fsw,0,(1/Fsw-Table1[[#This Row],[T BOD/BUE]]-Table1[[#This Row],[T BOE]])) -> 0 | T9: =MAX(0, CHOOSE(Table1[[#This Row],[Mode Digit]], (Table1[[#This Row],[Vin]]-(Rdson1+Rdcr)*Table1[[#This Row],[Iout]]-Vout)*Table1[[#This Row],[Duty Cycle BUCK Leg]]/(Fsw*Lf), (Table1[[#This Row],[Vin]]-(Rdson4+Rdcr+Rs)*Table1[[#This Row],[Iin]])*Table1[[#This Row],[Duty Cycle BOOST Leg]]/(Fsw*Lf), IF(Table1[[#This Row],[Vin]]<Vout, (Table1[[#This Row],[Vin]]-(Rdson1+Rdson3+Rdcr+Rs)*Table1[[#This Row],[Iin]])*Table1[[#This Row],[T BOE]]/(Lf),(Vout-(Rdson2+Rdson4+Rdcr+Rs)*Table1[[#This Row],[Iout]])*Table1[[#This Row],[T BUD]]/(Lf)))) -> 1.264497127 | U9: =CHOOSE(Table1[[#This Row],[Mode Digit]], SQRT(Table1[[#This Row],[Iout]]^2+(Table1[[#This Row],[Ripple Current pk-pk]]^2)/12), SQRT(Table1[[#This Row],[Iin]]^2+(Table1[[#This Row],[Ripple Current pk-pk]]^2)/12), SQRT(Table1[[#This Row],[Avg IL]]^2+(Table1[[#This Row],[Ripple Current pk-pk]]^2)/12)) -> 14.86997812 | V9: =(Table1[[#This Row],[Irms Lf]]^2*Rdcr*(1+Ltc*Ta-Ltc*25))/(1-Table1[[#This Row],[Irms Lf]]^2*Rdcr*Ltc*ThetaCa) -> 0.4347320754 | W9: =ABS(7.759*10^-3*Fsw^0.9458*(0.00787*Table1[[#This Row],[Ripple Current pk-pk]])^2.304) -> 0.03743860555 | X9: =Table1[[#This Row],[DCR Loss]]+Table1[[#This Row],[Core Loss]] -> 0.472170681 | Y9: =IF(Table1[[#This Row],[Vin]]>Vout, Table1[[#This Row],[Ripple Current pk-pk]]/SQRT(12), SQRT(Table1[[#This Row],[Duty Cycle BOOST Leg]]/(1-Table1[[#This Row],[Duty Cycle BOOST Leg]]))*SQRT(Table1[[#This Row],[Iout]]^2+(Table1[[#This Row],[Ripple Current pk-pk]]^2)/12)) -> 7.083266351 | Z9: =RCoutEsr*Table1[[#This Row],[Irms Cout]]^2 -> 0.501726622 | AA9: =Table1[[#This Row],[Cout ESR Loss]] -> 0.501726622 | AB9: =IF(Table1[[#This Row],[Vin]]>Vout, SQRT(Table1[[#This Row],[Duty Cycle BUCK Leg]]*(1-Table1[[#This Row],[Duty Cycle BUCK Leg]]))*SQRT(Table1[[#This Row],[Iout]]^2+(Table1[[#This Row],[Ripple Current pk-pk]]^2)/12), Table1[[#This Row],[Ripple Current pk-pk]]/SQRT(12)) -> 0.3650288785 | AC9: =RCinEsr*Table1[[#This Row],[Irms Cin]]^2 -> 0.001332460821 | AD9: =Table1[[#This Row],[Cin ESR Loss]] -> 0.001332460821 | AE9: =Table1[[#This Row],[Irms Lf]] -> 14.86997812 | AF9: =Rdson1*Table1[[#This Row],[Irms1]]^2 -> 0.751795248 | AG9: =CHOOSE(Table1[[#This Row],[Mode Digit]], (Table1[[#This Row],[Vin]]*Table1[[#This Row],[Iout]]/2)*(Fsw)*(Tr_buck+Tf_buck), 0, (Table1[[#This Row],[Vin]]*Table1[[#This Row],[Avg IL]]/2)*(Fsw/1)*(Tr_buck+Tf_buck)) -> 0 | AH9: =IF(Table1[[#This Row],[Vin]]>Vout, IF(Table1[[#This Row],[Iout]]>Table1[[#This Row],[Ripple Current pk-pk]]/2,0,ABS(Table1[[#This Row],[Iout]]-Table1[[#This Row],[Ripple Current pk-pk]]/2)*Vsd_Q1*Deadtime*Fsw),0) -> 0 | AI9: =(Table1[[#This Row],[Dead Time Loss ]]+Table1[[#This Row],[Transition Loss]]+Table1[[#This Row],[RDS(on) Loss]]*(1+RdsonTopTc*Ta-RdsonTopTc*25))/(1-Table1[[#This Row],[RDS(on) Loss]]*RdsonTopTc*ThetaJA_Q1) -> 0.9344489634 | AJ9: =Table1[[#This Row],[Irms Lf]] -> 14.86997812 | AK9: =Rdson2*Table1[[#This Row],[Irms2]]^2 -> 0.751795248 | AL9: =CHOOSE(Table1[[#This Row],[Mode Digit]], IF(Table1[[#This Row],[Iout]]<Table1[[#This Row],[Ripple Current pk-pk]]/2,Deadtime*Fsw*IF(VfdSky_Q2>0,0,Vsd_Q2)*(Table1[[#This Row],[Iout]]+Table1[[#This Row],[Ripple Current pk-pk]]/2),2*Deadtime*Fsw*IF(VfdSky_Q2>0,0,Vsd_Q2)*Table1[[#This Row],[Iout]]),0, IF(Table1[[#This Row],[Iout]]<Table1[[#This Row],[Ripple Current pk-pk]]/2,Deadtime*Fsw*IF(VfdSky_Q2>0,0,Vsd_Q2)*(Table1[[#This Row],[Iout]]+Table1[[#This Row],[Ripple Current pk-pk]]/2),2*Deadtime*Fsw*IF(VfdSky_Q2>0,0,Vsd_Q2)*Table1[[#This Row],[Iout]])) -> 0 | AM9: =(Table1[[#This Row],[Deadtime Loss]]+Table1[[#This Row],[RDS(on) Loss3]]*(1+RdsonBotTc*Ta-RdsonBotTc*25))/(1-Table1[[#This Row],[RDS(on) Loss3]]*RdsonBotTc*ThetaJA_Q2) -> 0.9344489634 | AN9: =Table1[[#This Row],[Irms Lf]] -> 14.86997812 | AO9: =Rdson4*Table1[[#This Row],[Irms4]]^2 -> 0.751795248 | AP9: =CHOOSE(Table1[[#This Row],[Mode Digit]], 0, (Vout*Table1[[#This Row],[Iin]]/2)*(Fsw)*(Tr_boost+Tf_boost), (Vout*Iout/2)*(Fsw/1)*(Tr_boost+Tf_boost)) -> 3.080715381 | AQ9: =IF(Table1[[#This Row],[Vin]]>Vout, 0, IF(Table1[[#This Row],[Iin]]>Table1[[#This Row],[Ripple Current pk-pk]]/2,0,ABS(Table1[[#This Row],[Iin]]-Table1[[#This Row],[Ripple Current pk-pk]]/2)*Vsd_Q4*Deadtime*Fsw)) -> 0 | AR9: =(Table1[[#This Row],[Dead Time Loss 7]]+Table1[[#This Row],[Transition Loss6]]+Table1[[#This Row],[RDS(on) Loss5]]*(1+RdsonTopTc*Ta-RdsonTopTc*25))/(1-Table1[[#This Row],[RDS(on) Loss5]]*RdsonTopTc*ThetaJA_Q4) -> 4.76364488 | AS9: =Table1[[#This Row],[Irms Lf]] -> 14.86997812 | AT9: =Rdson3*Table1[[#This Row],[Irms9]]^2 -> 0.751795248 | AU9: =CHOOSE(Table1[[#This Row],[Mode Digit]], 0, IF(Table1[[#This Row],[Iin]]<Table1[[#This Row],[Ripple Current pk-pk]]/2,Deadtime*Fsw*IF(VfdSky_Q3>0,0,Vsd_Q3)*(Table1[[#This Row],[Iin]]+Table1[[#This Row],[Ripple Current pk-pk]]/2), 2*Deadtime*Fsw*IF(VfdSky_Q3>0,0,Vsd_Q3)*Table1[[#This Row],[Iin]]), IF(Table1[[#This Row],[Iin]]<Table1[[#This Row],[Ripple Current pk-pk]]/2,Deadtime*Fsw*IF(VfdSky_Q3>0,0,Vsd_Q3)*(Table1[[#This Row],[Iin]]+Table1[[#This Row],[Ripple Current pk-pk]]/2), 2*Deadtime*Fsw*IF(VfdSky_Q3>0,0,Vsd_Q3)*Table1[[#This Row],[Iin]])) -> 0.5916467836 | AV9: =(Table1[[#This Row],[Deadtime Loss11]]+Table1[[#This Row],[RDS(on) Loss10]]*(1+RdsonBotTc*Ta-RdsonBotTc*25))/(1-Table1[[#This Row],[RDS(on) Loss10]]*RdsonBotTc*ThetaJA_Q3) -> 1.669840315 | AW9: =CHOOSE(Table1[[#This Row],[Mode Digit]], Rdson3*Table1[[#This Row],[Irms Lf]]^2, Rdson1*Table1[[#This Row],[Irms Lf]]^2, 0) -> 0.751795248 | AX9: =CHOOSE(Table1[[#This Row],[Mode Digit]], 2*Deadtime*Fsw*IF(VfdSky_Q2>0,VfdSky_Q2,0)*Table1[[#This Row],[Iout]], 2*Deadtime*Fsw*IF(VfdSky_Q3>0,VfdSky_Q3,0)*Table1[[#This Row],[Iin]], 2*Deadtime*Fsw*IF(VfdSky_Q2>0,VfdSky_Q2,0)*Table1[[#This Row],[Iout]]+2*Deadtime*Fsw*IF(VfdSky_Q3>0,VfdSky_Q3,0)*Table1[[#This Row],[Iin]]) -> 0 | AY9: =CHOOSE(Table1[[#This Row],[Mode Digit]], IF(QrrSky_Q2>0,QrrSky_Q2,Qrr_Q2)*Fsw*(Table1[[#This Row],[Vin]]-Table1[[#This Row],[Iout]]*Rdson1), IF(QrrSky_Q3>0,QrrSky_Q3,Qrr_Q3)*Fsw*Vout, IF(QrrSky_Q2>0,QrrSky_Q2,Qrr_Q2)*Fsw*(Table1[[#This Row],[Vin]]-Table1[[#This Row],[Iout]]*Rdson1)+IF(QrrSky_Q3>0,QrrSky_Q3,Qrr_Q3)*Fsw*Vout) -> 0.611925 | AZ9: =CHOOSE(Table1[[#This Row],[Mode Digit]], Rs*Table1[[#This Row],[Irms2]]^2, Rs*Table1[[#This Row],[Irms4]]^2, Rs*(Table1[[#This Row],[Irms2]]^2+Table1[[#This Row],[Irms4]]^2)) -> 0.2874511242 | BA9: =Rshunt_std/1000*Iout^2 -> 0.3098264 | BB9: =IF(Vout>8, Iq*Vout, Iq*Table1[[#This Row],[Vin]]) -> 0.0615 | BC9: =CHOOSE(Table1[[#This Row],[Mode Digit]], (Qg_Q1+Qg_Q2)*Fsw, (Qg_Q3+Qg_Q4)*Fsw, (Qg_Q1+Qg_Q2+Qg_Q3+Qg_Q4)*Fsw)*IF(Vout>8, Vout, Table1[[#This Row],[Vin]]) -> 0.750628 | BD9: =(Vin-Vdd)*Fsw*(Qg_Q1+Qg_Q2)+(RdsonDRT+RdsonDRT2)*Fsw*Qg_Q1*Vdd/(RdsonDRT+2*Rgate1+RdsonDRT2)+(RdsonDRB+RdsonDRB2)*Fsw*Qg_Q2*Vdd/(RdsonDRB+2*Rgate2+RdsonDRB2) -> 0.5633230769 | BE9: =Table1[[#This Row],[IQ Loss]]+Table1[[#This Row],[Switching Current Loss]] -> 0.812128 | BF9: =SUM(Table1[[#This Row],[Total Inductor Loss]],Table1[[#This Row],[Total Cout Loss]],Table1[[#This Row],[Total Cin Loss]],Table1[[#This Row],[Total Control MOSFET Loss]],Table1[[#This Row],[Total Sync MOSFET Loss]],Table1[[#This Row],[Total Control MOSFET Loss8]],Table1[[#This Row],[Total Sync MOSFET Loss12]], Table1[[#This Row],[Deadtime Loss13]],Table1[[#This Row],[Reverse Recovery Loss]],Table1[[#This Row],[Total IC Loss]],Table1[[#This Row],[Isense Shunt Loss]],Table1[[#This Row],[Iout Shunt Loss]]) -> 11.29894341 | BG9: =Vout*Table1[[#This Row],[Iout]] -> 127.1 | BH9: =Table1[[#This Row],[Pout]]/(Table1[[#This Row],[Pout]]+Table1[[#This Row],[Total Loss]]) -> 0.9183596122 | BI9: =IF(Table1[[#This Row],[Vin]]>Vout,ThetaJA_Q1*(Table1[[#This Row],[Total Control MOSFET Loss]]+Table1[[#This Row],[Reverse Recovery Loss]]),ThetaJA_Q4*(Table1[[#This Row],[Total Control MOSFET Loss8]]+Table1[[#This Row],[Reverse Recovery Loss]])) -> 349.4120422 | BJ9: =IF(Table1[[#This Row],[Vin]]>Vout, Table1[[#This Row],[Total Sync MOSFET Loss]]*ThetaJA_Q2, ThetaJA_Q3*Table1[[#This Row],[Total Sync MOSFET Loss12]]) -> 108.5396205 | BL9: =Table1[[#This Row],[EFF, h]]*100 -> 91.83596122 | BM9: =Table1[[#This Row],[Total Inductor Loss]] -> 0.472170681 | BN9: =Table1[[#This Row],[Total Control MOSFET Loss]]+Table1[[#This Row],[Total Sync MOSFET Loss]]+Table1[[#This Row],[Total Control MOSFET Loss8]]+Table1[[#This Row],[Total Sync MOSFET Loss12]]+Table1[[#This Row],[Reverse Recovery Loss]] -> 8.914308122 | BO9: =Table1[[#This Row],[Total Sync MOSFET Loss]]+Table1[[#This Row],[Reverse Recovery Loss]]*0.33 -> 1.136384213 | BP9: =Table1[[#This Row],[Isense Shunt Loss]] -> 0.2874511242 | BT9: 250kHz / 5-1.2V /25A | BU9: 70 | BV9: 70 | BW9: 70 | BX9: =250000*(5-Vdd)*BW9/1000000000+((250000*BW9/1000000000*Vdd)*2.5/(2*4)) -> -0.002734375 | BY9: =BY$6*$BX9 -> -0.21875 | BZ9: -0.2734375 | CA9: -0.328125 | CB9: -0.3828125 | CC9: -0.4375 | CD9: -0.4921875 | CE9: -0.0546875 | CF9: -0.08203125 | CG9: -0.109375 | CH9: -0.13671875
G10: 1 | H10: =VIN_min+(VIN_max-VIN_min)*(Table1[[#This Row],[Step]]/200) -> 9.255 | I10: =IF(Table1[[#This Row],[Vin]]>VIN_BB_to_buck, "BUCK", IF(Table1[[#This Row],[Vin]]<=VIN_boost_to_BB,"BOOST","BUCK-BST")) -> BOOST | J10: =IF(Table1[[#This Row],[Mode]]="BOOST",2, IF(Table1[[#This Row],[Mode]]="BUCK", 1,3)) -> 2 | K10: 6.2 | L10: =Vout*Table1[[#This Row],[Iout]]/(Table1[[#This Row],[Vin]]*Efficiency) -> 14.45591288 | M10: =Iout/(1-Table1[[#This Row],[Duty Cycle BOOST Leg]]) -> 13.86344496 | N10: =CHOOSE(Table1[[#This Row],[Mode Digit]],(Vout+(Rdson2+Rs+Rdcr)*Table1[[#This Row],[Iout]])/(Table1[[#This Row],[Vin]]+(Rs+Rdson2-Rdson1)*Table1[[#This Row],[Iout]]),1,IF(Table1[[#This Row],[Vin]]<Vout,D_max_buck_BB,Vout/Table1[[#This Row],[Vin]]*(1-D_min_boost_exitBB_to_buck))) -> 1 | O10: =CHOOSE(Table1[[#This Row],[Mode Digit]],0,(Vout+(Rdson3+Rdcr)*Table1[[#This Row],[Iin]]-Table1[[#This Row],[Vin]])/(Vout+(Rdson3-Rdson4-Rs)*Table1[[#This Row],[Iin]]),IF(Table1[[#This Row],[Vin]]>Vout, (Vout-Table1[[#This Row],[Vin]]*D_max_exitBB_to_buck)/Vout, (Vout-Table1[[#This Row],[Vin]]*D_max_buck_BB)/Vout)) -> 0.5527807109 | P10: =CHOOSE(Table1[[#This Row],[Mode Digit]],0,0,1-((Table1[[#This Row],[Vin]]-Vout)+((VIN_BB_to_buck-VIN_BB_to_boost)/2))/((VIN_BB_to_buck-VIN_BB_to_boost))) -> 0 | Q10: =CHOOSE(Table1[[#This Row],[Mode Digit]],0,Table1[[#This Row],[Duty Cycle BOOST Leg]]/Fsw,(1/Fsw-Table1[[#This Row],[T BOD/BUE]])*Table1[[#This Row],[BOE/BUD BUBO ratio]]) -> 1.388896258e-06 | R10: =CHOOSE(Table1[[#This Row],[Mode Digit]],Table1[[#This Row],[Duty Cycle BUCK Leg]]/Fsw,(1-Table1[[#This Row],[Duty Cycle BOOST Leg]])/Fsw,TonBubo) -> 1.123666556e-06 | S10: =CHOOSE(Table1[[#This Row],[Mode Digit]],(1-Table1[[#This Row],[Duty Cycle BUCK Leg]])/Fsw,0,(1/Fsw-Table1[[#This Row],[T BOD/BUE]]-Table1[[#This Row],[T BOE]])) -> 0 | T10: =MAX(0, CHOOSE(Table1[[#This Row],[Mode Digit]], (Table1[[#This Row],[Vin]]-(Rdson1+Rdcr)*Table1[[#This Row],[Iout]]-Vout)*Table1[[#This Row],[Duty Cycle BUCK Leg]]/(Fsw*Lf), (Table1[[#This Row],[Vin]]-(Rdson4+Rdcr+Rs)*Table1[[#This Row],[Iin]])*Table1[[#This Row],[Duty Cycle BOOST Leg]]/(Fsw*Lf), IF(Table1[[#This Row],[Vin]]<Vout, (Table1[[#This Row],[Vin]]-(Rdson1+Rdson3+Rdcr+Rs)*Table1[[#This Row],[Iin]])*Table1[[#This Row],[T BOE]]/(Lf),(Vout-(Rdson2+Rdson4+Rdcr+Rs)*Table1[[#This Row],[Iout]])*Table1[[#This Row],[T BUD]]/(Lf)))) -> 1.272172163 | U10: =CHOOSE(Table1[[#This Row],[Mode Digit]], SQRT(Table1[[#This Row],[Iout]]^2+(Table1[[#This Row],[Ripple Current pk-pk]]^2)/12), SQRT(Table1[[#This Row],[Iin]]^2+(Table1[[#This Row],[Ripple Current pk-pk]]^2)/12), SQRT(Table1[[#This Row],[Avg IL]]^2+(Table1[[#This Row],[Ripple Current pk-pk]]^2)/12)) -> 14.46057695 | V10: =(Table1[[#This Row],[Irms Lf]]^2*Rdcr*(1+Ltc*Ta-Ltc*25))/(1-Table1[[#This Row],[Irms Lf]]^2*Rdcr*Ltc*ThetaCa) -> 0.4103484462 | W10: =ABS(7.759*10^-3*Fsw^0.9458*(0.00787*Table1[[#This Row],[Ripple Current pk-pk]])^2.304) -> 0.03796423665 | X10: =Table1[[#This Row],[DCR Loss]]+Table1[[#This Row],[Core Loss]] -> 0.4483126829 | Y10: =IF(Table1[[#This Row],[Vin]]>Vout, Table1[[#This Row],[Ripple Current pk-pk]]/SQRT(12), SQRT(Table1[[#This Row],[Duty Cycle BOOST Leg]]/(1-Table1[[#This Row],[Duty Cycle BOOST Leg]]))*SQRT(Table1[[#This Row],[Iout]]^2+(Table1[[#This Row],[Ripple Current pk-pk]]^2)/12)) -> 6.905075058 | Z10: =RCoutEsr*Table1[[#This Row],[Irms Cout]]^2 -> 0.4768006155 | AA10: =Table1[[#This Row],[Cout ESR Loss]] -> 0.4768006155 | AB10: =IF(Table1[[#This Row],[Vin]]>Vout, SQRT(Table1[[#This Row],[Duty Cycle BUCK Leg]]*(1-Table1[[#This Row],[Duty Cycle BUCK Leg]]))*SQRT(Table1[[#This Row],[Iout]]^2+(Table1[[#This Row],[Ripple Current pk-pk]]^2)/12), Table1[[#This Row],[Ripple Current pk-pk]]/SQRT(12)) -> 0.3672444705 | AC10: =RCinEsr*Table1[[#This Row],[Irms Cin]]^2 -> 0.001348685011 | AD10: =Table1[[#This Row],[Cin ESR Loss]] -> 0.001348685011 | AE10: =Table1[[#This Row],[Irms Lf]] -> 14.46057695 | AF10: =Rdson1*Table1[[#This Row],[Irms1]]^2 -> 0.7109681711 | AG10: =CHOOSE(Table1[[#This Row],[Mode Digit]], (Table1[[#This Row],[Vin]]*Table1[[#This Row],[Iout]]/2)*(Fsw)*(Tr_buck+Tf_buck), 0, (Table1[[#This Row],[Vin]]*Table1[[#This Row],[Avg IL]]/2)*(Fsw/1)*(Tr_buck+Tf_buck)) -> 0 | AH10: =IF(Table1[[#This Row],[Vin]]>Vout, IF(Table1[[#This Row],[Iout]]>Table1[[#This Row],[Ripple Current pk-pk]]/2,0,ABS(Table1[[#This Row],[Iout]]-Table1[[#This Row],[Ripple Current pk-pk]]/2)*Vsd_Q1*Deadtime*Fsw),0) -> 0 | AI10: =(Table1[[#This Row],[Dead Time Loss ]]+Table1[[#This Row],[Transition Loss]]+Table1[[#This Row],[RDS(on) Loss]]*(1+RdsonTopTc*Ta-RdsonTopTc*25))/(1-Table1[[#This Row],[RDS(on) Loss]]*RdsonTopTc*ThetaJA_Q1) -> 0.8721949031 | AJ10: =Table1[[#This Row],[Irms Lf]] -> 14.46057695 | AK10: =Rdson2*Table1[[#This Row],[Irms2]]^2 -> 0.7109681711 | AL10: =CHOOSE(Table1[[#This Row],[Mode Digit]], IF(Table1[[#This Row],[Iout]]<Table1[[#This Row],[Ripple Current pk-pk]]/2,Deadtime*Fsw*IF(VfdSky_Q2>0,0,Vsd_Q2)*(Table1[[#This Row],[Iout]]+Table1[[#This Row],[Ripple Current pk-pk]]/2),2*Deadtime*Fsw*IF(VfdSky_Q2>0,0,Vsd_Q2)*Table1[[#This Row],[Iout]]),0, IF(Table1[[#This Row],[Iout]]<Table1[[#This Row],[Ripple Current pk-pk]]/2,Deadtime*Fsw*IF(VfdSky_Q2>0,0,Vsd_Q2)*(Table1[[#This Row],[Iout]]+Table1[[#This Row],[Ripple Current pk-pk]]/2),2*Deadtime*Fsw*IF(VfdSky_Q2>0,0,Vsd_Q2)*Table1[[#This Row],[Iout]])) -> 0 | AM10: =(Table1[[#This Row],[Deadtime Loss]]+Table1[[#This Row],[RDS(on) Loss3]]*(1+RdsonBotTc*Ta-RdsonBotTc*25))/(1-Table1[[#This Row],[RDS(on) Loss3]]*RdsonBotTc*ThetaJA_Q2) -> 0.8721949031 | AN10: =Table1[[#This Row],[Irms Lf]] -> 14.46057695 | AO10: =Rdson4*Table1[[#This Row],[Irms4]]^2 -> 0.7109681711 | AP10: =CHOOSE(Table1[[#This Row],[Mode Digit]], 0, (Vout*Table1[[#This Row],[Iin]]/2)*(Fsw)*(Tr_boost+Tf_boost), (Vout*Iout/2)*(Fsw/1)*(Tr_boost+Tf_boost)) -> 2.995833433 | AQ10: =IF(Table1[[#This Row],[Vin]]>Vout, 0, IF(Table1[[#This Row],[Iin]]>Table1[[#This Row],[Ripple Current pk-pk]]/2,0,ABS(Table1[[#This Row],[Iin]]-Table1[[#This Row],[Ripple Current pk-pk]]/2)*Vsd_Q4*Deadtime*Fsw)) -> 0 | AR10: =(Table1[[#This Row],[Dead Time Loss 7]]+Table1[[#This Row],[Transition Loss6]]+Table1[[#This Row],[RDS(on) Loss5]]*(1+RdsonTopTc*Ta-RdsonTopTc*25))/(1-Table1[[#This Row],[RDS(on) Loss5]]*RdsonTopTc*ThetaJA_Q4) -> 4.547395506 | AS10: =Table1[[#This Row],[Irms Lf]] -> 14.46057695 | AT10: =Rdson3*Table1[[#This Row],[Irms9]]^2 -> 0.7109681711 | AU10: =CHOOSE(Table1[[#This Row],[Mode Digit]], 0, IF(Table1[[#This Row],[Iin]]<Table1[[#This Row],[Ripple Current pk-pk]]/2,Deadtime*Fsw*IF(VfdSky_Q3>0,0,Vsd_Q3)*(Table1[[#This Row],[Iin]]+Table1[[#This Row],[Ripple Current pk-pk]]/2), 2*Deadtime*Fsw*IF(VfdSky_Q3>0,0,Vsd_Q3)*Table1[[#This Row],[Iin]]), IF(Table1[[#This Row],[Iin]]<Table1[[#This Row],[Ripple Current pk-pk]]/2,Deadtime*Fsw*IF(VfdSky_Q3>0,0,Vsd_Q3)*(Table1[[#This Row],[Iin]]+Table1[[#This Row],[Ripple Current pk-pk]]/2), 2*Deadtime*Fsw*IF(VfdSky_Q3>0,0,Vsd_Q3)*Table1[[#This Row],[Iin]])) -> 0.5753453325 | AV10: =(Table1[[#This Row],[Deadtime Loss11]]+Table1[[#This Row],[RDS(on) Loss10]]*(1+RdsonBotTc*Ta-RdsonBotTc*25))/(1-Table1[[#This Row],[RDS(on) Loss10]]*RdsonBotTc*ThetaJA_Q3) -> 1.578011685 | AW10: =CHOOSE(Table1[[#This Row],[Mode Digit]], Rdson3*Table1[[#This Row],[Irms Lf]]^2, Rdson1*Table1[[#This Row],[Irms Lf]]^2, 0) -> 0.7109681711 | AX10: =CHOOSE(Table1[[#This Row],[Mode Digit]], 2*Deadtime*Fsw*IF(VfdSky_Q2>0,VfdSky_Q2,0)*Table1[[#This Row],[Iout]], 2*Deadtime*Fsw*IF(VfdSky_Q3>0,VfdSky_Q3,0)*Table1[[#This Row],[Iin]], 2*Deadtime*Fsw*IF(VfdSky_Q2>0,VfdSky_Q2,0)*Table1[[#This Row],[Iout]]+2*Deadtime*Fsw*IF(VfdSky_Q3>0,VfdSky_Q3,0)*Table1[[#This Row],[Iin]]) -> 0 | AY10: =CHOOSE(Table1[[#This Row],[Mode Digit]], IF(QrrSky_Q2>0,QrrSky_Q2,Qrr_Q2)*Fsw*(Table1[[#This Row],[Vin]]-Table1[[#This Row],[Iout]]*Rdson1), IF(QrrSky_Q3>0,QrrSky_Q3,Qrr_Q3)*Fsw*Vout, IF(QrrSky_Q2>0,QrrSky_Q2,Qrr_Q2)*Fsw*(Table1[[#This Row],[Vin]]-Table1[[#This Row],[Iout]]*Rdson1)+IF(QrrSky_Q3>0,QrrSky_Q3,Qrr_Q3)*Fsw*Vout) -> 0.611925 | AZ10: =CHOOSE(Table1[[#This Row],[Mode Digit]], Rs*Table1[[#This Row],[Irms2]]^2, Rs*Table1[[#This Row],[Irms4]]^2, Rs*(Table1[[#This Row],[Irms2]]^2+Table1[[#This Row],[Irms4]]^2)) -> 0.2718407713 | BA10: 0.3098264 | BB10: =IF(Vout>8, Iq*Vout, Iq*Table1[[#This Row],[Vin]]) -> 0.0615 | BC10: =CHOOSE(Table1[[#This Row],[Mode Digit]], (Qg_Q1+Qg_Q2)*Fsw, (Qg_Q3+Qg_Q4)*Fsw, (Qg_Q1+Qg_Q2+Qg_Q3+Qg_Q4)*Fsw)*IF(Vout>8, Vout, Table1[[#This Row],[Vin]]) -> 0.750628 | BD10: 0.5633230769 | BE10: =Table1[[#This Row],[IQ Loss]]+Table1[[#This Row],[Switching Current Loss]] -> 0.812128 | BF10: =SUM(Table1[[#This Row],[Total Inductor Loss]],Table1[[#This Row],[Total Cout Loss]],Table1[[#This Row],[Total Cin Loss]],Table1[[#This Row],[Total Control MOSFET Loss]],Table1[[#This Row],[Total Sync MOSFET Loss]],Table1[[#This Row],[Total Control MOSFET Loss8]],Table1[[#This Row],[Total Sync MOSFET Loss12]], Table1[[#This Row],[Deadtime Loss13]],Table1[[#This Row],[Reverse Recovery Loss]],Table1[[#This Row],[Total IC Loss]],Table1[[#This Row],[Isense Shunt Loss]],Table1[[#This Row],[Iout Shunt Loss]]) -> 10.80197915 | BG10: =Vout*Table1[[#This Row],[Iout]] -> 127.1 | BH10: =Table1[[#This Row],[Pout]]/(Table1[[#This Row],[Pout]]+Table1[[#This Row],[Total Loss]]) -> 0.9216691507 | BI10: =IF(Table1[[#This Row],[Vin]]>Vout,ThetaJA_Q1*(Table1[[#This Row],[Total Control MOSFET Loss]]+Table1[[#This Row],[Reverse Recovery Loss]]),ThetaJA_Q4*(Table1[[#This Row],[Total Control MOSFET Loss8]]+Table1[[#This Row],[Reverse Recovery Loss]])) -> 335.3558329 | BJ10: =IF(Table1[[#This Row],[Vin]]>Vout, Table1[[#This Row],[Total Sync MOSFET Loss]]*ThetaJA_Q2, ThetaJA_Q3*Table1[[#This Row],[Total Sync MOSFET Loss12]]) -> 102.5707595 | BL10: =Table1[[#This Row],[EFF, h]]*100 -> 92.16691507 | BM10: =Table1[[#This Row],[Total Inductor Loss]] -> 0.4483126829 | BN10: =Table1[[#This Row],[Total Control MOSFET Loss]]+Table1[[#This Row],[Total Sync MOSFET Loss]]+Table1[[#This Row],[Total Control MOSFET Loss8]]+Table1[[#This Row],[Total Sync MOSFET Loss12]]+Table1[[#This Row],[Reverse Recovery Loss]] -> 8.481721997 | BO10: =Table1[[#This Row],[Total Sync MOSFET Loss]]+Table1[[#This Row],[Reverse Recovery Loss]]*0.33 -> 1.074130153 | BP10: =Table1[[#This Row],[Isense Shunt Loss]] -> 0.2718407713
A11: Vin | B11: =Vin -> 20 | C11: V | D11: Vin | G11: 2 | H11: =VIN_min+(VIN_max-VIN_min)*(Table1[[#This Row],[Step]]/200) -> 9.51 | I11: =IF(Table1[[#This Row],[Vin]]>VIN_BB_to_buck, "BUCK", IF(Table1[[#This Row],[Vin]]<=VIN_boost_to_BB,"BOOST","BUCK-BST")) -> BOOST | J11: =IF(Table1[[#This Row],[Mode]]="BOOST",2, IF(Table1[[#This Row],[Mode]]="BUCK", 1,3)) -> 2 | K11: 6.2 | L11: =Vout*Table1[[#This Row],[Iout]]/(Table1[[#This Row],[Vin]]*Efficiency) -> 14.06829376 | M11: =Iout/(1-Table1[[#This Row],[Duty Cycle BOOST Leg]]) -> 13.4846126 | N11: =CHOOSE(Table1[[#This Row],[Mode Digit]],(Vout+(Rdson2+Rs+Rdcr)*Table1[[#This Row],[Iout]])/(Table1[[#This Row],[Vin]]+(Rs+Rdson2-Rdson1)*Table1[[#This Row],[Iout]]),1,IF(Table1[[#This Row],[Vin]]<Vout,D_max_buck_BB,Vout/Table1[[#This Row],[Vin]]*(1-D_min_boost_exitBB_to_buck))) -> 1 | O11: =CHOOSE(Table1[[#This Row],[Mode Digit]],0,(Vout+(Rdson3+Rdcr)*Table1[[#This Row],[Iin]]-Table1[[#This Row],[Vin]])/(Vout+(Rdson3-Rdson4-Rs)*Table1[[#This Row],[Iin]]),IF(Table1[[#This Row],[Vin]]>Vout, (Vout-Table1[[#This Row],[Vin]]*D_max_exitBB_to_buck)/Vout, (Vout-Table1[[#This Row],[Vin]]*D_max_buck_BB)/Vout)) -> 0.5402166762 | P11: =CHOOSE(Table1[[#This Row],[Mode Digit]],0,0,1-((Table1[[#This Row],[Vin]]-Vout)+((VIN_BB_to_buck-VIN_BB_to_boost)/2))/((VIN_BB_to_buck-VIN_BB_to_boost))) -> 0 | Q11: =CHOOSE(Table1[[#This Row],[Mode Digit]],0,Table1[[#This Row],[Duty Cycle BOOST Leg]]/Fsw,(1/Fsw-Table1[[#This Row],[T BOD/BUE]])*Table1[[#This Row],[BOE/BUD BUBO ratio]]) -> 1.357328332e-06 | R11: =CHOOSE(Table1[[#This Row],[Mode Digit]],Table1[[#This Row],[Duty Cycle BUCK Leg]]/Fsw,(1-Table1[[#This Row],[Duty Cycle BOOST Leg]])/Fsw,TonBubo) -> 1.155234482e-06 | S11: =CHOOSE(Table1[[#This Row],[Mode Digit]],(1-Table1[[#This Row],[Duty Cycle BUCK Leg]])/Fsw,0,(1/Fsw-Table1[[#This Row],[T BOD/BUE]]-Table1[[#This Row],[T BOE]])) -> 0 | T11: =MAX(0, CHOOSE(Table1[[#This Row],[Mode Digit]], (Table1[[#This Row],[Vin]]-(Rdson1+Rdcr)*Table1[[#This Row],[Iout]]-Vout)*Table1[[#This Row],[Duty Cycle BUCK Leg]]/(Fsw*Lf), (Table1[[#This Row],[Vin]]-(Rdson4+Rdcr+Rs)*Table1[[#This Row],[Iin]])*Table1[[#This Row],[Duty Cycle BOOST Leg]]/(Fsw*Lf), IF(Table1[[#This Row],[Vin]]<Vout, (Table1[[#This Row],[Vin]]-(Rdson1+Rdson3+Rdcr+Rs)*Table1[[#This Row],[Iin]])*Table1[[#This Row],[T BOE]]/(Lf),(Vout-(Rdson2+Rdson4+Rdcr+Rs)*Table1[[#This Row],[Iout]])*Table1[[#This Row],[T BUD]]/(Lf)))) -> 1.27821635 | U11: =CHOOSE(Table1[[#This Row],[Mode Digit]], SQRT(Table1[[#This Row],[Iout]]^2+(Table1[[#This Row],[Ripple Current pk-pk]]^2)/12), SQRT(Table1[[#This Row],[Iin]]^2+(Table1[[#This Row],[Ripple Current pk-pk]]^2)/12), SQRT(Table1[[#This Row],[Avg IL]]^2+(Table1[[#This Row],[Ripple Current pk-pk]]^2)/12)) -> 14.07313194 | V11: =(Table1[[#This Row],[Irms Lf]]^2*Rdcr*(1+Ltc*Ta-Ltc*25))/(1-Table1[[#This Row],[Irms Lf]]^2*Rdcr*Ltc*ThetaCa) -> 0.3879805721 | W11: =ABS(7.759*10^-3*Fsw^0.9458*(0.00787*Table1[[#This Row],[Ripple Current pk-pk]])^2.304) -> 0.03838109931 | X11: =Table1[[#This Row],[DCR Loss]]+Table1[[#This Row],[Core Loss]] -> 0.4263616714 | Y11: =IF(Table1[[#This Row],[Vin]]>Vout, Table1[[#This Row],[Ripple Current pk-pk]]/SQRT(12), SQRT(Table1[[#This Row],[Duty Cycle BOOST Leg]]/(1-Table1[[#This Row],[Duty Cycle BOOST Leg]]))*SQRT(Table1[[#This Row],[Iout]]^2+(Table1[[#This Row],[Ripple Current pk-pk]]^2)/12)) -> 6.732352447 | Z11: =RCoutEsr*Table1[[#This Row],[Irms Cout]]^2 -> 0.4532456947 | AA11: =Table1[[#This Row],[Cout ESR Loss]] -> 0.4532456947 | AB11: =IF(Table1[[#This Row],[Vin]]>Vout, SQRT(Table1[[#This Row],[Duty Cycle BUCK Leg]]*(1-Table1[[#This Row],[Duty Cycle BUCK Leg]]))*SQRT(Table1[[#This Row],[Iout]]^2+(Table1[[#This Row],[Ripple Current pk-pk]]^2)/12), Table1[[#This Row],[Ripple Current pk-pk]]/SQRT(12)) -> 0.3689892769 | AC11: =RCinEsr*Table1[[#This Row],[Irms Cin]]^2 -> 0.001361530865 | AD11: =Table1[[#This Row],[Cin ESR Loss]] -> 0.001361530865 | AE11: =Table1[[#This Row],[Irms Lf]] -> 14.07313194 | AF11: =Rdson1*Table1[[#This Row],[Irms1]]^2 -> 0.6733803444 | AG11: =CHOOSE(Table1[[#This Row],[Mode Digit]], (Table1[[#This Row],[Vin]]*Table1[[#This Row],[Iout]]/2)*(Fsw)*(Tr_buck+Tf_buck), 0, (Table1[[#This Row],[Vin]]*Table1[[#This Row],[Avg IL]]/2)*(Fsw/1)*(Tr_buck+Tf_buck)) -> 0 | AH11: =IF(Table1[[#This Row],[Vin]]>Vout, IF(Table1[[#This Row],[Iout]]>Table1[[#This Row],[Ripple Current pk-pk]]/2,0,ABS(Table1[[#This Row],[Iout]]-Table1[[#This Row],[Ripple Current pk-pk]]/2)*Vsd_Q1*Deadtime*Fsw),0) -> 0 | AI11: =(Table1[[#This Row],[Dead Time Loss ]]+Table1[[#This Row],[Transition Loss]]+Table1[[#This Row],[RDS(on) Loss]]*(1+RdsonTopTc*Ta-RdsonTopTc*25))/(1-Table1[[#This Row],[RDS(on) Loss]]*RdsonTopTc*ThetaJA_Q1) -> 0.8162966566 | AJ11: =Table1[[#This Row],[Irms Lf]] -> 14.07313194 | AK11: =Rdson2*Table1[[#This Row],[Irms2]]^2 -> 0.6733803444 | AL11: =CHOOSE(Table1[[#This Row],[Mode Digit]], IF(Table1[[#This Row],[Iout]]<Table1[[#This Row],[Ripple Current pk-pk]]/2,Deadtime*Fsw*IF(VfdSky_Q2>0,0,Vsd_Q2)*(Table1[[#This Row],[Iout]]+Table1[[#This Row],[Ripple Current pk-pk]]/2),2*Deadtime*Fsw*IF(VfdSky_Q2>0,0,Vsd_Q2)*Table1[[#This Row],[Iout]]),0, IF(Table1[[#This Row],[Iout]]<Table1[[#This Row],[Ripple Current pk-pk]]/2,Deadtime*Fsw*IF(VfdSky_Q2>0,0,Vsd_Q2)*(Table1[[#This Row],[Iout]]+Table1[[#This Row],[Ripple Current pk-pk]]/2),2*Deadtime*Fsw*IF(VfdSky_Q2>0,0,Vsd_Q2)*Table1[[#This Row],[Iout]])) -> 0 | AM11: =(Table1[[#This Row],[Deadtime Loss]]+Table1[[#This Row],[RDS(on) Loss3]]*(1+RdsonBotTc*Ta-RdsonBotTc*25))/(1-Table1[[#This Row],[RDS(on) Loss3]]*RdsonBotTc*ThetaJA_Q2) -> 0.8162966566 | AN11: =Table1[[#This Row],[Irms Lf]] -> 14.07313194 | AO11: =Rdson4*Table1[[#This Row],[Irms4]]^2 -> 0.6733803444 | AP11: =CHOOSE(Table1[[#This Row],[Mode Digit]], 0, (Vout*Table1[[#This Row],[Iin]]/2)*(Fsw)*(Tr_boost+Tf_boost), (Vout*Iout/2)*(Fsw/1)*(Tr_boost+Tf_boost)) -> 2.915503515 | AQ11: =IF(Table1[[#This Row],[Vin]]>Vout, 0, IF(Table1[[#This Row],[Iin]]>Table1[[#This Row],[Ripple Current pk-pk]]/2,0,ABS(Table1[[#This Row],[Iin]]-Table1[[#This Row],[Ripple Current pk-pk]]/2)*Vsd_Q4*Deadtime*Fsw)) -> 0 | AR11: =(Table1[[#This Row],[Dead Time Loss 7]]+Table1[[#This Row],[Transition Loss6]]+Table1[[#This Row],[RDS(on) Loss5]]*(1+RdsonTopTc*Ta-RdsonTopTc*25))/(1-Table1[[#This Row],[RDS(on) Loss5]]*RdsonTopTc*ThetaJA_Q4) -> 4.350578272 | AS11: =Table1[[#This Row],[Irms Lf]] -> 14.07313194 | AT11: =Rdson3*Table1[[#This Row],[Irms9]]^2 -> 0.6733803444 | AU11: =CHOOSE(Table1[[#This Row],[Mode Digit]], 0, IF(Table1[[#This Row],[Iin]]<Table1[[#This Row],[Ripple Current pk-pk]]/2,Deadtime*Fsw*IF(VfdSky_Q3>0,0,Vsd_Q3)*(Table1[[#This Row],[Iin]]+Table1[[#This Row],[Ripple Current pk-pk]]/2), 2*Deadtime*Fsw*IF(VfdSky_Q3>0,0,Vsd_Q3)*Table1[[#This Row],[Iin]]), IF(Table1[[#This Row],[Iin]]<Table1[[#This Row],[Ripple Current pk-pk]]/2,Deadtime*Fsw*IF(VfdSky_Q3>0,0,Vsd_Q3)*(Table1[[#This Row],[Iin]]+Table1[[#This Row],[Ripple Current pk-pk]]/2), 2*Deadtime*Fsw*IF(VfdSky_Q3>0,0,Vsd_Q3)*Table1[[#This Row],[Iin]])) -> 0.5599180918 | AV11: =(Table1[[#This Row],[Deadtime Loss11]]+Table1[[#This Row],[RDS(on) Loss10]]*(1+RdsonBotTc*Ta-RdsonBotTc*25))/(1-Table1[[#This Row],[RDS(on) Loss10]]*RdsonBotTc*ThetaJA_Q3) -> 1.495050158 | AW11: =CHOOSE(Table1[[#This Row],[Mode Digit]], Rdson3*Table1[[#This Row],[Irms Lf]]^2, Rdson1*Table1[[#This Row],[Irms Lf]]^2, 0) -> 0.6733803444 | AX11: =CHOOSE(Table1[[#This Row],[Mode Digit]], 2*Deadtime*Fsw*IF(VfdSky_Q2>0,VfdSky_Q2,0)*Table1[[#This Row],[Iout]], 2*Deadtime*Fsw*IF(VfdSky_Q3>0,VfdSky_Q3,0)*Table1[[#This Row],[Iin]], 2*Deadtime*Fsw*IF(VfdSky_Q2>0,VfdSky_Q2,0)*Table1[[#This Row],[Iout]]+2*Deadtime*Fsw*IF(VfdSky_Q3>0,VfdSky_Q3,0)*Table1[[#This Row],[Iin]]) -> 0 | AY11: =CHOOSE(Table1[[#This Row],[Mode Digit]], IF(QrrSky_Q2>0,QrrSky_Q2,Qrr_Q2)*Fsw*(Table1[[#This Row],[Vin]]-Table1[[#This Row],[Iout]]*Rdson1), IF(QrrSky_Q3>0,QrrSky_Q3,Qrr_Q3)*Fsw*Vout, IF(QrrSky_Q2>0,QrrSky_Q2,Qrr_Q2)*Fsw*(Table1[[#This Row],[Vin]]-Table1[[#This Row],[Iout]]*Rdson1)+IF(QrrSky_Q3>0,QrrSky_Q3,Qrr_Q3)*Fsw*Vout) -> 0.611925 | AZ11: =CHOOSE(Table1[[#This Row],[Mode Digit]], Rs*Table1[[#This Row],[Irms2]]^2, Rs*Table1[[#This Row],[Irms4]]^2, Rs*(Table1[[#This Row],[Irms2]]^2+Table1[[#This Row],[Irms4]]^2)) -> 0.2574689552 | BA11: 0.3098264 | BB11: =IF(Vout>8, Iq*Vout, Iq*Table1[[#This Row],[Vin]]) -> 0.0615 | BC11: =CHOOSE(Table1[[#This Row],[Mode Digit]], (Qg_Q1+Qg_Q2)*Fsw, (Qg_Q3+Qg_Q4)*Fsw, (Qg_Q1+Qg_Q2+Qg_Q3+Qg_Q4)*Fsw)*IF(Vout>8, Vout, Table1[[#This Row],[Vin]]) -> 0.750628 | BD11: 0.5633230769 | BE11: =Table1[[#This Row],[IQ Loss]]+Table1[[#This Row],[Switching Current Loss]] -> 0.812128 | BF11: =SUM(Table1[[#This Row],[Total Inductor Loss]],Table1[[#This Row],[Total Cout Loss]],Table1[[#This Row],[Total Cin Loss]],Table1[[#This Row],[Total Control MOSFET Loss]],Table1[[#This Row],[Total Sync MOSFET Loss]],Table1[[#This Row],[Total Control MOSFET Loss8]],Table1[[#This Row],[Total Sync MOSFET Loss12]], Table1[[#This Row],[Deadtime Loss13]],Table1[[#This Row],[Reverse Recovery Loss]],Table1[[#This Row],[Total IC Loss]],Table1[[#This Row],[Isense Shunt Loss]],Table1[[#This Row],[Iout Shunt Loss]]) -> 10.35053899 | BG11: =Vout*Table1[[#This Row],[Iout]] -> 127.1 | BH11: =Table1[[#This Row],[Pout]]/(Table1[[#This Row],[Pout]]+Table1[[#This Row],[Total Loss]]) -> 0.9246962648 | BI11: =IF(Table1[[#This Row],[Vin]]>Vout,ThetaJA_Q1*(Table1[[#This Row],[Total Control MOSFET Loss]]+Table1[[#This Row],[Reverse Recovery Loss]]),ThetaJA_Q4*(Table1[[#This Row],[Total Control MOSFET Loss8]]+Table1[[#This Row],[Reverse Recovery Loss]])) -> 322.5627127 | BJ11: =IF(Table1[[#This Row],[Vin]]>Vout, Table1[[#This Row],[Total Sync MOSFET Loss]]*ThetaJA_Q2, ThetaJA_Q3*Table1[[#This Row],[Total Sync MOSFET Loss12]]) -> 97.17826025 | BL11: =Table1[[#This Row],[EFF, h]]*100 -> 92.46962648 | BM11: =Table1[[#This Row],[Total Inductor Loss]] -> 0.4263616714 | BN11: =Table1[[#This Row],[Total Control MOSFET Loss]]+Table1[[#This Row],[Total Sync MOSFET Loss]]+Table1[[#This Row],[Total Control MOSFET Loss8]]+Table1[[#This Row],[Total Sync MOSFET Loss12]]+Table1[[#This Row],[Reverse Recovery Loss]] -> 8.090146743 | BO11: =Table1[[#This Row],[Total Sync MOSFET Loss]]+Table1[[#This Row],[Reverse Recovery Loss]]*0.33 -> 1.018231907 | BP11: =Table1[[#This Row],[Isense Shunt Loss]] -> 0.2574689552 | BT11: 250kHz / 12-5V / 30A | BU11: 90 | BV11: 90 | BW11: 90 | BX11: =250000*(12-Vdd)*BW11/1000000000+((250000*BW9/1000000000*Vdd)*2.5/(2*4)) -> 0.142265625 | BY11: 11.38125 | BZ11: 14.2265625 | CA11: 17.071875 | CB11: 19.9171875 | CC11: 22.7625 | CD11: 25.6078125 | CE11: 2.8453125 | CF11: 4.26796875 | CG11: 5.690625 | CH11: 7.11328125
A12: Vout | B12: =Vout -> 20.5 | C12: V | D12: Vout | G12: 3 | H12: =VIN_min+(VIN_max-VIN_min)*(Table1[[#This Row],[Step]]/200) -> 9.765 | I12: =IF(Table1[[#This Row],[Vin]]>VIN_BB_to_buck, "BUCK", IF(Table1[[#This Row],[Vin]]<=VIN_boost_to_BB,"BOOST","BUCK-BST")) -> BOOST | J12: =IF(Table1[[#This Row],[Mode]]="BOOST",2, IF(Table1[[#This Row],[Mode]]="BUCK", 1,3)) -> 2 | K12: 6.2 | L12: =Vout*Table1[[#This Row],[Iout]]/(Table1[[#This Row],[Vin]]*Efficiency) -> 13.70091896 | M12: =Iout/(1-Table1[[#This Row],[Duty Cycle BOOST Leg]]) -> 13.12611506 | N12: =CHOOSE(Table1[[#This Row],[Mode Digit]],(Vout+(Rdson2+Rs+Rdcr)*Table1[[#This Row],[Iout]])/(Table1[[#This Row],[Vin]]+(Rs+Rdson2-Rdson1)*Table1[[#This Row],[Iout]]),1,IF(Table1[[#This Row],[Vin]]<Vout,D_max_buck_BB,Vout/Table1[[#This Row],[Vin]]*(1-D_min_boost_exitBB_to_buck))) -> 1 | O12: =CHOOSE(Table1[[#This Row],[Mode Digit]],0,(Vout+(Rdson3+Rdcr)*Table1[[#This Row],[Iin]]-Table1[[#This Row],[Vin]])/(Vout+(Rdson3-Rdson4-Rs)*Table1[[#This Row],[Iin]]),IF(Table1[[#This Row],[Vin]]>Vout, (Vout-Table1[[#This Row],[Vin]]*D_max_exitBB_to_buck)/Vout, (Vout-Table1[[#This Row],[Vin]]*D_max_buck_BB)/Vout)) -> 0.5276591761 | P12: =CHOOSE(Table1[[#This Row],[Mode Digit]],0,0,1-((Table1[[#This Row],[Vin]]-Vout)+((VIN_BB_to_buck-VIN_BB_to_boost)/2))/((VIN_BB_to_buck-VIN_BB_to_boost))) -> 0 | Q12: =CHOOSE(Table1[[#This Row],[Mode Digit]],0,Table1[[#This Row],[Duty Cycle BOOST Leg]]/Fsw,(1/Fsw-Table1[[#This Row],[T BOD/BUE]])*Table1[[#This Row],[BOE/BUD BUBO ratio]]) -> 1.325776824e-06 | R12: =CHOOSE(Table1[[#This Row],[Mode Digit]],Table1[[#This Row],[Duty Cycle BUCK Leg]]/Fsw,(1-Table1[[#This Row],[Duty Cycle BOOST Leg]])/Fsw,TonBubo) -> 1.18678599e-06 | S12: =CHOOSE(Table1[[#This Row],[Mode Digit]],(1-Table1[[#This Row],[Duty Cycle BUCK Leg]])/Fsw,0,(1/Fsw-Table1[[#This Row],[T BOD/BUE]]-Table1[[#This Row],[T BOE]])) -> 0 | T12: =MAX(0, CHOOSE(Table1[[#This Row],[Mode Digit]], (Table1[[#This Row],[Vin]]-(Rdson1+Rdcr)*Table1[[#This Row],[Iout]]-Vout)*Table1[[#This Row],[Duty Cycle BUCK Leg]]/(Fsw*Lf), (Table1[[#This Row],[Vin]]-(Rdson4+Rdcr+Rs)*Table1[[#This Row],[Iin]])*Table1[[#This Row],[Duty Cycle BOOST Leg]]/(Fsw*Lf), IF(Table1[[#This Row],[Vin]]<Vout, (Table1[[#This Row],[Vin]]-(Rdson1+Rdson3+Rdcr+Rs)*Table1[[#This Row],[Iin]])*Table1[[#This Row],[T BOE]]/(Lf),(Vout-(Rdson2+Rdson4+Rdcr+Rs)*Table1[[#This Row],[Iout]])*Table1[[#This Row],[T BUD]]/(Lf)))) -> 1.282632591 | U12: =CHOOSE(Table1[[#This Row],[Mode Digit]], SQRT(Table1[[#This Row],[Iout]]^2+(Table1[[#This Row],[Ripple Current pk-pk]]^2)/12), SQRT(Table1[[#This Row],[Iin]]^2+(Table1[[#This Row],[Ripple Current pk-pk]]^2)/12), SQRT(Table1[[#This Row],[Avg IL]]^2+(Table1[[#This Row],[Ripple Current pk-pk]]^2)/12)) -> 13.7059212 | V12: =(Table1[[#This Row],[Irms Lf]]^2*Rdcr*(1+Ltc*Ta-Ltc*25))/(1-Table1[[#This Row],[Irms Lf]]^2*Rdcr*Ltc*ThetaCa) -> 0.3674101881 | W12: =ABS(7.759*10^-3*Fsw^0.9458*(0.00787*Table1[[#This Row],[Ripple Current pk-pk]])^2.304) -> 0.03868731387 | X12: =Table1[[#This Row],[DCR Loss]]+Table1[[#This Row],[Core Loss]] -> 0.4060975019 | Y12: =IF(Table1[[#This Row],[Vin]]>Vout, Table1[[#This Row],[Ripple Current pk-pk]]/SQRT(12), SQRT(Table1[[#This Row],[Duty Cycle BOOST Leg]]/(1-Table1[[#This Row],[Duty Cycle BOOST Leg]]))*SQRT(Table1[[#This Row],[Iout]]^2+(Table1[[#This Row],[Ripple Current pk-pk]]^2)/12)) -> 6.564683151 | Z12: =RCoutEsr*Table1[[#This Row],[Irms Cout]]^2 -> 0.4309506487 | AA12: =Table1[[#This Row],[Cout ESR Loss]] -> 0.4309506487 | AB12: =IF(Table1[[#This Row],[Vin]]>Vout, SQRT(Table1[[#This Row],[Duty Cycle BUCK Leg]]*(1-Table1[[#This Row],[Duty Cycle BUCK Leg]]))*SQRT(Table1[[#This Row],[Iout]]^2+(Table1[[#This Row],[Ripple Current pk-pk]]^2)/12), Table1[[#This Row],[Ripple Current pk-pk]]/SQRT(12)) -> 0.3702641358 | AC12: =RCinEsr*Table1[[#This Row],[Irms Cin]]^2 -> 0.001370955303 | AD12: =Table1[[#This Row],[Cin ESR Loss]] -> 0.001370955303 | AE12: =Table1[[#This Row],[Irms Lf]] -> 13.7059212 | AF12: =Rdson1*Table1[[#This Row],[Irms1]]^2 -> 0.6386977384 | AG12: =CHOOSE(Table1[[#This Row],[Mode Digit]], (Table1[[#This Row],[Vin]]*Table1[[#This Row],[Iout]]/2)*(Fsw)*(Tr_buck+Tf_buck), 0, (Table1[[#This Row],[Vin]]*Table1[[#This Row],[Avg IL]]/2)*(Fsw/1)*(Tr_buck+Tf_buck)) -> 0 | AH12: =IF(Table1[[#This Row],[Vin]]>Vout, IF(Table1[[#This Row],[Iout]]>Table1[[#This Row],[Ripple Current pk-pk]]/2,0,ABS(Table1[[#This Row],[Iout]]-Table1[[#This Row],[Ripple Current pk-pk]]/2)*Vsd_Q1*Deadtime*Fsw),0) -> 0 | AI12: =(Table1[[#This Row],[Dead Time Loss ]]+Table1[[#This Row],[Transition Loss]]+Table1[[#This Row],[RDS(on) Loss]]*(1+RdsonTopTc*Ta-RdsonTopTc*25))/(1-Table1[[#This Row],[RDS(on) Loss]]*RdsonTopTc*ThetaJA_Q1) -> 0.7658810223 | AJ12: =Table1[[#This Row],[Irms Lf]] -> 13.7059212 | AK12: =Rdson2*Table1[[#This Row],[Irms2]]^2 -> 0.6386977384 | AL12: =CHOOSE(Table1[[#This Row],[Mode Digit]], IF(Table1[[#This Row],[Iout]]<Table1[[#This Row],[Ripple Current pk-pk]]/2,Deadtime*Fsw*IF(VfdSky_Q2>0,0,Vsd_Q2)*(Table1[[#This Row],[Iout]]+Table1[[#This Row],[Ripple Current pk-pk]]/2),2*Deadtime*Fsw*IF(VfdSky_Q2>0,0,Vsd_Q2)*Table1[[#This Row],[Iout]]),0, IF(Table1[[#This Row],[Iout]]<Table1[[#This Row],[Ripple Current pk-pk]]/2,Deadtime*Fsw*IF(VfdSky_Q2>0,0,Vsd_Q2)*(Table1[[#This Row],[Iout]]+Table1[[#This Row],[Ripple Current pk-pk]]/2),2*Deadtime*Fsw*IF(VfdSky_Q2>0,0,Vsd_Q2)*Table1[[#This Row],[Iout]])) -> 0 | AM12: =(Table1[[#This Row],[Deadtime Loss]]+Table1[[#This Row],[RDS(on) Loss3]]*(1+RdsonBotTc*Ta-RdsonBotTc*25))/(1-Table1[[#This Row],[RDS(on) Loss3]]*RdsonBotTc*ThetaJA_Q2) -> 0.7658810223 | AN12: =Table1[[#This Row],[Irms Lf]] -> 13.7059212 | AO12: =Rdson4*Table1[[#This Row],[Irms4]]^2 -> 0.6386977384 | AP12: =CHOOSE(Table1[[#This Row],[Mode Digit]], 0, (Vout*Table1[[#This Row],[Iin]]/2)*(Fsw)*(Tr_boost+Tf_boost), (Vout*Iout/2)*(Fsw/1)*(Tr_boost+Tf_boost)) -> 2.839369014 | AQ12: =IF(Table1[[#This Row],[Vin]]>Vout, 0, IF(Table1[[#This Row],[Iin]]>Table1[[#This Row],[Ripple Current pk-pk]]/2,0,ABS(Table1[[#This Row],[Iin]]-Table1[[#This Row],[Ripple Current pk-pk]]/2)*Vsd_Q4*Deadtime*Fsw)) -> 0 | AR12: =(Table1[[#This Row],[Dead Time Loss 7]]+Table1[[#This Row],[Transition Loss6]]+Table1[[#This Row],[RDS(on) Loss5]]*(1+RdsonTopTc*Ta-RdsonTopTc*25))/(1-Table1[[#This Row],[RDS(on) Loss5]]*RdsonTopTc*ThetaJA_Q4) -> 4.170650936 | AS12: =Table1[[#This Row],[Irms Lf]] -> 13.7059212 | AT12: =Rdson3*Table1[[#This Row],[Irms9]]^2 -> 0.6386977384 | AU12: =CHOOSE(Table1[[#This Row],[Mode Digit]], 0, IF(Table1[[#This Row],[Iin]]<Table1[[#This Row],[Ripple Current pk-pk]]/2,Deadtime*Fsw*IF(VfdSky_Q3>0,0,Vsd_Q3)*(Table1[[#This Row],[Iin]]+Table1[[#This Row],[Ripple Current pk-pk]]/2), 2*Deadtime*Fsw*IF(VfdSky_Q3>0,0,Vsd_Q3)*Table1[[#This Row],[Iin]]), IF(Table1[[#This Row],[Iin]]<Table1[[#This Row],[Ripple Current pk-pk]]/2,Deadtime*Fsw*IF(VfdSky_Q3>0,0,Vsd_Q3)*(Table1[[#This Row],[Iin]]+Table1[[#This Row],[Ripple Current pk-pk]]/2), 2*Deadtime*Fsw*IF(VfdSky_Q3>0,0,Vsd_Q3)*Table1[[#This Row],[Iin]])) -> 0.5452965748 | AV12: =(Table1[[#This Row],[Deadtime Loss11]]+Table1[[#This Row],[RDS(on) Loss10]]*(1+RdsonBotTc*Ta-RdsonBotTc*25))/(1-Table1[[#This Row],[RDS(on) Loss10]]*RdsonBotTc*ThetaJA_Q3) -> 1.419761995 | AW12: =CHOOSE(Table1[[#This Row],[Mode Digit]], Rdson3*Table1[[#This Row],[Irms Lf]]^2, Rdson1*Table1[[#This Row],[Irms Lf]]^2, 0) -> 0.6386977384 | AX12: =CHOOSE(Table1[[#This Row],[Mode Digit]], 2*Deadtime*Fsw*IF(VfdSky_Q2>0,VfdSky_Q2,0)*Table1[[#This Row],[Iout]], 2*Deadtime*Fsw*IF(VfdSky_Q3>0,VfdSky_Q3,0)*Table1[[#This Row],[Iin]], 2*Deadtime*Fsw*IF(VfdSky_Q2>0,VfdSky_Q2,0)*Table1[[#This Row],[Iout]]+2*Deadtime*Fsw*IF(VfdSky_Q3>0,VfdSky_Q3,0)*Table1[[#This Row],[Iin]]) -> 0 | AY12: =CHOOSE(Table1[[#This Row],[Mode Digit]], IF(QrrSky_Q2>0,QrrSky_Q2,Qrr_Q2)*Fsw*(Table1[[#This Row],[Vin]]-Table1[[#This Row],[Iout]]*Rdson1), IF(QrrSky_Q3>0,QrrSky_Q3,Qrr_Q3)*Fsw*Vout, IF(QrrSky_Q2>0,QrrSky_Q2,Qrr_Q2)*Fsw*(Table1[[#This Row],[Vin]]-Table1[[#This Row],[Iout]]*Rdson1)+IF(QrrSky_Q3>0,QrrSky_Q3,Qrr_Q3)*Fsw*Vout) -> 0.611925 | AZ12: =CHOOSE(Table1[[#This Row],[Mode Digit]], Rs*Table1[[#This Row],[Irms2]]^2, Rs*Table1[[#This Row],[Irms4]]^2, Rs*(Table1[[#This Row],[Irms2]]^2+Table1[[#This Row],[Irms4]]^2)) -> 0.2442079588 | BA12: 0.3098264 | BB12: =IF(Vout>8, Iq*Vout, Iq*Table1[[#This Row],[Vin]]) -> 0.0615 | BC12: =CHOOSE(Table1[[#This Row],[Mode Digit]], (Qg_Q1+Qg_Q2)*Fsw, (Qg_Q3+Qg_Q4)*Fsw, (Qg_Q1+Qg_Q2+Qg_Q3+Qg_Q4)*Fsw)*IF(Vout>8, Vout, Table1[[#This Row],[Vin]]) -> 0.750628 | BD12: 0.5633230769 | BE12: =Table1[[#This Row],[IQ Loss]]+Table1[[#This Row],[Switching Current Loss]] -> 0.812128 | BF12: =SUM(Table1[[#This Row],[Total Inductor Loss]],Table1[[#This Row],[Total Cout Loss]],Table1[[#This Row],[Total Cin Loss]],Table1[[#This Row],[Total Control MOSFET Loss]],Table1[[#This Row],[Total Sync MOSFET Loss]],Table1[[#This Row],[Total Control MOSFET Loss8]],Table1[[#This Row],[Total Sync MOSFET Loss12]], Table1[[#This Row],[Deadtime Loss13]],Table1[[#This Row],[Reverse Recovery Loss]],Table1[[#This Row],[Total IC Loss]],Table1[[#This Row],[Isense Shunt Loss]],Table1[[#This Row],[Iout Shunt Loss]]) -> 9.93868144 | BG12: =Vout*Table1[[#This Row],[Iout]] -> 127.1 | BH12: =Table1[[#This Row],[Pout]]/(Table1[[#This Row],[Pout]]+Table1[[#This Row],[Total Loss]]) -> 0.9274753571 | BI12: =IF(Table1[[#This Row],[Vin]]>Vout,ThetaJA_Q1*(Table1[[#This Row],[Total Control MOSFET Loss]]+Table1[[#This Row],[Reverse Recovery Loss]]),ThetaJA_Q4*(Table1[[#This Row],[Total Control MOSFET Loss8]]+Table1[[#This Row],[Reverse Recovery Loss]])) -> 310.8674358 | BJ12: =IF(Table1[[#This Row],[Vin]]>Vout, Table1[[#This Row],[Total Sync MOSFET Loss]]*ThetaJA_Q2, ThetaJA_Q3*Table1[[#This Row],[Total Sync MOSFET Loss12]]) -> 92.28452965 | BL12: =Table1[[#This Row],[EFF, h]]*100 -> 92.74753571 | BM12: =Table1[[#This Row],[Total Inductor Loss]] -> 0.4060975019 | BN12: =Table1[[#This Row],[Total Control MOSFET Loss]]+Table1[[#This Row],[Total Sync MOSFET Loss]]+Table1[[#This Row],[Total Control MOSFET Loss8]]+Table1[[#This Row],[Total Sync MOSFET Loss12]]+Table1[[#This Row],[Reverse Recovery Loss]] -> 7.734099975 | BO12: =Table1[[#This Row],[Total Sync MOSFET Loss]]+Table1[[#This Row],[Reverse Recovery Loss]]*0.33 -> 0.9678162723 | BP12: =Table1[[#This Row],[Isense Shunt Loss]] -> 0.2442079588 | BT12: 250kHz / 18-1.2V / 20A | BU12: 60 | BV12: 60 | BW12: 60 | BX12: =250000*(18-Vdd)*BW12/1000000000+((250000*BW9/1000000000*Vdd)*2.5/(2*4)) -> 0.198515625 | BY12: 15.88125 | BZ12: 19.8515625 | CA12: 23.821875 | CB12: 27.7921875 | CC12: 31.7625 | CD12: 35.7328125 | CE12: 3.9703125 | CF12: 5.95546875 | CG12: 7.940625 | CH12: 9.92578125
A13: Fsw | B13: =Fsw/1000 -> 398 | C13: kHz | D13: Switching Frequency | G13: 4 | H13: =VIN_min+(VIN_max-VIN_min)*(Table1[[#This Row],[Step]]/200) -> 10.02 | I13: =IF(Table1[[#This Row],[Vin]]>VIN_BB_to_buck, "BUCK", IF(Table1[[#This Row],[Vin]]<=VIN_boost_to_BB,"BOOST","BUCK-BST")) -> BOOST | J13: =IF(Table1[[#This Row],[Mode]]="BOOST",2, IF(Table1[[#This Row],[Mode]]="BUCK", 1,3)) -> 2 | K13: 6.2 | L13: =Vout*Table1[[#This Row],[Iout]]/(Table1[[#This Row],[Vin]]*Efficiency) -> 13.35224288 | M13: =Iout/(1-Table1[[#This Row],[Duty Cycle BOOST Leg]]) -> 12.78634481 | N13: =CHOOSE(Table1[[#This Row],[Mode Digit]],(Vout+(Rdson2+Rs+Rdcr)*Table1[[#This Row],[Iout]])/(Table1[[#This Row],[Vin]]+(Rs+Rdson2-Rdson1)*Table1[[#This Row],[Iout]]),1,IF(Table1[[#This Row],[Vin]]<Vout,D_max_buck_BB,Vout/Table1[[#This Row],[Vin]]*(1-D_min_boost_exitBB_to_buck))) -> 1 | O13: =CHOOSE(Table1[[#This Row],[Mode Digit]],0,(Vout+(Rdson3+Rdcr)*Table1[[#This Row],[Iin]]-Table1[[#This Row],[Vin]])/(Vout+(Rdson3-Rdson4-Rs)*Table1[[#This Row],[Iin]]),IF(Table1[[#This Row],[Vin]]>Vout, (Vout-Table1[[#This Row],[Vin]]*D_max_exitBB_to_buck)/Vout, (Vout-Table1[[#This Row],[Vin]]*D_max_buck_BB)/Vout)) -> 0.5151077114 | P13: =CHOOSE(Table1[[#This Row],[Mode Digit]],0,0,1-((Table1[[#This Row],[Vin]]-Vout)+((VIN_BB_to_buck-VIN_BB_to_boost)/2))/((VIN_BB_to_buck-VIN_BB_to_boost))) -> 0 | Q13: =CHOOSE(Table1[[#This Row],[Mode Digit]],0,Table1[[#This Row],[Duty Cycle BOOST Leg]]/Fsw,(1/Fsw-Table1[[#This Row],[T BOD/BUE]])*Table1[[#This Row],[BOE/BUD BUBO ratio]]) -> 1.294240481e-06 | R13: =CHOOSE(Table1[[#This Row],[Mode Digit]],Table1[[#This Row],[Duty Cycle BUCK Leg]]/Fsw,(1-Table1[[#This Row],[Duty Cycle BOOST Leg]])/Fsw,TonBubo) -> 1.218322333e-06 | S13: =CHOOSE(Table1[[#This Row],[Mode Digit]],(1-Table1[[#This Row],[Duty Cycle BUCK Leg]])/Fsw,0,(1/Fsw-Table1[[#This Row],[T BOD/BUE]]-Table1[[#This Row],[T BOE]])) -> 0 | T13: =MAX(0, CHOOSE(Table1[[#This Row],[Mode Digit]], (Table1[[#This Row],[Vin]]-(Rdson1+Rdcr)*Table1[[#This Row],[Iout]]-Vout)*Table1[[#This Row],[Duty Cycle BUCK Leg]]/(Fsw*Lf), (Table1[[#This Row],[Vin]]-(Rdson4+Rdcr+Rs)*Table1[[#This Row],[Iin]])*Table1[[#This Row],[Duty Cycle BOOST Leg]]/(Fsw*Lf), IF(Table1[[#This Row],[Vin]]<Vout, (Table1[[#This Row],[Vin]]-(Rdson1+Rdson3+Rdcr+Rs)*Table1[[#This Row],[Iin]])*Table1[[#This Row],[T BOE]]/(Lf),(Vout-(Rdson2+Rdson4+Rdcr+Rs)*Table1[[#This Row],[Iout]])*Table1[[#This Row],[T BUD]]/(Lf)))) -> 1.285423493 | U13: =CHOOSE(Table1[[#This Row],[Mode Digit]], SQRT(Table1[[#This Row],[Iout]]^2+(Table1[[#This Row],[Ripple Current pk-pk]]^2)/12), SQRT(Table1[[#This Row],[Iin]]^2+(Table1[[#This Row],[Ripple Current pk-pk]]^2)/12), SQRT(Table1[[#This Row],[Avg IL]]^2+(Table1[[#This Row],[Ripple Current pk-pk]]^2)/12)) -> 13.35739805 | V13: =(Table1[[#This Row],[Irms Lf]]^2*Rdcr*(1+Ltc*Ta-Ltc*25))/(1-Table1[[#This Row],[Irms Lf]]^2*Rdcr*Ltc*ThetaCa) -> 0.3484480161 | W13: =ABS(7.759*10^-3*Fsw^0.9458*(0.00787*Table1[[#This Row],[Ripple Current pk-pk]])^2.304) -> 0.0388815407 | X13: =Table1[[#This Row],[DCR Loss]]+Table1[[#This Row],[Core Loss]] -> 0.3873295568 | Y13: =IF(Table1[[#This Row],[Vin]]>Vout, Table1[[#This Row],[Ripple Current pk-pk]]/SQRT(12), SQRT(Table1[[#This Row],[Duty Cycle BOOST Leg]]/(1-Table1[[#This Row],[Duty Cycle BOOST Leg]]))*SQRT(Table1[[#This Row],[Iout]]^2+(Table1[[#This Row],[Ripple Current pk-pk]]^2)/12)) -> 6.40168812 | Z13: =RCoutEsr*Table1[[#This Row],[Irms Cout]]^2 -> 0.4098161079 | AA13: =Table1[[#This Row],[Cout ESR Loss]] -> 0.4098161079 | AB13: =IF(Table1[[#This Row],[Vin]]>Vout, SQRT(Table1[[#This Row],[Duty Cycle BUCK Leg]]*(1-Table1[[#This Row],[Duty Cycle BUCK Leg]]))*SQRT(Table1[[#This Row],[Iout]]^2+(Table1[[#This Row],[Ripple Current pk-pk]]^2)/12), Table1[[#This Row],[Ripple Current pk-pk]]/SQRT(12)) -> 0.3710697999 | AC13: =RCinEsr*Table1[[#This Row],[Irms Cin]]^2 -> 0.001376927964 | AD13: =Table1[[#This Row],[Cin ESR Loss]] -> 0.001376927964 | AE13: =Table1[[#This Row],[Irms Lf]] -> 13.35739805 | AF13: =Rdson1*Table1[[#This Row],[Irms1]]^2 -> 0.6066282815 | AG13: =CHOOSE(Table1[[#This Row],[Mode Digit]], (Table1[[#This Row],[Vin]]*Table1[[#This Row],[Iout]]/2)*(Fsw)*(Tr_buck+Tf_buck), 0, (Table1[[#This Row],[Vin]]*Table1[[#This Row],[Avg IL]]/2)*(Fsw/1)*(Tr_buck+Tf_buck)) -> 0 | AH13: =IF(Table1[[#This Row],[Vin]]>Vout, IF(Table1[[#This Row],[Iout]]>Table1[[#This Row],[Ripple Current pk-pk]]/2,0,ABS(Table1[[#This Row],[Iout]]-Table1[[#This Row],[Ripple Current pk-pk]]/2)*Vsd_Q1*Deadtime*Fsw),0) -> 0 | AI13: =(Table1[[#This Row],[Dead Time Loss ]]+Table1[[#This Row],[Transition Loss]]+Table1[[#This Row],[RDS(on) Loss]]*(1+RdsonTopTc*Ta-RdsonTopTc*25))/(1-Table1[[#This Row],[RDS(on) Loss]]*RdsonTopTc*ThetaJA_Q1) -> 0.7202245056 | AJ13: =Table1[[#This Row],[Irms Lf]] -> 13.35739805 | AK13: =Rdson2*Table1[[#This Row],[Irms2]]^2 -> 0.6066282815 | AL13: =CHOOSE(Table1[[#This Row],[Mode Digit]], IF(Table1[[#This Row],[Iout]]<Table1[[#This Row],[Ripple Current pk-pk]]/2,Deadtime*Fsw*IF(VfdSky_Q2>0,0,Vsd_Q2)*(Table1[[#This Row],[Iout]]+Table1[[#This Row],[Ripple Current pk-pk]]/2),2*Deadtime*Fsw*IF(VfdSky_Q2>0,0,Vsd_Q2)*Table1[[#This Row],[Iout]]),0, IF(Table1[[#This Row],[Iout]]<Table1[[#This Row],[Ripple Current pk-pk]]/2,Deadtime*Fsw*IF(VfdSky_Q2>0,0,Vsd_Q2)*(Table1[[#This Row],[Iout]]+Table1[[#This Row],[Ripple Current pk-pk]]/2),2*Deadtime*Fsw*IF(VfdSky_Q2>0,0,Vsd_Q2)*Table1[[#This Row],[Iout]])) -> 0 | AM13: =(Table1[[#This Row],[Deadtime Loss]]+Table1[[#This Row],[RDS(on) Loss3]]*(1+RdsonBotTc*Ta-RdsonBotTc*25))/(1-Table1[[#This Row],[RDS(on) Loss3]]*RdsonBotTc*ThetaJA_Q2) -> 0.7202245056 | AN13: =Table1[[#This Row],[Irms Lf]] -> 13.35739805 | AO13: =Rdson4*Table1[[#This Row],[Irms4]]^2 -> 0.6066282815 | AP13: =CHOOSE(Table1[[#This Row],[Mode Digit]], 0, (Vout*Table1[[#This Row],[Iin]]/2)*(Fsw)*(Tr_boost+Tf_boost), (Vout*Iout/2)*(Fsw/1)*(Tr_boost+Tf_boost)) -> 2.767109623 | AQ13: =IF(Table1[[#This Row],[Vin]]>Vout, 0, IF(Table1[[#This Row],[Iin]]>Table1[[#This Row],[Ripple Current pk-pk]]/2,0,ABS(Table1[[#This Row],[Iin]]-Table1[[#This Row],[Ripple Current pk-pk]]/2)*Vsd_Q4*Deadtime*Fsw)) -> 0 | AR13: =(Table1[[#This Row],[Dead Time Loss 7]]+Table1[[#This Row],[Transition Loss6]]+Table1[[#This Row],[RDS(on) Loss5]]*(1+RdsonTopTc*Ta-RdsonTopTc*25))/(1-Table1[[#This Row],[RDS(on) Loss5]]*RdsonTopTc*ThetaJA_Q4) -> 4.00549857 | AS13: =Table1[[#This Row],[Irms Lf]] -> 13.35739805 | AT13: =Rdson3*Table1[[#This Row],[Irms9]]^2 -> 0.6066282815 | AU13: =CHOOSE(Table1[[#This Row],[Mode Digit]], 0, IF(Table1[[#This Row],[Iin]]<Table1[[#This Row],[Ripple Current pk-pk]]/2,Deadtime*Fsw*IF(VfdSky_Q3>0,0,Vsd_Q3)*(Table1[[#This Row],[Iin]]+Table1[[#This Row],[Ripple Current pk-pk]]/2), 2*Deadtime*Fsw*IF(VfdSky_Q3>0,0,Vsd_Q3)*Table1[[#This Row],[Iin]]), IF(Table1[[#This Row],[Iin]]<Table1[[#This Row],[Ripple Current pk-pk]]/2,Deadtime*Fsw*IF(VfdSky_Q3>0,0,Vsd_Q3)*(Table1[[#This Row],[Iin]]+Table1[[#This Row],[Ripple Current pk-pk]]/2), 2*Deadtime*Fsw*IF(VfdSky_Q3>0,0,Vsd_Q3)*Table1[[#This Row],[Iin]])) -> 0.5314192667 | AV13: =(Table1[[#This Row],[Deadtime Loss11]]+Table1[[#This Row],[RDS(on) Loss10]]*(1+RdsonBotTc*Ta-RdsonBotTc*25))/(1-Table1[[#This Row],[RDS(on) Loss10]]*RdsonBotTc*ThetaJA_Q3) -> 1.351156479 | AW13: =CHOOSE(Table1[[#This Row],[Mode Digit]], Rdson3*Table1[[#This Row],[Irms Lf]]^2, Rdson1*Table1[[#This Row],[Irms Lf]]^2, 0) -> 0.6066282815 | AX13: =CHOOSE(Table1[[#This Row],[Mode Digit]], 2*Deadtime*Fsw*IF(VfdSky_Q2>0,VfdSky_Q2,0)*Table1[[#This Row],[Iout]], 2*Deadtime*Fsw*IF(VfdSky_Q3>0,VfdSky_Q3,0)*Table1[[#This Row],[Iin]], 2*Deadtime*Fsw*IF(VfdSky_Q2>0,VfdSky_Q2,0)*Table1[[#This Row],[Iout]]+2*Deadtime*Fsw*IF(VfdSky_Q3>0,VfdSky_Q3,0)*Table1[[#This Row],[Iin]]) -> 0 | AY13: =CHOOSE(Table1[[#This Row],[Mode Digit]], IF(QrrSky_Q2>0,QrrSky_Q2,Qrr_Q2)*Fsw*(Table1[[#This Row],[Vin]]-Table1[[#This Row],[Iout]]*Rdson1), IF(QrrSky_Q3>0,QrrSky_Q3,Qrr_Q3)*Fsw*Vout, IF(QrrSky_Q2>0,QrrSky_Q2,Qrr_Q2)*Fsw*(Table1[[#This Row],[Vin]]-Table1[[#This Row],[Iout]]*Rdson1)+IF(QrrSky_Q3>0,QrrSky_Q3,Qrr_Q3)*Fsw*Vout) -> 0.611925 | AZ13: =CHOOSE(Table1[[#This Row],[Mode Digit]], Rs*Table1[[#This Row],[Irms2]]^2, Rs*Table1[[#This Row],[Irms4]]^2, Rs*(Table1[[#This Row],[Irms2]]^2+Table1[[#This Row],[Irms4]]^2)) -> 0.2319461076 | BA13: 0.3098264 | BB13: =IF(Vout>8, Iq*Vout, Iq*Table1[[#This Row],[Vin]]) -> 0.0615 | BC13: =CHOOSE(Table1[[#This Row],[Mode Digit]], (Qg_Q1+Qg_Q2)*Fsw, (Qg_Q3+Qg_Q4)*Fsw, (Qg_Q1+Qg_Q2+Qg_Q3+Qg_Q4)*Fsw)*IF(Vout>8, Vout, Table1[[#This Row],[Vin]]) -> 0.750628 | BD13: 0.5633230769 | BE13: =Table1[[#This Row],[IQ Loss]]+Table1[[#This Row],[Switching Current Loss]] -> 0.812128 | BF13: =SUM(Table1[[#This Row],[Total Inductor Loss]],Table1[[#This Row],[Total Cout Loss]],Table1[[#This Row],[Total Cin Loss]],Table1[[#This Row],[Total Control MOSFET Loss]],Table1[[#This Row],[Total Sync MOSFET Loss]],Table1[[#This Row],[Total Control MOSFET Loss8]],Table1[[#This Row],[Total Sync MOSFET Loss12]], Table1[[#This Row],[Deadtime Loss13]],Table1[[#This Row],[Reverse Recovery Loss]],Table1[[#This Row],[Total IC Loss]],Table1[[#This Row],[Isense Shunt Loss]],Table1[[#This Row],[Iout Shunt Loss]]) -> 9.561452161 | BG13: =Vout*Table1[[#This Row],[Iout]] -> 127.1 | BH13: =Table1[[#This Row],[Pout]]/(Table1[[#This Row],[Pout]]+Table1[[#This Row],[Total Loss]]) -> 0.9300354854 | BI13: =IF(Table1[[#This Row],[Vin]]>Vout,ThetaJA_Q1*(Table1[[#This Row],[Total Control MOSFET Loss]]+Table1[[#This Row],[Reverse Recovery Loss]]),ThetaJA_Q4*(Table1[[#This Row],[Total Control MOSFET Loss8]]+Table1[[#This Row],[Reverse Recovery Loss]])) -> 300.1325321 | BJ13: =IF(Table1[[#This Row],[Vin]]>Vout, Table1[[#This Row],[Total Sync MOSFET Loss]]*ThetaJA_Q2, ThetaJA_Q3*Table1[[#This Row],[Total Sync MOSFET Loss12]]) -> 87.82517112 | BL13: =Table1[[#This Row],[EFF, h]]*100 -> 93.00354854 | BM13: =Table1[[#This Row],[Total Inductor Loss]] -> 0.3873295568 | BN13: =Table1[[#This Row],[Total Control MOSFET Loss]]+Table1[[#This Row],[Total Sync MOSFET Loss]]+Table1[[#This Row],[Total Control MOSFET Loss8]]+Table1[[#This Row],[Total Sync MOSFET Loss12]]+Table1[[#This Row],[Reverse Recovery Loss]] -> 7.40902906 | BO13: =Table1[[#This Row],[Total Sync MOSFET Loss]]+Table1[[#This Row],[Reverse Recovery Loss]]*0.33 -> 0.9221597556 | BP13: =Table1[[#This Row],[Isense Shunt Loss]] -> 0.2319461076 | BT13: 500kHz / 5-1.2V / 15A | BU13: 30 | BV13: 30 | BW13: 30 | BX13: =500000*(5-Vdd)*BW13/1000000000+((500000*BW9/1000000000*Vdd)*2.5/(2*4)) -> 0.04453125 | BY13: 3.5625 | BZ13: 4.453125 | CA13: 5.34375 | CB13: 6.234375 | CC13: 7.125 | CD13: 8.015625 | CE13: 0.890625 | CF13: 1.3359375 | CG13: 1.78125 | CH13: 2.2265625
A14: Iout | B14: =Iout -> 6.2 | C14: A | D14: Max Output Current | G14: 5 | H14: =VIN_min+(VIN_max-VIN_min)*(Table1[[#This Row],[Step]]/200) -> 10.275 | I14: =IF(Table1[[#This Row],[Vin]]>VIN_BB_to_buck, "BUCK", IF(Table1[[#This Row],[Vin]]<=VIN_boost_to_BB,"BOOST","BUCK-BST")) -> BOOST | J14: =IF(Table1[[#This Row],[Mode]]="BOOST",2, IF(Table1[[#This Row],[Mode]]="BUCK", 1,3)) -> 2 | K14: 6.2 | L14: =Vout*Table1[[#This Row],[Iout]]/(Table1[[#This Row],[Vin]]*Efficiency) -> 13.02087335 | M14: =Iout/(1-Table1[[#This Row],[Duty Cycle BOOST Leg]]) -> 12.46386064 | N14: =CHOOSE(Table1[[#This Row],[Mode Digit]],(Vout+(Rdson2+Rs+Rdcr)*Table1[[#This Row],[Iout]])/(Table1[[#This Row],[Vin]]+(Rs+Rdson2-Rdson1)*Table1[[#This Row],[Iout]]),1,IF(Table1[[#This Row],[Vin]]<Vout,D_max_buck_BB,Vout/Table1[[#This Row],[Vin]]*(1-D_min_boost_exitBB_to_buck))) -> 1 | O14: =CHOOSE(Table1[[#This Row],[Mode Digit]],0,(Vout+(Rdson3+Rdcr)*Table1[[#This Row],[Iin]]-Table1[[#This Row],[Vin]])/(Vout+(Rdson3-Rdson4-Rs)*Table1[[#This Row],[Iin]]),IF(Table1[[#This Row],[Vin]]>Vout, (Vout-Table1[[#This Row],[Vin]]*D_max_exitBB_to_buck)/Vout, (Vout-Table1[[#This Row],[Vin]]*D_max_buck_BB)/Vout)) -> 0.5025618322 | P14: =CHOOSE(Table1[[#This Row],[Mode Digit]],0,0,1-((Table1[[#This Row],[Vin]]-Vout)+((VIN_BB_to_buck-VIN_BB_to_boost)/2))/((VIN_BB_to_buck-VIN_BB_to_boost))) -> 0 | Q14: =CHOOSE(Table1[[#This Row],[Mode Digit]],0,Table1[[#This Row],[Duty Cycle BOOST Leg]]/Fsw,(1/Fsw-Table1[[#This Row],[T BOD/BUE]])*Table1[[#This Row],[BOE/BUD BUBO ratio]]) -> 1.262718171e-06 | R14: =CHOOSE(Table1[[#This Row],[Mode Digit]],Table1[[#This Row],[Duty Cycle BUCK Leg]]/Fsw,(1-Table1[[#This Row],[Duty Cycle BOOST Leg]])/Fsw,TonBubo) -> 1.249844643e-06 | S14: =CHOOSE(Table1[[#This Row],[Mode Digit]],(1-Table1[[#This Row],[Duty Cycle BUCK Leg]])/Fsw,0,(1/Fsw-Table1[[#This Row],[T BOD/BUE]]-Table1[[#This Row],[T BOE]])) -> 0 | T14: =MAX(0, CHOOSE(Table1[[#This Row],[Mode Digit]], (Table1[[#This Row],[Vin]]-(Rdson1+Rdcr)*Table1[[#This Row],[Iout]]-Vout)*Table1[[#This Row],[Duty Cycle BUCK Leg]]/(Fsw*Lf), (Table1[[#This Row],[Vin]]-(Rdson4+Rdcr+Rs)*Table1[[#This Row],[Iin]])*Table1[[#This Row],[Duty Cycle BOOST Leg]]/(Fsw*Lf), IF(Table1[[#This Row],[Vin]]<Vout, (Table1[[#This Row],[Vin]]-(Rdson1+Rdson3+Rdcr+Rs)*Table1[[#This Row],[Iin]])*Table1[[#This Row],[T BOE]]/(Lf),(Vout-(Rdson2+Rdson4+Rdcr+Rs)*Table1[[#This Row],[Iout]])*Table1[[#This Row],[T BUD]]/(Lf)))) -> 1.286591404 | U14: =CHOOSE(Table1[[#This Row],[Mode Digit]], SQRT(Table1[[#This Row],[Iout]]^2+(Table1[[#This Row],[Ripple Current pk-pk]]^2)/12), SQRT(Table1[[#This Row],[Iin]]^2+(Table1[[#This Row],[Ripple Current pk-pk]]^2)/12), SQRT(Table1[[#This Row],[Avg IL]]^2+(Table1[[#This Row],[Ripple Current pk-pk]]^2)/12)) -> 13.02616927 | V14: =(Table1[[#This Row],[Irms Lf]]^2*Rdcr*(1+Ltc*Ta-Ltc*25))/(1-Table1[[#This Row],[Irms Lf]]^2*Rdcr*Ltc*ThetaCa) -> 0.3309292329 | W14: =ABS(7.759*10^-3*Fsw^0.9458*(0.00787*Table1[[#This Row],[Ripple Current pk-pk]])^2.304) -> 0.03896298233 | X14: =Table1[[#This Row],[DCR Loss]]+Table1[[#This Row],[Core Loss]] -> 0.3698922152 | Y14: =IF(Table1[[#This Row],[Vin]]>Vout, Table1[[#This Row],[Ripple Current pk-pk]]/SQRT(12), SQRT(Table1[[#This Row],[Duty Cycle BOOST Leg]]/(1-Table1[[#This Row],[Duty Cycle BOOST Leg]]))*SQRT(Table1[[#This Row],[Iout]]^2+(Table1[[#This Row],[Ripple Current pk-pk]]^2)/12)) -> 6.243020096 | Z14: =RCoutEsr*Table1[[#This Row],[Irms Cout]]^2 -> 0.3897529992 | AA14: =Table1[[#This Row],[Cout ESR Loss]] -> 0.3897529992 | AB14: =IF(Table1[[#This Row],[Vin]]>Vout, SQRT(Table1[[#This Row],[Duty Cycle BUCK Leg]]*(1-Table1[[#This Row],[Duty Cycle BUCK Leg]]))*SQRT(Table1[[#This Row],[Iout]]^2+(Table1[[#This Row],[Ripple Current pk-pk]]^2)/12), Table1[[#This Row],[Ripple Current pk-pk]]/SQRT(12)) -> 0.3714069466 | AC14: =RCinEsr*Table1[[#This Row],[Irms Cin]]^2 -> 0.0013794312 | AD14: =Table1[[#This Row],[Cin ESR Loss]] -> 0.0013794312 | AE14: =Table1[[#This Row],[Irms Lf]] -> 13.02616927 | AF14: =Rdson1*Table1[[#This Row],[Irms1]]^2 -> 0.5769156922 | AG14: =CHOOSE(Table1[[#This Row],[Mode Digit]], (Table1[[#This Row],[Vin]]*Table1[[#This Row],[Iout]]/2)*(Fsw)*(Tr_buck+Tf_buck), 0, (Table1[[#This Row],[Vin]]*Table1[[#This Row],[Avg IL]]/2)*(Fsw/1)*(Tr_buck+Tf_buck)) -> 0 | AH14: =IF(Table1[[#This Row],[Vin]]>Vout, IF(Table1[[#This Row],[Iout]]>Table1[[#This Row],[Ripple Current pk-pk]]/2,0,ABS(Table1[[#This Row],[Iout]]-Table1[[#This Row],[Ripple Current pk-pk]]/2)*Vsd_Q1*Deadtime*Fsw),0) -> 0 | AI14: =(Table1[[#This Row],[Dead Time Loss ]]+Table1[[#This Row],[Transition Loss]]+Table1[[#This Row],[RDS(on) Loss]]*(1+RdsonTopTc*Ta-RdsonTopTc*25))/(1-Table1[[#This Row],[RDS(on) Loss]]*RdsonTopTc*ThetaJA_Q1) -> 0.6787228107 | AJ14: =Table1[[#This Row],[Irms Lf]] -> 13.02616927 | AK14: =Rdson2*Table1[[#This Row],[Irms2]]^2 -> 0.5769156922 | AL14: =CHOOSE(Table1[[#This Row],[Mode Digit]], IF(Table1[[#This Row],[Iout]]<Table1[[#This Row],[Ripple Current pk-pk]]/2,Deadtime*Fsw*IF(VfdSky_Q2>0,0,Vsd_Q2)*(Table1[[#This Row],[Iout]]+Table1[[#This Row],[Ripple Current pk-pk]]/2),2*Deadtime*Fsw*IF(VfdSky_Q2>0,0,Vsd_Q2)*Table1[[#This Row],[Iout]]),0, IF(Table1[[#This Row],[Iout]]<Table1[[#This Row],[Ripple Current pk-pk]]/2,Deadtime*Fsw*IF(VfdSky_Q2>0,0,Vsd_Q2)*(Table1[[#This Row],[Iout]]+Table1[[#This Row],[Ripple Current pk-pk]]/2),2*Deadtime*Fsw*IF(VfdSky_Q2>0,0,Vsd_Q2)*Table1[[#This Row],[Iout]])) -> 0 | AM14: =(Table1[[#This Row],[Deadtime Loss]]+Table1[[#This Row],[RDS(on) Loss3]]*(1+RdsonBotTc*Ta-RdsonBotTc*25))/(1-Table1[[#This Row],[RDS(on) Loss3]]*RdsonBotTc*ThetaJA_Q2) -> 0.6787228107 | AN14: =Table1[[#This Row],[Irms Lf]] -> 13.02616927 | AO14: =Rdson4*Table1[[#This Row],[Irms4]]^2 -> 0.5769156922 | AP14: =CHOOSE(Table1[[#This Row],[Mode Digit]], 0, (Vout*Table1[[#This Row],[Iin]]/2)*(Fsw)*(Tr_boost+Tf_boost), (Vout*Iout/2)*(Fsw/1)*(Tr_boost+Tf_boost)) -> 2.69843683 | AQ14: =IF(Table1[[#This Row],[Vin]]>Vout, 0, IF(Table1[[#This Row],[Iin]]>Table1[[#This Row],[Ripple Current pk-pk]]/2,0,ABS(Table1[[#This Row],[Iin]]-Table1[[#This Row],[Ripple Current pk-pk]]/2)*Vsd_Q4*Deadtime*Fsw)) -> 0 | AR14: =(Table1[[#This Row],[Dead Time Loss 7]]+Table1[[#This Row],[Transition Loss6]]+Table1[[#This Row],[RDS(on) Loss5]]*(1+RdsonTopTc*Ta-RdsonTopTc*25))/(1-Table1[[#This Row],[RDS(on) Loss5]]*RdsonTopTc*ThetaJA_Q4) -> 3.853347204 | AS14: =Table1[[#This Row],[Irms Lf]] -> 13.02616927 | AT14: =Rdson3*Table1[[#This Row],[Irms9]]^2 -> 0.5769156922 | AU14: =CHOOSE(Table1[[#This Row],[Mode Digit]], 0, IF(Table1[[#This Row],[Iin]]<Table1[[#This Row],[Ripple Current pk-pk]]/2,Deadtime*Fsw*IF(VfdSky_Q3>0,0,Vsd_Q3)*(Table1[[#This Row],[Iin]]+Table1[[#This Row],[Ripple Current pk-pk]]/2), 2*Deadtime*Fsw*IF(VfdSky_Q3>0,0,Vsd_Q3)*Table1[[#This Row],[Iin]]), IF(Table1[[#This Row],[Iin]]<Table1[[#This Row],[Ripple Current pk-pk]]/2,Deadtime*Fsw*IF(VfdSky_Q3>0,0,Vsd_Q3)*(Table1[[#This Row],[Iin]]+Table1[[#This Row],[Ripple Current pk-pk]]/2), 2*Deadtime*Fsw*IF(VfdSky_Q3>0,0,Vsd_Q3)*Table1[[#This Row],[Iin]])) -> 0.5182307594 | AV14: =(Table1[[#This Row],[Deadtime Loss11]]+Table1[[#This Row],[RDS(on) Loss10]]*(1+RdsonBotTc*Ta-RdsonBotTc*25))/(1-Table1[[#This Row],[RDS(on) Loss10]]*RdsonBotTc*ThetaJA_Q3) -> 1.28840468 | AW14: =CHOOSE(Table1[[#This Row],[Mode Digit]], Rdson3*Table1[[#This Row],[Irms Lf]]^2, Rdson1*Table1[[#This Row],[Irms Lf]]^2, 0) -> 0.5769156922 | AX14: =CHOOSE(Table1[[#This Row],[Mode Digit]], 2*Deadtime*Fsw*IF(VfdSky_Q2>0,VfdSky_Q2,0)*Table1[[#This Row],[Iout]], 2*Deadtime*Fsw*IF(VfdSky_Q3>0,VfdSky_Q3,0)*Table1[[#This Row],[Iin]], 2*Deadtime*Fsw*IF(VfdSky_Q2>0,VfdSky_Q2,0)*Table1[[#This Row],[Iout]]+2*Deadtime*Fsw*IF(VfdSky_Q3>0,VfdSky_Q3,0)*Table1[[#This Row],[Iin]]) -> 0 | AY14: =CHOOSE(Table1[[#This Row],[Mode Digit]], IF(QrrSky_Q2>0,QrrSky_Q2,Qrr_Q2)*Fsw*(Table1[[#This Row],[Vin]]-Table1[[#This Row],[Iout]]*Rdson1), IF(QrrSky_Q3>0,QrrSky_Q3,Qrr_Q3)*Fsw*Vout, IF(QrrSky_Q2>0,QrrSky_Q2,Qrr_Q2)*Fsw*(Table1[[#This Row],[Vin]]-Table1[[#This Row],[Iout]]*Rdson1)+IF(QrrSky_Q3>0,QrrSky_Q3,Qrr_Q3)*Fsw*Vout) -> 0.611925 | AZ14: =CHOOSE(Table1[[#This Row],[Mode Digit]], Rs*Table1[[#This Row],[Irms2]]^2, Rs*Table1[[#This Row],[Irms4]]^2, Rs*(Table1[[#This Row],[Irms2]]^2+Table1[[#This Row],[Irms4]]^2)) -> 0.2205854117 | BA14: 0.3098264 | BB14: =IF(Vout>8, Iq*Vout, Iq*Table1[[#This Row],[Vin]]) -> 0.0615 | BC14: =CHOOSE(Table1[[#This Row],[Mode Digit]], (Qg_Q1+Qg_Q2)*Fsw, (Qg_Q3+Qg_Q4)*Fsw, (Qg_Q1+Qg_Q2+Qg_Q3+Qg_Q4)*Fsw)*IF(Vout>8, Vout, Table1[[#This Row],[Vin]]) -> 0.750628 | BD14: 0.5633230769 | BE14: =Table1[[#This Row],[IQ Loss]]+Table1[[#This Row],[Switching Current Loss]] -> 0.812128 | BF14: =SUM(Table1[[#This Row],[Total Inductor Loss]],Table1[[#This Row],[Total Cout Loss]],Table1[[#This Row],[Total Cin Loss]],Table1[[#This Row],[Total Control MOSFET Loss]],Table1[[#This Row],[Total Sync MOSFET Loss]],Table1[[#This Row],[Total Control MOSFET Loss8]],Table1[[#This Row],[Total Sync MOSFET Loss12]], Table1[[#This Row],[Deadtime Loss13]],Table1[[#This Row],[Reverse Recovery Loss]],Table1[[#This Row],[Total IC Loss]],Table1[[#This Row],[Isense Shunt Loss]],Table1[[#This Row],[Iout Shunt Loss]]) -> 9.214686962 | BG14: =Vout*Table1[[#This Row],[Iout]] -> 127.1 | BH14: =Table1[[#This Row],[Pout]]/(Table1[[#This Row],[Pout]]+Table1[[#This Row],[Total Loss]]) -> 0.9324013636 | BI14: =IF(Table1[[#This Row],[Vin]]>Vout,ThetaJA_Q1*(Table1[[#This Row],[Total Control MOSFET Loss]]+Table1[[#This Row],[Reverse Recovery Loss]]),ThetaJA_Q4*(Table1[[#This Row],[Total Control MOSFET Loss8]]+Table1[[#This Row],[Reverse Recovery Loss]])) -> 290.2426933 | BJ14: =IF(Table1[[#This Row],[Vin]]>Vout, Table1[[#This Row],[Total Sync MOSFET Loss]]*ThetaJA_Q2, ThetaJA_Q3*Table1[[#This Row],[Total Sync MOSFET Loss12]]) -> 83.74630419 | BL14: =Table1[[#This Row],[EFF, h]]*100 -> 93.24013636 | BM14: =Table1[[#This Row],[Total Inductor Loss]] -> 0.3698922152 | BN14: =Table1[[#This Row],[Total Control MOSFET Loss]]+Table1[[#This Row],[Total Sync MOSFET Loss]]+Table1[[#This Row],[Total Control MOSFET Loss8]]+Table1[[#This Row],[Total Sync MOSFET Loss12]]+Table1[[#This Row],[Reverse Recovery Loss]] -> 7.111122505 | BO14: =Table1[[#This Row],[Total Sync MOSFET Loss]]+Table1[[#This Row],[Reverse Recovery Loss]]*0.33 -> 0.8806580607 | BP14: =Table1[[#This Row],[Isense Shunt Loss]] -> 0.2205854117 | BT14: 500kHz / 12-5V / 15A | BU14: 45 | BV14: 45 | BW14: 45 | BX14: =500000*(12-Vdd)*BW14/1000000000+((500000*BW9/1000000000*Vdd)*2.5/(2*4)) -> 0.18328125 | BY14: 14.6625 | BZ14: 18.328125 | CA14: 21.99375 | CB14: 25.659375 | CC14: 29.325 | CD14: 32.990625 | CE14: 3.665625 | CF14: 5.4984375 | CG14: 7.33125 | CH14: 9.1640625
A15: Ta | B15: =Ta -> 25 | C15: °C | D15: Ambient Temperature | G15: 6 | H15: =VIN_min+(VIN_max-VIN_min)*(Table1[[#This Row],[Step]]/200) -> 10.53 | I15: =IF(Table1[[#This Row],[Vin]]>VIN_BB_to_buck, "BUCK", IF(Table1[[#This Row],[Vin]]<=VIN_boost_to_BB,"BOOST","BUCK-BST")) -> BOOST | J15: =IF(Table1[[#This Row],[Mode]]="BOOST",2, IF(Table1[[#This Row],[Mode]]="BUCK", 1,3)) -> 2 | K15: 6.2 | L15: =Vout*Table1[[#This Row],[Iout]]/(Table1[[#This Row],[Vin]]*Efficiency) -> 12.70555306 | M15: =Iout/(1-Table1[[#This Row],[Duty Cycle BOOST Leg]]) -> 12.1573665 | N15: =CHOOSE(Table1[[#This Row],[Mode Digit]],(Vout+(Rdson2+Rs+Rdcr)*Table1[[#This Row],[Iout]])/(Table1[[#This Row],[Vin]]+(Rs+Rdson2-Rdson1)*Table1[[#This Row],[Iout]]),1,IF(Table1[[#This Row],[Vin]]<Vout,D_max_buck_BB,Vout/Table1[[#This Row],[Vin]]*(1-D_min_boost_exitBB_to_buck))) -> 1 | O15: =CHOOSE(Table1[[#This Row],[Mode Digit]],0,(Vout+(Rdson3+Rdcr)*Table1[[#This Row],[Iin]]-Table1[[#This Row],[Vin]])/(Vout+(Rdson3-Rdson4-Rs)*Table1[[#This Row],[Iin]]),IF(Table1[[#This Row],[Vin]]>Vout, (Vout-Table1[[#This Row],[Vin]]*D_max_exitBB_to_buck)/Vout, (Vout-Table1[[#This Row],[Vin]]*D_max_buck_BB)/Vout)) -> 0.4900211326 | P15: =CHOOSE(Table1[[#This Row],[Mode Digit]],0,0,1-((Table1[[#This Row],[Vin]]-Vout)+((VIN_BB_to_buck-VIN_BB_to_boost)/2))/((VIN_BB_to_buck-VIN_BB_to_boost))) -> 0 | Q15: =CHOOSE(Table1[[#This Row],[Mode Digit]],0,Table1[[#This Row],[Duty Cycle BOOST Leg]]/Fsw,(1/Fsw-Table1[[#This Row],[T BOD/BUE]])*Table1[[#This Row],[BOE/BUD BUBO ratio]]) -> 1.231208876e-06 | R15: =CHOOSE(Table1[[#This Row],[Mode Digit]],Table1[[#This Row],[Duty Cycle BUCK Leg]]/Fsw,(1-Table1[[#This Row],[Duty Cycle BOOST Leg]])/Fsw,TonBubo) -> 1.281353938e-06 | S15: =CHOOSE(Table1[[#This Row],[Mode Digit]],(1-Table1[[#This Row],[Duty Cycle BUCK Leg]])/Fsw,0,(1/Fsw-Table1[[#This Row],[T BOD/BUE]]-Table1[[#This Row],[T BOE]])) -> 0 | T15: =MAX(0, CHOOSE(Table1[[#This Row],[Mode Digit]], (Table1[[#This Row],[Vin]]-(Rdson1+Rdcr)*Table1[[#This Row],[Iout]]-Vout)*Table1[[#This Row],[Duty Cycle BUCK Leg]]/(Fsw*Lf), (Table1[[#This Row],[Vin]]-(Rdson4+Rdcr+Rs)*Table1[[#This Row],[Iin]])*Table1[[#This Row],[Duty Cycle BOOST Leg]]/(Fsw*Lf), IF(Table1[[#This Row],[Vin]]<Vout, (Table1[[#This Row],[Vin]]-(Rdson1+Rdson3+Rdcr+Rs)*Table1[[#This Row],[Iin]])*Table1[[#This Row],[T BOE]]/(Lf),(Vout-(Rdson2+Rdson4+Rdcr+Rs)*Table1[[#This Row],[Iout]])*Table1[[#This Row],[T BUD]]/(Lf)))) -> 1.286138441 | U15: =CHOOSE(Table1[[#This Row],[Mode Digit]], SQRT(Table1[[#This Row],[Iout]]^2+(Table1[[#This Row],[Ripple Current pk-pk]]^2)/12), SQRT(Table1[[#This Row],[Iin]]^2+(Table1[[#This Row],[Ripple Current pk-pk]]^2)/12), SQRT(Table1[[#This Row],[Avg IL]]^2+(Table1[[#This Row],[Ripple Current pk-pk]]^2)/12)) -> 12.71097654 | V15: =(Table1[[#This Row],[Irms Lf]]^2*Rdcr*(1+Ltc*Ta-Ltc*25))/(1-Table1[[#This Row],[Irms Lf]]^2*Rdcr*Ltc*ThetaCa) -> 0.3147097485 | W15: =ABS(7.759*10^-3*Fsw^0.9458*(0.00787*Table1[[#This Row],[Ripple Current pk-pk]])^2.304) -> 0.03893138455 | X15: =Table1[[#This Row],[DCR Loss]]+Table1[[#This Row],[Core Loss]] -> 0.353641133 | Y15: =IF(Table1[[#This Row],[Vin]]>Vout, Table1[[#This Row],[Ripple Current pk-pk]]/SQRT(12), SQRT(Table1[[#This Row],[Duty Cycle BOOST Leg]]/(1-Table1[[#This Row],[Duty Cycle BOOST Leg]]))*SQRT(Table1[[#This Row],[Iout]]^2+(Table1[[#This Row],[Ripple Current pk-pk]]^2)/12)) -> 6.088359697 | Z15: =RCoutEsr*Table1[[#This Row],[Irms Cout]]^2 -> 0.370681238 | AA15: =Table1[[#This Row],[Cout ESR Loss]] -> 0.370681238 | AB15: =IF(Table1[[#This Row],[Vin]]>Vout, SQRT(Table1[[#This Row],[Duty Cycle BUCK Leg]]*(1-Table1[[#This Row],[Duty Cycle BUCK Leg]]))*SQRT(Table1[[#This Row],[Iout]]^2+(Table1[[#This Row],[Ripple Current pk-pk]]^2)/12), Table1[[#This Row],[Ripple Current pk-pk]]/SQRT(12)) -> 0.3712761876 | AC15: =RCinEsr*Table1[[#This Row],[Irms Cin]]^2 -> 0.001378460075 | AD15: =Table1[[#This Row],[Cin ESR Loss]] -> 0.001378460075 | AE15: =Table1[[#This Row],[Irms Lf]] -> 12.71097654 | AF15: =Rdson1*Table1[[#This Row],[Irms1]]^2 -> 0.5493343432 | AG15: =CHOOSE(Table1[[#This Row],[Mode Digit]], (Table1[[#This Row],[Vin]]*Table1[[#This Row],[Iout]]/2)*(Fsw)*(Tr_buck+Tf_buck), 0, (Table1[[#This Row],[Vin]]*Table1[[#This Row],[Avg IL]]/2)*(Fsw/1)*(Tr_buck+Tf_buck)) -> 0 | AH15: =IF(Table1[[#This Row],[Vin]]>Vout, IF(Table1[[#This Row],[Iout]]>Table1[[#This Row],[Ripple Current pk-pk]]/2,0,ABS(Table1[[#This Row],[Iout]]-Table1[[#This Row],[Ripple Current pk-pk]]/2)*Vsd_Q1*Deadtime*Fsw),0) -> 0 | AI15: =(Table1[[#This Row],[Dead Time Loss ]]+Table1[[#This Row],[Transition Loss]]+Table1[[#This Row],[RDS(on) Loss]]*(1+RdsonTopTc*Ta-RdsonTopTc*25))/(1-Table1[[#This Row],[RDS(on) Loss]]*RdsonTopTc*ThetaJA_Q1) -> 0.640867477 | AJ15: =Table1[[#This Row],[Irms Lf]] -> 12.71097654 | AK15: =Rdson2*Table1[[#This Row],[Irms2]]^2 -> 0.5493343432 | AL15: =CHOOSE(Table1[[#This Row],[Mode Digit]], IF(Table1[[#This Row],[Iout]]<Table1[[#This Row],[Ripple Current pk-pk]]/2,Deadtime*Fsw*IF(VfdSky_Q2>0,0,Vsd_Q2)*(Table1[[#This Row],[Iout]]+Table1[[#This Row],[Ripple Current pk-pk]]/2),2*Deadtime*Fsw*IF(VfdSky_Q2>0,0,Vsd_Q2)*Table1[[#This Row],[Iout]]),0, IF(Table1[[#This Row],[Iout]]<Table1[[#This Row],[Ripple Current pk-pk]]/2,Deadtime*Fsw*IF(VfdSky_Q2>0,0,Vsd_Q2)*(Table1[[#This Row],[Iout]]+Table1[[#This Row],[Ripple Current pk-pk]]/2),2*Deadtime*Fsw*IF(VfdSky_Q2>0,0,Vsd_Q2)*Table1[[#This Row],[Iout]])) -> 0 | AM15: =(Table1[[#This Row],[Deadtime Loss]]+Table1[[#This Row],[RDS(on) Loss3]]*(1+RdsonBotTc*Ta-RdsonBotTc*25))/(1-Table1[[#This Row],[RDS(on) Loss3]]*RdsonBotTc*ThetaJA_Q2) -> 0.640867477 | AN15: =Table1[[#This Row],[Irms Lf]] -> 12.71097654 | AO15: =Rdson4*Table1[[#This Row],[Irms4]]^2 -> 0.5493343432 | AP15: =CHOOSE(Table1[[#This Row],[Mode Digit]], 0, (Vout*Table1[[#This Row],[Iin]]/2)*(Fsw)*(Tr_boost+Tf_boost), (Vout*Iout/2)*(Fsw/1)*(Tr_boost+Tf_boost)) -> 2.633090069 | AQ15: =IF(Table1[[#This Row],[Vin]]>Vout, 0, IF(Table1[[#This Row],[Iin]]>Table1[[#This Row],[Ripple Current pk-pk]]/2,0,ABS(Table1[[#This Row],[Iin]]-Table1[[#This Row],[Ripple Current pk-pk]]/2)*Vsd_Q4*Deadtime*Fsw)) -> 0 | AR15: =(Table1[[#This Row],[Dead Time Loss 7]]+Table1[[#This Row],[Transition Loss6]]+Table1[[#This Row],[RDS(on) Loss5]]*(1+RdsonTopTc*Ta-RdsonTopTc*25))/(1-Table1[[#This Row],[RDS(on) Loss5]]*RdsonTopTc*ThetaJA_Q4) -> 3.712697611 | AS15: =Table1[[#This Row],[Irms Lf]] -> 12.71097654 | AT15: =Rdson3*Table1[[#This Row],[Irms9]]^2 -> 0.5493343432 | AU15: =CHOOSE(Table1[[#This Row],[Mode Digit]], 0, IF(Table1[[#This Row],[Iin]]<Table1[[#This Row],[Ripple Current pk-pk]]/2,Deadtime*Fsw*IF(VfdSky_Q3>0,0,Vsd_Q3)*(Table1[[#This Row],[Iin]]+Table1[[#This Row],[Ripple Current pk-pk]]/2), 2*Deadtime*Fsw*IF(VfdSky_Q3>0,0,Vsd_Q3)*Table1[[#This Row],[Iin]]), IF(Table1[[#This Row],[Iin]]<Table1[[#This Row],[Ripple Current pk-pk]]/2,Deadtime*Fsw*IF(VfdSky_Q3>0,0,Vsd_Q3)*(Table1[[#This Row],[Iin]]+Table1[[#This Row],[Ripple Current pk-pk]]/2), 2*Deadtime*Fsw*IF(VfdSky_Q3>0,0,Vsd_Q3)*Table1[[#This Row],[Iin]])) -> 0.5056810116 | AV15: =(Table1[[#This Row],[Deadtime Loss11]]+Table1[[#This Row],[RDS(on) Loss10]]*(1+RdsonBotTc*Ta-RdsonBotTc*25))/(1-Table1[[#This Row],[RDS(on) Loss10]]*RdsonBotTc*ThetaJA_Q3) -> 1.230807862 | AW15: =CHOOSE(Table1[[#This Row],[Mode Digit]], Rdson3*Table1[[#This Row],[Irms Lf]]^2, Rdson1*Table1[[#This Row],[Irms Lf]]^2, 0) -> 0.5493343432 | AX15: =CHOOSE(Table1[[#This Row],[Mode Digit]], 2*Deadtime*Fsw*IF(VfdSky_Q2>0,VfdSky_Q2,0)*Table1[[#This Row],[Iout]], 2*Deadtime*Fsw*IF(VfdSky_Q3>0,VfdSky_Q3,0)*Table1[[#This Row],[Iin]], 2*Deadtime*Fsw*IF(VfdSky_Q2>0,VfdSky_Q2,0)*Table1[[#This Row],[Iout]]+2*Deadtime*Fsw*IF(VfdSky_Q3>0,VfdSky_Q3,0)*Table1[[#This Row],[Iin]]) -> 0 | AY15: =CHOOSE(Table1[[#This Row],[Mode Digit]], IF(QrrSky_Q2>0,QrrSky_Q2,Qrr_Q2)*Fsw*(Table1[[#This Row],[Vin]]-Table1[[#This Row],[Iout]]*Rdson1), IF(QrrSky_Q3>0,QrrSky_Q3,Qrr_Q3)*Fsw*Vout, IF(QrrSky_Q2>0,QrrSky_Q2,Qrr_Q2)*Fsw*(Table1[[#This Row],[Vin]]-Table1[[#This Row],[Iout]]*Rdson1)+IF(QrrSky_Q3>0,QrrSky_Q3,Qrr_Q3)*Fsw*Vout) -> 0.611925 | AZ15: =CHOOSE(Table1[[#This Row],[Mode Digit]], Rs*Table1[[#This Row],[Irms2]]^2, Rs*Table1[[#This Row],[Irms4]]^2, Rs*(Table1[[#This Row],[Irms2]]^2+Table1[[#This Row],[Irms4]]^2)) -> 0.2100396018 | BA15: 0.3098264 | BB15: =IF(Vout>8, Iq*Vout, Iq*Table1[[#This Row],[Vin]]) -> 0.0615 | BC15: =CHOOSE(Table1[[#This Row],[Mode Digit]], (Qg_Q1+Qg_Q2)*Fsw, (Qg_Q3+Qg_Q4)*Fsw, (Qg_Q1+Qg_Q2+Qg_Q3+Qg_Q4)*Fsw)*IF(Vout>8, Vout, Table1[[#This Row],[Vin]]) -> 0.750628 | BD15: 0.5633230769 | BE15: =Table1[[#This Row],[IQ Loss]]+Table1[[#This Row],[Switching Current Loss]] -> 0.812128 | BF15: =SUM(Table1[[#This Row],[Total Inductor Loss]],Table1[[#This Row],[Total Cout Loss]],Table1[[#This Row],[Total Cin Loss]],Table1[[#This Row],[Total Control MOSFET Loss]],Table1[[#This Row],[Total Sync MOSFET Loss]],Table1[[#This Row],[Total Control MOSFET Loss8]],Table1[[#This Row],[Total Sync MOSFET Loss12]], Table1[[#This Row],[Deadtime Loss13]],Table1[[#This Row],[Reverse Recovery Loss]],Table1[[#This Row],[Total IC Loss]],Table1[[#This Row],[Isense Shunt Loss]],Table1[[#This Row],[Iout Shunt Loss]]) -> 8.89486026 | BG15: =Vout*Table1[[#This Row],[Iout]] -> 127.1 | BH15: =Table1[[#This Row],[Pout]]/(Table1[[#This Row],[Pout]]+Table1[[#This Row],[Total Loss]]) -> 0.9345941439 | BI15: =IF(Table1[[#This Row],[Vin]]>Vout,ThetaJA_Q1*(Table1[[#This Row],[Total Control MOSFET Loss]]+Table1[[#This Row],[Reverse Recovery Loss]]),ThetaJA_Q4*(Table1[[#This Row],[Total Control MOSFET Loss8]]+Table1[[#This Row],[Reverse Recovery Loss]])) -> 281.1004697 | BJ15: =IF(Table1[[#This Row],[Vin]]>Vout, Table1[[#This Row],[Total Sync MOSFET Loss]]*ThetaJA_Q2, ThetaJA_Q3*Table1[[#This Row],[Total Sync MOSFET Loss12]]) -> 80.00251105 | BL15: =Table1[[#This Row],[EFF, h]]*100 -> 93.45941439 | BM15: =Table1[[#This Row],[Total Inductor Loss]] -> 0.353641133 | BN15: =Table1[[#This Row],[Total Control MOSFET Loss]]+Table1[[#This Row],[Total Sync MOSFET Loss]]+Table1[[#This Row],[Total Control MOSFET Loss8]]+Table1[[#This Row],[Total Sync MOSFET Loss12]]+Table1[[#This Row],[Reverse Recovery Loss]] -> 6.837165427 | BO15: =Table1[[#This Row],[Total Sync MOSFET Loss]]+Table1[[#This Row],[Reverse Recovery Loss]]*0.33 -> 0.842802727 | BP15: =Table1[[#This Row],[Isense Shunt Loss]] -> 0.2100396018 | BT15: 1Mhz / 5-1.2V / 10A | BU15: 20 | BV15: 20 | BW15: 20 | BX15: =1000000*(5-Vdd)*BW15/1000000000+((1000000*BW9/1000000000*Vdd)*2.5/(2*4)) -> 0.1140625 | BY15: 9.125 | BZ15: 11.40625 | CA15: 13.6875 | CB15: 15.96875 | CC15: 18.25 | CD15: 20.53125 | CE15: 2.28125 | CF15: 3.421875 | CG15: 4.5625 | CH15: 5.703125
A16: Vcc | B16: =Vdd -> 7.5 | C16: V | D16: Subregulated VCC Voltage | G16: 7 | H16: =VIN_min+(VIN_max-VIN_min)*(Table1[[#This Row],[Step]]/200) -> 10.785 | I16: =IF(Table1[[#This Row],[Vin]]>VIN_BB_to_buck, "BUCK", IF(Table1[[#This Row],[Vin]]<=VIN_boost_to_BB,"BOOST","BUCK-BST")) -> BOOST | J16: =IF(Table1[[#This Row],[Mode]]="BOOST",2, IF(Table1[[#This Row],[Mode]]="BUCK", 1,3)) -> 2 | K16: 6.2 | L16: =Vout*Table1[[#This Row],[Iout]]/(Table1[[#This Row],[Vin]]*Efficiency) -> 12.4051436 | M16: =Iout/(1-Table1[[#This Row],[Duty Cycle BOOST Leg]]) -> 11.86569362 | N16: =CHOOSE(Table1[[#This Row],[Mode Digit]],(Vout+(Rdson2+Rs+Rdcr)*Table1[[#This Row],[Iout]])/(Table1[[#This Row],[Vin]]+(Rs+Rdson2-Rdson1)*Table1[[#This Row],[Iout]]),1,IF(Table1[[#This Row],[Vin]]<Vout,D_max_buck_BB,Vout/Table1[[#This Row],[Vin]]*(1-D_min_boost_exitBB_to_buck))) -> 1 | O16: =CHOOSE(Table1[[#This Row],[Mode Digit]],0,(Vout+(Rdson3+Rdcr)*Table1[[#This Row],[Iin]]-Table1[[#This Row],[Vin]])/(Vout+(Rdson3-Rdson4-Rs)*Table1[[#This Row],[Iin]]),IF(Table1[[#This Row],[Vin]]>Vout, (Vout-Table1[[#This Row],[Vin]]*D_max_exitBB_to_buck)/Vout, (Vout-Table1[[#This Row],[Vin]]*D_max_buck_BB)/Vout)) -> 0.4774852447 | P16: =CHOOSE(Table1[[#This Row],[Mode Digit]],0,0,1-((Table1[[#This Row],[Vin]]-Vout)+((VIN_BB_to_buck-VIN_BB_to_boost)/2))/((VIN_BB_to_buck-VIN_BB_to_boost))) -> 0 | Q16: =CHOOSE(Table1[[#This Row],[Mode Digit]],0,Table1[[#This Row],[Duty Cycle BOOST Leg]]/Fsw,(1/Fsw-Table1[[#This Row],[T BOD/BUE]])*Table1[[#This Row],[BOE/BUD BUBO ratio]]) -> 1.19971167e-06 | R16: =CHOOSE(Table1[[#This Row],[Mode Digit]],Table1[[#This Row],[Duty Cycle BUCK Leg]]/Fsw,(1-Table1[[#This Row],[Duty Cycle BOOST Leg]])/Fsw,TonBubo) -> 1.312851144e-06 | S16: =CHOOSE(Table1[[#This Row],[Mode Digit]],(1-Table1[[#This Row],[Duty Cycle BUCK Leg]])/Fsw,0,(1/Fsw-Table1[[#This Row],[T BOD/BUE]]-Table1[[#This Row],[T BOE]])) -> 0 | T16: =MAX(0, CHOOSE(Table1[[#This Row],[Mode Digit]], (Table1[[#This Row],[Vin]]-(Rdson1+Rdcr)*Table1[[#This Row],[Iout]]-Vout)*Table1[[#This Row],[Duty Cycle BUCK Leg]]/(Fsw*Lf), (Table1[[#This Row],[Vin]]-(Rdson4+Rdcr+Rs)*Table1[[#This Row],[Iin]])*Table1[[#This Row],[Duty Cycle BOOST Leg]]/(Fsw*Lf), IF(Table1[[#This Row],[Vin]]<Vout, (Table1[[#This Row],[Vin]]-(Rdson1+Rdson3+Rdcr+Rs)*Table1[[#This Row],[Iin]])*Table1[[#This Row],[T BOE]]/(Lf),(Vout-(Rdson2+Rdson4+Rdcr+Rs)*Table1[[#This Row],[Iout]])*Table1[[#This Row],[T BUD]]/(Lf)))) -> 1.284066523 | U16: =CHOOSE(Table1[[#This Row],[Mode Digit]], SQRT(Table1[[#This Row],[Iout]]^2+(Table1[[#This Row],[Ripple Current pk-pk]]^2)/12), SQRT(Table1[[#This Row],[Iin]]^2+(Table1[[#This Row],[Ripple Current pk-pk]]^2)/12), SQRT(Table1[[#This Row],[Avg IL]]^2+(Table1[[#This Row],[Ripple Current pk-pk]]^2)/12)) -> 12.41068048 | V16: =(Table1[[#This Row],[Irms Lf]]^2*Rdcr*(1+Ltc*Ta-Ltc*25))/(1-Table1[[#This Row],[Irms Lf]]^2*Rdcr*Ltc*ThetaCa) -> 0.2996631337 | W16: =ABS(7.759*10^-3*Fsw^0.9458*(0.00787*Table1[[#This Row],[Ripple Current pk-pk]])^2.304) -> 0.03878703653 | X16: =Table1[[#This Row],[DCR Loss]]+Table1[[#This Row],[Core Loss]] -> 0.3384501702 | Y16: =IF(Table1[[#This Row],[Vin]]>Vout, Table1[[#This Row],[Ripple Current pk-pk]]/SQRT(12), SQRT(Table1[[#This Row],[Duty Cycle BOOST Leg]]/(1-Table1[[#This Row],[Duty Cycle BOOST Leg]]))*SQRT(Table1[[#This Row],[Iout]]^2+(Table1[[#This Row],[Ripple Current pk-pk]]^2)/12)) -> 5.937412028 | Z16: =RCoutEsr*Table1[[#This Row],[Irms Cout]]^2 -> 0.3525286159 | AA16: =Table1[[#This Row],[Cout ESR Loss]] -> 0.3525286159 | AB16: =IF(Table1[[#This Row],[Vin]]>Vout, SQRT(Table1[[#This Row],[Duty Cycle BUCK Leg]]*(1-Table1[[#This Row],[Duty Cycle BUCK Leg]]))*SQRT(Table1[[#This Row],[Iout]]^2+(Table1[[#This Row],[Ripple Current pk-pk]]^2)/12), Table1[[#This Row],[Ripple Current pk-pk]]/SQRT(12)) -> 0.3706780764 | AC16: =RCinEsr*Table1[[#This Row],[Irms Cin]]^2 -> 0.001374022363 | AD16: =Table1[[#This Row],[Cin ESR Loss]] -> 0.001374022363 | AE16: =Table1[[#This Row],[Irms Lf]] -> 12.41068048 | AF16: =Rdson1*Table1[[#This Row],[Irms1]]^2 -> 0.5236849656 | AG16: =CHOOSE(Table1[[#This Row],[Mode Digit]], (Table1[[#This Row],[Vin]]*Table1[[#This Row],[Iout]]/2)*(Fsw)*(Tr_buck+Tf_buck), 0, (Table1[[#This Row],[Vin]]*Table1[[#This Row],[Avg IL]]/2)*(Fsw/1)*(Tr_buck+Tf_buck)) -> 0 | AH16: =IF(Table1[[#This Row],[Vin]]>Vout, IF(Table1[[#This Row],[Iout]]>Table1[[#This Row],[Ripple Current pk-pk]]/2,0,ABS(Table1[[#This Row],[Iout]]-Table1[[#This Row],[Ripple Current pk-pk]]/2)*Vsd_Q1*Deadtime*Fsw),0) -> 0 | AI16: =(Table1[[#This Row],[Dead Time Loss ]]+Table1[[#This Row],[Transition Loss]]+Table1[[#This Row],[RDS(on) Loss]]*(1+RdsonTopTc*Ta-RdsonTopTc*25))/(1-Table1[[#This Row],[RDS(on) Loss]]*RdsonTopTc*ThetaJA_Q1) -> 0.6062277833 | AJ16: =Table1[[#This Row],[Irms Lf]] -> 12.41068048 | AK16: =Rdson2*Table1[[#This Row],[Irms2]]^2 -> 0.5236849656 | AL16: =CHOOSE(Table1[[#This Row],[Mode Digit]], IF(Table1[[#This Row],[Iout]]<Table1[[#This Row],[Ripple Current pk-pk]]/2,Deadtime*Fsw*IF(VfdSky_Q2>0,0,Vsd_Q2)*(Table1[[#This Row],[Iout]]+Table1[[#This Row],[Ripple Current pk-pk]]/2),2*Deadtime*Fsw*IF(VfdSky_Q2>0,0,Vsd_Q2)*Table1[[#This Row],[Iout]]),0, IF(Table1[[#This Row],[Iout]]<Table1[[#This Row],[Ripple Current pk-pk]]/2,Deadtime*Fsw*IF(VfdSky_Q2>0,0,Vsd_Q2)*(Table1[[#This Row],[Iout]]+Table1[[#This Row],[Ripple Current pk-pk]]/2),2*Deadtime*Fsw*IF(VfdSky_Q2>0,0,Vsd_Q2)*Table1[[#This Row],[Iout]])) -> 0 | AM16: =(Table1[[#This Row],[Deadtime Loss]]+Table1[[#This Row],[RDS(on) Loss3]]*(1+RdsonBotTc*Ta-RdsonBotTc*25))/(1-Table1[[#This Row],[RDS(on) Loss3]]*RdsonBotTc*ThetaJA_Q2) -> 0.6062277833 | AN16: =Table1[[#This Row],[Irms Lf]] -> 12.41068048 | AO16: =Rdson4*Table1[[#This Row],[Irms4]]^2 -> 0.5236849656 | AP16: =CHOOSE(Table1[[#This Row],[Mode Digit]], 0, (Vout*Table1[[#This Row],[Iin]]/2)*(Fsw)*(Tr_boost+Tf_boost), (Vout*Iout/2)*(Fsw/1)*(Tr_boost+Tf_boost)) -> 2.570833419 | AQ16: =IF(Table1[[#This Row],[Vin]]>Vout, 0, IF(Table1[[#This Row],[Iin]]>Table1[[#This Row],[Ripple Current pk-pk]]/2,0,ABS(Table1[[#This Row],[Iin]]-Table1[[#This Row],[Ripple Current pk-pk]]/2)*Vsd_Q4*Deadtime*Fsw)) -> 0 | AR16: =(Table1[[#This Row],[Dead Time Loss 7]]+Table1[[#This Row],[Transition Loss6]]+Table1[[#This Row],[RDS(on) Loss5]]*(1+RdsonTopTc*Ta-RdsonTopTc*25))/(1-Table1[[#This Row],[RDS(on) Loss5]]*RdsonTopTc*ThetaJA_Q4) -> 3.58227397 | AS16: =Table1[[#This Row],[Irms Lf]] -> 12.41068048 | AT16: =Rdson3*Table1[[#This Row],[Irms9]]^2 -> 0.5236849656 | AU16: =CHOOSE(Table1[[#This Row],[Mode Digit]], 0, IF(Table1[[#This Row],[Iin]]<Table1[[#This Row],[Ripple Current pk-pk]]/2,Deadtime*Fsw*IF(VfdSky_Q3>0,0,Vsd_Q3)*(Table1[[#This Row],[Iin]]+Table1[[#This Row],[Ripple Current pk-pk]]/2), 2*Deadtime*Fsw*IF(VfdSky_Q3>0,0,Vsd_Q3)*Table1[[#This Row],[Iin]]), IF(Table1[[#This Row],[Iin]]<Table1[[#This Row],[Ripple Current pk-pk]]/2,Deadtime*Fsw*IF(VfdSky_Q3>0,0,Vsd_Q3)*(Table1[[#This Row],[Iin]]+Table1[[#This Row],[Ripple Current pk-pk]]/2), 2*Deadtime*Fsw*IF(VfdSky_Q3>0,0,Vsd_Q3)*Table1[[#This Row],[Iin]])) -> 0.4937247151 | AV16: =(Table1[[#This Row],[Deadtime Loss11]]+Table1[[#This Row],[RDS(on) Loss10]]*(1+RdsonBotTc*Ta-RdsonBotTc*25))/(1-Table1[[#This Row],[RDS(on) Loss10]]*RdsonBotTc*ThetaJA_Q3) -> 1.177773005 | AW16: =CHOOSE(Table1[[#This Row],[Mode Digit]], Rdson3*Table1[[#This Row],[Irms Lf]]^2, Rdson1*Table1[[#This Row],[Irms Lf]]^2, 0) -> 0.5236849656 | AX16: =CHOOSE(Table1[[#This Row],[Mode Digit]], 2*Deadtime*Fsw*IF(VfdSky_Q2>0,VfdSky_Q2,0)*Table1[[#This Row],[Iout]], 2*Deadtime*Fsw*IF(VfdSky_Q3>0,VfdSky_Q3,0)*Table1[[#This Row],[Iin]], 2*Deadtime*Fsw*IF(VfdSky_Q2>0,VfdSky_Q2,0)*Table1[[#This Row],[Iout]]+2*Deadtime*Fsw*IF(VfdSky_Q3>0,VfdSky_Q3,0)*Table1[[#This Row],[Iin]]) -> 0 | AY16: =CHOOSE(Table1[[#This Row],[Mode Digit]], IF(QrrSky_Q2>0,QrrSky_Q2,Qrr_Q2)*Fsw*(Table1[[#This Row],[Vin]]-Table1[[#This Row],[Iout]]*Rdson1), IF(QrrSky_Q3>0,QrrSky_Q3,Qrr_Q3)*Fsw*Vout, IF(QrrSky_Q2>0,QrrSky_Q2,Qrr_Q2)*Fsw*(Table1[[#This Row],[Vin]]-Table1[[#This Row],[Iout]]*Rdson1)+IF(QrrSky_Q3>0,QrrSky_Q3,Qrr_Q3)*Fsw*Vout) -> 0.611925 | AZ16: =CHOOSE(Table1[[#This Row],[Mode Digit]], Rs*Table1[[#This Row],[Irms2]]^2, Rs*Table1[[#This Row],[Irms4]]^2, Rs*(Table1[[#This Row],[Irms2]]^2+Table1[[#This Row],[Irms4]]^2)) -> 0.2002324868 | BA16: 0.3098264 | BB16: =IF(Vout>8, Iq*Vout, Iq*Table1[[#This Row],[Vin]]) -> 0.0615 | BC16: =CHOOSE(Table1[[#This Row],[Mode Digit]], (Qg_Q1+Qg_Q2)*Fsw, (Qg_Q3+Qg_Q4)*Fsw, (Qg_Q1+Qg_Q2+Qg_Q3+Qg_Q4)*Fsw)*IF(Vout>8, Vout, Table1[[#This Row],[Vin]]) -> 0.750628 | BD16: 0.5633230769 | BE16: =Table1[[#This Row],[IQ Loss]]+Table1[[#This Row],[Switching Current Loss]] -> 0.812128 | BF16: =SUM(Table1[[#This Row],[Total Inductor Loss]],Table1[[#This Row],[Total Cout Loss]],Table1[[#This Row],[Total Cin Loss]],Table1[[#This Row],[Total Control MOSFET Loss]],Table1[[#This Row],[Total Sync MOSFET Loss]],Table1[[#This Row],[Total Control MOSFET Loss8]],Table1[[#This Row],[Total Sync MOSFET Loss12]], Table1[[#This Row],[Deadtime Loss13]],Table1[[#This Row],[Reverse Recovery Loss]],Table1[[#This Row],[Total IC Loss]],Table1[[#This Row],[Isense Shunt Loss]],Table1[[#This Row],[Iout Shunt Loss]]) -> 8.598967237 | BG16: =Vout*Table1[[#This Row],[Iout]] -> 127.1 | BH16: =Table1[[#This Row],[Pout]]/(Table1[[#This Row],[Pout]]+Table1[[#This Row],[Total Loss]]) -> 0.9366320363 | BI16: =IF(Table1[[#This Row],[Vin]]>Vout,ThetaJA_Q1*(Table1[[#This Row],[Total Control MOSFET Loss]]+Table1[[#This Row],[Reverse Recovery Loss]]),ThetaJA_Q4*(Table1[[#This Row],[Total Control MOSFET Loss8]]+Table1[[#This Row],[Reverse Recovery Loss]])) -> 272.6229331 | BJ16: =IF(Table1[[#This Row],[Vin]]>Vout, Table1[[#This Row],[Total Sync MOSFET Loss]]*ThetaJA_Q2, ThetaJA_Q3*Table1[[#This Row],[Total Sync MOSFET Loss12]]) -> 76.55524531 | BL16: =Table1[[#This Row],[EFF, h]]*100 -> 93.66320363 | BM16: =Table1[[#This Row],[Total Inductor Loss]] -> 0.3384501702 | BN16: =Table1[[#This Row],[Total Control MOSFET Loss]]+Table1[[#This Row],[Total Sync MOSFET Loss]]+Table1[[#This Row],[Total Control MOSFET Loss8]]+Table1[[#This Row],[Total Sync MOSFET Loss12]]+Table1[[#This Row],[Reverse Recovery Loss]] -> 6.584427541 | BO16: =Table1[[#This Row],[Total Sync MOSFET Loss]]+Table1[[#This Row],[Reverse Recovery Loss]]*0.33 -> 0.8081630333 | BP16: =Table1[[#This Row],[Isense Shunt Loss]] -> 0.2002324868 | BT16: 1Mhz / 12-1.2V/ 10A | BU16: 25 | BV16: 25 | BW16: 25 | BX16: =1000000*(12-Vdd)*BW16/1000000000+((1000000*BW9/1000000000*Vdd)*2.5/(2*4)) -> 0.2765625 | BY16: 22.125 | BZ16: 27.65625 | CA16: 33.1875 | CB16: 38.71875 | CC16: 44.25 | CD16: 49.78125 | CE16: 5.53125 | CF16: 8.296875 | CG16: 11.0625 | CH16: 13.828125
A17: Components | B17: Input Value | C17: Units | D17: Description | G17: 8 | H17: =VIN_min+(VIN_max-VIN_min)*(Table1[[#This Row],[Step]]/200) -> 11.04 | I17: =IF(Table1[[#This Row],[Vin]]>VIN_BB_to_buck, "BUCK", IF(Table1[[#This Row],[Vin]]<=VIN_boost_to_BB,"BOOST","BUCK-BST")) -> BOOST | J17: =IF(Table1[[#This Row],[Mode]]="BOOST",2, IF(Table1[[#This Row],[Mode]]="BUCK", 1,3)) -> 2 | K17: 6.2 | L17: =Vout*Table1[[#This Row],[Iout]]/(Table1[[#This Row],[Vin]]*Efficiency) -> 12.11861175 | M17: =Iout/(1-Table1[[#This Row],[Duty Cycle BOOST Leg]]) -> 11.58778514 | N17: =CHOOSE(Table1[[#This Row],[Mode Digit]],(Vout+(Rdson2+Rs+Rdcr)*Table1[[#This Row],[Iout]])/(Table1[[#This Row],[Vin]]+(Rs+Rdson2-Rdson1)*Table1[[#This Row],[Iout]]),1,IF(Table1[[#This Row],[Vin]]<Vout,D_max_buck_BB,Vout/Table1[[#This Row],[Vin]]*(1-D_min_boost_exitBB_to_buck))) -> 1 | O17: =CHOOSE(Table1[[#This Row],[Mode Digit]],0,(Vout+(Rdson3+Rdcr)*Table1[[#This Row],[Iin]]-Table1[[#This Row],[Vin]])/(Vout+(Rdson3-Rdson4-Rs)*Table1[[#This Row],[Iin]]),IF(Table1[[#This Row],[Vin]]>Vout, (Vout-Table1[[#This Row],[Vin]]*D_max_exitBB_to_buck)/Vout, (Vout-Table1[[#This Row],[Vin]]*D_max_buck_BB)/Vout)) -> 0.4649538349 | P17: =CHOOSE(Table1[[#This Row],[Mode Digit]],0,0,1-((Table1[[#This Row],[Vin]]-Vout)+((VIN_BB_to_buck-VIN_BB_to_boost)/2))/((VIN_BB_to_buck-VIN_BB_to_boost))) -> 0 | Q17: =CHOOSE(Table1[[#This Row],[Mode Digit]],0,Table1[[#This Row],[Duty Cycle BOOST Leg]]/Fsw,(1/Fsw-Table1[[#This Row],[T BOD/BUE]])*Table1[[#This Row],[BOE/BUD BUBO ratio]]) -> 1.168225716e-06 | R17: =CHOOSE(Table1[[#This Row],[Mode Digit]],Table1[[#This Row],[Duty Cycle BUCK Leg]]/Fsw,(1-Table1[[#This Row],[Duty Cycle BOOST Leg]])/Fsw,TonBubo) -> 1.344337098e-06 | S17: =CHOOSE(Table1[[#This Row],[Mode Digit]],(1-Table1[[#This Row],[Duty Cycle BUCK Leg]])/Fsw,0,(1/Fsw-Table1[[#This Row],[T BOD/BUE]]-Table1[[#This Row],[T BOE]])) -> 0 | T17: =MAX(0, CHOOSE(Table1[[#This Row],[Mode Digit]], (Table1[[#This Row],[Vin]]-(Rdson1+Rdcr)*Table1[[#This Row],[Iout]]-Vout)*Table1[[#This Row],[Duty Cycle BUCK Leg]]/(Fsw*Lf), (Table1[[#This Row],[Vin]]-(Rdson4+Rdcr+Rs)*Table1[[#This Row],[Iin]])*Table1[[#This Row],[Duty Cycle BOOST Leg]]/(Fsw*Lf), IF(Table1[[#This Row],[Vin]]<Vout, (Table1[[#This Row],[Vin]]-(Rdson1+Rdson3+Rdcr+Rs)*Table1[[#This Row],[Iin]])*Table1[[#This Row],[T BOE]]/(Lf),(Vout-(Rdson2+Rdson4+Rdcr+Rs)*Table1[[#This Row],[Iout]])*Table1[[#This Row],[T BUD]]/(Lf)))) -> 1.28037739 | U17: =CHOOSE(Table1[[#This Row],[Mode Digit]], SQRT(Table1[[#This Row],[Iout]]^2+(Table1[[#This Row],[Ripple Current pk-pk]]^2)/12), SQRT(Table1[[#This Row],[Iin]]^2+(Table1[[#This Row],[Ripple Current pk-pk]]^2)/12), SQRT(Table1[[#This Row],[Avg IL]]^2+(Table1[[#This Row],[Ripple Current pk-pk]]^2)/12)) -> 12.12424697 | V17: =(Table1[[#This Row],[Irms Lf]]^2*Rdcr*(1+Ltc*Ta-Ltc*25))/(1-Table1[[#This Row],[Irms Lf]]^2*Rdcr*Ltc*ThetaCa) -> 0.2856780689 | W17: =ABS(7.759*10^-3*Fsw^0.9458*(0.00787*Table1[[#This Row],[Ripple Current pk-pk]])^2.304) -> 0.03853077001 | X17: =Table1[[#This Row],[DCR Loss]]+Table1[[#This Row],[Core Loss]] -> 0.3242088389 | Y17: =IF(Table1[[#This Row],[Vin]]>Vout, Table1[[#This Row],[Ripple Current pk-pk]]/SQRT(12), SQRT(Table1[[#This Row],[Duty Cycle BOOST Leg]]/(1-Table1[[#This Row],[Duty Cycle BOOST Leg]]))*SQRT(Table1[[#This Row],[Iout]]^2+(Table1[[#This Row],[Ripple Current pk-pk]]^2)/12)) -> 5.78990371 | Z17: =RCoutEsr*Table1[[#This Row],[Irms Cout]]^2 -> 0.3352298497 | AA17: =Table1[[#This Row],[Cout ESR Loss]] -> 0.3352298497 | AB17: =IF(Table1[[#This Row],[Vin]]>Vout, SQRT(Table1[[#This Row],[Duty Cycle BUCK Leg]]*(1-Table1[[#This Row],[Duty Cycle BUCK Leg]]))*SQRT(Table1[[#This Row],[Iout]]^2+(Table1[[#This Row],[Ripple Current pk-pk]]^2)/12), Table1[[#This Row],[Ripple Current pk-pk]]/SQRT(12)) -> 0.3696131153 | AC17: =RCinEsr*Table1[[#This Row],[Irms Cin]]^2 -> 0.00136613855 | AD17: =Table1[[#This Row],[Cin ESR Loss]] -> 0.00136613855 | AE17: =Table1[[#This Row],[Irms Lf]] -> 12.12424697 | AF17: =Rdson1*Table1[[#This Row],[Irms1]]^2 -> 0.4997910394 | AG17: =CHOOSE(Table1[[#This Row],[Mode Digit]], (Table1[[#This Row],[Vin]]*Table1[[#This Row],[Iout]]/2)*(Fsw)*(Tr_buck+Tf_buck), 0, (Table1[[#This Row],[Vin]]*Table1[[#This Row],[Avg IL]]/2)*(Fsw/1)*(Tr_buck+Tf_buck)) -> 0 | AH17: =IF(Table1[[#This Row],[Vin]]>Vout, IF(Table1[[#This Row],[Iout]]>Table1[[#This Row],[Ripple Current pk-pk]]/2,0,ABS(Table1[[#This Row],[Iout]]-Table1[[#This Row],[Ripple Current pk-pk]]/2)*Vsd_Q1*Deadtime*Fsw),0) -> 0 | AI17: =(Table1[[#This Row],[Dead Time Loss ]]+Table1[[#This Row],[Transition Loss]]+Table1[[#This Row],[RDS(on) Loss]]*(1+RdsonTopTc*Ta-RdsonTopTc*25))/(1-Table1[[#This Row],[RDS(on) Loss]]*RdsonTopTc*ThetaJA_Q1) -> 0.5744365866 | AJ17: =Table1[[#This Row],[Irms Lf]] -> 12.12424697 | AK17: =Rdson2*Table1[[#This Row],[Irms2]]^2 -> 0.4997910394 | AL17: =CHOOSE(Table1[[#This Row],[Mode Digit]], IF(Table1[[#This Row],[Iout]]<Table1[[#This Row],[Ripple Current pk-pk]]/2,Deadtime*Fsw*IF(VfdSky_Q2>0,0,Vsd_Q2)*(Table1[[#This Row],[Iout]]+Table1[[#This Row],[Ripple Current pk-pk]]/2),2*Deadtime*Fsw*IF(VfdSky_Q2>0,0,Vsd_Q2)*Table1[[#This Row],[Iout]]),0, IF(Table1[[#This Row],[Iout]]<Table1[[#This Row],[Ripple Current pk-pk]]/2,Deadtime*Fsw*IF(VfdSky_Q2>0,0,Vsd_Q2)*(Table1[[#This Row],[Iout]]+Table1[[#This Row],[Ripple Current pk-pk]]/2),2*Deadtime*Fsw*IF(VfdSky_Q2>0,0,Vsd_Q2)*Table1[[#This Row],[Iout]])) -> 0 | AM17: =(Table1[[#This Row],[Deadtime Loss]]+Table1[[#This Row],[RDS(on) Loss3]]*(1+RdsonBotTc*Ta-RdsonBotTc*25))/(1-Table1[[#This Row],[RDS(on) Loss3]]*RdsonBotTc*ThetaJA_Q2) -> 0.5744365866 | AN17: =Table1[[#This Row],[Irms Lf]] -> 12.12424697 | AO17: =Rdson4*Table1[[#This Row],[Irms4]]^2 -> 0.4997910394 | AP17: =CHOOSE(Table1[[#This Row],[Mode Digit]], 0, (Vout*Table1[[#This Row],[Iin]]/2)*(Fsw)*(Tr_boost+Tf_boost), (Vout*Iout/2)*(Fsw/1)*(Tr_boost+Tf_boost)) -> 2.511452756 | AQ17: =IF(Table1[[#This Row],[Vin]]>Vout, 0, IF(Table1[[#This Row],[Iin]]>Table1[[#This Row],[Ripple Current pk-pk]]/2,0,ABS(Table1[[#This Row],[Iin]]-Table1[[#This Row],[Ripple Current pk-pk]]/2)*Vsd_Q4*Deadtime*Fsw)) -> 0 | AR17: =(Table1[[#This Row],[Dead Time Loss 7]]+Table1[[#This Row],[Transition Loss6]]+Table1[[#This Row],[RDS(on) Loss5]]*(1+RdsonTopTc*Ta-RdsonTopTc*25))/(1-Table1[[#This Row],[RDS(on) Loss5]]*RdsonTopTc*ThetaJA_Q4) -> 3.460983633 | AS17: =Table1[[#This Row],[Irms Lf]] -> 12.12424697 | AT17: =Rdson3*Table1[[#This Row],[Irms9]]^2 -> 0.4997910394 | AU17: =CHOOSE(Table1[[#This Row],[Mode Digit]], 0, IF(Table1[[#This Row],[Iin]]<Table1[[#This Row],[Ripple Current pk-pk]]/2,Deadtime*Fsw*IF(VfdSky_Q3>0,0,Vsd_Q3)*(Table1[[#This Row],[Iin]]+Table1[[#This Row],[Ripple Current pk-pk]]/2), 2*Deadtime*Fsw*IF(VfdSky_Q3>0,0,Vsd_Q3)*Table1[[#This Row],[Iin]]), IF(Table1[[#This Row],[Iin]]<Table1[[#This Row],[Ripple Current pk-pk]]/2,Deadtime*Fsw*IF(VfdSky_Q3>0,0,Vsd_Q3)*(Table1[[#This Row],[Iin]]+Table1[[#This Row],[Ripple Current pk-pk]]/2), 2*Deadtime*Fsw*IF(VfdSky_Q3>0,0,Vsd_Q3)*Table1[[#This Row],[Iin]])) -> 0.4823207475 | AV17: =(Table1[[#This Row],[Deadtime Loss11]]+Table1[[#This Row],[RDS(on) Loss10]]*(1+RdsonBotTc*Ta-RdsonBotTc*25))/(1-Table1[[#This Row],[RDS(on) Loss10]]*RdsonBotTc*ThetaJA_Q3) -> 1.128793632 | AW17: =CHOOSE(Table1[[#This Row],[Mode Digit]], Rdson3*Table1[[#This Row],[Irms Lf]]^2, Rdson1*Table1[[#This Row],[Irms Lf]]^2, 0) -> 0.4997910394 | AX17: =CHOOSE(Table1[[#This Row],[Mode Digit]], 2*Deadtime*Fsw*IF(VfdSky_Q2>0,VfdSky_Q2,0)*Table1[[#This Row],[Iout]], 2*Deadtime*Fsw*IF(VfdSky_Q3>0,VfdSky_Q3,0)*Table1[[#This Row],[Iin]], 2*Deadtime*Fsw*IF(VfdSky_Q2>0,VfdSky_Q2,0)*Table1[[#This Row],[Iout]]+2*Deadtime*Fsw*IF(VfdSky_Q3>0,VfdSky_Q3,0)*Table1[[#This Row],[Iin]]) -> 0 | AY17: =CHOOSE(Table1[[#This Row],[Mode Digit]], IF(QrrSky_Q2>0,QrrSky_Q2,Qrr_Q2)*Fsw*(Table1[[#This Row],[Vin]]-Table1[[#This Row],[Iout]]*Rdson1), IF(QrrSky_Q3>0,QrrSky_Q3,Qrr_Q3)*Fsw*Vout, IF(QrrSky_Q2>0,QrrSky_Q2,Qrr_Q2)*Fsw*(Table1[[#This Row],[Vin]]-Table1[[#This Row],[Iout]]*Rdson1)+IF(QrrSky_Q3>0,QrrSky_Q3,Qrr_Q3)*Fsw*Vout) -> 0.611925 | AZ17: =CHOOSE(Table1[[#This Row],[Mode Digit]], Rs*Table1[[#This Row],[Irms2]]^2, Rs*Table1[[#This Row],[Irms4]]^2, Rs*(Table1[[#This Row],[Irms2]]^2+Table1[[#This Row],[Irms4]]^2)) -> 0.1910965739 | BA17: 0.3098264 | BB17: =IF(Vout>8, Iq*Vout, Iq*Table1[[#This Row],[Vin]]) -> 0.0615 | BC17: =CHOOSE(Table1[[#This Row],[Mode Digit]], (Qg_Q1+Qg_Q2)*Fsw, (Qg_Q3+Qg_Q4)*Fsw, (Qg_Q1+Qg_Q2+Qg_Q3+Qg_Q4)*Fsw)*IF(Vout>8, Vout, Table1[[#This Row],[Vin]]) -> 0.750628 | BD17: 0.5633230769 | BE17: =Table1[[#This Row],[IQ Loss]]+Table1[[#This Row],[Switching Current Loss]] -> 0.812128 | BF17: =SUM(Table1[[#This Row],[Total Inductor Loss]],Table1[[#This Row],[Total Cout Loss]],Table1[[#This Row],[Total Cin Loss]],Table1[[#This Row],[Total Control MOSFET Loss]],Table1[[#This Row],[Total Sync MOSFET Loss]],Table1[[#This Row],[Total Control MOSFET Loss8]],Table1[[#This Row],[Total Sync MOSFET Loss12]], Table1[[#This Row],[Deadtime Loss13]],Table1[[#This Row],[Reverse Recovery Loss]],Table1[[#This Row],[Total IC Loss]],Table1[[#This Row],[Isense Shunt Loss]],Table1[[#This Row],[Iout Shunt Loss]]) -> 8.324431239 | BG17: =Vout*Table1[[#This Row],[Iout]] -> 127.1 | BH17: =Table1[[#This Row],[Pout]]/(Table1[[#This Row],[Pout]]+Table1[[#This Row],[Total Loss]]) -> 0.9385308015 | BI17: =IF(Table1[[#This Row],[Vin]]>Vout,ThetaJA_Q1*(Table1[[#This Row],[Total Control MOSFET Loss]]+Table1[[#This Row],[Reverse Recovery Loss]]),ThetaJA_Q4*(Table1[[#This Row],[Total Control MOSFET Loss8]]+Table1[[#This Row],[Reverse Recovery Loss]])) -> 264.7390612 | BJ17: =IF(Table1[[#This Row],[Vin]]>Vout, Table1[[#This Row],[Total Sync MOSFET Loss]]*ThetaJA_Q2, ThetaJA_Q3*Table1[[#This Row],[Total Sync MOSFET Loss12]]) -> 73.37158608 | BL17: =Table1[[#This Row],[EFF, h]]*100 -> 93.85308015 | BM17: =Table1[[#This Row],[Total Inductor Loss]] -> 0.3242088389 | BN17: =Table1[[#This Row],[Total Control MOSFET Loss]]+Table1[[#This Row],[Total Sync MOSFET Loss]]+Table1[[#This Row],[Total Control MOSFET Loss8]]+Table1[[#This Row],[Total Sync MOSFET Loss12]]+Table1[[#This Row],[Reverse Recovery Loss]] -> 6.350575438 | BO17: =Table1[[#This Row],[Total Sync MOSFET Loss]]+Table1[[#This Row],[Reverse Recovery Loss]]*0.33 -> 0.7763718366 | BP17: =Table1[[#This Row],[Isense Shunt Loss]] -> 0.1910965739 | BT17: 500kHz / 18-1.2V / 20A | BU17: 50 | BV17: 50 | BW17: 50 | BX17: =500000*(18-Vdd)*BW17/1000000000+((500000*BW15/1000000000*Vdd)*2.5/(2*4)) -> 0.2859375 | BY17: 22.875 | BZ17: 28.59375 | CA17: 34.3125 | CB17: 40.03125 | CC17: 45.75 | CD17: 51.46875 | CE17: 5.71875 | CF17: 8.578125 | CG17: 11.4375 | CH17: 14.296875
A18: L | B18: =Lf*1000000 -> 10 | C18: uH | D18: Filter Inductance | G18: 9 | H18: =VIN_min+(VIN_max-VIN_min)*(Table1[[#This Row],[Step]]/200) -> 11.295 | I18: =IF(Table1[[#This Row],[Vin]]>VIN_BB_to_buck, "BUCK", IF(Table1[[#This Row],[Vin]]<=VIN_boost_to_BB,"BOOST","BUCK-BST")) -> BOOST | J18: =IF(Table1[[#This Row],[Mode]]="BOOST",2, IF(Table1[[#This Row],[Mode]]="BUCK", 1,3)) -> 2 | K18: 6.2 | L18: =Vout*Table1[[#This Row],[Iout]]/(Table1[[#This Row],[Vin]]*Efficiency) -> 11.84501759 | M18: =Iout/(1-Table1[[#This Row],[Duty Cycle BOOST Leg]]) -> 11.32268294 | N18: =CHOOSE(Table1[[#This Row],[Mode Digit]],(Vout+(Rdson2+Rs+Rdcr)*Table1[[#This Row],[Iout]])/(Table1[[#This Row],[Vin]]+(Rs+Rdson2-Rdson1)*Table1[[#This Row],[Iout]]),1,IF(Table1[[#This Row],[Vin]]<Vout,D_max_buck_BB,Vout/Table1[[#This Row],[Vin]]*(1-D_min_boost_exitBB_to_buck))) -> 1 | O18: =CHOOSE(Table1[[#This Row],[Mode Digit]],0,(Vout+(Rdson3+Rdcr)*Table1[[#This Row],[Iin]]-Table1[[#This Row],[Vin]])/(Vout+(Rdson3-Rdson4-Rs)*Table1[[#This Row],[Iin]]),IF(Table1[[#This Row],[Vin]]>Vout, (Vout-Table1[[#This Row],[Vin]]*D_max_exitBB_to_buck)/Vout, (Vout-Table1[[#This Row],[Vin]]*D_max_buck_BB)/Vout)) -> 0.4524265997 | P18: =CHOOSE(Table1[[#This Row],[Mode Digit]],0,0,1-((Table1[[#This Row],[Vin]]-Vout)+((VIN_BB_to_buck-VIN_BB_to_boost)/2))/((VIN_BB_to_buck-VIN_BB_to_boost))) -> 0 | Q18: =CHOOSE(Table1[[#This Row],[Mode Digit]],0,Table1[[#This Row],[Duty Cycle BOOST Leg]]/Fsw,(1/Fsw-Table1[[#This Row],[T BOD/BUE]])*Table1[[#This Row],[BOE/BUD BUBO ratio]]) -> 1.136750251e-06 | R18: =CHOOSE(Table1[[#This Row],[Mode Digit]],Table1[[#This Row],[Duty Cycle BUCK Leg]]/Fsw,(1-Table1[[#This Row],[Duty Cycle BOOST Leg]])/Fsw,TonBubo) -> 1.375812563e-06 | S18: =CHOOSE(Table1[[#This Row],[Mode Digit]],(1-Table1[[#This Row],[Duty Cycle BUCK Leg]])/Fsw,0,(1/Fsw-Table1[[#This Row],[T BOD/BUE]]-Table1[[#This Row],[T BOE]])) -> 0 | T18: =MAX(0, CHOOSE(Table1[[#This Row],[Mode Digit]], (Table1[[#This Row],[Vin]]-(Rdson1+Rdcr)*Table1[[#This Row],[Iout]]-Vout)*Table1[[#This Row],[Duty Cycle BUCK Leg]]/(Fsw*Lf), (Table1[[#This Row],[Vin]]-(Rdson4+Rdcr+Rs)*Table1[[#This Row],[Iin]])*Table1[[#This Row],[Duty Cycle BOOST Leg]]/(Fsw*Lf), IF(Table1[[#This Row],[Vin]]<Vout, (Table1[[#This Row],[Vin]]-(Rdson1+Rdson3+Rdcr+Rs)*Table1[[#This Row],[Iin]])*Table1[[#This Row],[T BOE]]/(Lf),(Vout-(Rdson2+Rdson4+Rdcr+Rs)*Table1[[#This Row],[Iout]])*Table1[[#This Row],[T BUD]]/(Lf)))) -> 1.275072622 | U18: =CHOOSE(Table1[[#This Row],[Mode Digit]], SQRT(Table1[[#This Row],[Iout]]^2+(Table1[[#This Row],[Ripple Current pk-pk]]^2)/12), SQRT(Table1[[#This Row],[Iin]]^2+(Table1[[#This Row],[Ripple Current pk-pk]]^2)/12), SQRT(Table1[[#This Row],[Avg IL]]^2+(Table1[[#This Row],[Ripple Current pk-pk]]^2)/12)) -> 11.85073525 | V18: =(Table1[[#This Row],[Irms Lf]]^2*Rdcr*(1+Ltc*Ta-Ltc*25))/(1-Table1[[#This Row],[Irms Lf]]^2*Rdcr*Ltc*ThetaCa) -> 0.2726562157 | W18: =ABS(7.759*10^-3*Fsw^0.9458*(0.00787*Table1[[#This Row],[Ripple Current pk-pk]])^2.304) -> 0.03816395742 | X18: =Table1[[#This Row],[DCR Loss]]+Table1[[#This Row],[Core Loss]] -> 0.3108201731 | Y18: =IF(Table1[[#This Row],[Vin]]>Vout, Table1[[#This Row],[Ripple Current pk-pk]]/SQRT(12), SQRT(Table1[[#This Row],[Duty Cycle BOOST Leg]]/(1-Table1[[#This Row],[Duty Cycle BOOST Leg]]))*SQRT(Table1[[#This Row],[Iout]]^2+(Table1[[#This Row],[Ripple Current pk-pk]]^2)/12)) -> 5.645580271 | Z18: =RCoutEsr*Table1[[#This Row],[Irms Cout]]^2 -> 0.318725766 | AA18: =Table1[[#This Row],[Cout ESR Loss]] -> 0.318725766 | AB18: =IF(Table1[[#This Row],[Vin]]>Vout, SQRT(Table1[[#This Row],[Duty Cycle BUCK Leg]]*(1-Table1[[#This Row],[Duty Cycle BUCK Leg]]))*SQRT(Table1[[#This Row],[Iout]]^2+(Table1[[#This Row],[Ripple Current pk-pk]]^2)/12), Table1[[#This Row],[Ripple Current pk-pk]]/SQRT(12)) -> 0.3680817609 | AC18: =RCinEsr*Table1[[#This Row],[Irms Cin]]^2 -> 0.001354841827 | AD18: =Table1[[#This Row],[Cin ESR Loss]] -> 0.001354841827 | AE18: =Table1[[#This Row],[Irms Lf]] -> 11.85073525 | AF18: =Rdson1*Table1[[#This Row],[Irms1]]^2 -> 0.4774957481 | AG18: =CHOOSE(Table1[[#This Row],[Mode Digit]], (Table1[[#This Row],[Vin]]*Table1[[#This Row],[Iout]]/2)*(Fsw)*(Tr_buck+Tf_buck), 0, (Table1[[#This Row],[Vin]]*Table1[[#This Row],[Avg IL]]/2)*(Fsw/1)*(Tr_buck+Tf_buck)) -> 0 | AH18: =IF(Table1[[#This Row],[Vin]]>Vout, IF(Table1[[#This Row],[Iout]]>Table1[[#This Row],[Ripple Current pk-pk]]/2,0,ABS(Table1[[#This Row],[Iout]]-Table1[[#This Row],[Ripple Current pk-pk]]/2)*Vsd_Q1*Deadtime*Fsw),0) -> 0 | AI18: =(Table1[[#This Row],[Dead Time Loss ]]+Table1[[#This Row],[Transition Loss]]+Table1[[#This Row],[RDS(on) Loss]]*(1+RdsonTopTc*Ta-RdsonTopTc*25))/(1-Table1[[#This Row],[RDS(on) Loss]]*RdsonTopTc*ThetaJA_Q1) -> 0.545179135 | AJ18: =Table1[[#This Row],[Irms Lf]] -> 11.85073525 | AK18: =Rdson2*Table1[[#This Row],[Irms2]]^2 -> 0.4774957481 | AL18: =CHOOSE(Table1[[#This Row],[Mode Digit]], IF(Table1[[#This Row],[Iout]]<Table1[[#This Row],[Ripple Current pk-pk]]/2,Deadtime*Fsw*IF(VfdSky_Q2>0,0,Vsd_Q2)*(Table1[[#This Row],[Iout]]+Table1[[#This Row],[Ripple Current pk-pk]]/2),2*Deadtime*Fsw*IF(VfdSky_Q2>0,0,Vsd_Q2)*Table1[[#This Row],[Iout]]),0, IF(Table1[[#This Row],[Iout]]<Table1[[#This Row],[Ripple Current pk-pk]]/2,Deadtime*Fsw*IF(VfdSky_Q2>0,0,Vsd_Q2)*(Table1[[#This Row],[Iout]]+Table1[[#This Row],[Ripple Current pk-pk]]/2),2*Deadtime*Fsw*IF(VfdSky_Q2>0,0,Vsd_Q2)*Table1[[#This Row],[Iout]])) -> 0 | AM18: =(Table1[[#This Row],[Deadtime Loss]]+Table1[[#This Row],[RDS(on) Loss3]]*(1+RdsonBotTc*Ta-RdsonBotTc*25))/(1-Table1[[#This Row],[RDS(on) Loss3]]*RdsonBotTc*ThetaJA_Q2) -> 0.545179135 | AN18: =Table1[[#This Row],[Irms Lf]] -> 11.85073525 | AO18: =Rdson4*Table1[[#This Row],[Irms4]]^2 -> 0.4774957481 | AP18: =CHOOSE(Table1[[#This Row],[Mode Digit]], 0, (Vout*Table1[[#This Row],[Iin]]/2)*(Fsw)*(Tr_boost+Tf_boost), (Vout*Iout/2)*(Fsw/1)*(Tr_boost+Tf_boost)) -> 2.454753291 | AQ18: =IF(Table1[[#This Row],[Vin]]>Vout, 0, IF(Table1[[#This Row],[Iin]]>Table1[[#This Row],[Ripple Current pk-pk]]/2,0,ABS(Table1[[#This Row],[Iin]]-Table1[[#This Row],[Ripple Current pk-pk]]/2)*Vsd_Q4*Deadtime*Fsw)) -> 0 | AR18: =(Table1[[#This Row],[Dead Time Loss 7]]+Table1[[#This Row],[Transition Loss6]]+Table1[[#This Row],[RDS(on) Loss5]]*(1+RdsonTopTc*Ta-RdsonTopTc*25))/(1-Table1[[#This Row],[RDS(on) Loss5]]*RdsonTopTc*ThetaJA_Q4) -> 3.347885298 | AS18: =Table1[[#This Row],[Irms Lf]] -> 11.85073525 | AT18: =Rdson3*Table1[[#This Row],[Irms9]]^2 -> 0.4774957481 | AU18: =CHOOSE(Table1[[#This Row],[Mode Digit]], 0, IF(Table1[[#This Row],[Iin]]<Table1[[#This Row],[Ripple Current pk-pk]]/2,Deadtime*Fsw*IF(VfdSky_Q3>0,0,Vsd_Q3)*(Table1[[#This Row],[Iin]]+Table1[[#This Row],[Ripple Current pk-pk]]/2), 2*Deadtime*Fsw*IF(VfdSky_Q3>0,0,Vsd_Q3)*Table1[[#This Row],[Iin]]), IF(Table1[[#This Row],[Iin]]<Table1[[#This Row],[Ripple Current pk-pk]]/2,Deadtime*Fsw*IF(VfdSky_Q3>0,0,Vsd_Q3)*(Table1[[#This Row],[Iin]]+Table1[[#This Row],[Ripple Current pk-pk]]/2), 2*Deadtime*Fsw*IF(VfdSky_Q3>0,0,Vsd_Q3)*Table1[[#This Row],[Iin]])) -> 0.4714317001 | AV18: =(Table1[[#This Row],[Deadtime Loss11]]+Table1[[#This Row],[RDS(on) Loss10]]*(1+RdsonBotTc*Ta-RdsonBotTc*25))/(1-Table1[[#This Row],[RDS(on) Loss10]]*RdsonBotTc*ThetaJA_Q3) -> 1.083434664 | AW18: =CHOOSE(Table1[[#This Row],[Mode Digit]], Rdson3*Table1[[#This Row],[Irms Lf]]^2, Rdson1*Table1[[#This Row],[Irms Lf]]^2, 0) -> 0.4774957481 | AX18: =CHOOSE(Table1[[#This Row],[Mode Digit]], 2*Deadtime*Fsw*IF(VfdSky_Q2>0,VfdSky_Q2,0)*Table1[[#This Row],[Iout]], 2*Deadtime*Fsw*IF(VfdSky_Q3>0,VfdSky_Q3,0)*Table1[[#This Row],[Iin]], 2*Deadtime*Fsw*IF(VfdSky_Q2>0,VfdSky_Q2,0)*Table1[[#This Row],[Iout]]+2*Deadtime*Fsw*IF(VfdSky_Q3>0,VfdSky_Q3,0)*Table1[[#This Row],[Iin]]) -> 0 | AY18: =CHOOSE(Table1[[#This Row],[Mode Digit]], IF(QrrSky_Q2>0,QrrSky_Q2,Qrr_Q2)*Fsw*(Table1[[#This Row],[Vin]]-Table1[[#This Row],[Iout]]*Rdson1), IF(QrrSky_Q3>0,QrrSky_Q3,Qrr_Q3)*Fsw*Vout, IF(QrrSky_Q2>0,QrrSky_Q2,Qrr_Q2)*Fsw*(Table1[[#This Row],[Vin]]-Table1[[#This Row],[Iout]]*Rdson1)+IF(QrrSky_Q3>0,QrrSky_Q3,Qrr_Q3)*Fsw*Vout) -> 0.611925 | AZ18: =CHOOSE(Table1[[#This Row],[Mode Digit]], Rs*Table1[[#This Row],[Irms2]]^2, Rs*Table1[[#This Row],[Irms4]]^2, Rs*(Table1[[#This Row],[Irms2]]^2+Table1[[#This Row],[Irms4]]^2)) -> 0.1825719037 | BA18: 0.3098264 | BB18: =IF(Vout>8, Iq*Vout, Iq*Table1[[#This Row],[Vin]]) -> 0.0615 | BC18: =CHOOSE(Table1[[#This Row],[Mode Digit]], (Qg_Q1+Qg_Q2)*Fsw, (Qg_Q3+Qg_Q4)*Fsw, (Qg_Q1+Qg_Q2+Qg_Q3+Qg_Q4)*Fsw)*IF(Vout>8, Vout, Table1[[#This Row],[Vin]]) -> 0.750628 | BD18: 0.5633230769 | BE18: =Table1[[#This Row],[IQ Loss]]+Table1[[#This Row],[Switching Current Loss]] -> 0.812128 | BF18: =SUM(Table1[[#This Row],[Total Inductor Loss]],Table1[[#This Row],[Total Cout Loss]],Table1[[#This Row],[Total Cin Loss]],Table1[[#This Row],[Total Control MOSFET Loss]],Table1[[#This Row],[Total Sync MOSFET Loss]],Table1[[#This Row],[Total Control MOSFET Loss8]],Table1[[#This Row],[Total Sync MOSFET Loss12]], Table1[[#This Row],[Deadtime Loss13]],Table1[[#This Row],[Reverse Recovery Loss]],Table1[[#This Row],[Total IC Loss]],Table1[[#This Row],[Isense Shunt Loss]],Table1[[#This Row],[Iout Shunt Loss]]) -> 8.069030316 | BG18: =Vout*Table1[[#This Row],[Iout]] -> 127.1 | BH18: =Table1[[#This Row],[Pout]]/(Table1[[#This Row],[Pout]]+Table1[[#This Row],[Total Loss]]) -> 0.9403041488 | BI18: =IF(Table1[[#This Row],[Vin]]>Vout,ThetaJA_Q1*(Table1[[#This Row],[Total Control MOSFET Loss]]+Table1[[#This Row],[Reverse Recovery Loss]]),ThetaJA_Q4*(Table1[[#This Row],[Total Control MOSFET Loss8]]+Table1[[#This Row],[Reverse Recovery Loss]])) -> 257.3876694 | BJ18: =IF(Table1[[#This Row],[Vin]]>Vout, Table1[[#This Row],[Total Sync MOSFET Loss]]*ThetaJA_Q2, ThetaJA_Q3*Table1[[#This Row],[Total Sync MOSFET Loss12]]) -> 70.42325316 | BL18: =Table1[[#This Row],[EFF, h]]*100 -> 94.03041488 | BM18: =Table1[[#This Row],[Total Inductor Loss]] -> 0.3108201731 | BN18: =Table1[[#This Row],[Total Control MOSFET Loss]]+Table1[[#This Row],[Total Sync MOSFET Loss]]+Table1[[#This Row],[Total Control MOSFET Loss8]]+Table1[[#This Row],[Total Sync MOSFET Loss12]]+Table1[[#This Row],[Reverse Recovery Loss]] -> 6.133603232 | BO18: =Table1[[#This Row],[Total Sync MOSFET Loss]]+Table1[[#This Row],[Reverse Recovery Loss]]*0.33 -> 0.747114385 | BP18: =Table1[[#This Row],[Isense Shunt Loss]] -> 0.1825719037 | BT18: θJA=120°C/W - 160°C/W
